Workbook

Sheet قوائم شهرية أ
A1: 1 | B1: 2 | C1: 3 | D1: 4 | E1: 5 | F1: 6 | G1: 7 | H1: 8 | I1: 9 | J1: 10 | K1: 11 | L1: 12 | M1: 13 | N1: 14 | O1: 15 | P1: 16 | Q1: 17 | R1: 18 | S1: 19 | T1: 20 | U1: 21 | V1: 22 | W1: 23 | X1: 24 | Y1: 25 | Z1: 26 | AA1: 27 | AB1: 28 | AC1: 29 | AD1: 30 | AE1: 31 | AF1: 32 | AG1: 33 | AH1: 34 | AI1: 35 | AJ1: 36 | AK1: 37 | AL1: 38 | AM1: 39 | AN1: 40 | AO1: 41 | AP1: 42 | AQ1: 43 | AR1: 44 | AS1: 45 | AT1: 46 | AU1: 47 | AV1: 48 | AW1: 49 | AX1: 50 | AY1: 51 | AZ1: 52 | BA1: 53 | BB1: 54 | BC1: 55 | BD1: 56 | BE1: 57 | BF1: 58 | BG1: 59 | BH1: 60 | BI1: 61 | BJ1: 62 | BK1: 63 | BL1: 64 | BM1: 65 | BN1: 66 | BO1: 67 | BP1: 68 | BQ1: 69 | BR1: 70 | BS1: 71 | BT1: 72 | BU1: 73 | BV1: 74 | BW1: 75 | BX1: 76 | BY1: 77 | BZ1: 78 | CA1: 79 | CB1: 80 | CC1: 81 | CD1: 82 | CE1: 83 | CF1: 84 | CG1: 85 | CH1: 86 | CI1: 87 | CJ1: 88 | CK1: 89 | CL1: 90 | CM1: 91 | CN1: 92 | CO1: 93 | CP1: 94 | CQ1: 95 | CR1: 96 | CS1: 97 | CT1: 98 | CU1: 99 | CV1: 100 | CW1: 101 | CX1: 102 | CY1: 103 | CZ1: 104 | DA1: 105 | DB1: 106 | DC1: 107 | DD1: 108 | DE1: 109 | DF1: 110 | DG1: 111 | DH1: 112 | DI1: 113 | DJ1: 114 | DK1: 115 | DL1: 116 | DM1: 117 | DN1: 118 | DO1: 119 | DP1: 120 | DQ1: 121 | DR1: 122 | DS1: 123 | DT1: 124 | DU1: 125 | DV1: 126 | DW1: 127 | DX1: 128 | DY1: 129 | DZ1: 130 | EA1: 131 | EB1: 132 | EC1: 133 | ED1: 134 | EE1: 135 | EF1: 136
A2: أدارة مدرسة المناذرة | F2: قائمة الدرجات الشهرية | M2: الصف / | O2: الخامس أ | R2: أدارة مدرسة المناذرة | W2: قائمة الدرجات الشهرية | AD2: الصف / | AF2: الخامس أ | AI2: أدارة مدرسة المناذرة | AN2: قائمة الدرجات الشهرية | AU2: الصف / | AW2: الخامس أ | AZ2: أدارة مدرسة المناذرة | BE2: قائمة الدرجات الشهرية | BL2: الصف / | BN2: الخامس أ | BQ2: أدارة مدرسة المناذرة | BV2: قائمة الدرجات الشهرية | CC2: الصف / | CE2: الخامس أ | CH2: أدارة مدرسة المناذرة | CM2: قائمة الدرجات الشهرية | CT2: الصف / | CV2: الخامس أ | CY2: أدارة مدرسة المناذرة | DD2: قائمة الدرجات الشهرية | DK2: الصف / | DM2: الخامس أ | DP2: أدارة مدرسة المناذرة | DU2: قائمة الدرجات الشهرية | EB2: الصف / | ED2: الخامس أ
A3: الابتدائية للبنات | F3: للعام الدراسي 2019 - 2020 | M3: المادة / | O3: التربية الإسلامية | R3: الابتدائية للبنات | W3: للعام الدراسي 2019 - 2020 | AD3: المادة / | AF3: اللغة العربية | AI3: الابتدائية للبنات | AN3: للعام الدراسي 2019 - 2020 | AU3: المادة / | AW3: اللغة الإنكليزية | AZ3: الابتدائية للبنات | BE3: للعام الدراسي 2019 - 2020 | BL3: المادة / | BN3: الرياضيات | BQ3: الابتدائية للبنات | BV3: للعام الدراسي 2019 - 2020 | CC3: المادة / | CE3: العلوم | CH3: الابتدائية للبنات | CM3: للعام الدراسي 2019 - 2020 | CT3: المادة / | CV3: الاجتماعيات | CY3: الابتدائية للبنات | DD3: للعام الدراسي 2019 - 2020 | DK3: المادة / | DM3: التربية الفنية | DP3: الابتدائية للبنات | DU3: للعام الدراسي 2019 - 2020 | EB3: المادة / | ED3: التربية الرياضية
M4: المعلم/ | O4: سرى عمر | AD4: المعلم/ | AF4: كميلة عدي | AU4: المعلم/ | AW4: نور كريم | BL4: المعلم/ | BN4: امل جاسب | CC4: المعلم/ | CE4: نرجس كاظم | CT4: المعلم/ | CV4: اسراء علي | DK4: المعلم/ | DM4: كرار جاسم | EB4: المعلم/ | ED4: محمد علي
D5: النصف الأول | I5: النصف الثاني | U5: النصف الأول | Z5: النصف الثاني | AL5: النصف الأول | AQ5: النصف الثاني | BC5: النصف الأول | BH5: النصف الثاني | BT5: النصف الأول | BY5: النصف الثاني | CK5: النصف الأول | CP5: النصف الثاني | DB5: النصف الأول | DG5: النصف الثاني | DS5: النصف الأول | DX5: النصف الثاني
A6: ت | B6: رقم القيد | C6: الا ســـــم | D6: تشرين الاول | E6: تشرين الثاني | F6: كانون الاول | G6: معدل النصف الاول | H6: نصف السنة | I6: شباط | J6: آذار | K6: نيسان | L6: معدل النصف الثاني | M6: السعي السنوي | N6: امتحان الدور الأول | O6: الدرجة النهائية | P6: امتحان الدور الثاني | Q6: الدرجة النهائية | R6: ت | S6: رقم القيد | T6: الا ســـــم | U6: تشرين الاول | V6: تشرين الثاني | W6: كانون الاول | X6: معدل النصف الاول | Y6: نصف السنة | Z6: شباط | AA6: آذار | AB6: نيسان | AC6: معدل النصف الثاني | AD6: السعي السنوي | AE6: امتحان الدور الأول | AF6: الدرجة النهائية | AG6: امتحان الدور الثاني | AH6: الدرجة النهائية | AI6: ت | AJ6: رقم القيد | AK6: الا ســـــم | AL6: تشرين الاول | AM6: تشرين الثاني | AN6: كانون الاول | AO6: معدل النصف الاول | AP6: نصف السنة | AQ6: شباط | AR6: آذار | AS6: نيسان | AT6: معدل النصف الثاني | AU6: السعي السنوي | AV6: امتحان الدور الأول | AW6: الدرجة النهائية | AX6: امتحان الدور الثاني | AY6: الدرجة النهائية | AZ6: ت | BA6: رقم القيد | BB6: الا ســـــم | BC6: تشرين الاول | BD6: تشرين الثاني | BE6: كانون الاول | BF6: معدل النصف الاول | BG6: نصف السنة | BH6: شباط | BI6: آذار | BJ6: نيسان | BK6: معدل النصف الثاني | BL6: السعي السنوي | BM6: امتحان الدور الأول | BN6: الدرجة النهائية | BO6: امتحان الدور الثاني | BP6: الدرجة النهائية | BQ6: ت | BR6: رقم القيد | BS6: الا ســـــم | BT6: تشرين الاول | BU6: تشرين الثاني | BV6: كانون الاول | BW6: معدل النصف الاول | BX6: نصف السنة | BY6: شباط | BZ6: آذار | CA6: نيسان | CB6: معدل النصف الثاني | CC6: السعي السنوي | CD6: امتحان الدور الأول | CE6: الدرجة النهائية | CF6: امتحان الدور الثاني | CG6: الدرجة النهائية | CH6: ت | CI6: رقم القيد | CJ6: الا ســـــم | CK6: تشرين الاول | CL6: تشرين الثاني | CM6: كانون الاول | CN6: معدل النصف الاول | CO6: نصف السنة | CP6: شباط | CQ6: آذار | CR6: نيسان | CS6: معدل النصف الثاني | CT6: السعي السنوي | CU6: امتحان الدور الأول | CV6: الدرجة النهائية | CW6: امتحان الدور الثاني | CX6: الدرجة النهائية | CY6: ت | CZ6: رقم القيد | DA6: الا ســـــم | DB6: تشرين الاول | DC6: تشرين الثاني | DD6: كانون الاول | DE6: معدل النصف الاول | DF6: نصف السنة | DG6: شباط | DH6: آذار | DI6: نيسان | DJ6: معدل النصف الثاني | DK6: السعي السنوي | DL6: امتحان الدور الأول | DM6: الدرجة النهائية | DN6: امتحان الدور الثاني | DO6: الدرجة النهائية | DP6: ت | DQ6: رقم القيد | DR6: الا ســـــم | DS6: تشرين الاول | DT6: تشرين الثاني | DU6: كانون الاول | DV6: معدل النصف الاول | DW6: نصف السنة | DX6: شباط | DY6: آذار | DZ6: نيسان | EA6: معدل النصف الثاني | EB6: السعي السنوي | EC6: امتحان الدور الأول | ED6: الدرجة النهائية | EE6: امتحان الدور الثاني | EF6: الدرجة النهائية
A7: =IF(B7="","",SUBTOTAL(3,$B$7:B7)) -> 1 | B7: ='التلاميذ والقيود '!B3 -> 2787 | C7: ='التلاميذ والقيود '!C3 -> آمنه حسين علوان | D7: 1 | E7: 1 | F7: 1 | G7: =IFERROR(ROUND(AVERAGE(D7:F7),),"") -> 1 | H7: =IFERROR(VLOOKUP(B7,'العامة نصف السنة أ'!B6:D55,3,FALSE),"") -> 1 | I7: 1 | J7: 1 | K7: 1 | L7: =IFERROR(ROUND(AVERAGE(I7:K7),),"") -> 1 | M7: =IFERROR(ROUND(AVERAGE(G7,H7,L7),),"") -> 1 | N7: =IFERROR(VLOOKUP(B7,' العامة نهاية السنة دور اول أ'!B6:D55,3,FALSE),"") -> 100 | O7: =ROUND(AVERAGE(M7:N7),) -> 51 | P7: =IFERROR(VLOOKUP(B7,' العامة نهاية السنة دور ثاني أ'!B6:D55,3,FALSE),"") -> 77 | Q7: =IFERROR(IF(AND(O7<50),ROUND(AVERAGE(M7,P7),),""),"") ->  | R7: 1 | S7: ='التلاميذ والقيود '!B3 -> 2787 | T7: ='التلاميذ والقيود '!C3 -> آمنه حسين علوان | U7: 2 | V7: 2 | W7: 2 | X7: =IFERROR(ROUND(AVERAGE(U7:W7),),"") -> 2 | Y7: =IFERROR(VLOOKUP(S7,'العامة نصف السنة أ'!B6:K55,4,FALSE),"") -> 2 | Z7: 2 | AA7: 2 | AB7: 2 | AC7: =IFERROR(ROUND(AVERAGE(Z7:AB7),),"") -> 2 | AD7: =IFERROR(ROUND(AVERAGE(X7,Y7,AC7),),"") -> 2 | AE7: =IFERROR(VLOOKUP(S7,' العامة نهاية السنة دور اول أ'!B6:K55,4,FALSE),"") -> 99 | AF7: =ROUND(AVERAGE(AD7:AE7),) -> 51 | AG7: =IFERROR(VLOOKUP(S7,' العامة نهاية السنة دور ثاني أ'!B6:K55,4,FALSE),"") -> 89 | AH7: =IFERROR(IF(AND(AF7<50),ROUND(AVERAGE(AD7,AG7),),""),"") ->  | AI7: 1 | AJ7: ='التلاميذ والقيود '!B3 -> 2787 | AK7: ='التلاميذ والقيود '!C3 -> آمنه حسين علوان | AL7: 3 | AM7: 3 | AN7: 3 | AO7: =IFERROR(ROUND(AVERAGE(AL7:AN7),),"") -> 3 | AP7: =IFERROR(VLOOKUP(AJ7,'العامة نصف السنة أ'!B6:K55,5,FALSE),"") -> 3 | AQ7: 3 | AR7: 3 | AS7: 3 | AT7: =IFERROR(ROUND(AVERAGE(AQ7:AS7),),"") -> 3 | AU7: =IFERROR(ROUND(AVERAGE(AO7,AP7,AT7),),"") -> 3 | AV7: =IFERROR(VLOOKUP(AJ7,' العامة نهاية السنة دور اول أ'!B6:K55,5,FALSE),"") -> 88 | AW7: =ROUND(AVERAGE(AU7:AV7),) -> 46 | AX7: =IFERROR(VLOOKUP(AJ7,' العامة نهاية السنة دور ثاني أ'!B6:K55,5,FALSE),"") -> 75 | AY7: =IFERROR(IF(AND(AW7<50),ROUND(AVERAGE(AU7,AX7),),""),"") -> 39 | AZ7: 1 | BA7: ='التلاميذ والقيود '!B3 -> 2787 | BB7: ='التلاميذ والقيود '!C3 -> آمنه حسين علوان | BC7: 4 | BD7: 4 | BE7: 4 | BF7: =IFERROR(ROUND(AVERAGE(BC7:BE7),),"") -> 4 | BG7: =IFERROR(VLOOKUP(BA7,'العامة نصف السنة أ'!B6:K55,6,FALSE),"") -> 4 | BH7: 4 | BI7: 4 | BJ7: 4 | BK7: =IFERROR(ROUND(AVERAGE(BH7:BJ7),),"") -> 4 | BL7: =IFERROR(ROUND(AVERAGE(BF7,BG7,BK7),),"") -> 4 | BM7: =IFERROR(VLOOKUP(BA7,' العامة نهاية السنة دور اول أ'!B6:K55,6,FALSE),"") -> 77 | BN7: =ROUND(AVERAGE(BL7:BM7),) -> 41 | BO7: =IFERROR(VLOOKUP(BA7,' العامة نهاية السنة دور ثاني أ'!B6:K55,6,FALSE),"") -> 75 | BP7: =IFERROR(IF(AND(BN7<50),ROUND(AVERAGE(BL7,BO7),),""),"") -> 40 | BQ7: 1 | BR7: ='التلاميذ والقيود '!B3 -> 2787 | BS7: ='التلاميذ والقيود '!C3 -> آمنه حسين علوان | BT7: 5 | BU7: 5 | BV7: 5 | BW7: =IFERROR(ROUND(AVERAGE(BT7:BV7),),"") -> 5 | BX7: =IFERROR(VLOOKUP(BR7,'العامة نصف السنة أ'!B6:K55,7,FALSE),"") -> 5 | BY7: 5 | BZ7: 5 | CA7: 5 | CB7: =IFERROR(ROUND(AVERAGE(BY7:CA7),),"") -> 5 | CC7: =IFERROR(ROUND(AVERAGE(BW7,BX7,CB7),),"") -> 5 | CD7: =IFERROR(VLOOKUP(BR7,' العامة نهاية السنة دور اول أ'!B6:K55,7,FALSE),"") -> 66 | CE7: =ROUND(AVERAGE(CC7:CD7),) -> 36 | CF7: =IFERROR(VLOOKUP(BR7,' العامة نهاية السنة دور ثاني أ'!B6:K55,7,FALSE),"") -> 2 | CG7: =IFERROR(IF(AND(CE7<50),ROUND(AVERAGE(CC7,CF7),),""),"") -> 4 | CH7: 1 | CI7: ='التلاميذ والقيود '!B3 -> 2787 | CJ7: ='التلاميذ والقيود '!C3 -> آمنه حسين علوان | CK7: 6 | CL7: 6 | CM7: 6 | CN7: =IFERROR(ROUND(AVERAGE(CK7:CM7),),"") -> 6 | CO7: =IFERROR(VLOOKUP(CI7,'العامة نصف السنة أ'!B6:K55,8,FALSE),"") -> 6 | CP7: 6 | CQ7: 6 | CR7: 6 | CS7: =IFERROR(ROUND(AVERAGE(CP7:CR7),),"") -> 6 | CT7: =IFERROR(ROUND(AVERAGE(CN7,CO7,CS7),),"") -> 6 | CU7: =IFERROR(VLOOKUP(CI7,' العامة نهاية السنة دور اول أ'!B6:K55,8,FALSE),"") -> 66 | CV7: =ROUND(AVERAGE(CT7:CU7),) -> 36 | CW7: =IFERROR(VLOOKUP(CI7,' العامة نهاية السنة دور ثاني أ'!B6:K55,8,FALSE),"") -> 50 | CX7: =IFERROR(IF(AND(CV7<50),ROUND(AVERAGE(CT7,CW7),),""),"") -> 28 | CY7: 1 | CZ7: ='التلاميذ والقيود '!B3 -> 2787 | DA7: ='التلاميذ والقيود '!C3 -> آمنه حسين علوان | DB7: 7 | DC7: 7 | DD7: 7 | DE7: =IFERROR(ROUND(AVERAGE(DB7:DD7),),"") -> 7 | DF7: =IFERROR(VLOOKUP(CZ7,'العامة نصف السنة أ'!B6:K55,9,FALSE),"") -> 7 | DG7: 7 | DH7: 7 | DI7: 7 | DJ7: =IFERROR(ROUND(AVERAGE(DG7:DI7),),"") -> 7 | DK7: =IFERROR(ROUND(AVERAGE(DE7,DF7,DJ7),),"") -> 7 | DL7: =IFERROR(VLOOKUP(CZ7,' العامة نهاية السنة دور اول أ'!B6:K55,9,FALSE),"") -> 60 | DM7: =ROUND(AVERAGE(DK7:DL7),) -> 34 | DN7: =IFERROR(VLOOKUP(CZ7,' العامة نهاية السنة دور ثاني أ'!B6:K55,9,FALSE),"") -> 50 | DO7: =IFERROR(IF(AND(DM7<50),ROUND(AVERAGE(DK7,DN7),),""),"") -> 29 | DP7: 1 | DQ7: ='التلاميذ والقيود '!B3 -> 2787 | DR7: ='التلاميذ والقيود '!C3 -> آمنه حسين علوان | DS7: 8 | DT7: 8 | DU7: 8 | DV7: =IFERROR(ROUND(AVERAGE(DS7:DU7),),"") -> 8 | DW7: =IFERROR(VLOOKUP(DQ7,'العامة نصف السنة أ'!B6:K55,10,FALSE),"") -> 8 | DX7: 7 | DY7: 4 | DZ7: 8 | EA7: =IFERROR(ROUND(AVERAGE(DX7:DZ7),),"") -> 6 | EB7: =IFERROR(ROUND(AVERAGE(DV7,DW7,EA7),),"") -> 7 | EC7: =IFERROR(VLOOKUP(DQ7,' العامة نهاية السنة دور اول أ'!B6:K55,10,FALSE),"") -> 50 | ED7: =ROUND(AVERAGE(EB7:EC7),) -> 29 | EE7: =IFERROR(VLOOKUP(DQ7,' العامة نهاية السنة دور ثاني أ'!B6:K55,10,FALSE),"") -> 50 | EF7: =IFERROR(IF(AND(ED7<50),ROUND(AVERAGE(EB7,EE7),),""),"") -> 29
A8: =IF(B8="","",SUBTOTAL(3,$B$7:B8)) -> 2 | B8: ='التلاميذ والقيود '!B4 -> 2373 | C8: ='التلاميذ والقيود '!C4 -> آمنه قاسم ثجيل | D8: 60 | E8: 60 | F8: 62 | G8: =IFERROR(ROUND(AVERAGE(D8:F8),),"") -> 61 | H8: =IFERROR(VLOOKUP(B8,'العامة نصف السنة أ'!B7:D56,3,FALSE),"") -> 50 | I8: 100 | J8: 100 | K8: 100 | L8: =IFERROR(ROUND(AVERAGE(I8:K8),),"") -> 100 | M8: =IFERROR(ROUND(AVERAGE(G8,H8,L8),),"") -> 70 | N8: =IFERROR(VLOOKUP(B8,' العامة نهاية السنة دور اول أ'!B7:D56,3,FALSE),"") -> 10 | O8: =IFERROR(ROUND(AVERAGE(M8:N8),),"") -> 40 | P8: =IFERROR(VLOOKUP(B8,' العامة نهاية السنة دور ثاني أ'!B7:D56,3,FALSE),"") -> 66 | Q8: =IFERROR(IF(AND(O8<50),ROUND(AVERAGE(M8,P8),),""),"") -> 68 | R8: 2 | S8: ='التلاميذ والقيود '!B4 -> 2373 | T8: ='التلاميذ والقيود '!C4 -> آمنه قاسم ثجيل | U8: 60 | V8: 60 | W8: 62 | X8: =IFERROR(ROUND(AVERAGE(U8:W8),),"") -> 61 | Y8: =IFERROR(VLOOKUP(S8,'العامة نصف السنة أ'!B7:K56,4,FALSE),"") -> 50 | Z8: 100 | AA8: 100 | AB8: 100 | AC8: =IFERROR(ROUND(AVERAGE(Z8:AB8),),"") -> 100 | AD8: =IFERROR(ROUND(AVERAGE(X8,Y8,AC8),),"") -> 70 | AE8: =IFERROR(VLOOKUP(S8,' العامة نهاية السنة دور اول أ'!B7:K56,4,FALSE),"") -> 3 | AF8: =IFERROR(ROUND(AVERAGE(AD8:AE8),),"") -> 37 | AG8: =IFERROR(VLOOKUP(S8,' العامة نهاية السنة دور ثاني أ'!B7:K56,4,FALSE),"") -> 77 | AH8: =IFERROR(IF(AND(AF8<50),ROUND(AVERAGE(AD8,AG8),),""),"") -> 74 | AI8: 2 | AJ8: ='التلاميذ والقيود '!B4 -> 2373 | AK8: ='التلاميذ والقيود '!C4 -> آمنه قاسم ثجيل | AL8: 60 | AM8: 60 | AN8: 62 | AO8: =IFERROR(ROUND(AVERAGE(AL8:AN8),),"") -> 61 | AP8: =IFERROR(VLOOKUP(AJ8,'العامة نصف السنة أ'!B7:K56,5,FALSE),"") -> 50 | AQ8: 100 | AR8: 100 | AS8: 100 | AT8: =IFERROR(ROUND(AVERAGE(AQ8:AS8),),"") -> 100 | AU8: =IFERROR(ROUND(AVERAGE(AO8,AP8,AT8),),"") -> 70 | AV8: =IFERROR(VLOOKUP(AJ8,' العامة نهاية السنة دور اول أ'!B7:K56,5,FALSE),"") -> 3 | AW8: =IFERROR(ROUND(AVERAGE(AU8:AV8),),"") -> 37 | AX8: =IFERROR(VLOOKUP(AJ8,' العامة نهاية السنة دور ثاني أ'!B7:K56,5,FALSE),"") -> 82 | AY8: =IFERROR(IF(AND(AW8<50),ROUND(AVERAGE(AU8,AX8),),""),"") -> 76 | AZ8: 2 | BA8: ='التلاميذ والقيود '!B4 -> 2373 | BB8: ='التلاميذ والقيود '!C4 -> آمنه قاسم ثجيل | BC8: 60 | BD8: 60 | BE8: 62 | BF8: =IFERROR(ROUND(AVERAGE(BC8:BE8),),"") -> 61 | BG8: =IFERROR(VLOOKUP(BA8,'العامة نصف السنة أ'!B7:K56,6,FALSE),"") -> 50 | BH8: 100 | BI8: 100 | BJ8: 100 | BK8: =IFERROR(ROUND(AVERAGE(BH8:BJ8),),"") -> 100 | BL8: =IFERROR(ROUND(AVERAGE(BF8,BG8,BK8),),"") -> 70 | BM8: =IFERROR(VLOOKUP(BA8,' العامة نهاية السنة دور اول أ'!B7:K56,6,FALSE),"") -> 4 | BN8: =IFERROR(ROUND(AVERAGE(BL8:BM8),),"") -> 37 | BO8: =IFERROR(VLOOKUP(BA8,' العامة نهاية السنة دور ثاني أ'!B7:K56,6,FALSE),"") -> 55 | BP8: =IFERROR(IF(AND(BN8<50),ROUND(AVERAGE(BL8,BO8),),""),"") -> 63 | BQ8: 2 | BR8: ='التلاميذ والقيود '!B4 -> 2373 | BS8: ='التلاميذ والقيود '!C4 -> آمنه قاسم ثجيل | BT8: 60 | BU8: 60 | BV8: 62 | BW8: =IFERROR(ROUND(AVERAGE(BT8:BV8),),"") -> 61 | BX8: =IFERROR(VLOOKUP(BR8,'العامة نصف السنة أ'!B7:K56,7,FALSE),"") -> 50 | BY8: 100 | BZ8: 100 | CA8: 100 | CB8: =IFERROR(ROUND(AVERAGE(BY8:CA8),),"") -> 100 | CC8: =IFERROR(ROUND(AVERAGE(BW8,BX8,CB8),),"") -> 70 | CD8: =IFERROR(VLOOKUP(BR8,' العامة نهاية السنة دور اول أ'!B7:K56,7,FALSE),"") -> 6 | CE8: =IFERROR(ROUND(AVERAGE(CC8:CD8),),"") -> 38 | CF8: =IFERROR(VLOOKUP(BR8,' العامة نهاية السنة دور ثاني أ'!B7:K56,7,FALSE),"") -> 55 | CG8: =IFERROR(IF(AND(CE8<50),ROUND(AVERAGE(CC8,CF8),),""),"") -> 63 | CH8: 2 | CI8: ='التلاميذ والقيود '!B4 -> 2373 | CJ8: ='التلاميذ والقيود '!C4 -> آمنه قاسم ثجيل | CK8: 60 | CL8: 60 | CM8: 62 | CN8: =IFERROR(ROUND(AVERAGE(CK8:CM8),),"") -> 61 | CO8: =IFERROR(VLOOKUP(CI8,'العامة نصف السنة أ'!B7:K56,8,FALSE),"") -> 50 | CP8: 100 | CQ8: 100 | CR8: 100 | CS8: =IFERROR(ROUND(AVERAGE(CP8:CR8),),"") -> 100 | CT8: =IFERROR(ROUND(AVERAGE(CN8,CO8,CS8),),"") -> 70 | CU8: =IFERROR(VLOOKUP(CI8,' العامة نهاية السنة دور اول أ'!B7:K56,8,FALSE),"") -> 5 | CV8: =IFERROR(ROUND(AVERAGE(CT8:CU8),),"") -> 38 | CW8: =IFERROR(VLOOKUP(CI8,' العامة نهاية السنة دور ثاني أ'!B7:K56,8,FALSE),"") -> 22 | CX8: =IFERROR(IF(AND(CV8<50),ROUND(AVERAGE(CT8,CW8),),""),"") -> 46 | CY8: 2 | CZ8: ='التلاميذ والقيود '!B4 -> 2373 | DA8: ='التلاميذ والقيود '!C4 -> آمنه قاسم ثجيل | DB8: 60 | DC8: 60 | DD8: 62 | DE8: =IFERROR(ROUND(AVERAGE(DB8:DD8),),"") -> 61 | DF8: =IFERROR(VLOOKUP(CZ8,'العامة نصف السنة أ'!B7:K56,9,FALSE),"") -> 50 | DG8: 100 | DH8: 100 | DI8: 100 | DJ8: =IFERROR(ROUND(AVERAGE(DG8:DI8),),"") -> 100 | DK8: =IFERROR(ROUND(AVERAGE(DE8,DF8,DJ8),),"") -> 70 | DL8: =IFERROR(VLOOKUP(CZ8,' العامة نهاية السنة دور اول أ'!B7:K56,9,FALSE),"") -> 10 | DM8: =IFERROR(ROUND(AVERAGE(DK8:DL8),),"") -> 40 | DN8: =IFERROR(VLOOKUP(CZ8,' العامة نهاية السنة دور ثاني أ'!B7:K56,9,FALSE),"") -> 44 | DO8: =IFERROR(IF(AND(DM8<50),ROUND(AVERAGE(DK8,DN8),),""),"") -> 57 | DP8: 2 | DQ8: ='التلاميذ والقيود '!B4 -> 2373 | DR8: ='التلاميذ والقيود '!C4 -> آمنه قاسم ثجيل | DS8: 60 | DT8: 60 | DU8: 62 | DV8: =IFERROR(ROUND(AVERAGE(DS8:DU8),),"") -> 61 | DW8: =IFERROR(VLOOKUP(DQ8,'العامة نصف السنة أ'!B7:K56,10,FALSE),"") -> 50 | DX8: 100 | DY8: 100 | DZ8: 100 | EA8: =IFERROR(ROUND(AVERAGE(DX8:DZ8),),"") -> 100 | EB8: =IFERROR(ROUND(AVERAGE(DV8,DW8,EA8),),"") -> 70 | EC8: =IFERROR(VLOOKUP(DQ8,' العامة نهاية السنة دور اول أ'!B7:K56,10,FALSE),"") -> 10 | ED8: =IFERROR(ROUND(AVERAGE(EB8:EC8),),"") -> 40 | EE8: =IFERROR(VLOOKUP(DQ8,' العامة نهاية السنة دور ثاني أ'!B7:K56,10,FALSE),"") -> 55 | EF8: =IFERROR(IF(AND(ED8<50),ROUND(AVERAGE(EB8,EE8),),""),"") -> 63
A9: =IF(B9="","",SUBTOTAL(3,$B$7:B9)) -> 3 | B9: ='التلاميذ والقيود '!B5 -> 2430 | C9: ='التلاميذ والقيود '!C5 -> ايمان محمد مجبل | D9: 60 | E9: 60 | F9: 65 | G9: =IFERROR(ROUND(AVERAGE(D9:F9),),"") -> 62 | H9: =IFERROR(VLOOKUP(B9,'العامة نصف السنة أ'!B8:D57,3,FALSE),"") -> 5 | L9: =IFERROR(ROUND(AVERAGE(I9:K9),),"") ->  | M9: =IFERROR(ROUND(AVERAGE(G9,H9,L9),),"") -> 34 | N9: =IFERROR(VLOOKUP(B9,' العامة نهاية السنة دور اول أ'!B8:D57,3,FALSE),"") -> 80 | O9: =IFERROR(ROUND(AVERAGE(M9:N9),),"") -> 57 | P9: =IFERROR(VLOOKUP(B9,' العامة نهاية السنة دور ثاني أ'!B8:D57,3,FALSE),"") -> 99 | Q9: =IFERROR(IF(AND(O9<50),ROUND(AVERAGE(M9,P9),),""),"") ->  | R9: 3 | S9: ='التلاميذ والقيود '!B5 -> 2430 | T9: ='التلاميذ والقيود '!C5 -> ايمان محمد مجبل | U9: 60 | V9: 60 | W9: 65 | X9: =IFERROR(ROUND(AVERAGE(U9:W9),),"") -> 62 | Y9: =IFERROR(VLOOKUP(S9,'العامة نصف السنة أ'!B8:K57,4,FALSE),"") -> 5 | AC9: =IFERROR(ROUND(AVERAGE(Z9:AB9),),"") ->  | AD9: =IFERROR(ROUND(AVERAGE(X9,Y9,AC9),),"") -> 34 | AE9: =IFERROR(VLOOKUP(S9,' العامة نهاية السنة دور اول أ'!B8:K57,4,FALSE),"") -> 50 | AF9: =IFERROR(ROUND(AVERAGE(AD9:AE9),),"") -> 42 | AG9: =IFERROR(VLOOKUP(S9,' العامة نهاية السنة دور ثاني أ'!B8:K57,4,FALSE),"") -> 100 | AH9: =IFERROR(IF(AND(AF9<50),ROUND(AVERAGE(AD9,AG9),),""),"") -> 67 | AI9: 3 | AJ9: ='التلاميذ والقيود '!B5 -> 2430 | AK9: ='التلاميذ والقيود '!C5 -> ايمان محمد مجبل | AL9: 60 | AM9: 60 | AN9: 65 | AO9: =IFERROR(ROUND(AVERAGE(AL9:AN9),),"") -> 62 | AP9: =IFERROR(VLOOKUP(AJ9,'العامة نصف السنة أ'!B8:K57,5,FALSE),"") -> 5 | AT9: =IFERROR(ROUND(AVERAGE(AQ9:AS9),),"") ->  | AU9: =IFERROR(ROUND(AVERAGE(AO9,AP9,AT9),),"") -> 34 | AV9: =IFERROR(VLOOKUP(AJ9,' العامة نهاية السنة دور اول أ'!B8:K57,5,FALSE),"") -> 80 | AW9: =IFERROR(ROUND(AVERAGE(AU9:AV9),),"") -> 57 | AX9: =IFERROR(VLOOKUP(AJ9,' العامة نهاية السنة دور ثاني أ'!B8:K57,5,FALSE),"") -> 55 | AY9: =IFERROR(IF(AND(AW9<50),ROUND(AVERAGE(AU9,AX9),),""),"") ->  | AZ9: 3 | BA9: ='التلاميذ والقيود '!B5 -> 2430 | BB9: ='التلاميذ والقيود '!C5 -> ايمان محمد مجبل | BC9: 60 | BD9: 60 | BE9: 65 | BF9: =IFERROR(ROUND(AVERAGE(BC9:BE9),),"") -> 62 | BG9: =IFERROR(VLOOKUP(BA9,'العامة نصف السنة أ'!B8:K57,6,FALSE),"") -> 2 | BK9: =IFERROR(ROUND(AVERAGE(BH9:BJ9),),"") ->  | BL9: =IFERROR(ROUND(AVERAGE(BF9,BG9,BK9),),"") -> 32 | BM9: =IFERROR(VLOOKUP(BA9,' العامة نهاية السنة دور اول أ'!B8:K57,6,FALSE),"") -> 66 | BN9: =IFERROR(ROUND(AVERAGE(BL9:BM9),),"") -> 49 | BO9: =IFERROR(VLOOKUP(BA9,' العامة نهاية السنة دور ثاني أ'!B8:K57,6,FALSE),"") -> 63 | BP9: =IFERROR(IF(AND(BN9<50),ROUND(AVERAGE(BL9,BO9),),""),"") -> 48 | BQ9: 3 | BR9: ='التلاميذ والقيود '!B5 -> 2430 | BS9: ='التلاميذ والقيود '!C5 -> ايمان محمد مجبل | BT9: 60 | BU9: 60 | BV9: 65 | BW9: =IFERROR(ROUND(AVERAGE(BT9:BV9),),"") -> 62 | BX9: =IFERROR(VLOOKUP(BR9,'العامة نصف السنة أ'!B8:K57,7,FALSE),"") -> 5 | CB9: =IFERROR(ROUND(AVERAGE(BY9:CA9),),"") ->  | CC9: =IFERROR(ROUND(AVERAGE(BW9,BX9,CB9),),"") -> 34 | CD9: =IFERROR(VLOOKUP(BR9,' العامة نهاية السنة دور اول أ'!B8:K57,7,FALSE),"") -> 55 | CE9: =IFERROR(ROUND(AVERAGE(CC9:CD9),),"") -> 45 | CF9: =IFERROR(VLOOKUP(BR9,' العامة نهاية السنة دور ثاني أ'!B8:K57,7,FALSE),"") -> 78 | CG9: =IFERROR(IF(AND(CE9<50),ROUND(AVERAGE(CC9,CF9),),""),"") -> 56 | CH9: 3 | CI9: ='التلاميذ والقيود '!B5 -> 2430 | CJ9: ='التلاميذ والقيود '!C5 -> ايمان محمد مجبل | CK9: 60 | CL9: 60 | CM9: 65 | CN9: =IFERROR(ROUND(AVERAGE(CK9:CM9),),"") -> 62 | CO9: =IFERROR(VLOOKUP(CI9,'العامة نصف السنة أ'!B8:K57,8,FALSE),"") -> 0 | CS9: =IFERROR(ROUND(AVERAGE(CP9:CR9),),"") ->  | CT9: =IFERROR(ROUND(AVERAGE(CN9,CO9,CS9),),"") -> 31 | CU9: =IFERROR(VLOOKUP(CI9,' العامة نهاية السنة دور اول أ'!B8:K57,8,FALSE),"") -> 50 | CV9: =IFERROR(ROUND(AVERAGE(CT9:CU9),),"") -> 41 | CW9: =IFERROR(VLOOKUP(CI9,' العامة نهاية السنة دور ثاني أ'!B8:K57,8,FALSE),"") -> 54 | CX9: =IFERROR(IF(AND(CV9<50),ROUND(AVERAGE(CT9,CW9),),""),"") -> 43 | CY9: 3 | CZ9: ='التلاميذ والقيود '!B5 -> 2430 | DA9: ='التلاميذ والقيود '!C5 -> ايمان محمد مجبل | DB9: 60 | DC9: 60 | DD9: 65 | DE9: =IFERROR(ROUND(AVERAGE(DB9:DD9),),"") -> 62 | DF9: =IFERROR(VLOOKUP(CZ9,'العامة نصف السنة أ'!B8:K57,9,FALSE),"") -> 1 | DJ9: =IFERROR(ROUND(AVERAGE(DG9:DI9),),"") ->  | DK9: =IFERROR(ROUND(AVERAGE(DE9,DF9,DJ9),),"") -> 32 | DL9: =IFERROR(VLOOKUP(CZ9,' العامة نهاية السنة دور اول أ'!B8:K57,9,FALSE),"") -> 50 | DM9: =IFERROR(ROUND(AVERAGE(DK9:DL9),),"") -> 41 | DN9: =IFERROR(VLOOKUP(CZ9,' العامة نهاية السنة دور ثاني أ'!B8:K57,9,FALSE),"") -> 33 | DO9: =IFERROR(IF(AND(DM9<50),ROUND(AVERAGE(DK9,DN9),),""),"") -> 33 | DP9: 3 | DQ9: ='التلاميذ والقيود '!B5 -> 2430 | DR9: ='التلاميذ والقيود '!C5 -> ايمان محمد مجبل | DS9: 60 | DT9: 60 | DU9: 65 | DV9: =IFERROR(ROUND(AVERAGE(DS9:DU9),),"") -> 62 | DW9: =IFERROR(VLOOKUP(DQ9,'العامة نصف السنة أ'!B8:K57,10,FALSE),"") -> 10 | EA9: =IFERROR(ROUND(AVERAGE(DX9:DZ9),),"") ->  | EB9: =IFERROR(ROUND(AVERAGE(DV9,DW9,EA9),),"") -> 36 | EC9: =IFERROR(VLOOKUP(DQ9,' العامة نهاية السنة دور اول أ'!B8:K57,10,FALSE),"") -> 60 | ED9: =IFERROR(ROUND(AVERAGE(EB9:EC9),),"") -> 48 | EE9: =IFERROR(VLOOKUP(DQ9,' العامة نهاية السنة دور ثاني أ'!B8:K57,10,FALSE),"") -> 99 | EF9: =IFERROR(IF(AND(ED9<50),ROUND(AVERAGE(EB9,EE9),),""),"") -> 68
A10: =IF(B10="","",SUBTOTAL(3,$B$7:B10)) -> 4 | B10: ='التلاميذ والقيود '!B6 -> 2348 | C10: ='التلاميذ والقيود '!C6 -> آيه احمد جبار | D10: 49 | E10: 49 | F10: 49 | G10: 49 | H10: =IFERROR(VLOOKUP(B10,'العامة نصف السنة أ'!B9:D58,3,FALSE),"") -> 5 | M10: 27 | N10: =IFERROR(VLOOKUP(B10,' العامة نهاية السنة دور اول أ'!B9:D58,3,FALSE),"") -> 4 | O10: =IFERROR(ROUND(AVERAGE(M10:N10),),"") -> 16 | P10: =IFERROR(VLOOKUP(B10,' العامة نهاية السنة دور ثاني أ'!B9:D58,3,FALSE),"") -> 88 | Q10: 58 | R10: 4 | S10: ='التلاميذ والقيود '!B6 -> 2348 | T10: ='التلاميذ والقيود '!C6 -> آيه احمد جبار | U10: 49 | V10: 49 | W10: 49 | X10: 49 | Y10: =IFERROR(VLOOKUP(S10,'العامة نصف السنة أ'!B9:K58,4,FALSE),"") -> 0 | AD10: 25 | AE10: =IFERROR(VLOOKUP(S10,' العامة نهاية السنة دور اول أ'!B9:K58,4,FALSE),"") -> غ | AF10: =IFERROR(ROUND(AVERAGE(AD10:AE10),),"") -> 25 | AG10: =IFERROR(VLOOKUP(S10,' العامة نهاية السنة دور ثاني أ'!B9:K58,4,FALSE),"") -> 99 | AH10: 62 | AI10: 4 | AJ10: ='التلاميذ والقيود '!B6 -> 2348 | AK10: ='التلاميذ والقيود '!C6 -> آيه احمد جبار | AL10: 49 | AM10: 49 | AN10: 49 | AO10: 49 | AP10: =IFERROR(VLOOKUP(AJ10,'العامة نصف السنة أ'!B9:K58,5,FALSE),"") -> 0 | AU10: 25 | AV10: =IFERROR(VLOOKUP(AJ10,' العامة نهاية السنة دور اول أ'!B9:K58,5,FALSE),"") -> 50 | AW10: =IFERROR(ROUND(AVERAGE(AU10:AV10),),"") -> 38 | AX10: =IFERROR(VLOOKUP(AJ10,' العامة نهاية السنة دور ثاني أ'!B9:K58,5,FALSE),"") -> 57 | AY10: 41 | AZ10: 4 | BA10: ='التلاميذ والقيود '!B6 -> 2348 | BB10: ='التلاميذ والقيود '!C6 -> آيه احمد جبار | BC10: 49 | BD10: 49 | BE10: 49 | BF10: 49 | BG10: =IFERROR(VLOOKUP(BA10,'العامة نصف السنة أ'!B9:K58,6,FALSE),"") -> 0 | BL10: 25 | BM10: =IFERROR(VLOOKUP(BA10,' العامة نهاية السنة دور اول أ'!B9:K58,6,FALSE),"") -> 50 | BN10: =IFERROR(ROUND(AVERAGE(BL10:BM10),),"") -> 38 | BO10: =IFERROR(VLOOKUP(BA10,' العامة نهاية السنة دور ثاني أ'!B9:K58,6,FALSE),"") -> 65 | BP10: 45 | BQ10: 4 | BR10: ='التلاميذ والقيود '!B6 -> 2348 | BS10: ='التلاميذ والقيود '!C6 -> آيه احمد جبار | BT10: 49 | BU10: 49 | BV10: 49 | BW10: 49 | BX10: =IFERROR(VLOOKUP(BR10,'العامة نصف السنة أ'!B9:K58,7,FALSE),"") -> 10 | CC10: 30 | CD10: =IFERROR(VLOOKUP(BR10,' العامة نهاية السنة دور اول أ'!B9:K58,7,FALSE),"") -> 50 | CE10: =IFERROR(ROUND(AVERAGE(CC10:CD10),),"") -> 40 | CF10: =IFERROR(VLOOKUP(BR10,' العامة نهاية السنة دور ثاني أ'!B9:K58,7,FALSE),"") -> 66 | CG10: 48 | CH10: 4 | CI10: ='التلاميذ والقيود '!B6 -> 2348 | CJ10: ='التلاميذ والقيود '!C6 -> آيه احمد جبار | CK10: 49 | CL10: 50 | CM10: 50 | CN10: 50 | CO10: =IFERROR(VLOOKUP(CI10,'العامة نصف السنة أ'!B9:K58,8,FALSE),"") -> 0 | CT10: 25 | CU10: =IFERROR(VLOOKUP(CI10,' العامة نهاية السنة دور اول أ'!B9:K58,8,FALSE),"") -> 50 | CV10: =IFERROR(ROUND(AVERAGE(CT10:CU10),),"") -> 38 | CW10: =IFERROR(VLOOKUP(CI10,' العامة نهاية السنة دور ثاني أ'!B9:K58,8,FALSE),"") -> 51 | CX10: 38 | CY10: 4 | CZ10: ='التلاميذ والقيود '!B6 -> 2348 | DA10: ='التلاميذ والقيود '!C6 -> آيه احمد جبار | DB10: 49 | DC10: 49 | DD10: 49 | DE10: 49 | DF10: =IFERROR(VLOOKUP(CZ10,'العامة نصف السنة أ'!B9:K58,9,FALSE),"") -> 0 | DK10: 25 | DL10: =IFERROR(VLOOKUP(CZ10,' العامة نهاية السنة دور اول أ'!B9:K58,9,FALSE),"") -> 50 | DM10: =IFERROR(ROUND(AVERAGE(DK10:DL10),),"") -> 38 | DN10: =IFERROR(VLOOKUP(CZ10,' العامة نهاية السنة دور ثاني أ'!B9:K58,9,FALSE),"") -> 88 | DO10: 57 | DP10: 4 | DQ10: ='التلاميذ والقيود '!B6 -> 2348 | DR10: ='التلاميذ والقيود '!C6 -> آيه احمد جبار | DS10: 49 | DT10: 49 | DU10: 49 | DV10: 49 | DW10: =IFERROR(VLOOKUP(DQ10,'العامة نصف السنة أ'!B9:K58,10,FALSE),"") -> 4 | EB10: 27 | EC10: =IFERROR(VLOOKUP(DQ10,' العامة نهاية السنة دور اول أ'!B9:K58,10,FALSE),"") -> 50 | ED10: =IFERROR(ROUND(AVERAGE(EB10:EC10),),"") -> 39 | EE10: =IFERROR(VLOOKUP(DQ10,' العامة نهاية السنة دور ثاني أ'!B9:K58,10,FALSE),"") -> 91 | EF10: 59
A11: =IF(B11="","",SUBTOTAL(3,$B$7:B11)) -> 5 | B11: ='التلاميذ والقيود '!B7 -> 2539 | C11: ='التلاميذ والقيود '!C7 -> آيه حسين حسن | H11: =IFERROR(VLOOKUP(B11,'العامة نصف السنة أ'!B10:D59,3,FALSE),"") -> 5 | M11: 5 | N11: =IFERROR(VLOOKUP(B11,' العامة نهاية السنة دور اول أ'!B10:D59,3,FALSE),"") -> 10 | O11: 8 | P11: =IFERROR(VLOOKUP(B11,' العامة نهاية السنة دور ثاني أ'!B10:D59,3,FALSE),"") -> 77 | Q11: 41 | R11: 5 | S11: ='التلاميذ والقيود '!B7 -> 2539 | T11: ='التلاميذ والقيود '!C7 -> آيه حسين حسن | Y11: =IFERROR(VLOOKUP(S11,'العامة نصف السنة أ'!B10:K59,4,FALSE),"") -> 0 | AD11: 0 | AE11: =IFERROR(VLOOKUP(S11,' العامة نهاية السنة دور اول أ'!B10:K59,4,FALSE),"") -> 0 | AF11: 0 | AG11: =IFERROR(VLOOKUP(S11,' العامة نهاية السنة دور ثاني أ'!B10:K59,4,FALSE),"") -> 98 | AH11: 49 | AI11: 5 | AJ11: ='التلاميذ والقيود '!B7 -> 2539 | AK11: ='التلاميذ والقيود '!C7 -> آيه حسين حسن | AP11: =IFERROR(VLOOKUP(AJ11,'العامة نصف السنة أ'!B10:K59,5,FALSE),"") -> 0 | AU11: 0 | AV11: =IFERROR(VLOOKUP(AJ11,' العامة نهاية السنة دور اول أ'!B10:K59,5,FALSE),"") -> 0 | AW11: 0 | AX11: =IFERROR(VLOOKUP(AJ11,' العامة نهاية السنة دور ثاني أ'!B10:K59,5,FALSE),"") -> غ | AY11: 0 | AZ11: 5 | BA11: ='التلاميذ والقيود '!B7 -> 2539 | BB11: ='التلاميذ والقيود '!C7 -> آيه حسين حسن | BG11: =IFERROR(VLOOKUP(BA11,'العامة نصف السنة أ'!B10:K59,6,FALSE),"") -> 0 | BL11: 0 | BM11: =IFERROR(VLOOKUP(BA11,' العامة نهاية السنة دور اول أ'!B10:K59,6,FALSE),"") -> 0 | BN11: 0 | BO11: =IFERROR(VLOOKUP(BA11,' العامة نهاية السنة دور ثاني أ'!B10:K59,6,FALSE),"") -> غ | BP11: 0 | BQ11: 5 | BR11: ='التلاميذ والقيود '!B7 -> 2539 | BS11: ='التلاميذ والقيود '!C7 -> آيه حسين حسن | BX11: =IFERROR(VLOOKUP(BR11,'العامة نصف السنة أ'!B10:K59,7,FALSE),"") -> 0 | CC11: 0 | CD11: =IFERROR(VLOOKUP(BR11,' العامة نهاية السنة دور اول أ'!B10:K59,7,FALSE),"") -> 0 | CE11: 0 | CF11: =IFERROR(VLOOKUP(BR11,' العامة نهاية السنة دور ثاني أ'!B10:K59,7,FALSE),"") -> 54 | CG11: 27 | CH11: 5 | CI11: ='التلاميذ والقيود '!B7 -> 2539 | CJ11: ='التلاميذ والقيود '!C7 -> آيه حسين حسن | CO11: =IFERROR(VLOOKUP(CI11,'العامة نصف السنة أ'!B10:K59,8,FALSE),"") -> 0 | CT11: 0 | CU11: =IFERROR(VLOOKUP(CI11,' العامة نهاية السنة دور اول أ'!B10:K59,8,FALSE),"") -> 0 | CV11: 0 | CW11: =IFERROR(VLOOKUP(CI11,' العامة نهاية السنة دور ثاني أ'!B10:K59,8,FALSE),"") -> 48 | CX11: 24 | CY11: 5 | CZ11: ='التلاميذ والقيود '!B7 -> 2539 | DA11: ='التلاميذ والقيود '!C7 -> آيه حسين حسن | DF11: =IFERROR(VLOOKUP(CZ11,'العامة نصف السنة أ'!B10:K59,9,FALSE),"") -> 0 | DK11: 0 | DL11: =IFERROR(VLOOKUP(CZ11,' العامة نهاية السنة دور اول أ'!B10:K59,9,FALSE),"") -> 3 | DM11: 2 | DN11: =IFERROR(VLOOKUP(CZ11,' العامة نهاية السنة دور ثاني أ'!B10:K59,9,FALSE),"") -> 77 | DO11: 39 | DP11: 5 | DQ11: ='التلاميذ والقيود '!B7 -> 2539 | DR11: ='التلاميذ والقيود '!C7 -> آيه حسين حسن | DW11: =IFERROR(VLOOKUP(DQ11,'العامة نصف السنة أ'!B10:K59,10,FALSE),"") -> 0 | EB11: 0 | EC11: =IFERROR(VLOOKUP(DQ11,' العامة نهاية السنة دور اول أ'!B10:K59,10,FALSE),"") -> 4 | ED11: 2 | EE11: =IFERROR(VLOOKUP(DQ11,' العامة نهاية السنة دور ثاني أ'!B10:K59,10,FALSE),"") -> 83 | EF11: 42
A12: =IF(B12="","",SUBTOTAL(3,$B$7:B12)) -> 6 | B12: ='التلاميذ والقيود '!B8 -> 2561 | C12: ='التلاميذ والقيود '!C8 -> آيه علي كاظم | H12: =IFERROR(VLOOKUP(B12,'العامة نصف السنة أ'!B11:D60,3,FALSE),"") -> 5 | M12: 5 | N12: =IFERROR(VLOOKUP(B12,' العامة نهاية السنة دور اول أ'!B11:D60,3,FALSE),"") -> 10 | O12: 8 | P12: =IFERROR(VLOOKUP(B12,' العامة نهاية السنة دور ثاني أ'!B11:D60,3,FALSE),"") -> غ | Q12: 5 | R12: 6 | S12: ='التلاميذ والقيود '!B8 -> 2561 | T12: ='التلاميذ والقيود '!C8 -> آيه علي كاظم | Y12: =IFERROR(VLOOKUP(S12,'العامة نصف السنة أ'!B11:K60,4,FALSE),"") -> 0 | AD12: 0 | AE12: =IFERROR(VLOOKUP(S12,' العامة نهاية السنة دور اول أ'!B11:K60,4,FALSE),"") -> 0 | AF12: 0 | AG12: =IFERROR(VLOOKUP(S12,' العامة نهاية السنة دور ثاني أ'!B11:K60,4,FALSE),"") -> 50 | AH12: 25 | AI12: 6 | AJ12: ='التلاميذ والقيود '!B8 -> 2561 | AK12: ='التلاميذ والقيود '!C8 -> آيه علي كاظم | AP12: =IFERROR(VLOOKUP(AJ12,'العامة نصف السنة أ'!B11:K60,5,FALSE),"") -> 0 | AU12: 0 | AV12: =IFERROR(VLOOKUP(AJ12,' العامة نهاية السنة دور اول أ'!B11:K60,5,FALSE),"") -> 0 | AW12: 0 | AX12: =IFERROR(VLOOKUP(AJ12,' العامة نهاية السنة دور ثاني أ'!B11:K60,5,FALSE),"") -> 50 | AY12: 25 | AZ12: 6 | BA12: ='التلاميذ والقيود '!B8 -> 2561 | BB12: ='التلاميذ والقيود '!C8 -> آيه علي كاظم | BG12: =IFERROR(VLOOKUP(BA12,'العامة نصف السنة أ'!B11:K60,6,FALSE),"") -> 0 | BL12: 0 | BM12: =IFERROR(VLOOKUP(BA12,' العامة نهاية السنة دور اول أ'!B11:K60,6,FALSE),"") -> 0 | BN12: 0 | BO12: =IFERROR(VLOOKUP(BA12,' العامة نهاية السنة دور ثاني أ'!B11:K60,6,FALSE),"") -> 69 | BP12: 35 | BQ12: 6 | BR12: ='التلاميذ والقيود '!B8 -> 2561 | BS12: ='التلاميذ والقيود '!C8 -> آيه علي كاظم | BX12: =IFERROR(VLOOKUP(BR12,'العامة نصف السنة أ'!B11:K60,7,FALSE),"") -> 0 | CC12: 0 | CD12: =IFERROR(VLOOKUP(BR12,' العامة نهاية السنة دور اول أ'!B11:K60,7,FALSE),"") -> 5 | CE12: 3 | CF12: =IFERROR(VLOOKUP(BR12,' العامة نهاية السنة دور ثاني أ'!B11:K60,7,FALSE),"") -> 55 | CG12: 28 | CH12: 6 | CI12: ='التلاميذ والقيود '!B8 -> 2561 | CJ12: ='التلاميذ والقيود '!C8 -> آيه علي كاظم | CO12: =IFERROR(VLOOKUP(CI12,'العامة نصف السنة أ'!B11:K60,8,FALSE),"") -> 0 | CT12: 0 | CU12: =IFERROR(VLOOKUP(CI12,' العامة نهاية السنة دور اول أ'!B11:K60,8,FALSE),"") -> 0 | CV12: 0 | CW12: =IFERROR(VLOOKUP(CI12,' العامة نهاية السنة دور ثاني أ'!B11:K60,8,FALSE),"") -> 77 | CX12: 39 | CY12: 6 | CZ12: ='التلاميذ والقيود '!B8 -> 2561 | DA12: ='التلاميذ والقيود '!C8 -> آيه علي كاظم | DF12: =IFERROR(VLOOKUP(CZ12,'العامة نصف السنة أ'!B11:K60,9,FALSE),"") -> 0 | DK12: 0 | DL12: =IFERROR(VLOOKUP(CZ12,' العامة نهاية السنة دور اول أ'!B11:K60,9,FALSE),"") -> 2 | DM12: 1 | DN12: =IFERROR(VLOOKUP(CZ12,' العامة نهاية السنة دور ثاني أ'!B11:K60,9,FALSE),"") -> 66 | DO12: 33 | DP12: 6 | DQ12: ='التلاميذ والقيود '!B8 -> 2561 | DR12: ='التلاميذ والقيود '!C8 -> آيه علي كاظم | DW12: =IFERROR(VLOOKUP(DQ12,'العامة نصف السنة أ'!B11:K60,10,FALSE),"") -> 0 | EB12: 0 | EC12: =IFERROR(VLOOKUP(DQ12,' العامة نهاية السنة دور اول أ'!B11:K60,10,FALSE),"") -> 3 | ED12: 2 | EE12: =IFERROR(VLOOKUP(DQ12,' العامة نهاية السنة دور ثاني أ'!B11:K60,10,FALSE),"") -> 50 | EF12: 25
A13: =IF(B13="","",SUBTOTAL(3,$B$7:B13)) -> 7 | B13: ='التلاميذ والقيود '!B9 -> 2417 | C13: ='التلاميذ والقيود '!C9 -> براء سليم مجيد | H13: =IFERROR(VLOOKUP(B13,'العامة نصف السنة أ'!B12:D61,3,FALSE),"") -> 5 | M13: 5 | N13: =IFERROR(VLOOKUP(B13,' العامة نهاية السنة دور اول أ'!B12:D61,3,FALSE),"") -> 10 | O13: 8 | P13: =IFERROR(VLOOKUP(B13,' العامة نهاية السنة دور ثاني أ'!B12:D61,3,FALSE),"") -> 55 | Q13: 30 | R13: 7 | S13: ='التلاميذ والقيود '!B9 -> 2417 | T13: ='التلاميذ والقيود '!C9 -> براء سليم مجيد | Y13: =IFERROR(VLOOKUP(S13,'العامة نصف السنة أ'!B12:K61,4,FALSE),"") -> 0 | AD13: 0 | AE13: =IFERROR(VLOOKUP(S13,' العامة نهاية السنة دور اول أ'!B12:K61,4,FALSE),"") -> 0 | AF13: 0 | AG13: =IFERROR(VLOOKUP(S13,' العامة نهاية السنة دور ثاني أ'!B12:K61,4,FALSE),"") -> 96 | AH13: 48 | AI13: 7 | AJ13: ='التلاميذ والقيود '!B9 -> 2417 | AK13: ='التلاميذ والقيود '!C9 -> براء سليم مجيد | AP13: =IFERROR(VLOOKUP(AJ13,'العامة نصف السنة أ'!B12:K61,5,FALSE),"") -> 0 | AU13: 0 | AV13: =IFERROR(VLOOKUP(AJ13,' العامة نهاية السنة دور اول أ'!B12:K61,5,FALSE),"") -> 0 | AW13: 0 | AX13: =IFERROR(VLOOKUP(AJ13,' العامة نهاية السنة دور ثاني أ'!B12:K61,5,FALSE),"") -> غ | AY13: 0 | AZ13: 7 | BA13: ='التلاميذ والقيود '!B9 -> 2417 | BB13: ='التلاميذ والقيود '!C9 -> براء سليم مجيد | BG13: =IFERROR(VLOOKUP(BA13,'العامة نصف السنة أ'!B12:K61,6,FALSE),"") -> 0 | BL13: 0 | BM13: =IFERROR(VLOOKUP(BA13,' العامة نهاية السنة دور اول أ'!B12:K61,6,FALSE),"") -> 0 | BN13: 0 | BO13: =IFERROR(VLOOKUP(BA13,' العامة نهاية السنة دور ثاني أ'!B12:K61,6,FALSE),"") -> 71 | BP13: 36 | BQ13: 7 | BR13: ='التلاميذ والقيود '!B9 -> 2417 | BS13: ='التلاميذ والقيود '!C9 -> براء سليم مجيد | BX13: =IFERROR(VLOOKUP(BR13,'العامة نصف السنة أ'!B12:K61,7,FALSE),"") -> 0 | CC13: 0 | CD13: =IFERROR(VLOOKUP(BR13,' العامة نهاية السنة دور اول أ'!B12:K61,7,FALSE),"") -> 0 | CE13: 0 | CF13: =IFERROR(VLOOKUP(BR13,' العامة نهاية السنة دور ثاني أ'!B12:K61,7,FALSE),"") -> 30 | CG13: 15 | CH13: 7 | CI13: ='التلاميذ والقيود '!B9 -> 2417 | CJ13: ='التلاميذ والقيود '!C9 -> براء سليم مجيد | CO13: =IFERROR(VLOOKUP(CI13,'العامة نصف السنة أ'!B12:K61,8,FALSE),"") -> 0 | CT13: 0 | CU13: =IFERROR(VLOOKUP(CI13,' العامة نهاية السنة دور اول أ'!B12:K61,8,FALSE),"") -> 0 | CV13: 0 | CW13: =IFERROR(VLOOKUP(CI13,' العامة نهاية السنة دور ثاني أ'!B12:K61,8,FALSE),"") -> 42 | CX13: 21 | CY13: 7 | CZ13: ='التلاميذ والقيود '!B9 -> 2417 | DA13: ='التلاميذ والقيود '!C9 -> براء سليم مجيد | DF13: =IFERROR(VLOOKUP(CZ13,'العامة نصف السنة أ'!B12:K61,9,FALSE),"") -> 0 | DK13: 0 | DL13: =IFERROR(VLOOKUP(CZ13,' العامة نهاية السنة دور اول أ'!B12:K61,9,FALSE),"") -> 0 | DM13: 0 | DN13: =IFERROR(VLOOKUP(CZ13,' العامة نهاية السنة دور ثاني أ'!B12:K61,9,FALSE),"") -> 55 | DO13: 28 | DP13: 7 | DQ13: ='التلاميذ والقيود '!B9 -> 2417 | DR13: ='التلاميذ والقيود '!C9 -> براء سليم مجيد | DW13: =IFERROR(VLOOKUP(DQ13,'العامة نصف السنة أ'!B12:K61,10,FALSE),"") -> 0 | EB13: 0 | EC13: =IFERROR(VLOOKUP(DQ13,' العامة نهاية السنة دور اول أ'!B12:K61,10,FALSE),"") -> 0 | ED13: 0 | EE13: =IFERROR(VLOOKUP(DQ13,' العامة نهاية السنة دور ثاني أ'!B12:K61,10,FALSE),"") -> 67 | EF13: 34
A14: =IF(B14="","",SUBTOTAL(3,$B$7:B14)) -> 8 | B14: ='التلاميذ والقيود '!B10 -> 2445 | C14: ='التلاميذ والقيود '!C10 -> بنين احمد أسعد | H14: =IFERROR(VLOOKUP(B14,'العامة نصف السنة أ'!B13:D62,3,FALSE),"") -> 5 | M14: 5 | N14: =IFERROR(VLOOKUP(B14,' العامة نهاية السنة دور اول أ'!B13:D62,3,FALSE),"") -> 10 | O14: 8 | P14: =IFERROR(VLOOKUP(B14,' العامة نهاية السنة دور ثاني أ'!B13:D62,3,FALSE),"") -> 44 | Q14: 25 | R14: 8 | S14: ='التلاميذ والقيود '!B10 -> 2445 | T14: ='التلاميذ والقيود '!C10 -> بنين احمد أسعد | Y14: =IFERROR(VLOOKUP(S14,'العامة نصف السنة أ'!B13:K62,4,FALSE),"") -> 0 | AD14: 0 | AE14: =IFERROR(VLOOKUP(S14,' العامة نهاية السنة دور اول أ'!B13:K62,4,FALSE),"") -> 0 | AF14: 0 | AG14: =IFERROR(VLOOKUP(S14,' العامة نهاية السنة دور ثاني أ'!B13:K62,4,FALSE),"") -> 95 | AH14: 48 | AI14: 8 | AJ14: ='التلاميذ والقيود '!B10 -> 2445 | AK14: ='التلاميذ والقيود '!C10 -> بنين احمد أسعد | AP14: =IFERROR(VLOOKUP(AJ14,'العامة نصف السنة أ'!B13:K62,5,FALSE),"") -> 0 | AU14: 0 | AV14: =IFERROR(VLOOKUP(AJ14,' العامة نهاية السنة دور اول أ'!B13:K62,5,FALSE),"") -> 0 | AW14: 0 | AX14: =IFERROR(VLOOKUP(AJ14,' العامة نهاية السنة دور ثاني أ'!B13:K62,5,FALSE),"") -> 65 | AY14: 33 | AZ14: 8 | BA14: ='التلاميذ والقيود '!B10 -> 2445 | BB14: ='التلاميذ والقيود '!C10 -> بنين احمد أسعد | BG14: =IFERROR(VLOOKUP(BA14,'العامة نصف السنة أ'!B13:K62,6,FALSE),"") -> 0 | BL14: 0 | BM14: =IFERROR(VLOOKUP(BA14,' العامة نهاية السنة دور اول أ'!B13:K62,6,FALSE),"") -> 0 | BN14: 0 | BO14: =IFERROR(VLOOKUP(BA14,' العامة نهاية السنة دور ثاني أ'!B13:K62,6,FALSE),"") -> 73 | BP14: 37 | BQ14: 8 | BR14: ='التلاميذ والقيود '!B10 -> 2445 | BS14: ='التلاميذ والقيود '!C10 -> بنين احمد أسعد | BX14: =IFERROR(VLOOKUP(BR14,'العامة نصف السنة أ'!B13:K62,7,FALSE),"") -> 0 | CC14: 0 | CD14: =IFERROR(VLOOKUP(BR14,' العامة نهاية السنة دور اول أ'!B13:K62,7,FALSE),"") -> 0 | CE14: 0 | CF14: =IFERROR(VLOOKUP(BR14,' العامة نهاية السنة دور ثاني أ'!B13:K62,7,FALSE),"") -> 18 | CG14: 9 | CH14: 8 | CI14: ='التلاميذ والقيود '!B10 -> 2445 | CJ14: ='التلاميذ والقيود '!C10 -> بنين احمد أسعد | CO14: =IFERROR(VLOOKUP(CI14,'العامة نصف السنة أ'!B13:K62,8,FALSE),"") -> 0 | CT14: 0 | CU14: =IFERROR(VLOOKUP(CI14,' العامة نهاية السنة دور اول أ'!B13:K62,8,FALSE),"") -> 0 | CV14: 0 | CW14: =IFERROR(VLOOKUP(CI14,' العامة نهاية السنة دور ثاني أ'!B13:K62,8,FALSE),"") -> 39 | CX14: 20 | CY14: 8 | CZ14: ='التلاميذ والقيود '!B10 -> 2445 | DA14: ='التلاميذ والقيود '!C10 -> بنين احمد أسعد | DF14: =IFERROR(VLOOKUP(CZ14,'العامة نصف السنة أ'!B13:K62,9,FALSE),"") -> 0 | DK14: 0 | DL14: =IFERROR(VLOOKUP(CZ14,' العامة نهاية السنة دور اول أ'!B13:K62,9,FALSE),"") -> 0 | DM14: 0 | DN14: =IFERROR(VLOOKUP(CZ14,' العامة نهاية السنة دور ثاني أ'!B13:K62,9,FALSE),"") -> 44 | DO14: 22 | DP14: 8 | DQ14: ='التلاميذ والقيود '!B10 -> 2445 | DR14: ='التلاميذ والقيود '!C10 -> بنين احمد أسعد | DW14: =IFERROR(VLOOKUP(DQ14,'العامة نصف السنة أ'!B13:K62,10,FALSE),"") -> 0 | EB14: 0 | EC14: =IFERROR(VLOOKUP(DQ14,' العامة نهاية السنة دور اول أ'!B13:K62,10,FALSE),"") -> 0 | ED14: 0 | EE14: =IFERROR(VLOOKUP(DQ14,' العامة نهاية السنة دور ثاني أ'!B13:K62,10,FALSE),"") -> 59 | EF14: 30
A15: 9 | B15: ='التلاميذ والقيود '!B11 -> 2501 | C15: ='التلاميذ والقيود '!C11 -> بنين خضير عباس | H15: =IFERROR(VLOOKUP(B15,'العامة نصف السنة أ'!B14:D63,3,FALSE),"") -> 0 | M15: 0 | N15: =IFERROR(VLOOKUP(B15,' العامة نهاية السنة دور اول أ'!B14:D63,3,FALSE),"") -> 0 | O15: 0 | P15: =IFERROR(VLOOKUP(B15,' العامة نهاية السنة دور ثاني أ'!B14:D63,3,FALSE),"") -> 0 | Q15: 0 | R15: 9 | S15: ='التلاميذ والقيود '!B11 -> 2501 | T15: ='التلاميذ والقيود '!C11 -> بنين خضير عباس | Y15: =IFERROR(VLOOKUP(S15,'العامة نصف السنة أ'!B14:K63,4,FALSE),"") -> 0 | AD15: 0 | AE15: =IFERROR(VLOOKUP(S15,' العامة نهاية السنة دور اول أ'!B14:K63,4,FALSE),"") -> 0 | AF15: 0 | AG15: =IFERROR(VLOOKUP(S15,' العامة نهاية السنة دور ثاني أ'!B14:K63,4,FALSE),"") -> 0 | AH15: 0 | AI15: 9 | AJ15: ='التلاميذ والقيود '!B11 -> 2501 | AK15: ='التلاميذ والقيود '!C11 -> بنين خضير عباس | AP15: =IFERROR(VLOOKUP(AJ15,'العامة نصف السنة أ'!B14:K63,5,FALSE),"") -> 0 | AU15: 0 | AV15: =IFERROR(VLOOKUP(AJ15,' العامة نهاية السنة دور اول أ'!B14:K63,5,FALSE),"") -> 0 | AW15: 0 | AX15: =IFERROR(VLOOKUP(AJ15,' العامة نهاية السنة دور ثاني أ'!B14:K63,5,FALSE),"") -> 0 | AY15: 0 | AZ15: 9 | BA15: ='التلاميذ والقيود '!B11 -> 2501 | BB15: ='التلاميذ والقيود '!C11 -> بنين خضير عباس | BG15: =IFERROR(VLOOKUP(BA15,'العامة نصف السنة أ'!B14:K63,6,FALSE),"") -> 0 | BL15: 0 | BM15: =IFERROR(VLOOKUP(BA15,' العامة نهاية السنة دور اول أ'!B14:K63,6,FALSE),"") -> 0 | BN15: 0 | BO15: =IFERROR(VLOOKUP(BA15,' العامة نهاية السنة دور ثاني أ'!B14:K63,6,FALSE),"") -> 0 | BP15: 0 | BQ15: 9 | BR15: ='التلاميذ والقيود '!B11 -> 2501 | BS15: ='التلاميذ والقيود '!C11 -> بنين خضير عباس | BX15: =IFERROR(VLOOKUP(BR15,'العامة نصف السنة أ'!B14:K63,7,FALSE),"") -> 0 | CC15: 0 | CD15: =IFERROR(VLOOKUP(BR15,' العامة نهاية السنة دور اول أ'!B14:K63,7,FALSE),"") -> 0 | CE15: 0 | CF15: =IFERROR(VLOOKUP(BR15,' العامة نهاية السنة دور ثاني أ'!B14:K63,7,FALSE),"") -> 0 | CG15: 0 | CH15: 9 | CI15: ='التلاميذ والقيود '!B11 -> 2501 | CJ15: ='التلاميذ والقيود '!C11 -> بنين خضير عباس | CO15: =IFERROR(VLOOKUP(CI15,'العامة نصف السنة أ'!B14:K63,8,FALSE),"") -> 0 | CT15: 0 | CU15: =IFERROR(VLOOKUP(CI15,' العامة نهاية السنة دور اول أ'!B14:K63,8,FALSE),"") -> 0 | CV15: 0 | CW15: =IFERROR(VLOOKUP(CI15,' العامة نهاية السنة دور ثاني أ'!B14:K63,8,FALSE),"") -> 0 | CX15: 0 | CY15: 9 | CZ15: ='التلاميذ والقيود '!B11 -> 2501 | DA15: ='التلاميذ والقيود '!C11 -> بنين خضير عباس | DF15: =IFERROR(VLOOKUP(CZ15,'العامة نصف السنة أ'!B14:K63,9,FALSE),"") -> 0 | DK15: 0 | DL15: =IFERROR(VLOOKUP(CZ15,' العامة نهاية السنة دور اول أ'!B14:K63,9,FALSE),"") -> 0 | DM15: 0 | DN15: =IFERROR(VLOOKUP(CZ15,' العامة نهاية السنة دور ثاني أ'!B14:K63,9,FALSE),"") -> 0 | DO15: 0 | DP15: 9 | DQ15: ='التلاميذ والقيود '!B11 -> 2501 | DR15: ='التلاميذ والقيود '!C11 -> بنين خضير عباس | DW15: =IFERROR(VLOOKUP(DQ15,'العامة نصف السنة أ'!B14:K63,10,FALSE),"") -> 0 | EB15: 0 | EC15: =IFERROR(VLOOKUP(DQ15,' العامة نهاية السنة دور اول أ'!B14:K63,10,FALSE),"") -> 0 | ED15: 0 | EE15: =IFERROR(VLOOKUP(DQ15,' العامة نهاية السنة دور ثاني أ'!B14:K63,10,FALSE),"") -> 0 | EF15: 0
A16: =IF(B16="","",SUBTOTAL(3,$B$7:B16)) -> 10 | B16: ='التلاميذ والقيود '!B12 -> 2502 | C16: ='التلاميذ والقيود '!C12 -> بنين عامر كاظم | H16: =IFERROR(VLOOKUP(B16,'العامة نصف السنة أ'!B15:D64,3,FALSE),"") -> 0 | M16: 0 | N16: =IFERROR(VLOOKUP(B16,' العامة نهاية السنة دور اول أ'!B15:D64,3,FALSE),"") -> 0 | O16: 0 | P16: =IFERROR(VLOOKUP(B16,' العامة نهاية السنة دور ثاني أ'!B15:D64,3,FALSE),"") -> 0 | Q16: 0 | R16: 10 | S16: ='التلاميذ والقيود '!B12 -> 2502 | T16: ='التلاميذ والقيود '!C12 -> بنين عامر كاظم | Y16: =IFERROR(VLOOKUP(S16,'العامة نصف السنة أ'!B15:K64,4,FALSE),"") -> 0 | AD16: 0 | AE16: =IFERROR(VLOOKUP(S16,' العامة نهاية السنة دور اول أ'!B15:K64,4,FALSE),"") -> 0 | AF16: 0 | AG16: =IFERROR(VLOOKUP(S16,' العامة نهاية السنة دور ثاني أ'!B15:K64,4,FALSE),"") -> 0 | AH16: 0 | AI16: 10 | AJ16: ='التلاميذ والقيود '!B12 -> 2502 | AK16: ='التلاميذ والقيود '!C12 -> بنين عامر كاظم | AP16: =IFERROR(VLOOKUP(AJ16,'العامة نصف السنة أ'!B15:K64,5,FALSE),"") -> 0 | AU16: 0 | AV16: =IFERROR(VLOOKUP(AJ16,' العامة نهاية السنة دور اول أ'!B15:K64,5,FALSE),"") -> 0 | AW16: 0 | AX16: =IFERROR(VLOOKUP(AJ16,' العامة نهاية السنة دور ثاني أ'!B15:K64,5,FALSE),"") -> 0 | AY16: 0 | AZ16: 10 | BA16: ='التلاميذ والقيود '!B12 -> 2502 | BB16: ='التلاميذ والقيود '!C12 -> بنين عامر كاظم | BG16: =IFERROR(VLOOKUP(BA16,'العامة نصف السنة أ'!B15:K64,6,FALSE),"") -> 0 | BL16: 0 | BM16: =IFERROR(VLOOKUP(BA16,' العامة نهاية السنة دور اول أ'!B15:K64,6,FALSE),"") -> 0 | BN16: 0 | BO16: =IFERROR(VLOOKUP(BA16,' العامة نهاية السنة دور ثاني أ'!B15:K64,6,FALSE),"") -> 0 | BP16: 0 | BQ16: 10 | BR16: ='التلاميذ والقيود '!B12 -> 2502 | BS16: ='التلاميذ والقيود '!C12 -> بنين عامر كاظم | BX16: =IFERROR(VLOOKUP(BR16,'العامة نصف السنة أ'!B15:K64,7,FALSE),"") -> 0 | CC16: 0 | CD16: =IFERROR(VLOOKUP(BR16,' العامة نهاية السنة دور اول أ'!B15:K64,7,FALSE),"") -> 0 | CE16: 0 | CF16: =IFERROR(VLOOKUP(BR16,' العامة نهاية السنة دور ثاني أ'!B15:K64,7,FALSE),"") -> 0 | CG16: 0 | CH16: 10 | CI16: ='التلاميذ والقيود '!B12 -> 2502 | CJ16: ='التلاميذ والقيود '!C12 -> بنين عامر كاظم | CO16: =IFERROR(VLOOKUP(CI16,'العامة نصف السنة أ'!B15:K64,8,FALSE),"") -> 0 | CT16: 0 | CU16: =IFERROR(VLOOKUP(CI16,' العامة نهاية السنة دور اول أ'!B15:K64,8,FALSE),"") -> 0 | CV16: 0 | CW16: =IFERROR(VLOOKUP(CI16,' العامة نهاية السنة دور ثاني أ'!B15:K64,8,FALSE),"") -> 0 | CX16: 0 | CY16: 10 | CZ16: ='التلاميذ والقيود '!B12 -> 2502 | DA16: ='التلاميذ والقيود '!C12 -> بنين عامر كاظم | DF16: =IFERROR(VLOOKUP(CZ16,'العامة نصف السنة أ'!B15:K64,9,FALSE),"") -> 0 | DK16: 0 | DL16: =IFERROR(VLOOKUP(CZ16,' العامة نهاية السنة دور اول أ'!B15:K64,9,FALSE),"") -> 0 | DM16: 0 | DN16: =IFERROR(VLOOKUP(CZ16,' العامة نهاية السنة دور ثاني أ'!B15:K64,9,FALSE),"") -> 0 | DO16: 0 | DP16: 10 | DQ16: ='التلاميذ والقيود '!B12 -> 2502 | DR16: ='التلاميذ والقيود '!C12 -> بنين عامر كاظم | DW16: =IFERROR(VLOOKUP(DQ16,'العامة نصف السنة أ'!B15:K64,10,FALSE),"") -> 0 | EB16: 0 | EC16: =IFERROR(VLOOKUP(DQ16,' العامة نهاية السنة دور اول أ'!B15:K64,10,FALSE),"") -> 0 | ED16: 0 | EE16: =IFERROR(VLOOKUP(DQ16,' العامة نهاية السنة دور ثاني أ'!B15:K64,10,FALSE),"") -> 0 | EF16: 0
A17: =IF(B17="","",SUBTOTAL(3,$B$7:B17)) -> 11 | B17: ='التلاميذ والقيود '!B13 -> 2610 | C17: ='التلاميذ والقيود '!C13 -> جمانه حسين جبار | H17: =IFERROR(VLOOKUP(B17,'العامة نصف السنة أ'!B16:D65,3,FALSE),"") -> 0 | M17: 0 | N17: =IFERROR(VLOOKUP(B17,' العامة نهاية السنة دور اول أ'!B16:D65,3,FALSE),"") -> 0 | O17: 0 | P17: =IFERROR(VLOOKUP(B17,' العامة نهاية السنة دور ثاني أ'!B16:D65,3,FALSE),"") -> 0 | Q17: 0 | R17: 11 | S17: ='التلاميذ والقيود '!B13 -> 2610 | T17: ='التلاميذ والقيود '!C13 -> جمانه حسين جبار | Y17: =IFERROR(VLOOKUP(S17,'العامة نصف السنة أ'!B16:K65,4,FALSE),"") -> 0 | AD17: 0 | AE17: =IFERROR(VLOOKUP(S17,' العامة نهاية السنة دور اول أ'!B16:K65,4,FALSE),"") -> 0 | AF17: 0 | AG17: =IFERROR(VLOOKUP(S17,' العامة نهاية السنة دور ثاني أ'!B16:K65,4,FALSE),"") -> 0 | AH17: 0 | AI17: 11 | AJ17: ='التلاميذ والقيود '!B13 -> 2610 | AK17: ='التلاميذ والقيود '!C13 -> جمانه حسين جبار | AP17: =IFERROR(VLOOKUP(AJ17,'العامة نصف السنة أ'!B16:K65,5,FALSE),"") -> 0 | AU17: 0 | AV17: =IFERROR(VLOOKUP(AJ17,' العامة نهاية السنة دور اول أ'!B16:K65,5,FALSE),"") -> 0 | AW17: 0 | AX17: =IFERROR(VLOOKUP(AJ17,' العامة نهاية السنة دور ثاني أ'!B16:K65,5,FALSE),"") -> 0 | AY17: 0 | AZ17: 11 | BA17: ='التلاميذ والقيود '!B13 -> 2610 | BB17: ='التلاميذ والقيود '!C13 -> جمانه حسين جبار | BG17: =IFERROR(VLOOKUP(BA17,'العامة نصف السنة أ'!B16:K65,6,FALSE),"") -> 0 | BL17: 0 | BM17: =IFERROR(VLOOKUP(BA17,' العامة نهاية السنة دور اول أ'!B16:K65,6,FALSE),"") -> 0 | BN17: 0 | BO17: =IFERROR(VLOOKUP(BA17,' العامة نهاية السنة دور ثاني أ'!B16:K65,6,FALSE),"") -> 0 | BP17: 0 | BQ17: 11 | BR17: ='التلاميذ والقيود '!B13 -> 2610 | BS17: ='التلاميذ والقيود '!C13 -> جمانه حسين جبار | BX17: =IFERROR(VLOOKUP(BR17,'العامة نصف السنة أ'!B16:K65,7,FALSE),"") -> 0 | CC17: 0 | CD17: =IFERROR(VLOOKUP(BR17,' العامة نهاية السنة دور اول أ'!B16:K65,7,FALSE),"") -> 0 | CE17: 0 | CF17: =IFERROR(VLOOKUP(BR17,' العامة نهاية السنة دور ثاني أ'!B16:K65,7,FALSE),"") -> 0 | CG17: 0 | CH17: 11 | CI17: ='التلاميذ والقيود '!B13 -> 2610 | CJ17: ='التلاميذ والقيود '!C13 -> جمانه حسين جبار | CO17: =IFERROR(VLOOKUP(CI17,'العامة نصف السنة أ'!B16:K65,8,FALSE),"") -> 0 | CT17: 0 | CU17: =IFERROR(VLOOKUP(CI17,' العامة نهاية السنة دور اول أ'!B16:K65,8,FALSE),"") -> 0 | CV17: 0 | CW17: =IFERROR(VLOOKUP(CI17,' العامة نهاية السنة دور ثاني أ'!B16:K65,8,FALSE),"") -> 0 | CX17: 0 | CY17: 11 | CZ17: ='التلاميذ والقيود '!B13 -> 2610 | DA17: ='التلاميذ والقيود '!C13 -> جمانه حسين جبار | DF17: =IFERROR(VLOOKUP(CZ17,'العامة نصف السنة أ'!B16:K65,9,FALSE),"") -> 0 | DK17: 0 | DL17: =IFERROR(VLOOKUP(CZ17,' العامة نهاية السنة دور اول أ'!B16:K65,9,FALSE),"") -> 0 | DM17: 0 | DN17: =IFERROR(VLOOKUP(CZ17,' العامة نهاية السنة دور ثاني أ'!B16:K65,9,FALSE),"") -> 0 | DO17: 0 | DP17: 11 | DQ17: ='التلاميذ والقيود '!B13 -> 2610 | DR17: ='التلاميذ والقيود '!C13 -> جمانه حسين جبار | DW17: =IFERROR(VLOOKUP(DQ17,'العامة نصف السنة أ'!B16:K65,10,FALSE),"") -> 0 | EB17: 0 | EC17: =IFERROR(VLOOKUP(DQ17,' العامة نهاية السنة دور اول أ'!B16:K65,10,FALSE),"") -> 0 | ED17: 0 | EE17: =IFERROR(VLOOKUP(DQ17,' العامة نهاية السنة دور ثاني أ'!B16:K65,10,FALSE),"") -> 0 | EF17: 0
A18: =IF(B18="","",SUBTOTAL(3,$B$7:B18)) -> 12 | B18: ='التلاميذ والقيود '!B14 -> 2517 | C18: ='التلاميذ والقيود '!C14 -> جنه زهير قاسم | H18: =IFERROR(VLOOKUP(B18,'العامة نصف السنة أ'!B17:D66,3,FALSE),"") -> 0 | M18: 0 | N18: =IFERROR(VLOOKUP(B18,' العامة نهاية السنة دور اول أ'!B17:D66,3,FALSE),"") -> 0 | O18: 0 | P18: =IFERROR(VLOOKUP(B18,' العامة نهاية السنة دور ثاني أ'!B17:D66,3,FALSE),"") -> 0 | Q18: 0 | R18: 12 | S18: ='التلاميذ والقيود '!B14 -> 2517 | T18: ='التلاميذ والقيود '!C14 -> جنه زهير قاسم | Y18: =IFERROR(VLOOKUP(S18,'العامة نصف السنة أ'!B17:K66,4,FALSE),"") -> 0 | AD18: 0 | AE18: =IFERROR(VLOOKUP(S18,' العامة نهاية السنة دور اول أ'!B17:K66,4,FALSE),"") -> 0 | AF18: 0 | AG18: =IFERROR(VLOOKUP(S18,' العامة نهاية السنة دور ثاني أ'!B17:K66,4,FALSE),"") -> 0 | AH18: 0 | AI18: 12 | AJ18: ='التلاميذ والقيود '!B14 -> 2517 | AK18: ='التلاميذ والقيود '!C14 -> جنه زهير قاسم | AP18: =IFERROR(VLOOKUP(AJ18,'العامة نصف السنة أ'!B17:K66,5,FALSE),"") -> 0 | AU18: 0 | AV18: =IFERROR(VLOOKUP(AJ18,' العامة نهاية السنة دور اول أ'!B17:K66,5,FALSE),"") -> 0 | AW18: 0 | AX18: =IFERROR(VLOOKUP(AJ18,' العامة نهاية السنة دور ثاني أ'!B17:K66,5,FALSE),"") -> 0 | AY18: 0 | AZ18: 12 | BA18: ='التلاميذ والقيود '!B14 -> 2517 | BB18: ='التلاميذ والقيود '!C14 -> جنه زهير قاسم | BG18: =IFERROR(VLOOKUP(BA18,'العامة نصف السنة أ'!B17:K66,6,FALSE),"") -> 0 | BL18: 0 | BM18: =IFERROR(VLOOKUP(BA18,' العامة نهاية السنة دور اول أ'!B17:K66,6,FALSE),"") -> 0 | BN18: 0 | BO18: =IFERROR(VLOOKUP(BA18,' العامة نهاية السنة دور ثاني أ'!B17:K66,6,FALSE),"") -> 0 | BP18: 0 | BQ18: 12 | BR18: ='التلاميذ والقيود '!B14 -> 2517 | BS18: ='التلاميذ والقيود '!C14 -> جنه زهير قاسم | BX18: =IFERROR(VLOOKUP(BR18,'العامة نصف السنة أ'!B17:K66,7,FALSE),"") -> 0 | CC18: 0 | CD18: =IFERROR(VLOOKUP(BR18,' العامة نهاية السنة دور اول أ'!B17:K66,7,FALSE),"") -> 0 | CE18: 0 | CF18: =IFERROR(VLOOKUP(BR18,' العامة نهاية السنة دور ثاني أ'!B17:K66,7,FALSE),"") -> 0 | CG18: 0 | CH18: 12 | CI18: ='التلاميذ والقيود '!B14 -> 2517 | CJ18: ='التلاميذ والقيود '!C14 -> جنه زهير قاسم | CO18: =IFERROR(VLOOKUP(CI18,'العامة نصف السنة أ'!B17:K66,8,FALSE),"") -> 0 | CT18: 0 | CU18: =IFERROR(VLOOKUP(CI18,' العامة نهاية السنة دور اول أ'!B17:K66,8,FALSE),"") -> 0 | CV18: 0 | CW18: =IFERROR(VLOOKUP(CI18,' العامة نهاية السنة دور ثاني أ'!B17:K66,8,FALSE),"") -> 0 | CX18: 0 | CY18: 12 | CZ18: ='التلاميذ والقيود '!B14 -> 2517 | DA18: ='التلاميذ والقيود '!C14 -> جنه زهير قاسم | DF18: =IFERROR(VLOOKUP(CZ18,'العامة نصف السنة أ'!B17:K66,9,FALSE),"") -> 0 | DK18: 0 | DL18: =IFERROR(VLOOKUP(CZ18,' العامة نهاية السنة دور اول أ'!B17:K66,9,FALSE),"") -> 0 | DM18: 0 | DN18: =IFERROR(VLOOKUP(CZ18,' العامة نهاية السنة دور ثاني أ'!B17:K66,9,FALSE),"") -> 0 | DO18: 0 | DP18: 12 | DQ18: ='التلاميذ والقيود '!B14 -> 2517 | DR18: ='التلاميذ والقيود '!C14 -> جنه زهير قاسم | DW18: =IFERROR(VLOOKUP(DQ18,'العامة نصف السنة أ'!B17:K66,10,FALSE),"") -> 0 | EB18: 0 | EC18: =IFERROR(VLOOKUP(DQ18,' العامة نهاية السنة دور اول أ'!B17:K66,10,FALSE),"") -> 0 | ED18: 0 | EE18: =IFERROR(VLOOKUP(DQ18,' العامة نهاية السنة دور ثاني أ'!B17:K66,10,FALSE),"") -> 0 | EF18: 0
A19: =IF(B19="","",SUBTOTAL(3,$B$7:B19)) -> 13 | B19: ='التلاميذ والقيود '!B15 -> 2479 | C19: ='التلاميذ والقيود '!C15 -> حوراء رزاق درك | H19: =IFERROR(VLOOKUP(B19,'العامة نصف السنة أ'!B18:D67,3,FALSE),"") -> 0 | M19: 0 | N19: =IFERROR(VLOOKUP(B19,' العامة نهاية السنة دور اول أ'!B18:D67,3,FALSE),"") -> 0 | O19: 0 | P19: =IFERROR(VLOOKUP(B19,' العامة نهاية السنة دور ثاني أ'!B18:D67,3,FALSE),"") -> 0 | Q19: 0 | R19: 13 | S19: ='التلاميذ والقيود '!B15 -> 2479 | T19: ='التلاميذ والقيود '!C15 -> حوراء رزاق درك | Y19: =IFERROR(VLOOKUP(S19,'العامة نصف السنة أ'!B18:K67,4,FALSE),"") -> 0 | AD19: 0 | AE19: =IFERROR(VLOOKUP(S19,' العامة نهاية السنة دور اول أ'!B18:K67,4,FALSE),"") -> 0 | AF19: 0 | AG19: =IFERROR(VLOOKUP(S19,' العامة نهاية السنة دور ثاني أ'!B18:K67,4,FALSE),"") -> 0 | AH19: 0 | AI19: 13 | AJ19: ='التلاميذ والقيود '!B15 -> 2479 | AK19: ='التلاميذ والقيود '!C15 -> حوراء رزاق درك | AP19: =IFERROR(VLOOKUP(AJ19,'العامة نصف السنة أ'!B18:K67,5,FALSE),"") -> 0 | AU19: 0 | AV19: =IFERROR(VLOOKUP(AJ19,' العامة نهاية السنة دور اول أ'!B18:K67,5,FALSE),"") -> 0 | AW19: 0 | AX19: =IFERROR(VLOOKUP(AJ19,' العامة نهاية السنة دور ثاني أ'!B18:K67,5,FALSE),"") -> 0 | AY19: 0 | AZ19: 13 | BA19: ='التلاميذ والقيود '!B15 -> 2479 | BB19: ='التلاميذ والقيود '!C15 -> حوراء رزاق درك | BG19: =IFERROR(VLOOKUP(BA19,'العامة نصف السنة أ'!B18:K67,6,FALSE),"") -> 0 | BL19: 0 | BM19: =IFERROR(VLOOKUP(BA19,' العامة نهاية السنة دور اول أ'!B18:K67,6,FALSE),"") -> 0 | BN19: 0 | BO19: =IFERROR(VLOOKUP(BA19,' العامة نهاية السنة دور ثاني أ'!B18:K67,6,FALSE),"") -> 0 | BP19: 0 | BQ19: 13 | BR19: ='التلاميذ والقيود '!B15 -> 2479 | BS19: ='التلاميذ والقيود '!C15 -> حوراء رزاق درك | BX19: =IFERROR(VLOOKUP(BR19,'العامة نصف السنة أ'!B18:K67,7,FALSE),"") -> 0 | CC19: 0 | CD19: =IFERROR(VLOOKUP(BR19,' العامة نهاية السنة دور اول أ'!B18:K67,7,FALSE),"") -> 0 | CE19: 0 | CF19: =IFERROR(VLOOKUP(BR19,' العامة نهاية السنة دور ثاني أ'!B18:K67,7,FALSE),"") -> 0 | CG19: 0 | CH19: 13 | CI19: ='التلاميذ والقيود '!B15 -> 2479 | CJ19: ='التلاميذ والقيود '!C15 -> حوراء رزاق درك | CO19: =IFERROR(VLOOKUP(CI19,'العامة نصف السنة أ'!B18:K67,8,FALSE),"") -> 0 | CT19: 0 | CU19: =IFERROR(VLOOKUP(CI19,' العامة نهاية السنة دور اول أ'!B18:K67,8,FALSE),"") -> 0 | CV19: 0 | CW19: =IFERROR(VLOOKUP(CI19,' العامة نهاية السنة دور ثاني أ'!B18:K67,8,FALSE),"") -> 0 | CX19: 0 | CY19: 13 | CZ19: ='التلاميذ والقيود '!B15 -> 2479 | DA19: ='التلاميذ والقيود '!C15 -> حوراء رزاق درك | DF19: =IFERROR(VLOOKUP(CZ19,'العامة نصف السنة أ'!B18:K67,9,FALSE),"") -> 0 | DK19: 0 | DL19: =IFERROR(VLOOKUP(CZ19,' العامة نهاية السنة دور اول أ'!B18:K67,9,FALSE),"") -> 0 | DM19: 0 | DN19: =IFERROR(VLOOKUP(CZ19,' العامة نهاية السنة دور ثاني أ'!B18:K67,9,FALSE),"") -> 0 | DO19: 0 | DP19: 13 | DQ19: ='التلاميذ والقيود '!B15 -> 2479 | DR19: ='التلاميذ والقيود '!C15 -> حوراء رزاق درك | DW19: =IFERROR(VLOOKUP(DQ19,'العامة نصف السنة أ'!B18:K67,10,FALSE),"") -> 0 | EB19: 0 | EC19: =IFERROR(VLOOKUP(DQ19,' العامة نهاية السنة دور اول أ'!B18:K67,10,FALSE),"") -> 0 | ED19: 0 | EE19: =IFERROR(VLOOKUP(DQ19,' العامة نهاية السنة دور ثاني أ'!B18:K67,10,FALSE),"") -> 0 | EF19: 0
A20: =IF(B20="","",SUBTOTAL(3,$B$7:B20)) -> 14 | B20: ='التلاميذ والقيود '!B16 -> 2559 | C20: ='التلاميذ والقيود '!C16 -> حوراء عادل مطشر | H20: =IFERROR(VLOOKUP(B20,'العامة نصف السنة أ'!B19:D68,3,FALSE),"") -> 0 | M20: 0 | N20: =IFERROR(VLOOKUP(B20,' العامة نهاية السنة دور اول أ'!B19:D68,3,FALSE),"") -> 0 | O20: 0 | P20: =IFERROR(VLOOKUP(B20,' العامة نهاية السنة دور ثاني أ'!B19:D68,3,FALSE),"") -> 0 | Q20: 0 | R20: 14 | S20: ='التلاميذ والقيود '!B16 -> 2559 | T20: ='التلاميذ والقيود '!C16 -> حوراء عادل مطشر | Y20: =IFERROR(VLOOKUP(S20,'العامة نصف السنة أ'!B19:K68,4,FALSE),"") -> 0 | AD20: 0 | AE20: =IFERROR(VLOOKUP(S20,' العامة نهاية السنة دور اول أ'!B19:K68,4,FALSE),"") -> 0 | AF20: 0 | AG20: =IFERROR(VLOOKUP(S20,' العامة نهاية السنة دور ثاني أ'!B19:K68,4,FALSE),"") -> 0 | AH20: 0 | AI20: 14 | AJ20: ='التلاميذ والقيود '!B16 -> 2559 | AK20: ='التلاميذ والقيود '!C16 -> حوراء عادل مطشر | AP20: =IFERROR(VLOOKUP(AJ20,'العامة نصف السنة أ'!B19:K68,5,FALSE),"") -> 0 | AU20: 0 | AV20: =IFERROR(VLOOKUP(AJ20,' العامة نهاية السنة دور اول أ'!B19:K68,5,FALSE),"") -> 0 | AW20: 0 | AX20: =IFERROR(VLOOKUP(AJ20,' العامة نهاية السنة دور ثاني أ'!B19:K68,5,FALSE),"") -> 0 | AY20: 0 | AZ20: 14 | BA20: ='التلاميذ والقيود '!B16 -> 2559 | BB20: ='التلاميذ والقيود '!C16 -> حوراء عادل مطشر | BG20: =IFERROR(VLOOKUP(BA20,'العامة نصف السنة أ'!B19:K68,6,FALSE),"") -> 0 | BL20: 0 | BM20: =IFERROR(VLOOKUP(BA20,' العامة نهاية السنة دور اول أ'!B19:K68,6,FALSE),"") -> 0 | BN20: 0 | BO20: =IFERROR(VLOOKUP(BA20,' العامة نهاية السنة دور ثاني أ'!B19:K68,6,FALSE),"") -> 0 | BP20: 0 | BQ20: 14 | BR20: ='التلاميذ والقيود '!B16 -> 2559 | BS20: ='التلاميذ والقيود '!C16 -> حوراء عادل مطشر | BX20: =IFERROR(VLOOKUP(BR20,'العامة نصف السنة أ'!B19:K68,7,FALSE),"") -> 0 | CC20: 0 | CD20: =IFERROR(VLOOKUP(BR20,' العامة نهاية السنة دور اول أ'!B19:K68,7,FALSE),"") -> 0 | CE20: 0 | CF20: =IFERROR(VLOOKUP(BR20,' العامة نهاية السنة دور ثاني أ'!B19:K68,7,FALSE),"") -> 0 | CG20: 0 | CH20: 14 | CI20: ='التلاميذ والقيود '!B16 -> 2559 | CJ20: ='التلاميذ والقيود '!C16 -> حوراء عادل مطشر | CO20: =IFERROR(VLOOKUP(CI20,'العامة نصف السنة أ'!B19:K68,8,FALSE),"") -> 0 | CT20: 0 | CU20: =IFERROR(VLOOKUP(CI20,' العامة نهاية السنة دور اول أ'!B19:K68,8,FALSE),"") -> 0 | CV20: 0 | CW20: =IFERROR(VLOOKUP(CI20,' العامة نهاية السنة دور ثاني أ'!B19:K68,8,FALSE),"") -> 0 | CX20: 0 | CY20: 14 | CZ20: ='التلاميذ والقيود '!B16 -> 2559 | DA20: ='التلاميذ والقيود '!C16 -> حوراء عادل مطشر | DF20: =IFERROR(VLOOKUP(CZ20,'العامة نصف السنة أ'!B19:K68,9,FALSE),"") -> 0 | DK20: 0 | DL20: =IFERROR(VLOOKUP(CZ20,' العامة نهاية السنة دور اول أ'!B19:K68,9,FALSE),"") -> 0 | DM20: 0 | DN20: =IFERROR(VLOOKUP(CZ20,' العامة نهاية السنة دور ثاني أ'!B19:K68,9,FALSE),"") -> 0 | DO20: 0 | DP20: 14 | DQ20: ='التلاميذ والقيود '!B16 -> 2559 | DR20: ='التلاميذ والقيود '!C16 -> حوراء عادل مطشر | DW20: =IFERROR(VLOOKUP(DQ20,'العامة نصف السنة أ'!B19:K68,10,FALSE),"") -> 0 | EB20: 0 | EC20: =IFERROR(VLOOKUP(DQ20,' العامة نهاية السنة دور اول أ'!B19:K68,10,FALSE),"") -> 0 | ED20: 0 | EE20: =IFERROR(VLOOKUP(DQ20,' العامة نهاية السنة دور ثاني أ'!B19:K68,10,FALSE),"") -> 0 | EF20: 0
A21: =IF(B21="","",SUBTOTAL(3,$B$7:B21)) -> 15 | B21: ='التلاميذ والقيود '!B17 -> 2799 | C21: ='التلاميذ والقيود '!C17 -> رتاج علي ناصر حيدر | H21: =IFERROR(VLOOKUP(B21,'العامة نصف السنة أ'!B20:D69,3,FALSE),"") -> 0 | M21: 0 | N21: =IFERROR(VLOOKUP(B21,' العامة نهاية السنة دور اول أ'!B20:D69,3,FALSE),"") -> 0 | O21: 0 | P21: =IFERROR(VLOOKUP(B21,' العامة نهاية السنة دور ثاني أ'!B20:D69,3,FALSE),"") -> 0 | Q21: 0 | R21: 15 | S21: ='التلاميذ والقيود '!B17 -> 2799 | T21: ='التلاميذ والقيود '!C17 -> رتاج علي ناصر حيدر | Y21: =IFERROR(VLOOKUP(S21,'العامة نصف السنة أ'!B20:K69,4,FALSE),"") -> 0 | AD21: 0 | AE21: =IFERROR(VLOOKUP(S21,' العامة نهاية السنة دور اول أ'!B20:K69,4,FALSE),"") -> 0 | AF21: 0 | AG21: =IFERROR(VLOOKUP(S21,' العامة نهاية السنة دور ثاني أ'!B20:K69,4,FALSE),"") -> 0 | AH21: 0 | AI21: 15 | AJ21: ='التلاميذ والقيود '!B17 -> 2799 | AK21: ='التلاميذ والقيود '!C17 -> رتاج علي ناصر حيدر | AP21: =IFERROR(VLOOKUP(AJ21,'العامة نصف السنة أ'!B20:K69,5,FALSE),"") -> 0 | AU21: 0 | AV21: =IFERROR(VLOOKUP(AJ21,' العامة نهاية السنة دور اول أ'!B20:K69,5,FALSE),"") -> 0 | AW21: 0 | AX21: =IFERROR(VLOOKUP(AJ21,' العامة نهاية السنة دور ثاني أ'!B20:K69,5,FALSE),"") -> 0 | AY21: 0 | AZ21: 15 | BA21: ='التلاميذ والقيود '!B17 -> 2799 | BB21: ='التلاميذ والقيود '!C17 -> رتاج علي ناصر حيدر | BG21: =IFERROR(VLOOKUP(BA21,'العامة نصف السنة أ'!B20:K69,6,FALSE),"") -> 0 | BL21: 0 | BM21: =IFERROR(VLOOKUP(BA21,' العامة نهاية السنة دور اول أ'!B20:K69,6,FALSE),"") -> 0 | BN21: 0 | BO21: =IFERROR(VLOOKUP(BA21,' العامة نهاية السنة دور ثاني أ'!B20:K69,6,FALSE),"") -> 0 | BP21: 0 | BQ21: 15 | BR21: ='التلاميذ والقيود '!B17 -> 2799 | BS21: ='التلاميذ والقيود '!C17 -> رتاج علي ناصر حيدر | BX21: =IFERROR(VLOOKUP(BR21,'العامة نصف السنة أ'!B20:K69,7,FALSE),"") -> 0 | CC21: 0 | CD21: =IFERROR(VLOOKUP(BR21,' العامة نهاية السنة دور اول أ'!B20:K69,7,FALSE),"") -> 0 | CE21: 0 | CF21: =IFERROR(VLOOKUP(BR21,' العامة نهاية السنة دور ثاني أ'!B20:K69,7,FALSE),"") -> 0 | CG21: 0 | CH21: 15 | CI21: ='التلاميذ والقيود '!B17 -> 2799 | CJ21: ='التلاميذ والقيود '!C17 -> رتاج علي ناصر حيدر | CO21: =IFERROR(VLOOKUP(CI21,'العامة نصف السنة أ'!B20:K69,8,FALSE),"") -> 0 | CT21: 0 | CU21: =IFERROR(VLOOKUP(CI21,' العامة نهاية السنة دور اول أ'!B20:K69,8,FALSE),"") -> 0 | CV21: 0 | CW21: =IFERROR(VLOOKUP(CI21,' العامة نهاية السنة دور ثاني أ'!B20:K69,8,FALSE),"") -> 0 | CX21: 0 | CY21: 15 | CZ21: ='التلاميذ والقيود '!B17 -> 2799 | DA21: ='التلاميذ والقيود '!C17 -> رتاج علي ناصر حيدر | DF21: =IFERROR(VLOOKUP(CZ21,'العامة نصف السنة أ'!B20:K69,9,FALSE),"") -> 0 | DK21: 0 | DL21: =IFERROR(VLOOKUP(CZ21,' العامة نهاية السنة دور اول أ'!B20:K69,9,FALSE),"") -> 0 | DM21: 0 | DN21: =IFERROR(VLOOKUP(CZ21,' العامة نهاية السنة دور ثاني أ'!B20:K69,9,FALSE),"") -> 0 | DO21: 0 | DP21: 15 | DQ21: ='التلاميذ والقيود '!B17 -> 2799 | DR21: ='التلاميذ والقيود '!C17 -> رتاج علي ناصر حيدر | DW21: =IFERROR(VLOOKUP(DQ21,'العامة نصف السنة أ'!B20:K69,10,FALSE),"") -> 0 | EB21: 0 | EC21: =IFERROR(VLOOKUP(DQ21,' العامة نهاية السنة دور اول أ'!B20:K69,10,FALSE),"") -> 0 | ED21: 0 | EE21: =IFERROR(VLOOKUP(DQ21,' العامة نهاية السنة دور ثاني أ'!B20:K69,10,FALSE),"") -> 0 | EF21: 0
A22: =IF(B22="","",SUBTOTAL(3,$B$7:B22)) -> 16 | B22: ='التلاميذ والقيود '!B18 -> 2590 | C22: ='التلاميذ والقيود '!C18 -> رحمه عباس زغير | H22: =IFERROR(VLOOKUP(B22,'العامة نصف السنة أ'!B21:D70,3,FALSE),"") -> 0 | M22: 0 | N22: =IFERROR(VLOOKUP(B22,' العامة نهاية السنة دور اول أ'!B21:D70,3,FALSE),"") -> 0 | O22: 0 | P22: =IFERROR(VLOOKUP(B22,' العامة نهاية السنة دور ثاني أ'!B21:D70,3,FALSE),"") -> 0 | Q22: 0 | R22: 16 | S22: ='التلاميذ والقيود '!B18 -> 2590 | T22: ='التلاميذ والقيود '!C18 -> رحمه عباس زغير | Y22: =IFERROR(VLOOKUP(S22,'العامة نصف السنة أ'!B21:K70,4,FALSE),"") -> 0 | AD22: 0 | AE22: =IFERROR(VLOOKUP(S22,' العامة نهاية السنة دور اول أ'!B21:K70,4,FALSE),"") -> 0 | AF22: 0 | AG22: =IFERROR(VLOOKUP(S22,' العامة نهاية السنة دور ثاني أ'!B21:K70,4,FALSE),"") -> 0 | AH22: 0 | AI22: 16 | AJ22: ='التلاميذ والقيود '!B18 -> 2590 | AK22: ='التلاميذ والقيود '!C18 -> رحمه عباس زغير | AP22: =IFERROR(VLOOKUP(AJ22,'العامة نصف السنة أ'!B21:K70,5,FALSE),"") -> 0 | AU22: 0 | AV22: =IFERROR(VLOOKUP(AJ22,' العامة نهاية السنة دور اول أ'!B21:K70,5,FALSE),"") -> 0 | AW22: 0 | AX22: =IFERROR(VLOOKUP(AJ22,' العامة نهاية السنة دور ثاني أ'!B21:K70,5,FALSE),"") -> 0 | AY22: 0 | AZ22: 16 | BA22: ='التلاميذ والقيود '!B18 -> 2590 | BB22: ='التلاميذ والقيود '!C18 -> رحمه عباس زغير | BG22: =IFERROR(VLOOKUP(BA22,'العامة نصف السنة أ'!B21:K70,6,FALSE),"") -> 0 | BL22: 0 | BM22: =IFERROR(VLOOKUP(BA22,' العامة نهاية السنة دور اول أ'!B21:K70,6,FALSE),"") -> 0 | BN22: 0 | BO22: =IFERROR(VLOOKUP(BA22,' العامة نهاية السنة دور ثاني أ'!B21:K70,6,FALSE),"") -> 0 | BP22: 0 | BQ22: 16 | BR22: ='التلاميذ والقيود '!B18 -> 2590 | BS22: ='التلاميذ والقيود '!C18 -> رحمه عباس زغير | BX22: =IFERROR(VLOOKUP(BR22,'العامة نصف السنة أ'!B21:K70,7,FALSE),"") -> 0 | CC22: 0 | CD22: =IFERROR(VLOOKUP(BR22,' العامة نهاية السنة دور اول أ'!B21:K70,7,FALSE),"") -> 0 | CE22: 0 | CF22: =IFERROR(VLOOKUP(BR22,' العامة نهاية السنة دور ثاني أ'!B21:K70,7,FALSE),"") -> 0 | CG22: 0 | CH22: 16 | CI22: ='التلاميذ والقيود '!B18 -> 2590 | CJ22: ='التلاميذ والقيود '!C18 -> رحمه عباس زغير | CO22: =IFERROR(VLOOKUP(CI22,'العامة نصف السنة أ'!B21:K70,8,FALSE),"") -> 0 | CT22: 0 | CU22: =IFERROR(VLOOKUP(CI22,' العامة نهاية السنة دور اول أ'!B21:K70,8,FALSE),"") -> 0 | CV22: 0 | CW22: =IFERROR(VLOOKUP(CI22,' العامة نهاية السنة دور ثاني أ'!B21:K70,8,FALSE),"") -> 0 | CX22: 0 | CY22: 16 | CZ22: ='التلاميذ والقيود '!B18 -> 2590 | DA22: ='التلاميذ والقيود '!C18 -> رحمه عباس زغير | DF22: =IFERROR(VLOOKUP(CZ22,'العامة نصف السنة أ'!B21:K70,9,FALSE),"") -> 0 | DK22: 0 | DL22: =IFERROR(VLOOKUP(CZ22,' العامة نهاية السنة دور اول أ'!B21:K70,9,FALSE),"") -> 0 | DM22: 0 | DN22: =IFERROR(VLOOKUP(CZ22,' العامة نهاية السنة دور ثاني أ'!B21:K70,9,FALSE),"") -> 0 | DO22: 0 | DP22: 16 | DQ22: ='التلاميذ والقيود '!B18 -> 2590 | DR22: ='التلاميذ والقيود '!C18 -> رحمه عباس زغير | DW22: =IFERROR(VLOOKUP(DQ22,'العامة نصف السنة أ'!B21:K70,10,FALSE),"") -> 0 | EB22: 0 | EC22: =IFERROR(VLOOKUP(DQ22,' العامة نهاية السنة دور اول أ'!B21:K70,10,FALSE),"") -> 0 | ED22: 0 | EE22: =IFERROR(VLOOKUP(DQ22,' العامة نهاية السنة دور ثاني أ'!B21:K70,10,FALSE),"") -> 0 | EF22: 0
A23: =IF(B23="","",SUBTOTAL(3,$B$7:B23)) -> 17 | B23: ='التلاميذ والقيود '!B19 -> 2421 | C23: ='التلاميذ والقيود '!C19 -> رقيه رعد سعد | H23: =IFERROR(VLOOKUP(B23,'العامة نصف السنة أ'!B22:D71,3,FALSE),"") -> 0 | M23: 0 | N23: =IFERROR(VLOOKUP(B23,' العامة نهاية السنة دور اول أ'!B22:D71,3,FALSE),"") -> 0 | O23: 0 | P23: =IFERROR(VLOOKUP(B23,' العامة نهاية السنة دور ثاني أ'!B22:D71,3,FALSE),"") -> 0 | Q23: 0 | R23: 17 | S23: ='التلاميذ والقيود '!B19 -> 2421 | T23: ='التلاميذ والقيود '!C19 -> رقيه رعد سعد | Y23: =IFERROR(VLOOKUP(S23,'العامة نصف السنة أ'!B22:K71,4,FALSE),"") -> 0 | AD23: 0 | AE23: =IFERROR(VLOOKUP(S23,' العامة نهاية السنة دور اول أ'!B22:K71,4,FALSE),"") -> 0 | AF23: 0 | AG23: =IFERROR(VLOOKUP(S23,' العامة نهاية السنة دور ثاني أ'!B22:K71,4,FALSE),"") -> 0 | AH23: 0 | AI23: 17 | AJ23: ='التلاميذ والقيود '!B19 -> 2421 | AK23: ='التلاميذ والقيود '!C19 -> رقيه رعد سعد | AP23: =IFERROR(VLOOKUP(AJ23,'العامة نصف السنة أ'!B22:K71,5,FALSE),"") -> 0 | AU23: 0 | AV23: =IFERROR(VLOOKUP(AJ23,' العامة نهاية السنة دور اول أ'!B22:K71,5,FALSE),"") -> 0 | AW23: 0 | AX23: =IFERROR(VLOOKUP(AJ23,' العامة نهاية السنة دور ثاني أ'!B22:K71,5,FALSE),"") -> 0 | AY23: 0 | AZ23: 17 | BA23: ='التلاميذ والقيود '!B19 -> 2421 | BB23: ='التلاميذ والقيود '!C19 -> رقيه رعد سعد | BG23: =IFERROR(VLOOKUP(BA23,'العامة نصف السنة أ'!B22:K71,6,FALSE),"") -> 0 | BL23: 0 | BM23: =IFERROR(VLOOKUP(BA23,' العامة نهاية السنة دور اول أ'!B22:K71,6,FALSE),"") -> 0 | BN23: 0 | BO23: =IFERROR(VLOOKUP(BA23,' العامة نهاية السنة دور ثاني أ'!B22:K71,6,FALSE),"") -> 0 | BP23: 0 | BQ23: 17 | BR23: ='التلاميذ والقيود '!B19 -> 2421 | BS23: ='التلاميذ والقيود '!C19 -> رقيه رعد سعد | BX23: =IFERROR(VLOOKUP(BR23,'العامة نصف السنة أ'!B22:K71,7,FALSE),"") -> 0 | CC23: 0 | CD23: =IFERROR(VLOOKUP(BR23,' العامة نهاية السنة دور اول أ'!B22:K71,7,FALSE),"") -> 0 | CE23: 0 | CF23: =IFERROR(VLOOKUP(BR23,' العامة نهاية السنة دور ثاني أ'!B22:K71,7,FALSE),"") -> 0 | CG23: 0 | CH23: 17 | CI23: ='التلاميذ والقيود '!B19 -> 2421 | CJ23: ='التلاميذ والقيود '!C19 -> رقيه رعد سعد | CO23: =IFERROR(VLOOKUP(CI23,'العامة نصف السنة أ'!B22:K71,8,FALSE),"") -> 0 | CT23: 0 | CU23: =IFERROR(VLOOKUP(CI23,' العامة نهاية السنة دور اول أ'!B22:K71,8,FALSE),"") -> 0 | CV23: 0 | CW23: =IFERROR(VLOOKUP(CI23,' العامة نهاية السنة دور ثاني أ'!B22:K71,8,FALSE),"") -> 0 | CX23: 0 | CY23: 17 | CZ23: ='التلاميذ والقيود '!B19 -> 2421 | DA23: ='التلاميذ والقيود '!C19 -> رقيه رعد سعد | DF23: =IFERROR(VLOOKUP(CZ23,'العامة نصف السنة أ'!B22:K71,9,FALSE),"") -> 0 | DK23: 0 | DL23: =IFERROR(VLOOKUP(CZ23,' العامة نهاية السنة دور اول أ'!B22:K71,9,FALSE),"") -> 0 | DM23: 0 | DN23: =IFERROR(VLOOKUP(CZ23,' العامة نهاية السنة دور ثاني أ'!B22:K71,9,FALSE),"") -> 0 | DO23: 0 | DP23: 17 | DQ23: ='التلاميذ والقيود '!B19 -> 2421 | DR23: ='التلاميذ والقيود '!C19 -> رقيه رعد سعد | DW23: =IFERROR(VLOOKUP(DQ23,'العامة نصف السنة أ'!B22:K71,10,FALSE),"") -> 0 | EB23: 0 | EC23: =IFERROR(VLOOKUP(DQ23,' العامة نهاية السنة دور اول أ'!B22:K71,10,FALSE),"") -> 0 | ED23: 0 | EE23: =IFERROR(VLOOKUP(DQ23,' العامة نهاية السنة دور ثاني أ'!B22:K71,10,FALSE),"") -> 0 | EF23: 0
A24: =IF(B24="","",SUBTOTAL(3,$B$7:B24)) -> 18 | B24: ='التلاميذ والقيود '!B20 -> 2440 | C24: ='التلاميذ والقيود '!C20 -> رقيه علي مزهر | H24: =IFERROR(VLOOKUP(B24,'العامة نصف السنة أ'!B23:D72,3,FALSE),"") -> 0 | M24: 0 | N24: =IFERROR(VLOOKUP(B24,' العامة نهاية السنة دور اول أ'!B23:D72,3,FALSE),"") -> 0 | O24: 0 | P24: =IFERROR(VLOOKUP(B24,' العامة نهاية السنة دور ثاني أ'!B23:D72,3,FALSE),"") -> 0 | Q24: 0 | R24: 18 | S24: ='التلاميذ والقيود '!B20 -> 2440 | T24: ='التلاميذ والقيود '!C20 -> رقيه علي مزهر | Y24: =IFERROR(VLOOKUP(S24,'العامة نصف السنة أ'!B23:K72,4,FALSE),"") -> 0 | AD24: 0 | AE24: =IFERROR(VLOOKUP(S24,' العامة نهاية السنة دور اول أ'!B23:K72,4,FALSE),"") -> 0 | AF24: 0 | AG24: =IFERROR(VLOOKUP(S24,' العامة نهاية السنة دور ثاني أ'!B23:K72,4,FALSE),"") -> 0 | AH24: 0 | AI24: 18 | AJ24: ='التلاميذ والقيود '!B20 -> 2440 | AK24: ='التلاميذ والقيود '!C20 -> رقيه علي مزهر | AP24: =IFERROR(VLOOKUP(AJ24,'العامة نصف السنة أ'!B23:K72,5,FALSE),"") -> 0 | AU24: 0 | AV24: =IFERROR(VLOOKUP(AJ24,' العامة نهاية السنة دور اول أ'!B23:K72,5,FALSE),"") -> 0 | AW24: 0 | AX24: =IFERROR(VLOOKUP(AJ24,' العامة نهاية السنة دور ثاني أ'!B23:K72,5,FALSE),"") -> 0 | AY24: 0 | AZ24: 18 | BA24: ='التلاميذ والقيود '!B20 -> 2440 | BB24: ='التلاميذ والقيود '!C20 -> رقيه علي مزهر | BG24: =IFERROR(VLOOKUP(BA24,'العامة نصف السنة أ'!B23:K72,6,FALSE),"") -> 0 | BL24: 0 | BM24: =IFERROR(VLOOKUP(BA24,' العامة نهاية السنة دور اول أ'!B23:K72,6,FALSE),"") -> 0 | BN24: 0 | BO24: =IFERROR(VLOOKUP(BA24,' العامة نهاية السنة دور ثاني أ'!B23:K72,6,FALSE),"") -> 0 | BP24: 0 | BQ24: 18 | BR24: ='التلاميذ والقيود '!B20 -> 2440 | BS24: ='التلاميذ والقيود '!C20 -> رقيه علي مزهر | BX24: =IFERROR(VLOOKUP(BR24,'العامة نصف السنة أ'!B23:K72,7,FALSE),"") -> 0 | CC24: 0 | CD24: =IFERROR(VLOOKUP(BR24,' العامة نهاية السنة دور اول أ'!B23:K72,7,FALSE),"") -> 0 | CE24: 0 | CF24: =IFERROR(VLOOKUP(BR24,' العامة نهاية السنة دور ثاني أ'!B23:K72,7,FALSE),"") -> 0 | CG24: 0 | CH24: 18 | CI24: ='التلاميذ والقيود '!B20 -> 2440 | CJ24: ='التلاميذ والقيود '!C20 -> رقيه علي مزهر | CO24: =IFERROR(VLOOKUP(CI24,'العامة نصف السنة أ'!B23:K72,8,FALSE),"") -> 0 | CT24: 0 | CU24: =IFERROR(VLOOKUP(CI24,' العامة نهاية السنة دور اول أ'!B23:K72,8,FALSE),"") -> 0 | CV24: 0 | CW24: =IFERROR(VLOOKUP(CI24,' العامة نهاية السنة دور ثاني أ'!B23:K72,8,FALSE),"") -> 0 | CX24: 0 | CY24: 18 | CZ24: ='التلاميذ والقيود '!B20 -> 2440 | DA24: ='التلاميذ والقيود '!C20 -> رقيه علي مزهر | DF24: =IFERROR(VLOOKUP(CZ24,'العامة نصف السنة أ'!B23:K72,9,FALSE),"") -> 0 | DK24: 0 | DL24: =IFERROR(VLOOKUP(CZ24,' العامة نهاية السنة دور اول أ'!B23:K72,9,FALSE),"") -> 0 | DM24: 0 | DN24: =IFERROR(VLOOKUP(CZ24,' العامة نهاية السنة دور ثاني أ'!B23:K72,9,FALSE),"") -> 0 | DO24: 0 | DP24: 18 | DQ24: ='التلاميذ والقيود '!B20 -> 2440 | DR24: ='التلاميذ والقيود '!C20 -> رقيه علي مزهر | DW24: =IFERROR(VLOOKUP(DQ24,'العامة نصف السنة أ'!B23:K72,10,FALSE),"") -> 0 | EB24: 0 | EC24: =IFERROR(VLOOKUP(DQ24,' العامة نهاية السنة دور اول أ'!B23:K72,10,FALSE),"") -> 0 | ED24: 0 | EE24: =IFERROR(VLOOKUP(DQ24,' العامة نهاية السنة دور ثاني أ'!B23:K72,10,FALSE),"") -> 0 | EF24: 0
A25: =IF(B25="","",SUBTOTAL(3,$B$7:B25)) -> 19 | B25: ='التلاميذ والقيود '!B21 -> 2513 | C25: ='التلاميذ والقيود '!C21 -> رقيه محمد كاظم | H25: =IFERROR(VLOOKUP(B25,'العامة نصف السنة أ'!B24:D73,3,FALSE),"") -> 0 | M25: 0 | N25: =IFERROR(VLOOKUP(B25,' العامة نهاية السنة دور اول أ'!B24:D73,3,FALSE),"") -> 0 | O25: 0 | P25: =IFERROR(VLOOKUP(B25,' العامة نهاية السنة دور ثاني أ'!B24:D73,3,FALSE),"") -> 0 | Q25: 0 | R25: 19 | S25: ='التلاميذ والقيود '!B21 -> 2513 | T25: ='التلاميذ والقيود '!C21 -> رقيه محمد كاظم | Y25: =IFERROR(VLOOKUP(S25,'العامة نصف السنة أ'!B24:K73,4,FALSE),"") -> 0 | AD25: 0 | AE25: =IFERROR(VLOOKUP(S25,' العامة نهاية السنة دور اول أ'!B24:K73,4,FALSE),"") -> 0 | AF25: 0 | AG25: =IFERROR(VLOOKUP(S25,' العامة نهاية السنة دور ثاني أ'!B24:K73,4,FALSE),"") -> 0 | AH25: 0 | AI25: 19 | AJ25: ='التلاميذ والقيود '!B21 -> 2513 | AK25: ='التلاميذ والقيود '!C21 -> رقيه محمد كاظم | AP25: =IFERROR(VLOOKUP(AJ25,'العامة نصف السنة أ'!B24:K73,5,FALSE),"") -> 0 | AU25: 0 | AV25: =IFERROR(VLOOKUP(AJ25,' العامة نهاية السنة دور اول أ'!B24:K73,5,FALSE),"") -> 0 | AW25: 0 | AX25: =IFERROR(VLOOKUP(AJ25,' العامة نهاية السنة دور ثاني أ'!B24:K73,5,FALSE),"") -> 0 | AY25: 0 | AZ25: 19 | BA25: ='التلاميذ والقيود '!B21 -> 2513 | BB25: ='التلاميذ والقيود '!C21 -> رقيه محمد كاظم | BG25: =IFERROR(VLOOKUP(BA25,'العامة نصف السنة أ'!B24:K73,6,FALSE),"") -> 0 | BL25: 0 | BM25: =IFERROR(VLOOKUP(BA25,' العامة نهاية السنة دور اول أ'!B24:K73,6,FALSE),"") -> 0 | BN25: 0 | BO25: =IFERROR(VLOOKUP(BA25,' العامة نهاية السنة دور ثاني أ'!B24:K73,6,FALSE),"") -> 0 | BP25: 0 | BQ25: 19 | BR25: ='التلاميذ والقيود '!B21 -> 2513 | BS25: ='التلاميذ والقيود '!C21 -> رقيه محمد كاظم | BX25: =IFERROR(VLOOKUP(BR25,'العامة نصف السنة أ'!B24:K73,7,FALSE),"") -> 0 | CC25: 0 | CD25: =IFERROR(VLOOKUP(BR25,' العامة نهاية السنة دور اول أ'!B24:K73,7,FALSE),"") -> 0 | CE25: 0 | CF25: =IFERROR(VLOOKUP(BR25,' العامة نهاية السنة دور ثاني أ'!B24:K73,7,FALSE),"") -> 0 | CG25: 0 | CH25: 19 | CI25: ='التلاميذ والقيود '!B21 -> 2513 | CJ25: ='التلاميذ والقيود '!C21 -> رقيه محمد كاظم | CO25: =IFERROR(VLOOKUP(CI25,'العامة نصف السنة أ'!B24:K73,8,FALSE),"") -> 0 | CT25: 0 | CU25: =IFERROR(VLOOKUP(CI25,' العامة نهاية السنة دور اول أ'!B24:K73,8,FALSE),"") -> 0 | CV25: 0 | CW25: =IFERROR(VLOOKUP(CI25,' العامة نهاية السنة دور ثاني أ'!B24:K73,8,FALSE),"") -> 0 | CX25: 0 | CY25: 19 | CZ25: ='التلاميذ والقيود '!B21 -> 2513 | DA25: ='التلاميذ والقيود '!C21 -> رقيه محمد كاظم | DF25: =IFERROR(VLOOKUP(CZ25,'العامة نصف السنة أ'!B24:K73,9,FALSE),"") -> 0 | DK25: 0 | DL25: =IFERROR(VLOOKUP(CZ25,' العامة نهاية السنة دور اول أ'!B24:K73,9,FALSE),"") -> 0 | DM25: 0 | DN25: =IFERROR(VLOOKUP(CZ25,' العامة نهاية السنة دور ثاني أ'!B24:K73,9,FALSE),"") -> 0 | DO25: 0 | DP25: 19 | DQ25: ='التلاميذ والقيود '!B21 -> 2513 | DR25: ='التلاميذ والقيود '!C21 -> رقيه محمد كاظم | DW25: =IFERROR(VLOOKUP(DQ25,'العامة نصف السنة أ'!B24:K73,10,FALSE),"") -> 0 | EB25: 0 | EC25: =IFERROR(VLOOKUP(DQ25,' العامة نهاية السنة دور اول أ'!B24:K73,10,FALSE),"") -> 0 | ED25: 0 | EE25: =IFERROR(VLOOKUP(DQ25,' العامة نهاية السنة دور ثاني أ'!B24:K73,10,FALSE),"") -> 0 | EF25: 0
A26: =IF(B26="","",SUBTOTAL(3,$B$7:B26)) -> 20 | B26: ='التلاميذ والقيود '!B22 -> 2580 | C26: ='التلاميذ والقيود '!C22 -> روان احمد قاسم | H26: =IFERROR(VLOOKUP(B26,'العامة نصف السنة أ'!B25:D74,3,FALSE),"") -> 0 | M26: 0 | N26: =IFERROR(VLOOKUP(B26,' العامة نهاية السنة دور اول أ'!B25:D74,3,FALSE),"") -> 0 | O26: 0 | P26: =IFERROR(VLOOKUP(B26,' العامة نهاية السنة دور ثاني أ'!B25:D74,3,FALSE),"") -> 0 | Q26: 0 | R26: 20 | S26: ='التلاميذ والقيود '!B22 -> 2580 | T26: ='التلاميذ والقيود '!C22 -> روان احمد قاسم | Y26: =IFERROR(VLOOKUP(S26,'العامة نصف السنة أ'!B25:K74,4,FALSE),"") -> 0 | AD26: 0 | AE26: =IFERROR(VLOOKUP(S26,' العامة نهاية السنة دور اول أ'!B25:K74,4,FALSE),"") -> 0 | AF26: 0 | AG26: =IFERROR(VLOOKUP(S26,' العامة نهاية السنة دور ثاني أ'!B25:K74,4,FALSE),"") -> 0 | AH26: 0 | AI26: 20 | AJ26: ='التلاميذ والقيود '!B22 -> 2580 | AK26: ='التلاميذ والقيود '!C22 -> روان احمد قاسم | AP26: =IFERROR(VLOOKUP(AJ26,'العامة نصف السنة أ'!B25:K74,5,FALSE),"") -> 0 | AU26: 0 | AV26: =IFERROR(VLOOKUP(AJ26,' العامة نهاية السنة دور اول أ'!B25:K74,5,FALSE),"") -> 0 | AW26: 0 | AX26: =IFERROR(VLOOKUP(AJ26,' العامة نهاية السنة دور ثاني أ'!B25:K74,5,FALSE),"") -> 0 | AY26: 0 | AZ26: 20 | BA26: ='التلاميذ والقيود '!B22 -> 2580 | BB26: ='التلاميذ والقيود '!C22 -> روان احمد قاسم | BG26: =IFERROR(VLOOKUP(BA26,'العامة نصف السنة أ'!B25:K74,6,FALSE),"") -> 0 | BL26: 0 | BM26: =IFERROR(VLOOKUP(BA26,' العامة نهاية السنة دور اول أ'!B25:K74,6,FALSE),"") -> 0 | BN26: 0 | BO26: =IFERROR(VLOOKUP(BA26,' العامة نهاية السنة دور ثاني أ'!B25:K74,6,FALSE),"") -> 0 | BP26: 0 | BQ26: 20 | BR26: ='التلاميذ والقيود '!B22 -> 2580 | BS26: ='التلاميذ والقيود '!C22 -> روان احمد قاسم | BX26: =IFERROR(VLOOKUP(BR26,'العامة نصف السنة أ'!B25:K74,7,FALSE),"") -> 0 | CC26: 0 | CD26: =IFERROR(VLOOKUP(BR26,' العامة نهاية السنة دور اول أ'!B25:K74,7,FALSE),"") -> 0 | CE26: 0 | CF26: =IFERROR(VLOOKUP(BR26,' العامة نهاية السنة دور ثاني أ'!B25:K74,7,FALSE),"") -> 0 | CG26: 0 | CH26: 20 | CI26: ='التلاميذ والقيود '!B22 -> 2580 | CJ26: ='التلاميذ والقيود '!C22 -> روان احمد قاسم | CO26: =IFERROR(VLOOKUP(CI26,'العامة نصف السنة أ'!B25:K74,8,FALSE),"") -> 0 | CT26: 0 | CU26: =IFERROR(VLOOKUP(CI26,' العامة نهاية السنة دور اول أ'!B25:K74,8,FALSE),"") -> 0 | CV26: 0 | CW26: =IFERROR(VLOOKUP(CI26,' العامة نهاية السنة دور ثاني أ'!B25:K74,8,FALSE),"") -> 0 | CX26: 0 | CY26: 20 | CZ26: ='التلاميذ والقيود '!B22 -> 2580 | DA26: ='التلاميذ والقيود '!C22 -> روان احمد قاسم | DF26: =IFERROR(VLOOKUP(CZ26,'العامة نصف السنة أ'!B25:K74,9,FALSE),"") -> 0 | DK26: 0 | DL26: =IFERROR(VLOOKUP(CZ26,' العامة نهاية السنة دور اول أ'!B25:K74,9,FALSE),"") -> 0 | DM26: 0 | DN26: =IFERROR(VLOOKUP(CZ26,' العامة نهاية السنة دور ثاني أ'!B25:K74,9,FALSE),"") -> 0 | DO26: 0 | DP26: 20 | DQ26: ='التلاميذ والقيود '!B22 -> 2580 | DR26: ='التلاميذ والقيود '!C22 -> روان احمد قاسم | DW26: =IFERROR(VLOOKUP(DQ26,'العامة نصف السنة أ'!B25:K74,10,FALSE),"") -> 0 | EB26: 0 | EC26: =IFERROR(VLOOKUP(DQ26,' العامة نهاية السنة دور اول أ'!B25:K74,10,FALSE),"") -> 0 | ED26: 0 | EE26: =IFERROR(VLOOKUP(DQ26,' العامة نهاية السنة دور ثاني أ'!B25:K74,10,FALSE),"") -> 0 | EF26: 0
A27: =IF(B27="","",SUBTOTAL(3,$B$7:B27)) -> 21 | B27: ='التلاميذ والقيود '!B23 -> 2585 | C27: ='التلاميذ والقيود '!C23 -> روان استبرق جمعه | H27: =IFERROR(VLOOKUP(B27,'العامة نصف السنة أ'!B26:D75,3,FALSE),"") -> 0 | M27: 0 | N27: =IFERROR(VLOOKUP(B27,' العامة نهاية السنة دور اول أ'!B26:D75,3,FALSE),"") -> 0 | O27: 0 | P27: =IFERROR(VLOOKUP(B27,' العامة نهاية السنة دور ثاني أ'!B26:D75,3,FALSE),"") -> 0 | Q27: 0 | R27: 21 | S27: ='التلاميذ والقيود '!B23 -> 2585 | T27: ='التلاميذ والقيود '!C23 -> روان استبرق جمعه | Y27: =IFERROR(VLOOKUP(S27,'العامة نصف السنة أ'!B26:K75,4,FALSE),"") -> 0 | AD27: 0 | AE27: =IFERROR(VLOOKUP(S27,' العامة نهاية السنة دور اول أ'!B26:K75,4,FALSE),"") -> 0 | AF27: 0 | AG27: =IFERROR(VLOOKUP(S27,' العامة نهاية السنة دور ثاني أ'!B26:K75,4,FALSE),"") -> 0 | AH27: 0 | AI27: 21 | AJ27: ='التلاميذ والقيود '!B23 -> 2585 | AK27: ='التلاميذ والقيود '!C23 -> روان استبرق جمعه | AP27: =IFERROR(VLOOKUP(AJ27,'العامة نصف السنة أ'!B26:K75,5,FALSE),"") -> 0 | AU27: 0 | AV27: =IFERROR(VLOOKUP(AJ27,' العامة نهاية السنة دور اول أ'!B26:K75,5,FALSE),"") -> 0 | AW27: 0 | AX27: =IFERROR(VLOOKUP(AJ27,' العامة نهاية السنة دور ثاني أ'!B26:K75,5,FALSE),"") -> 0 | AY27: 0 | AZ27: 21 | BA27: ='التلاميذ والقيود '!B23 -> 2585 | BB27: ='التلاميذ والقيود '!C23 -> روان استبرق جمعه | BG27: =IFERROR(VLOOKUP(BA27,'العامة نصف السنة أ'!B26:K75,6,FALSE),"") -> 0 | BL27: 0 | BM27: =IFERROR(VLOOKUP(BA27,' العامة نهاية السنة دور اول أ'!B26:K75,6,FALSE),"") -> 0 | BN27: 0 | BO27: =IFERROR(VLOOKUP(BA27,' العامة نهاية السنة دور ثاني أ'!B26:K75,6,FALSE),"") -> 0 | BP27: 0 | BQ27: 21 | BR27: ='التلاميذ والقيود '!B23 -> 2585 | BS27: ='التلاميذ والقيود '!C23 -> روان استبرق جمعه | BX27: =IFERROR(VLOOKUP(BR27,'العامة نصف السنة أ'!B26:K75,7,FALSE),"") -> 0 | CC27: 0 | CD27: =IFERROR(VLOOKUP(BR27,' العامة نهاية السنة دور اول أ'!B26:K75,7,FALSE),"") -> 0 | CE27: 0 | CF27: =IFERROR(VLOOKUP(BR27,' العامة نهاية السنة دور ثاني أ'!B26:K75,7,FALSE),"") -> 0 | CG27: 0 | CH27: 21 | CI27: ='التلاميذ والقيود '!B23 -> 2585 | CJ27: ='التلاميذ والقيود '!C23 -> روان استبرق جمعه | CO27: =IFERROR(VLOOKUP(CI27,'العامة نصف السنة أ'!B26:K75,8,FALSE),"") -> 0 | CT27: 0 | CU27: =IFERROR(VLOOKUP(CI27,' العامة نهاية السنة دور اول أ'!B26:K75,8,FALSE),"") -> 0 | CV27: 0 | CW27: =IFERROR(VLOOKUP(CI27,' العامة نهاية السنة دور ثاني أ'!B26:K75,8,FALSE),"") -> 0 | CX27: 0 | CY27: 21 | CZ27: ='التلاميذ والقيود '!B23 -> 2585 | DA27: ='التلاميذ والقيود '!C23 -> روان استبرق جمعه | DF27: =IFERROR(VLOOKUP(CZ27,'العامة نصف السنة أ'!B26:K75,9,FALSE),"") -> 0 | DK27: 0 | DL27: =IFERROR(VLOOKUP(CZ27,' العامة نهاية السنة دور اول أ'!B26:K75,9,FALSE),"") -> 0 | DM27: 0 | DN27: =IFERROR(VLOOKUP(CZ27,' العامة نهاية السنة دور ثاني أ'!B26:K75,9,FALSE),"") -> 0 | DO27: 0 | DP27: 21 | DQ27: ='التلاميذ والقيود '!B23 -> 2585 | DR27: ='التلاميذ والقيود '!C23 -> روان استبرق جمعه | DW27: =IFERROR(VLOOKUP(DQ27,'العامة نصف السنة أ'!B26:K75,10,FALSE),"") -> 0 | EB27: 0 | EC27: =IFERROR(VLOOKUP(DQ27,' العامة نهاية السنة دور اول أ'!B26:K75,10,FALSE),"") -> 0 | ED27: 0 | EE27: =IFERROR(VLOOKUP(DQ27,' العامة نهاية السنة دور ثاني أ'!B26:K75,10,FALSE),"") -> 0 | EF27: 0
A28: =IF(B28="","",SUBTOTAL(3,$B$7:B28)) -> 22 | B28: ='التلاميذ والقيود '!B24 -> 2583 | C28: ='التلاميذ والقيود '!C24 -> ريتا احمد فاخر | H28: =IFERROR(VLOOKUP(B28,'العامة نصف السنة أ'!B27:D76,3,FALSE),"") -> 0 | M28: 0 | N28: =IFERROR(VLOOKUP(B28,' العامة نهاية السنة دور اول أ'!B27:D76,3,FALSE),"") -> 0 | O28: 0 | P28: =IFERROR(VLOOKUP(B28,' العامة نهاية السنة دور ثاني أ'!B27:D76,3,FALSE),"") -> 0 | Q28: 0 | R28: 22 | S28: ='التلاميذ والقيود '!B24 -> 2583 | T28: ='التلاميذ والقيود '!C24 -> ريتا احمد فاخر | Y28: =IFERROR(VLOOKUP(S28,'العامة نصف السنة أ'!B27:K76,4,FALSE),"") -> 0 | AD28: 0 | AE28: =IFERROR(VLOOKUP(S28,' العامة نهاية السنة دور اول أ'!B27:K76,4,FALSE),"") -> 0 | AF28: 0 | AG28: =IFERROR(VLOOKUP(S28,' العامة نهاية السنة دور ثاني أ'!B27:K76,4,FALSE),"") -> 0 | AH28: 0 | AI28: 22 | AJ28: ='التلاميذ والقيود '!B24 -> 2583 | AK28: ='التلاميذ والقيود '!C24 -> ريتا احمد فاخر | AP28: =IFERROR(VLOOKUP(AJ28,'العامة نصف السنة أ'!B27:K76,5,FALSE),"") -> 0 | AU28: 0 | AV28: =IFERROR(VLOOKUP(AJ28,' العامة نهاية السنة دور اول أ'!B27:K76,5,FALSE),"") -> 0 | AW28: 0 | AX28: =IFERROR(VLOOKUP(AJ28,' العامة نهاية السنة دور ثاني أ'!B27:K76,5,FALSE),"") -> 0 | AY28: 0 | AZ28: 22 | BA28: ='التلاميذ والقيود '!B24 -> 2583 | BB28: ='التلاميذ والقيود '!C24 -> ريتا احمد فاخر | BG28: =IFERROR(VLOOKUP(BA28,'العامة نصف السنة أ'!B27:K76,6,FALSE),"") -> 0 | BL28: 0 | BM28: =IFERROR(VLOOKUP(BA28,' العامة نهاية السنة دور اول أ'!B27:K76,6,FALSE),"") -> 0 | BN28: 0 | BO28: =IFERROR(VLOOKUP(BA28,' العامة نهاية السنة دور ثاني أ'!B27:K76,6,FALSE),"") -> 0 | BP28: 0 | BQ28: 22 | BR28: ='التلاميذ والقيود '!B24 -> 2583 | BS28: ='التلاميذ والقيود '!C24 -> ريتا احمد فاخر | BX28: =IFERROR(VLOOKUP(BR28,'العامة نصف السنة أ'!B27:K76,7,FALSE),"") -> 0 | CC28: 0 | CD28: =IFERROR(VLOOKUP(BR28,' العامة نهاية السنة دور اول أ'!B27:K76,7,FALSE),"") -> 0 | CE28: 0 | CF28: =IFERROR(VLOOKUP(BR28,' العامة نهاية السنة دور ثاني أ'!B27:K76,7,FALSE),"") -> 0 | CG28: 0 | CH28: 22 | CI28: ='التلاميذ والقيود '!B24 -> 2583 | CJ28: ='التلاميذ والقيود '!C24 -> ريتا احمد فاخر | CO28: =IFERROR(VLOOKUP(CI28,'العامة نصف السنة أ'!B27:K76,8,FALSE),"") -> 0 | CT28: 0 | CU28: =IFERROR(VLOOKUP(CI28,' العامة نهاية السنة دور اول أ'!B27:K76,8,FALSE),"") -> 0 | CV28: 0 | CW28: =IFERROR(VLOOKUP(CI28,' العامة نهاية السنة دور ثاني أ'!B27:K76,8,FALSE),"") -> 0 | CX28: 0 | CY28: 22 | CZ28: ='التلاميذ والقيود '!B24 -> 2583 | DA28: ='التلاميذ والقيود '!C24 -> ريتا احمد فاخر | DF28: =IFERROR(VLOOKUP(CZ28,'العامة نصف السنة أ'!B27:K76,9,FALSE),"") -> 0 | DK28: 0 | DL28: =IFERROR(VLOOKUP(CZ28,' العامة نهاية السنة دور اول أ'!B27:K76,9,FALSE),"") -> 0 | DM28: 0 | DN28: =IFERROR(VLOOKUP(CZ28,' العامة نهاية السنة دور ثاني أ'!B27:K76,9,FALSE),"") -> 0 | DO28: 0 | DP28: 22 | DQ28: ='التلاميذ والقيود '!B24 -> 2583 | DR28: ='التلاميذ والقيود '!C24 -> ريتا احمد فاخر | DW28: =IFERROR(VLOOKUP(DQ28,'العامة نصف السنة أ'!B27:K76,10,FALSE),"") -> 0 | EB28: 0 | EC28: =IFERROR(VLOOKUP(DQ28,' العامة نهاية السنة دور اول أ'!B27:K76,10,FALSE),"") -> 0 | ED28: 0 | EE28: =IFERROR(VLOOKUP(DQ28,' العامة نهاية السنة دور ثاني أ'!B27:K76,10,FALSE),"") -> 0 | EF28: 0
A29: =IF(B29="","",SUBTOTAL(3,$B$7:B29)) -> 23 | B29: ='التلاميذ والقيود '!B25 -> 2134 | C29: ='التلاميذ والقيود '!C25 -> زهراء احمد محمود | H29: =IFERROR(VLOOKUP(B29,'العامة نصف السنة أ'!B28:D77,3,FALSE),"") -> 0 | M29: 0 | N29: =IFERROR(VLOOKUP(B29,' العامة نهاية السنة دور اول أ'!B28:D77,3,FALSE),"") -> 0 | O29: 0 | P29: =IFERROR(VLOOKUP(B29,' العامة نهاية السنة دور ثاني أ'!B28:D77,3,FALSE),"") -> 0 | Q29: 0 | R29: 23 | S29: ='التلاميذ والقيود '!B25 -> 2134 | T29: ='التلاميذ والقيود '!C25 -> زهراء احمد محمود | Y29: =IFERROR(VLOOKUP(S29,'العامة نصف السنة أ'!B28:K77,4,FALSE),"") -> 0 | AD29: 0 | AE29: =IFERROR(VLOOKUP(S29,' العامة نهاية السنة دور اول أ'!B28:K77,4,FALSE),"") -> 0 | AF29: 0 | AG29: =IFERROR(VLOOKUP(S29,' العامة نهاية السنة دور ثاني أ'!B28:K77,4,FALSE),"") -> 0 | AH29: 0 | AI29: 23 | AJ29: ='التلاميذ والقيود '!B25 -> 2134 | AK29: ='التلاميذ والقيود '!C25 -> زهراء احمد محمود | AP29: =IFERROR(VLOOKUP(AJ29,'العامة نصف السنة أ'!B28:K77,5,FALSE),"") -> 0 | AU29: 0 | AV29: =IFERROR(VLOOKUP(AJ29,' العامة نهاية السنة دور اول أ'!B28:K77,5,FALSE),"") -> 0 | AW29: 0 | AX29: =IFERROR(VLOOKUP(AJ29,' العامة نهاية السنة دور ثاني أ'!B28:K77,5,FALSE),"") -> 0 | AY29: 0 | AZ29: 23 | BA29: ='التلاميذ والقيود '!B25 -> 2134 | BB29: ='التلاميذ والقيود '!C25 -> زهراء احمد محمود | BG29: =IFERROR(VLOOKUP(BA29,'العامة نصف السنة أ'!B28:K77,6,FALSE),"") -> 0 | BL29: 0 | BM29: =IFERROR(VLOOKUP(BA29,' العامة نهاية السنة دور اول أ'!B28:K77,6,FALSE),"") -> 0 | BN29: 0 | BO29: =IFERROR(VLOOKUP(BA29,' العامة نهاية السنة دور ثاني أ'!B28:K77,6,FALSE),"") -> 0 | BP29: 0 | BQ29: 23 | BR29: ='التلاميذ والقيود '!B25 -> 2134 | BS29: ='التلاميذ والقيود '!C25 -> زهراء احمد محمود | BX29: =IFERROR(VLOOKUP(BR29,'العامة نصف السنة أ'!B28:K77,7,FALSE),"") -> 0 | CC29: 0 | CD29: =IFERROR(VLOOKUP(BR29,' العامة نهاية السنة دور اول أ'!B28:K77,7,FALSE),"") -> 0 | CE29: 0 | CF29: =IFERROR(VLOOKUP(BR29,' العامة نهاية السنة دور ثاني أ'!B28:K77,7,FALSE),"") -> 0 | CG29: 0 | CH29: 23 | CI29: ='التلاميذ والقيود '!B25 -> 2134 | CJ29: ='التلاميذ والقيود '!C25 -> زهراء احمد محمود | CO29: =IFERROR(VLOOKUP(CI29,'العامة نصف السنة أ'!B28:K77,8,FALSE),"") -> 0 | CT29: 0 | CU29: =IFERROR(VLOOKUP(CI29,' العامة نهاية السنة دور اول أ'!B28:K77,8,FALSE),"") -> 0 | CV29: 0 | CW29: =IFERROR(VLOOKUP(CI29,' العامة نهاية السنة دور ثاني أ'!B28:K77,8,FALSE),"") -> 0 | CX29: 0 | CY29: 23 | CZ29: ='التلاميذ والقيود '!B25 -> 2134 | DA29: ='التلاميذ والقيود '!C25 -> زهراء احمد محمود | DF29: =IFERROR(VLOOKUP(CZ29,'العامة نصف السنة أ'!B28:K77,9,FALSE),"") -> 0 | DK29: 0 | DL29: =IFERROR(VLOOKUP(CZ29,' العامة نهاية السنة دور اول أ'!B28:K77,9,FALSE),"") -> 0 | DM29: 0 | DN29: =IFERROR(VLOOKUP(CZ29,' العامة نهاية السنة دور ثاني أ'!B28:K77,9,FALSE),"") -> 0 | DO29: 0 | DP29: 23 | DQ29: ='التلاميذ والقيود '!B25 -> 2134 | DR29: ='التلاميذ والقيود '!C25 -> زهراء احمد محمود | DW29: =IFERROR(VLOOKUP(DQ29,'العامة نصف السنة أ'!B28:K77,10,FALSE),"") -> 0 | EB29: 0 | EC29: =IFERROR(VLOOKUP(DQ29,' العامة نهاية السنة دور اول أ'!B28:K77,10,FALSE),"") -> 0 | ED29: 0 | EE29: =IFERROR(VLOOKUP(DQ29,' العامة نهاية السنة دور ثاني أ'!B28:K77,10,FALSE),"") -> 0 | EF29: 0
A30: =IF(B30="","",SUBTOTAL(3,$B$7:B30)) -> 24 | B30: ='التلاميذ والقيود '!B26 -> 2189 | C30: ='التلاميذ والقيود '!C26 -> زهراء حيدر لفته | H30: =IFERROR(VLOOKUP(B30,'العامة نصف السنة أ'!B29:D78,3,FALSE),"") -> 0 | M30: 0 | N30: =IFERROR(VLOOKUP(B30,' العامة نهاية السنة دور اول أ'!B29:D78,3,FALSE),"") -> 0 | O30: 0 | P30: =IFERROR(VLOOKUP(B30,' العامة نهاية السنة دور ثاني أ'!B29:D78,3,FALSE),"") -> 0 | Q30: 0 | R30: 24 | S30: ='التلاميذ والقيود '!B26 -> 2189 | T30: ='التلاميذ والقيود '!C26 -> زهراء حيدر لفته | Y30: =IFERROR(VLOOKUP(S30,'العامة نصف السنة أ'!B29:K78,4,FALSE),"") -> 0 | AD30: 0 | AE30: =IFERROR(VLOOKUP(S30,' العامة نهاية السنة دور اول أ'!B29:K78,4,FALSE),"") -> 0 | AF30: 0 | AG30: =IFERROR(VLOOKUP(S30,' العامة نهاية السنة دور ثاني أ'!B29:K78,4,FALSE),"") -> 0 | AH30: 0 | AI30: 24 | AJ30: ='التلاميذ والقيود '!B26 -> 2189 | AK30: ='التلاميذ والقيود '!C26 -> زهراء حيدر لفته | AP30: =IFERROR(VLOOKUP(AJ30,'العامة نصف السنة أ'!B29:K78,5,FALSE),"") -> 0 | AU30: 0 | AV30: =IFERROR(VLOOKUP(AJ30,' العامة نهاية السنة دور اول أ'!B29:K78,5,FALSE),"") -> 0 | AW30: 0 | AX30: =IFERROR(VLOOKUP(AJ30,' العامة نهاية السنة دور ثاني أ'!B29:K78,5,FALSE),"") -> 0 | AY30: 0 | AZ30: 24 | BA30: ='التلاميذ والقيود '!B26 -> 2189 | BB30: ='التلاميذ والقيود '!C26 -> زهراء حيدر لفته | BG30: =IFERROR(VLOOKUP(BA30,'العامة نصف السنة أ'!B29:K78,6,FALSE),"") -> 0 | BL30: 0 | BM30: =IFERROR(VLOOKUP(BA30,' العامة نهاية السنة دور اول أ'!B29:K78,6,FALSE),"") -> 0 | BN30: 0 | BO30: =IFERROR(VLOOKUP(BA30,' العامة نهاية السنة دور ثاني أ'!B29:K78,6,FALSE),"") -> 0 | BP30: 0 | BQ30: 24 | BR30: ='التلاميذ والقيود '!B26 -> 2189 | BS30: ='التلاميذ والقيود '!C26 -> زهراء حيدر لفته | BX30: =IFERROR(VLOOKUP(BR30,'العامة نصف السنة أ'!B29:K78,7,FALSE),"") -> 0 | CC30: 0 | CD30: =IFERROR(VLOOKUP(BR30,' العامة نهاية السنة دور اول أ'!B29:K78,7,FALSE),"") -> 0 | CE30: 0 | CF30: =IFERROR(VLOOKUP(BR30,' العامة نهاية السنة دور ثاني أ'!B29:K78,7,FALSE),"") -> 0 | CG30: 0 | CH30: 24 | CI30: ='التلاميذ والقيود '!B26 -> 2189 | CJ30: ='التلاميذ والقيود '!C26 -> زهراء حيدر لفته | CO30: =IFERROR(VLOOKUP(CI30,'العامة نصف السنة أ'!B29:K78,8,FALSE),"") -> 0 | CT30: 0 | CU30: =IFERROR(VLOOKUP(CI30,' العامة نهاية السنة دور اول أ'!B29:K78,8,FALSE),"") -> 0 | CV30: 0 | CW30: =IFERROR(VLOOKUP(CI30,' العامة نهاية السنة دور ثاني أ'!B29:K78,8,FALSE),"") -> 0 | CX30: 0 | CY30: 24 | CZ30: ='التلاميذ والقيود '!B26 -> 2189 | DA30: ='التلاميذ والقيود '!C26 -> زهراء حيدر لفته | DF30: =IFERROR(VLOOKUP(CZ30,'العامة نصف السنة أ'!B29:K78,9,FALSE),"") -> 0 | DK30: 0 | DL30: =IFERROR(VLOOKUP(CZ30,' العامة نهاية السنة دور اول أ'!B29:K78,9,FALSE),"") -> 0 | DM30: 0 | DN30: =IFERROR(VLOOKUP(CZ30,' العامة نهاية السنة دور ثاني أ'!B29:K78,9,FALSE),"") -> 0 | DO30: 0 | DP30: 24 | DQ30: ='التلاميذ والقيود '!B26 -> 2189 | DR30: ='التلاميذ والقيود '!C26 -> زهراء حيدر لفته | DW30: =IFERROR(VLOOKUP(DQ30,'العامة نصف السنة أ'!B29:K78,10,FALSE),"") -> 0 | EB30: 0 | EC30: =IFERROR(VLOOKUP(DQ30,' العامة نهاية السنة دور اول أ'!B29:K78,10,FALSE),"") -> 0 | ED30: 0 | EE30: =IFERROR(VLOOKUP(DQ30,' العامة نهاية السنة دور ثاني أ'!B29:K78,10,FALSE),"") -> 0 | EF30: 0
A31: =IF(B31="","",SUBTOTAL(3,$B$7:B31)) -> 25 | B31: ='التلاميذ والقيود '!B27 -> 2427 | C31: ='التلاميذ والقيود '!C27 -> زهراء صادق عباس | H31: =IFERROR(VLOOKUP(B31,'العامة نصف السنة أ'!B30:D79,3,FALSE),"") -> 0 | M31: 0 | N31: =IFERROR(VLOOKUP(B31,' العامة نهاية السنة دور اول أ'!B30:D79,3,FALSE),"") -> 0 | O31: 0 | P31: =IFERROR(VLOOKUP(B31,' العامة نهاية السنة دور ثاني أ'!B30:D79,3,FALSE),"") -> 0 | Q31: 0 | R31: 25 | S31: ='التلاميذ والقيود '!B27 -> 2427 | T31: ='التلاميذ والقيود '!C27 -> زهراء صادق عباس | Y31: =IFERROR(VLOOKUP(S31,'العامة نصف السنة أ'!B30:K79,4,FALSE),"") -> 0 | AD31: 0 | AE31: =IFERROR(VLOOKUP(S31,' العامة نهاية السنة دور اول أ'!B30:K79,4,FALSE),"") -> 0 | AF31: 0 | AG31: =IFERROR(VLOOKUP(S31,' العامة نهاية السنة دور ثاني أ'!B30:K79,4,FALSE),"") -> 0 | AH31: 0 | AI31: 25 | AJ31: ='التلاميذ والقيود '!B27 -> 2427 | AK31: ='التلاميذ والقيود '!C27 -> زهراء صادق عباس | AP31: =IFERROR(VLOOKUP(AJ31,'العامة نصف السنة أ'!B30:K79,5,FALSE),"") -> 0 | AU31: 0 | AV31: =IFERROR(VLOOKUP(AJ31,' العامة نهاية السنة دور اول أ'!B30:K79,5,FALSE),"") -> 0 | AW31: 0 | AX31: =IFERROR(VLOOKUP(AJ31,' العامة نهاية السنة دور ثاني أ'!B30:K79,5,FALSE),"") -> 0 | AY31: 0 | AZ31: 25 | BA31: ='التلاميذ والقيود '!B27 -> 2427 | BB31: ='التلاميذ والقيود '!C27 -> زهراء صادق عباس | BG31: =IFERROR(VLOOKUP(BA31,'العامة نصف السنة أ'!B30:K79,6,FALSE),"") -> 0 | BL31: 0 | BM31: =IFERROR(VLOOKUP(BA31,' العامة نهاية السنة دور اول أ'!B30:K79,6,FALSE),"") -> 0 | BN31: 0 | BO31: =IFERROR(VLOOKUP(BA31,' العامة نهاية السنة دور ثاني أ'!B30:K79,6,FALSE),"") -> 0 | BP31: 0 | BQ31: 25 | BR31: ='التلاميذ والقيود '!B27 -> 2427 | BS31: ='التلاميذ والقيود '!C27 -> زهراء صادق عباس | BX31: =IFERROR(VLOOKUP(BR31,'العامة نصف السنة أ'!B30:K79,7,FALSE),"") -> 0 | CC31: 0 | CD31: =IFERROR(VLOOKUP(BR31,' العامة نهاية السنة دور اول أ'!B30:K79,7,FALSE),"") -> 0 | CE31: 0 | CF31: =IFERROR(VLOOKUP(BR31,' العامة نهاية السنة دور ثاني أ'!B30:K79,7,FALSE),"") -> 0 | CG31: 0 | CH31: 25 | CI31: ='التلاميذ والقيود '!B27 -> 2427 | CJ31: ='التلاميذ والقيود '!C27 -> زهراء صادق عباس | CO31: =IFERROR(VLOOKUP(CI31,'العامة نصف السنة أ'!B30:K79,8,FALSE),"") -> 0 | CT31: 0 | CU31: =IFERROR(VLOOKUP(CI31,' العامة نهاية السنة دور اول أ'!B30:K79,8,FALSE),"") -> 0 | CV31: 0 | CW31: =IFERROR(VLOOKUP(CI31,' العامة نهاية السنة دور ثاني أ'!B30:K79,8,FALSE),"") -> 0 | CX31: 0 | CY31: 25 | CZ31: ='التلاميذ والقيود '!B27 -> 2427 | DA31: ='التلاميذ والقيود '!C27 -> زهراء صادق عباس | DF31: =IFERROR(VLOOKUP(CZ31,'العامة نصف السنة أ'!B30:K79,9,FALSE),"") -> 0 | DK31: 0 | DL31: =IFERROR(VLOOKUP(CZ31,' العامة نهاية السنة دور اول أ'!B30:K79,9,FALSE),"") -> 0 | DM31: 0 | DN31: =IFERROR(VLOOKUP(CZ31,' العامة نهاية السنة دور ثاني أ'!B30:K79,9,FALSE),"") -> 0 | DO31: 0 | DP31: 25 | DQ31: ='التلاميذ والقيود '!B27 -> 2427 | DR31: ='التلاميذ والقيود '!C27 -> زهراء صادق عباس | DW31: =IFERROR(VLOOKUP(DQ31,'العامة نصف السنة أ'!B30:K79,10,FALSE),"") -> 0 | EB31: 0 | EC31: =IFERROR(VLOOKUP(DQ31,' العامة نهاية السنة دور اول أ'!B30:K79,10,FALSE),"") -> 0 | ED31: 0 | EE31: =IFERROR(VLOOKUP(DQ31,' العامة نهاية السنة دور ثاني أ'!B30:K79,10,FALSE),"") -> 0 | EF31: 0
A32: =IF(B32="","",SUBTOTAL(3,$B$7:B32)) -> 26 | B32: ='التلاميذ والقيود '!B28 -> 2569 | C32: ='التلاميذ والقيود '!C28 -> زهراء عباس جبر | H32: =IFERROR(VLOOKUP(B32,'العامة نصف السنة أ'!B31:D80,3,FALSE),"") -> 0 | M32: 0 | N32: =IFERROR(VLOOKUP(B32,' العامة نهاية السنة دور اول أ'!B31:D80,3,FALSE),"") -> 0 | O32: 0 | P32: =IFERROR(VLOOKUP(B32,' العامة نهاية السنة دور ثاني أ'!B31:D80,3,FALSE),"") -> 0 | Q32: 0 | R32: 26 | S32: ='التلاميذ والقيود '!B28 -> 2569 | T32: ='التلاميذ والقيود '!C28 -> زهراء عباس جبر | Y32: =IFERROR(VLOOKUP(S32,'العامة نصف السنة أ'!B31:K80,4,FALSE),"") -> 0 | AD32: 0 | AE32: =IFERROR(VLOOKUP(S32,' العامة نهاية السنة دور اول أ'!B31:K80,4,FALSE),"") -> 0 | AF32: 0 | AG32: =IFERROR(VLOOKUP(S32,' العامة نهاية السنة دور ثاني أ'!B31:K80,4,FALSE),"") -> 0 | AH32: 0 | AI32: 26 | AJ32: ='التلاميذ والقيود '!B28 -> 2569 | AK32: ='التلاميذ والقيود '!C28 -> زهراء عباس جبر | AP32: =IFERROR(VLOOKUP(AJ32,'العامة نصف السنة أ'!B31:K80,5,FALSE),"") -> 0 | AU32: 0 | AV32: =IFERROR(VLOOKUP(AJ32,' العامة نهاية السنة دور اول أ'!B31:K80,5,FALSE),"") -> 0 | AW32: 0 | AX32: =IFERROR(VLOOKUP(AJ32,' العامة نهاية السنة دور ثاني أ'!B31:K80,5,FALSE),"") -> 0 | AY32: 0 | AZ32: 26 | BA32: ='التلاميذ والقيود '!B28 -> 2569 | BB32: ='التلاميذ والقيود '!C28 -> زهراء عباس جبر | BG32: =IFERROR(VLOOKUP(BA32,'العامة نصف السنة أ'!B31:K80,6,FALSE),"") -> 0 | BL32: 0 | BM32: =IFERROR(VLOOKUP(BA32,' العامة نهاية السنة دور اول أ'!B31:K80,6,FALSE),"") -> 0 | BN32: 0 | BO32: =IFERROR(VLOOKUP(BA32,' العامة نهاية السنة دور ثاني أ'!B31:K80,6,FALSE),"") -> 0 | BP32: 0 | BQ32: 26 | BR32: ='التلاميذ والقيود '!B28 -> 2569 | BS32: ='التلاميذ والقيود '!C28 -> زهراء عباس جبر | BX32: =IFERROR(VLOOKUP(BR32,'العامة نصف السنة أ'!B31:K80,7,FALSE),"") -> 0 | CC32: 0 | CD32: =IFERROR(VLOOKUP(BR32,' العامة نهاية السنة دور اول أ'!B31:K80,7,FALSE),"") -> 0 | CE32: 0 | CF32: =IFERROR(VLOOKUP(BR32,' العامة نهاية السنة دور ثاني أ'!B31:K80,7,FALSE),"") -> 0 | CG32: 0 | CH32: 26 | CI32: ='التلاميذ والقيود '!B28 -> 2569 | CJ32: ='التلاميذ والقيود '!C28 -> زهراء عباس جبر | CO32: =IFERROR(VLOOKUP(CI32,'العامة نصف السنة أ'!B31:K80,8,FALSE),"") -> 0 | CT32: 0 | CU32: =IFERROR(VLOOKUP(CI32,' العامة نهاية السنة دور اول أ'!B31:K80,8,FALSE),"") -> 0 | CV32: 0 | CW32: =IFERROR(VLOOKUP(CI32,' العامة نهاية السنة دور ثاني أ'!B31:K80,8,FALSE),"") -> 0 | CX32: 0 | CY32: 26 | CZ32: ='التلاميذ والقيود '!B28 -> 2569 | DA32: ='التلاميذ والقيود '!C28 -> زهراء عباس جبر | DF32: =IFERROR(VLOOKUP(CZ32,'العامة نصف السنة أ'!B31:K80,9,FALSE),"") -> 0 | DK32: 0 | DL32: =IFERROR(VLOOKUP(CZ32,' العامة نهاية السنة دور اول أ'!B31:K80,9,FALSE),"") -> 0 | DM32: 0 | DN32: =IFERROR(VLOOKUP(CZ32,' العامة نهاية السنة دور ثاني أ'!B31:K80,9,FALSE),"") -> 0 | DO32: 0 | DP32: 26 | DQ32: ='التلاميذ والقيود '!B28 -> 2569 | DR32: ='التلاميذ والقيود '!C28 -> زهراء عباس جبر | DW32: =IFERROR(VLOOKUP(DQ32,'العامة نصف السنة أ'!B31:K80,10,FALSE),"") -> 0 | EB32: 0 | EC32: =IFERROR(VLOOKUP(DQ32,' العامة نهاية السنة دور اول أ'!B31:K80,10,FALSE),"") -> 0 | ED32: 0 | EE32: =IFERROR(VLOOKUP(DQ32,' العامة نهاية السنة دور ثاني أ'!B31:K80,10,FALSE),"") -> 0 | EF32: 0
A33: =IF(B33="","",SUBTOTAL(3,$B$7:B33)) -> 27 | B33: ='التلاميذ والقيود '!B29 -> 2557 | C33: ='التلاميذ والقيود '!C29 -> زهراء علي زامل | H33: =IFERROR(VLOOKUP(B33,'العامة نصف السنة أ'!B32:D81,3,FALSE),"") -> 0 | M33: 0 | N33: =IFERROR(VLOOKUP(B33,' العامة نهاية السنة دور اول أ'!B32:D81,3,FALSE),"") -> 0 | O33: 0 | P33: =IFERROR(VLOOKUP(B33,' العامة نهاية السنة دور ثاني أ'!B32:D81,3,FALSE),"") -> 0 | Q33: 0 | R33: 27 | S33: ='التلاميذ والقيود '!B29 -> 2557 | T33: ='التلاميذ والقيود '!C29 -> زهراء علي زامل | Y33: =IFERROR(VLOOKUP(S33,'العامة نصف السنة أ'!B32:K81,4,FALSE),"") -> 0 | AD33: 0 | AE33: =IFERROR(VLOOKUP(S33,' العامة نهاية السنة دور اول أ'!B32:K81,4,FALSE),"") -> 0 | AF33: 0 | AG33: =IFERROR(VLOOKUP(S33,' العامة نهاية السنة دور ثاني أ'!B32:K81,4,FALSE),"") -> 0 | AH33: 0 | AI33: 27 | AJ33: ='التلاميذ والقيود '!B29 -> 2557 | AK33: ='التلاميذ والقيود '!C29 -> زهراء علي زامل | AP33: =IFERROR(VLOOKUP(AJ33,'العامة نصف السنة أ'!B32:K81,5,FALSE),"") -> 0 | AU33: 0 | AV33: =IFERROR(VLOOKUP(AJ33,' العامة نهاية السنة دور اول أ'!B32:K81,5,FALSE),"") -> 0 | AW33: 0 | AX33: =IFERROR(VLOOKUP(AJ33,' العامة نهاية السنة دور ثاني أ'!B32:K81,5,FALSE),"") -> 0 | AY33: 0 | AZ33: 27 | BA33: ='التلاميذ والقيود '!B29 -> 2557 | BB33: ='التلاميذ والقيود '!C29 -> زهراء علي زامل | BG33: =IFERROR(VLOOKUP(BA33,'العامة نصف السنة أ'!B32:K81,6,FALSE),"") -> 0 | BL33: 0 | BM33: =IFERROR(VLOOKUP(BA33,' العامة نهاية السنة دور اول أ'!B32:K81,6,FALSE),"") -> 0 | BN33: 0 | BO33: =IFERROR(VLOOKUP(BA33,' العامة نهاية السنة دور ثاني أ'!B32:K81,6,FALSE),"") -> 0 | BP33: 0 | BQ33: 27 | BR33: ='التلاميذ والقيود '!B29 -> 2557 | BS33: ='التلاميذ والقيود '!C29 -> زهراء علي زامل | BX33: =IFERROR(VLOOKUP(BR33,'العامة نصف السنة أ'!B32:K81,7,FALSE),"") -> 0 | CC33: 0 | CD33: =IFERROR(VLOOKUP(BR33,' العامة نهاية السنة دور اول أ'!B32:K81,7,FALSE),"") -> 0 | CE33: 0 | CF33: =IFERROR(VLOOKUP(BR33,' العامة نهاية السنة دور ثاني أ'!B32:K81,7,FALSE),"") -> 0 | CG33: 0 | CH33: 27 | CI33: ='التلاميذ والقيود '!B29 -> 2557 | CJ33: ='التلاميذ والقيود '!C29 -> زهراء علي زامل | CO33: =IFERROR(VLOOKUP(CI33,'العامة نصف السنة أ'!B32:K81,8,FALSE),"") -> 0 | CT33: 0 | CU33: =IFERROR(VLOOKUP(CI33,' العامة نهاية السنة دور اول أ'!B32:K81,8,FALSE),"") -> 0 | CV33: 0 | CW33: =IFERROR(VLOOKUP(CI33,' العامة نهاية السنة دور ثاني أ'!B32:K81,8,FALSE),"") -> 0 | CX33: 0 | CY33: 27 | CZ33: ='التلاميذ والقيود '!B29 -> 2557 | DA33: ='التلاميذ والقيود '!C29 -> زهراء علي زامل | DF33: =IFERROR(VLOOKUP(CZ33,'العامة نصف السنة أ'!B32:K81,9,FALSE),"") -> 0 | DK33: 0 | DL33: =IFERROR(VLOOKUP(CZ33,' العامة نهاية السنة دور اول أ'!B32:K81,9,FALSE),"") -> 0 | DM33: 0 | DN33: =IFERROR(VLOOKUP(CZ33,' العامة نهاية السنة دور ثاني أ'!B32:K81,9,FALSE),"") -> 0 | DO33: 0 | DP33: 27 | DQ33: ='التلاميذ والقيود '!B29 -> 2557 | DR33: ='التلاميذ والقيود '!C29 -> زهراء علي زامل | DW33: =IFERROR(VLOOKUP(DQ33,'العامة نصف السنة أ'!B32:K81,10,FALSE),"") -> 0 | EB33: 0 | EC33: =IFERROR(VLOOKUP(DQ33,' العامة نهاية السنة دور اول أ'!B32:K81,10,FALSE),"") -> 0 | ED33: 0 | EE33: =IFERROR(VLOOKUP(DQ33,' العامة نهاية السنة دور ثاني أ'!B32:K81,10,FALSE),"") -> 0 | EF33: 0
A34: =IF(B34="","",SUBTOTAL(3,$B$7:B34)) -> 28 | B34: ='التلاميذ والقيود '!B30 -> 2275 | C34: ='التلاميذ والقيود '!C30 -> زينب رزاق درك | H34: =IFERROR(VLOOKUP(B34,'العامة نصف السنة أ'!B33:D82,3,FALSE),"") -> 0 | M34: 0 | N34: =IFERROR(VLOOKUP(B34,' العامة نهاية السنة دور اول أ'!B33:D82,3,FALSE),"") -> 0 | O34: 0 | P34: =IFERROR(VLOOKUP(B34,' العامة نهاية السنة دور ثاني أ'!B33:D82,3,FALSE),"") -> 0 | Q34: 0 | R34: 28 | S34: ='التلاميذ والقيود '!B30 -> 2275 | T34: ='التلاميذ والقيود '!C30 -> زينب رزاق درك | Y34: =IFERROR(VLOOKUP(S34,'العامة نصف السنة أ'!B33:K82,4,FALSE),"") -> 0 | AD34: 0 | AE34: =IFERROR(VLOOKUP(S34,' العامة نهاية السنة دور اول أ'!B33:K82,4,FALSE),"") -> 0 | AF34: 0 | AG34: =IFERROR(VLOOKUP(S34,' العامة نهاية السنة دور ثاني أ'!B33:K82,4,FALSE),"") -> 0 | AH34: 0 | AI34: 28 | AJ34: ='التلاميذ والقيود '!B30 -> 2275 | AK34: ='التلاميذ والقيود '!C30 -> زينب رزاق درك | AP34: =IFERROR(VLOOKUP(AJ34,'العامة نصف السنة أ'!B33:K82,5,FALSE),"") -> 0 | AU34: 0 | AV34: =IFERROR(VLOOKUP(AJ34,' العامة نهاية السنة دور اول أ'!B33:K82,5,FALSE),"") -> 0 | AW34: 0 | AX34: =IFERROR(VLOOKUP(AJ34,' العامة نهاية السنة دور ثاني أ'!B33:K82,5,FALSE),"") -> 0 | AY34: 0 | AZ34: 28 | BA34: ='التلاميذ والقيود '!B30 -> 2275 | BB34: ='التلاميذ والقيود '!C30 -> زينب رزاق درك | BG34: =IFERROR(VLOOKUP(BA34,'العامة نصف السنة أ'!B33:K82,6,FALSE),"") -> 0 | BL34: 0 | BM34: =IFERROR(VLOOKUP(BA34,' العامة نهاية السنة دور اول أ'!B33:K82,6,FALSE),"") -> 0 | BN34: 0 | BO34: =IFERROR(VLOOKUP(BA34,' العامة نهاية السنة دور ثاني أ'!B33:K82,6,FALSE),"") -> 0 | BP34: 0 | BQ34: 28 | BR34: ='التلاميذ والقيود '!B30 -> 2275 | BS34: ='التلاميذ والقيود '!C30 -> زينب رزاق درك | BX34: =IFERROR(VLOOKUP(BR34,'العامة نصف السنة أ'!B33:K82,7,FALSE),"") -> 0 | CC34: 0 | CD34: =IFERROR(VLOOKUP(BR34,' العامة نهاية السنة دور اول أ'!B33:K82,7,FALSE),"") -> 0 | CE34: 0 | CF34: =IFERROR(VLOOKUP(BR34,' العامة نهاية السنة دور ثاني أ'!B33:K82,7,FALSE),"") -> 0 | CG34: 0 | CH34: 28 | CI34: ='التلاميذ والقيود '!B30 -> 2275 | CJ34: ='التلاميذ والقيود '!C30 -> زينب رزاق درك | CO34: =IFERROR(VLOOKUP(CI34,'العامة نصف السنة أ'!B33:K82,8,FALSE),"") -> 0 | CT34: 0 | CU34: =IFERROR(VLOOKUP(CI34,' العامة نهاية السنة دور اول أ'!B33:K82,8,FALSE),"") -> 0 | CV34: 0 | CW34: =IFERROR(VLOOKUP(CI34,' العامة نهاية السنة دور ثاني أ'!B33:K82,8,FALSE),"") -> 0 | CX34: 0 | CY34: 28 | CZ34: ='التلاميذ والقيود '!B30 -> 2275 | DA34: ='التلاميذ والقيود '!C30 -> زينب رزاق درك | DF34: =IFERROR(VLOOKUP(CZ34,'العامة نصف السنة أ'!B33:K82,9,FALSE),"") -> 0 | DK34: 0 | DL34: =IFERROR(VLOOKUP(CZ34,' العامة نهاية السنة دور اول أ'!B33:K82,9,FALSE),"") -> 0 | DM34: 0 | DN34: =IFERROR(VLOOKUP(CZ34,' العامة نهاية السنة دور ثاني أ'!B33:K82,9,FALSE),"") -> 0 | DO34: 0 | DP34: 28 | DQ34: ='التلاميذ والقيود '!B30 -> 2275 | DR34: ='التلاميذ والقيود '!C30 -> زينب رزاق درك | DW34: =IFERROR(VLOOKUP(DQ34,'العامة نصف السنة أ'!B33:K82,10,FALSE),"") -> 0 | EB34: 0 | EC34: =IFERROR(VLOOKUP(DQ34,' العامة نهاية السنة دور اول أ'!B33:K82,10,FALSE),"") -> 0 | ED34: 0 | EE34: =IFERROR(VLOOKUP(DQ34,' العامة نهاية السنة دور ثاني أ'!B33:K82,10,FALSE),"") -> 0 | EF34: 0
A35: =IF(B35="","",SUBTOTAL(3,$B$7:B35)) -> 29 | B35: ='التلاميذ والقيود '!B31 -> 2592 | C35: ='التلاميذ والقيود '!C31 -> زينب مشتاق ابراهيم | H35: =IFERROR(VLOOKUP(B35,'العامة نصف السنة أ'!B34:D83,3,FALSE),"") -> 0 | M35: 0 | N35: =IFERROR(VLOOKUP(B35,' العامة نهاية السنة دور اول أ'!B34:D83,3,FALSE),"") -> 0 | O35: 0 | P35: =IFERROR(VLOOKUP(B35,' العامة نهاية السنة دور ثاني أ'!B34:D83,3,FALSE),"") -> 0 | Q35: 0 | R35: 29 | S35: ='التلاميذ والقيود '!B31 -> 2592 | T35: ='التلاميذ والقيود '!C31 -> زينب مشتاق ابراهيم | Y35: =IFERROR(VLOOKUP(S35,'العامة نصف السنة أ'!B34:K83,4,FALSE),"") -> 0 | AD35: 0 | AE35: =IFERROR(VLOOKUP(S35,' العامة نهاية السنة دور اول أ'!B34:K83,4,FALSE),"") -> 0 | AF35: 0 | AG35: =IFERROR(VLOOKUP(S35,' العامة نهاية السنة دور ثاني أ'!B34:K83,4,FALSE),"") -> 0 | AH35: 0 | AI35: 29 | AJ35: ='التلاميذ والقيود '!B31 -> 2592 | AK35: ='التلاميذ والقيود '!C31 -> زينب مشتاق ابراهيم | AP35: =IFERROR(VLOOKUP(AJ35,'العامة نصف السنة أ'!B34:K83,5,FALSE),"") -> 0 | AU35: 0 | AV35: =IFERROR(VLOOKUP(AJ35,' العامة نهاية السنة دور اول أ'!B34:K83,5,FALSE),"") -> 0 | AW35: 0 | AX35: =IFERROR(VLOOKUP(AJ35,' العامة نهاية السنة دور ثاني أ'!B34:K83,5,FALSE),"") -> 0 | AY35: 0 | AZ35: 29 | BA35: ='التلاميذ والقيود '!B31 -> 2592 | BB35: ='التلاميذ والقيود '!C31 -> زينب مشتاق ابراهيم | BG35: =IFERROR(VLOOKUP(BA35,'العامة نصف السنة أ'!B34:K83,6,FALSE),"") -> 0 | BL35: 0 | BM35: =IFERROR(VLOOKUP(BA35,' العامة نهاية السنة دور اول أ'!B34:K83,6,FALSE),"") -> 0 | BN35: 0 | BO35: =IFERROR(VLOOKUP(BA35,' العامة نهاية السنة دور ثاني أ'!B34:K83,6,FALSE),"") -> 0 | BP35: 0 | BQ35: 29 | BR35: ='التلاميذ والقيود '!B31 -> 2592 | BS35: ='التلاميذ والقيود '!C31 -> زينب مشتاق ابراهيم | BX35: =IFERROR(VLOOKUP(BR35,'العامة نصف السنة أ'!B34:K83,7,FALSE),"") -> 0 | CC35: 0 | CD35: =IFERROR(VLOOKUP(BR35,' العامة نهاية السنة دور اول أ'!B34:K83,7,FALSE),"") -> 0 | CE35: 0 | CF35: =IFERROR(VLOOKUP(BR35,' العامة نهاية السنة دور ثاني أ'!B34:K83,7,FALSE),"") -> 0 | CG35: 0 | CH35: 29 | CI35: ='التلاميذ والقيود '!B31 -> 2592 | CJ35: ='التلاميذ والقيود '!C31 -> زينب مشتاق ابراهيم | CO35: =IFERROR(VLOOKUP(CI35,'العامة نصف السنة أ'!B34:K83,8,FALSE),"") -> 0 | CT35: 0 | CU35: =IFERROR(VLOOKUP(CI35,' العامة نهاية السنة دور اول أ'!B34:K83,8,FALSE),"") -> 0 | CV35: 0 | CW35: =IFERROR(VLOOKUP(CI35,' العامة نهاية السنة دور ثاني أ'!B34:K83,8,FALSE),"") -> 0 | CX35: 0 | CY35: 29 | CZ35: ='التلاميذ والقيود '!B31 -> 2592 | DA35: ='التلاميذ والقيود '!C31 -> زينب مشتاق ابراهيم | DF35: =IFERROR(VLOOKUP(CZ35,'العامة نصف السنة أ'!B34:K83,9,FALSE),"") -> 0 | DK35: 0 | DL35: =IFERROR(VLOOKUP(CZ35,' العامة نهاية السنة دور اول أ'!B34:K83,9,FALSE),"") -> 0 | DM35: 0 | DN35: =IFERROR(VLOOKUP(CZ35,' العامة نهاية السنة دور ثاني أ'!B34:K83,9,FALSE),"") -> 0 | DO35: 0 | DP35: 29 | DQ35: ='التلاميذ والقيود '!B31 -> 2592 | DR35: ='التلاميذ والقيود '!C31 -> زينب مشتاق ابراهيم | DW35: =IFERROR(VLOOKUP(DQ35,'العامة نصف السنة أ'!B34:K83,10,FALSE),"") -> 0 | EB35: 0 | EC35: =IFERROR(VLOOKUP(DQ35,' العامة نهاية السنة دور اول أ'!B34:K83,10,FALSE),"") -> 0 | ED35: 0 | EE35: =IFERROR(VLOOKUP(DQ35,' العامة نهاية السنة دور ثاني أ'!B34:K83,10,FALSE),"") -> 0 | EF35: 0
A36: =IF(B36="","",SUBTOTAL(3,$B$7:B36)) -> 30 | B36: ='التلاميذ والقيود '!B32 -> 2522 | C36: ='التلاميذ والقيود '!C32 -> شهد فراس كاظم | H36: =IFERROR(VLOOKUP(B36,'العامة نصف السنة أ'!B35:D84,3,FALSE),"") -> 0 | M36: 0 | N36: =IFERROR(VLOOKUP(B36,' العامة نهاية السنة دور اول أ'!B35:D84,3,FALSE),"") -> 0 | O36: 0 | P36: =IFERROR(VLOOKUP(B36,' العامة نهاية السنة دور ثاني أ'!B35:D84,3,FALSE),"") -> 0 | Q36: 0 | R36: 30 | S36: ='التلاميذ والقيود '!B32 -> 2522 | T36: ='التلاميذ والقيود '!C32 -> شهد فراس كاظم | Y36: =IFERROR(VLOOKUP(S36,'العامة نصف السنة أ'!B35:K84,4,FALSE),"") -> 0 | AD36: 0 | AE36: =IFERROR(VLOOKUP(S36,' العامة نهاية السنة دور اول أ'!B35:K84,4,FALSE),"") -> 0 | AF36: 0 | AG36: =IFERROR(VLOOKUP(S36,' العامة نهاية السنة دور ثاني أ'!B35:K84,4,FALSE),"") -> 0 | AH36: 0 | AI36: 30 | AJ36: ='التلاميذ والقيود '!B32 -> 2522 | AK36: ='التلاميذ والقيود '!C32 -> شهد فراس كاظم | AP36: =IFERROR(VLOOKUP(AJ36,'العامة نصف السنة أ'!B35:K84,5,FALSE),"") -> 0 | AU36: 0 | AV36: =IFERROR(VLOOKUP(AJ36,' العامة نهاية السنة دور اول أ'!B35:K84,5,FALSE),"") -> 0 | AW36: 0 | AX36: =IFERROR(VLOOKUP(AJ36,' العامة نهاية السنة دور ثاني أ'!B35:K84,5,FALSE),"") -> 0 | AY36: 0 | AZ36: 30 | BA36: ='التلاميذ والقيود '!B32 -> 2522 | BB36: ='التلاميذ والقيود '!C32 -> شهد فراس كاظم | BG36: =IFERROR(VLOOKUP(BA36,'العامة نصف السنة أ'!B35:K84,6,FALSE),"") -> 0 | BL36: 0 | BM36: =IFERROR(VLOOKUP(BA36,' العامة نهاية السنة دور اول أ'!B35:K84,6,FALSE),"") -> 0 | BN36: 0 | BO36: =IFERROR(VLOOKUP(BA36,' العامة نهاية السنة دور ثاني أ'!B35:K84,6,FALSE),"") -> 0 | BP36: 0 | BQ36: 30 | BR36: ='التلاميذ والقيود '!B32 -> 2522 | BS36: ='التلاميذ والقيود '!C32 -> شهد فراس كاظم | BX36: =IFERROR(VLOOKUP(BR36,'العامة نصف السنة أ'!B35:K84,7,FALSE),"") -> 0 | CC36: 0 | CD36: =IFERROR(VLOOKUP(BR36,' العامة نهاية السنة دور اول أ'!B35:K84,7,FALSE),"") -> 0 | CE36: 0 | CF36: =IFERROR(VLOOKUP(BR36,' العامة نهاية السنة دور ثاني أ'!B35:K84,7,FALSE),"") -> 0 | CG36: 0 | CH36: 30 | CI36: ='التلاميذ والقيود '!B32 -> 2522 | CJ36: ='التلاميذ والقيود '!C32 -> شهد فراس كاظم | CO36: =IFERROR(VLOOKUP(CI36,'العامة نصف السنة أ'!B35:K84,8,FALSE),"") -> 0 | CT36: 0 | CU36: =IFERROR(VLOOKUP(CI36,' العامة نهاية السنة دور اول أ'!B35:K84,8,FALSE),"") -> 0 | CV36: 0 | CW36: =IFERROR(VLOOKUP(CI36,' العامة نهاية السنة دور ثاني أ'!B35:K84,8,FALSE),"") -> 0 | CX36: 0 | CY36: 30 | CZ36: ='التلاميذ والقيود '!B32 -> 2522 | DA36: ='التلاميذ والقيود '!C32 -> شهد فراس كاظم | DF36: =IFERROR(VLOOKUP(CZ36,'العامة نصف السنة أ'!B35:K84,9,FALSE),"") -> 0 | DK36: 0 | DL36: =IFERROR(VLOOKUP(CZ36,' العامة نهاية السنة دور اول أ'!B35:K84,9,FALSE),"") -> 0 | DM36: 0 | DN36: =IFERROR(VLOOKUP(CZ36,' العامة نهاية السنة دور ثاني أ'!B35:K84,9,FALSE),"") -> 0 | DO36: 0 | DP36: 30 | DQ36: ='التلاميذ والقيود '!B32 -> 2522 | DR36: ='التلاميذ والقيود '!C32 -> شهد فراس كاظم | DW36: =IFERROR(VLOOKUP(DQ36,'العامة نصف السنة أ'!B35:K84,10,FALSE),"") -> 0 | EB36: 0 | EC36: =IFERROR(VLOOKUP(DQ36,' العامة نهاية السنة دور اول أ'!B35:K84,10,FALSE),"") -> 0 | ED36: 0 | EE36: =IFERROR(VLOOKUP(DQ36,' العامة نهاية السنة دور ثاني أ'!B35:K84,10,FALSE),"") -> 0 | EF36: 0
A37: =IF(B37="","",SUBTOTAL(3,$B$7:B37)) -> 31 | B37: ='التلاميذ والقيود '!B33 -> 2570 | C37: ='التلاميذ والقيود '!C33 -> غدير عادل ثجيل | H37: =IFERROR(VLOOKUP(B37,'العامة نصف السنة أ'!B36:D85,3,FALSE),"") -> 0 | M37: 0 | N37: =IFERROR(VLOOKUP(B37,' العامة نهاية السنة دور اول أ'!B36:D85,3,FALSE),"") -> 0 | O37: 0 | P37: =IFERROR(VLOOKUP(B37,' العامة نهاية السنة دور ثاني أ'!B36:D85,3,FALSE),"") -> 0 | Q37: 0 | R37: 31 | S37: ='التلاميذ والقيود '!B33 -> 2570 | T37: ='التلاميذ والقيود '!C33 -> غدير عادل ثجيل | Y37: =IFERROR(VLOOKUP(S37,'العامة نصف السنة أ'!B36:K85,4,FALSE),"") -> 0 | AD37: 0 | AE37: =IFERROR(VLOOKUP(S37,' العامة نهاية السنة دور اول أ'!B36:K85,4,FALSE),"") -> 0 | AF37: 0 | AG37: =IFERROR(VLOOKUP(S37,' العامة نهاية السنة دور ثاني أ'!B36:K85,4,FALSE),"") -> 0 | AH37: 0 | AI37: 31 | AJ37: ='التلاميذ والقيود '!B33 -> 2570 | AK37: ='التلاميذ والقيود '!C33 -> غدير عادل ثجيل | AP37: =IFERROR(VLOOKUP(AJ37,'العامة نصف السنة أ'!B36:K85,5,FALSE),"") -> 0 | AU37: 0 | AV37: =IFERROR(VLOOKUP(AJ37,' العامة نهاية السنة دور اول أ'!B36:K85,5,FALSE),"") -> 0 | AW37: 0 | AX37: =IFERROR(VLOOKUP(AJ37,' العامة نهاية السنة دور ثاني أ'!B36:K85,5,FALSE),"") -> 0 | AY37: 0 | AZ37: 31 | BA37: ='التلاميذ والقيود '!B33 -> 2570 | BB37: ='التلاميذ والقيود '!C33 -> غدير عادل ثجيل | BG37: =IFERROR(VLOOKUP(BA37,'العامة نصف السنة أ'!B36:K85,6,FALSE),"") -> 0 | BL37: 0 | BM37: =IFERROR(VLOOKUP(BA37,' العامة نهاية السنة دور اول أ'!B36:K85,6,FALSE),"") -> 0 | BN37: 0 | BO37: =IFERROR(VLOOKUP(BA37,' العامة نهاية السنة دور ثاني أ'!B36:K85,6,FALSE),"") -> 0 | BP37: 0 | BQ37: 31 | BR37: ='التلاميذ والقيود '!B33 -> 2570 | BS37: ='التلاميذ والقيود '!C33 -> غدير عادل ثجيل | BX37: =IFERROR(VLOOKUP(BR37,'العامة نصف السنة أ'!B36:K85,7,FALSE),"") -> 0 | CC37: 0 | CD37: =IFERROR(VLOOKUP(BR37,' العامة نهاية السنة دور اول أ'!B36:K85,7,FALSE),"") -> 0 | CE37: 0 | CF37: =IFERROR(VLOOKUP(BR37,' العامة نهاية السنة دور ثاني أ'!B36:K85,7,FALSE),"") -> 0 | CG37: 0 | CH37: 31 | CI37: ='التلاميذ والقيود '!B33 -> 2570 | CJ37: ='التلاميذ والقيود '!C33 -> غدير عادل ثجيل | CO37: =IFERROR(VLOOKUP(CI37,'العامة نصف السنة أ'!B36:K85,8,FALSE),"") -> 0 | CT37: 0 | CU37: =IFERROR(VLOOKUP(CI37,' العامة نهاية السنة دور اول أ'!B36:K85,8,FALSE),"") -> 0 | CV37: 0 | CW37: =IFERROR(VLOOKUP(CI37,' العامة نهاية السنة دور ثاني أ'!B36:K85,8,FALSE),"") -> 0 | CX37: 0 | CY37: 31 | CZ37: ='التلاميذ والقيود '!B33 -> 2570 | DA37: ='التلاميذ والقيود '!C33 -> غدير عادل ثجيل | DF37: =IFERROR(VLOOKUP(CZ37,'العامة نصف السنة أ'!B36:K85,9,FALSE),"") -> 0 | DK37: 0 | DL37: =IFERROR(VLOOKUP(CZ37,' العامة نهاية السنة دور اول أ'!B36:K85,9,FALSE),"") -> 0 | DM37: 0 | DN37: =IFERROR(VLOOKUP(CZ37,' العامة نهاية السنة دور ثاني أ'!B36:K85,9,FALSE),"") -> 0 | DO37: 0 | DP37: 31 | DQ37: ='التلاميذ والقيود '!B33 -> 2570 | DR37: ='التلاميذ والقيود '!C33 -> غدير عادل ثجيل | DW37: =IFERROR(VLOOKUP(DQ37,'العامة نصف السنة أ'!B36:K85,10,FALSE),"") -> 0 | EB37: 0 | EC37: =IFERROR(VLOOKUP(DQ37,' العامة نهاية السنة دور اول أ'!B36:K85,10,FALSE),"") -> 0 | ED37: 0 | EE37: =IFERROR(VLOOKUP(DQ37,' العامة نهاية السنة دور ثاني أ'!B36:K85,10,FALSE),"") -> 0 | EF37: 0
A38: =IF(B38="","",SUBTOTAL(3,$B$7:B38)) -> 32 | B38: ='التلاميذ والقيود '!B34 -> 2567 | C38: ='التلاميذ والقيود '!C34 -> غدير عصام حسن | H38: =IFERROR(VLOOKUP(B38,'العامة نصف السنة أ'!B37:D86,3,FALSE),"") -> 0 | M38: 0 | N38: =IFERROR(VLOOKUP(B38,' العامة نهاية السنة دور اول أ'!B37:D86,3,FALSE),"") -> 0 | O38: 0 | P38: =IFERROR(VLOOKUP(B38,' العامة نهاية السنة دور ثاني أ'!B37:D86,3,FALSE),"") -> 0 | Q38: 0 | R38: 32 | S38: ='التلاميذ والقيود '!B34 -> 2567 | T38: ='التلاميذ والقيود '!C34 -> غدير عصام حسن | Y38: =IFERROR(VLOOKUP(S38,'العامة نصف السنة أ'!B37:K86,4,FALSE),"") -> 0 | AD38: 0 | AE38: =IFERROR(VLOOKUP(S38,' العامة نهاية السنة دور اول أ'!B37:K86,4,FALSE),"") -> 0 | AF38: 0 | AG38: =IFERROR(VLOOKUP(S38,' العامة نهاية السنة دور ثاني أ'!B37:K86,4,FALSE),"") -> 0 | AH38: 0 | AI38: 32 | AJ38: ='التلاميذ والقيود '!B34 -> 2567 | AK38: ='التلاميذ والقيود '!C34 -> غدير عصام حسن | AP38: =IFERROR(VLOOKUP(AJ38,'العامة نصف السنة أ'!B37:K86,5,FALSE),"") -> 0 | AU38: 0 | AV38: =IFERROR(VLOOKUP(AJ38,' العامة نهاية السنة دور اول أ'!B37:K86,5,FALSE),"") -> 0 | AW38: 0 | AX38: =IFERROR(VLOOKUP(AJ38,' العامة نهاية السنة دور ثاني أ'!B37:K86,5,FALSE),"") -> 0 | AY38: 0 | AZ38: 32 | BA38: ='التلاميذ والقيود '!B34 -> 2567 | BB38: ='التلاميذ والقيود '!C34 -> غدير عصام حسن | BG38: =IFERROR(VLOOKUP(BA38,'العامة نصف السنة أ'!B37:K86,6,FALSE),"") -> 0 | BL38: 0 | BM38: =IFERROR(VLOOKUP(BA38,' العامة نهاية السنة دور اول أ'!B37:K86,6,FALSE),"") -> 0 | BN38: 0 | BO38: =IFERROR(VLOOKUP(BA38,' العامة نهاية السنة دور ثاني أ'!B37:K86,6,FALSE),"") -> 0 | BP38: 0 | BQ38: 32 | BR38: ='التلاميذ والقيود '!B34 -> 2567 | BS38: ='التلاميذ والقيود '!C34 -> غدير عصام حسن | BX38: =IFERROR(VLOOKUP(BR38,'العامة نصف السنة أ'!B37:K86,7,FALSE),"") -> 0 | CC38: 0 | CD38: =IFERROR(VLOOKUP(BR38,' العامة نهاية السنة دور اول أ'!B37:K86,7,FALSE),"") -> 0 | CE38: 0 | CF38: =IFERROR(VLOOKUP(BR38,' العامة نهاية السنة دور ثاني أ'!B37:K86,7,FALSE),"") -> 0 | CG38: 0 | CH38: 32 | CI38: ='التلاميذ والقيود '!B34 -> 2567 | CJ38: ='التلاميذ والقيود '!C34 -> غدير عصام حسن | CO38: =IFERROR(VLOOKUP(CI38,'العامة نصف السنة أ'!B37:K86,8,FALSE),"") -> 0 | CT38: 0 | CU38: =IFERROR(VLOOKUP(CI38,' العامة نهاية السنة دور اول أ'!B37:K86,8,FALSE),"") -> 0 | CV38: 0 | CW38: =IFERROR(VLOOKUP(CI38,' العامة نهاية السنة دور ثاني أ'!B37:K86,8,FALSE),"") -> 0 | CX38: 0 | CY38: 32 | CZ38: ='التلاميذ والقيود '!B34 -> 2567 | DA38: ='التلاميذ والقيود '!C34 -> غدير عصام حسن | DF38: =IFERROR(VLOOKUP(CZ38,'العامة نصف السنة أ'!B37:K86,9,FALSE),"") -> 0 | DK38: 0 | DL38: =IFERROR(VLOOKUP(CZ38,' العامة نهاية السنة دور اول أ'!B37:K86,9,FALSE),"") -> 0 | DM38: 0 | DN38: =IFERROR(VLOOKUP(CZ38,' العامة نهاية السنة دور ثاني أ'!B37:K86,9,FALSE),"") -> 0 | DO38: 0 | DP38: 32 | DQ38: ='التلاميذ والقيود '!B34 -> 2567 | DR38: ='التلاميذ والقيود '!C34 -> غدير عصام حسن | DW38: =IFERROR(VLOOKUP(DQ38,'العامة نصف السنة أ'!B37:K86,10,FALSE),"") -> 0 | EB38: 0 | EC38: =IFERROR(VLOOKUP(DQ38,' العامة نهاية السنة دور اول أ'!B37:K86,10,FALSE),"") -> 0 | ED38: 0 | EE38: =IFERROR(VLOOKUP(DQ38,' العامة نهاية السنة دور ثاني أ'!B37:K86,10,FALSE),"") -> 0 | EF38: 0
A39: =IF(B39="","",SUBTOTAL(3,$B$7:B39)) -> 33 | B39: ='التلاميذ والقيود '!B35 -> 2308 | C39: ='التلاميذ والقيود '!C35 -> فاطمه خضير دعبول | H39: =IFERROR(VLOOKUP(B39,'العامة نصف السنة أ'!B38:D87,3,FALSE),"") -> 0 | M39: 0 | N39: =IFERROR(VLOOKUP(B39,' العامة نهاية السنة دور اول أ'!B38:D87,3,FALSE),"") -> 0 | O39: 0 | P39: =IFERROR(VLOOKUP(B39,' العامة نهاية السنة دور ثاني أ'!B38:D87,3,FALSE),"") -> 0 | Q39: 0 | R39: 33 | S39: ='التلاميذ والقيود '!B35 -> 2308 | T39: ='التلاميذ والقيود '!C35 -> فاطمه خضير دعبول | Y39: =IFERROR(VLOOKUP(S39,'العامة نصف السنة أ'!B38:K87,4,FALSE),"") -> 0 | AD39: 0 | AE39: =IFERROR(VLOOKUP(S39,' العامة نهاية السنة دور اول أ'!B38:K87,4,FALSE),"") -> 0 | AF39: 0 | AG39: =IFERROR(VLOOKUP(S39,' العامة نهاية السنة دور ثاني أ'!B38:K87,4,FALSE),"") -> 0 | AH39: 0 | AI39: 33 | AJ39: ='التلاميذ والقيود '!B35 -> 2308 | AK39: ='التلاميذ والقيود '!C35 -> فاطمه خضير دعبول | AP39: =IFERROR(VLOOKUP(AJ39,'العامة نصف السنة أ'!B38:K87,5,FALSE),"") -> 0 | AU39: 0 | AV39: =IFERROR(VLOOKUP(AJ39,' العامة نهاية السنة دور اول أ'!B38:K87,5,FALSE),"") -> 0 | AW39: 0 | AX39: =IFERROR(VLOOKUP(AJ39,' العامة نهاية السنة دور ثاني أ'!B38:K87,5,FALSE),"") -> 0 | AY39: 0 | AZ39: 33 | BA39: ='التلاميذ والقيود '!B35 -> 2308 | BB39: ='التلاميذ والقيود '!C35 -> فاطمه خضير دعبول | BG39: =IFERROR(VLOOKUP(BA39,'العامة نصف السنة أ'!B38:K87,6,FALSE),"") -> 0 | BL39: 0 | BM39: =IFERROR(VLOOKUP(BA39,' العامة نهاية السنة دور اول أ'!B38:K87,6,FALSE),"") -> 0 | BN39: 0 | BO39: =IFERROR(VLOOKUP(BA39,' العامة نهاية السنة دور ثاني أ'!B38:K87,6,FALSE),"") -> 0 | BP39: 0 | BQ39: 33 | BR39: ='التلاميذ والقيود '!B35 -> 2308 | BS39: ='التلاميذ والقيود '!C35 -> فاطمه خضير دعبول | BX39: =IFERROR(VLOOKUP(BR39,'العامة نصف السنة أ'!B38:K87,7,FALSE),"") -> 0 | CC39: 0 | CD39: =IFERROR(VLOOKUP(BR39,' العامة نهاية السنة دور اول أ'!B38:K87,7,FALSE),"") -> 0 | CE39: 0 | CF39: =IFERROR(VLOOKUP(BR39,' العامة نهاية السنة دور ثاني أ'!B38:K87,7,FALSE),"") -> 0 | CG39: 0 | CH39: 33 | CI39: ='التلاميذ والقيود '!B35 -> 2308 | CJ39: ='التلاميذ والقيود '!C35 -> فاطمه خضير دعبول | CO39: =IFERROR(VLOOKUP(CI39,'العامة نصف السنة أ'!B38:K87,8,FALSE),"") -> 0 | CT39: 0 | CU39: =IFERROR(VLOOKUP(CI39,' العامة نهاية السنة دور اول أ'!B38:K87,8,FALSE),"") -> 0 | CV39: 0 | CW39: =IFERROR(VLOOKUP(CI39,' العامة نهاية السنة دور ثاني أ'!B38:K87,8,FALSE),"") -> 0 | CX39: 0 | CY39: 33 | CZ39: ='التلاميذ والقيود '!B35 -> 2308 | DA39: ='التلاميذ والقيود '!C35 -> فاطمه خضير دعبول | DF39: =IFERROR(VLOOKUP(CZ39,'العامة نصف السنة أ'!B38:K87,9,FALSE),"") -> 0 | DK39: 0 | DL39: =IFERROR(VLOOKUP(CZ39,' العامة نهاية السنة دور اول أ'!B38:K87,9,FALSE),"") -> 0 | DM39: 0 | DN39: =IFERROR(VLOOKUP(CZ39,' العامة نهاية السنة دور ثاني أ'!B38:K87,9,FALSE),"") -> 0 | DO39: 0 | DP39: 33 | DQ39: ='التلاميذ والقيود '!B35 -> 2308 | DR39: ='التلاميذ والقيود '!C35 -> فاطمه خضير دعبول | DW39: =IFERROR(VLOOKUP(DQ39,'العامة نصف السنة أ'!B38:K87,10,FALSE),"") -> 0 | EB39: 0 | EC39: =IFERROR(VLOOKUP(DQ39,' العامة نهاية السنة دور اول أ'!B38:K87,10,FALSE),"") -> 0 | ED39: 0 | EE39: =IFERROR(VLOOKUP(DQ39,' العامة نهاية السنة دور ثاني أ'!B38:K87,10,FALSE),"") -> 0 | EF39: 0
A40: =IF(B40="","",SUBTOTAL(3,$B$7:B40)) -> 34 | B40: ='التلاميذ والقيود '!B36 -> 2252 | C40: ='التلاميذ والقيود '!C36 -> فاطمه علي خشم | H40: =IFERROR(VLOOKUP(B40,'العامة نصف السنة أ'!B39:D88,3,FALSE),"") -> 0 | M40: 0 | N40: =IFERROR(VLOOKUP(B40,' العامة نهاية السنة دور اول أ'!B39:D88,3,FALSE),"") -> 0 | O40: 0 | P40: =IFERROR(VLOOKUP(B40,' العامة نهاية السنة دور ثاني أ'!B39:D88,3,FALSE),"") -> 0 | Q40: 0 | R40: 34 | S40: ='التلاميذ والقيود '!B36 -> 2252 | T40: ='التلاميذ والقيود '!C36 -> فاطمه علي خشم | Y40: =IFERROR(VLOOKUP(S40,'العامة نصف السنة أ'!B39:K88,4,FALSE),"") -> 0 | AD40: 0 | AE40: =IFERROR(VLOOKUP(S40,' العامة نهاية السنة دور اول أ'!B39:K88,4,FALSE),"") -> 0 | AF40: 0 | AG40: =IFERROR(VLOOKUP(S40,' العامة نهاية السنة دور ثاني أ'!B39:K88,4,FALSE),"") -> 0 | AH40: 0 | AI40: 34 | AJ40: ='التلاميذ والقيود '!B36 -> 2252 | AK40: ='التلاميذ والقيود '!C36 -> فاطمه علي خشم | AP40: =IFERROR(VLOOKUP(AJ40,'العامة نصف السنة أ'!B39:K88,5,FALSE),"") -> 0 | AU40: 0 | AV40: =IFERROR(VLOOKUP(AJ40,' العامة نهاية السنة دور اول أ'!B39:K88,5,FALSE),"") -> 0 | AW40: 0 | AX40: =IFERROR(VLOOKUP(AJ40,' العامة نهاية السنة دور ثاني أ'!B39:K88,5,FALSE),"") -> 0 | AY40: 0 | AZ40: 34 | BA40: ='التلاميذ والقيود '!B36 -> 2252 | BB40: ='التلاميذ والقيود '!C36 -> فاطمه علي خشم | BG40: =IFERROR(VLOOKUP(BA40,'العامة نصف السنة أ'!B39:K88,6,FALSE),"") -> 0 | BL40: 0 | BM40: =IFERROR(VLOOKUP(BA40,' العامة نهاية السنة دور اول أ'!B39:K88,6,FALSE),"") -> 0 | BN40: 0 | BO40: =IFERROR(VLOOKUP(BA40,' العامة نهاية السنة دور ثاني أ'!B39:K88,6,FALSE),"") -> 0 | BP40: 0 | BQ40: 34 | BR40: ='التلاميذ والقيود '!B36 -> 2252 | BS40: ='التلاميذ والقيود '!C36 -> فاطمه علي خشم | BX40: =IFERROR(VLOOKUP(BR40,'العامة نصف السنة أ'!B39:K88,7,FALSE),"") -> 0 | CC40: 0 | CD40: =IFERROR(VLOOKUP(BR40,' العامة نهاية السنة دور اول أ'!B39:K88,7,FALSE),"") -> 0 | CE40: 0 | CF40: =IFERROR(VLOOKUP(BR40,' العامة نهاية السنة دور ثاني أ'!B39:K88,7,FALSE),"") -> 0 | CG40: 0 | CH40: 34 | CI40: ='التلاميذ والقيود '!B36 -> 2252 | CJ40: ='التلاميذ والقيود '!C36 -> فاطمه علي خشم | CO40: =IFERROR(VLOOKUP(CI40,'العامة نصف السنة أ'!B39:K88,8,FALSE),"") -> 0 | CT40: 0 | CU40: =IFERROR(VLOOKUP(CI40,' العامة نهاية السنة دور اول أ'!B39:K88,8,FALSE),"") -> 0 | CV40: 0 | CW40: =IFERROR(VLOOKUP(CI40,' العامة نهاية السنة دور ثاني أ'!B39:K88,8,FALSE),"") -> 0 | CX40: 0 | CY40: 34 | CZ40: ='التلاميذ والقيود '!B36 -> 2252 | DA40: ='التلاميذ والقيود '!C36 -> فاطمه علي خشم | DF40: =IFERROR(VLOOKUP(CZ40,'العامة نصف السنة أ'!B39:K88,9,FALSE),"") -> 0 | DK40: 0 | DL40: =IFERROR(VLOOKUP(CZ40,' العامة نهاية السنة دور اول أ'!B39:K88,9,FALSE),"") -> 0 | DM40: 0 | DN40: =IFERROR(VLOOKUP(CZ40,' العامة نهاية السنة دور ثاني أ'!B39:K88,9,FALSE),"") -> 0 | DO40: 0 | DP40: 34 | DQ40: ='التلاميذ والقيود '!B36 -> 2252 | DR40: ='التلاميذ والقيود '!C36 -> فاطمه علي خشم | DW40: =IFERROR(VLOOKUP(DQ40,'العامة نصف السنة أ'!B39:K88,10,FALSE),"") -> 0 | EB40: 0 | EC40: =IFERROR(VLOOKUP(DQ40,' العامة نهاية السنة دور اول أ'!B39:K88,10,FALSE),"") -> 0 | ED40: 0 | EE40: =IFERROR(VLOOKUP(DQ40,' العامة نهاية السنة دور ثاني أ'!B39:K88,10,FALSE),"") -> 0 | EF40: 0
A41: =IF(B41="","",SUBTOTAL(3,$B$7:B41)) -> 35 | B41: ='التلاميذ والقيود '!B37 -> 2687 | C41: ='التلاميذ والقيود '!C37 -> فاطمه ماجد عبد الحسين | H41: =IFERROR(VLOOKUP(B41,'العامة نصف السنة أ'!B40:D89,3,FALSE),"") -> 0 | M41: 0 | N41: =IFERROR(VLOOKUP(B41,' العامة نهاية السنة دور اول أ'!B40:D89,3,FALSE),"") -> 0 | O41: 0 | P41: =IFERROR(VLOOKUP(B41,' العامة نهاية السنة دور ثاني أ'!B40:D89,3,FALSE),"") -> 0 | Q41: 0 | R41: 35 | S41: ='التلاميذ والقيود '!B37 -> 2687 | T41: ='التلاميذ والقيود '!C37 -> فاطمه ماجد عبد الحسين | Y41: =IFERROR(VLOOKUP(S41,'العامة نصف السنة أ'!B40:K89,4,FALSE),"") -> 0 | AD41: 0 | AE41: =IFERROR(VLOOKUP(S41,' العامة نهاية السنة دور اول أ'!B40:K89,4,FALSE),"") -> 0 | AF41: 0 | AG41: =IFERROR(VLOOKUP(S41,' العامة نهاية السنة دور ثاني أ'!B40:K89,4,FALSE),"") -> 0 | AH41: 0 | AI41: 35 | AJ41: ='التلاميذ والقيود '!B37 -> 2687 | AK41: ='التلاميذ والقيود '!C37 -> فاطمه ماجد عبد الحسين | AP41: =IFERROR(VLOOKUP(AJ41,'العامة نصف السنة أ'!B40:K89,5,FALSE),"") -> 0 | AU41: 0 | AV41: =IFERROR(VLOOKUP(AJ41,' العامة نهاية السنة دور اول أ'!B40:K89,5,FALSE),"") -> 0 | AW41: 0 | AX41: =IFERROR(VLOOKUP(AJ41,' العامة نهاية السنة دور ثاني أ'!B40:K89,5,FALSE),"") -> 0 | AY41: 0 | AZ41: 35 | BA41: ='التلاميذ والقيود '!B37 -> 2687 | BB41: ='التلاميذ والقيود '!C37 -> فاطمه ماجد عبد الحسين | BG41: =IFERROR(VLOOKUP(BA41,'العامة نصف السنة أ'!B40:K89,6,FALSE),"") -> 0 | BL41: 0 | BM41: =IFERROR(VLOOKUP(BA41,' العامة نهاية السنة دور اول أ'!B40:K89,6,FALSE),"") -> 0 | BN41: 0 | BO41: =IFERROR(VLOOKUP(BA41,' العامة نهاية السنة دور ثاني أ'!B40:K89,6,FALSE),"") -> 0 | BP41: 0 | BQ41: 35 | BR41: ='التلاميذ والقيود '!B37 -> 2687 | BS41: ='التلاميذ والقيود '!C37 -> فاطمه ماجد عبد الحسين | BX41: =IFERROR(VLOOKUP(BR41,'العامة نصف السنة أ'!B40:K89,7,FALSE),"") -> 0 | CC41: 0 | CD41: =IFERROR(VLOOKUP(BR41,' العامة نهاية السنة دور اول أ'!B40:K89,7,FALSE),"") -> 0 | CE41: 0 | CF41: =IFERROR(VLOOKUP(BR41,' العامة نهاية السنة دور ثاني أ'!B40:K89,7,FALSE),"") -> 0 | CG41: 0 | CH41: 35 | CI41: ='التلاميذ والقيود '!B37 -> 2687 | CJ41: ='التلاميذ والقيود '!C37 -> فاطمه ماجد عبد الحسين | CO41: =IFERROR(VLOOKUP(CI41,'العامة نصف السنة أ'!B40:K89,8,FALSE),"") -> 0 | CT41: 0 | CU41: =IFERROR(VLOOKUP(CI41,' العامة نهاية السنة دور اول أ'!B40:K89,8,FALSE),"") -> 0 | CV41: 0 | CW41: =IFERROR(VLOOKUP(CI41,' العامة نهاية السنة دور ثاني أ'!B40:K89,8,FALSE),"") -> 0 | CX41: 0 | CY41: 35 | CZ41: ='التلاميذ والقيود '!B37 -> 2687 | DA41: ='التلاميذ والقيود '!C37 -> فاطمه ماجد عبد الحسين | DF41: =IFERROR(VLOOKUP(CZ41,'العامة نصف السنة أ'!B40:K89,9,FALSE),"") -> 0 | DK41: 0 | DL41: =IFERROR(VLOOKUP(CZ41,' العامة نهاية السنة دور اول أ'!B40:K89,9,FALSE),"") -> 0 | DM41: 0 | DN41: =IFERROR(VLOOKUP(CZ41,' العامة نهاية السنة دور ثاني أ'!B40:K89,9,FALSE),"") -> 0 | DO41: 0 | DP41: 35 | DQ41: ='التلاميذ والقيود '!B37 -> 2687 | DR41: ='التلاميذ والقيود '!C37 -> فاطمه ماجد عبد الحسين | DW41: =IFERROR(VLOOKUP(DQ41,'العامة نصف السنة أ'!B40:K89,10,FALSE),"") -> 0 | EB41: 0 | EC41: =IFERROR(VLOOKUP(DQ41,' العامة نهاية السنة دور اول أ'!B40:K89,10,FALSE),"") -> 0 | ED41: 0 | EE41: =IFERROR(VLOOKUP(DQ41,' العامة نهاية السنة دور ثاني أ'!B40:K89,10,FALSE),"") -> 0 | EF41: 0
A42: =IF(B42="","",SUBTOTAL(3,$B$7:B42)) -> 36 | B42: ='التلاميذ والقيود '!B38 -> 2562 | C42: ='التلاميذ والقيود '!C38 -> فاطمه هادي كاظم | H42: =IFERROR(VLOOKUP(B42,'العامة نصف السنة أ'!B41:D90,3,FALSE),"") -> 0 | M42: 0 | N42: =IFERROR(VLOOKUP(B42,' العامة نهاية السنة دور اول أ'!B41:D90,3,FALSE),"") -> 0 | O42: 0 | P42: =IFERROR(VLOOKUP(B42,' العامة نهاية السنة دور ثاني أ'!B41:D90,3,FALSE),"") -> 0 | Q42: 0 | R42: 36 | S42: ='التلاميذ والقيود '!B38 -> 2562 | T42: ='التلاميذ والقيود '!C38 -> فاطمه هادي كاظم | Y42: =IFERROR(VLOOKUP(S42,'العامة نصف السنة أ'!B41:K90,4,FALSE),"") -> 0 | AD42: 0 | AE42: =IFERROR(VLOOKUP(S42,' العامة نهاية السنة دور اول أ'!B41:K90,4,FALSE),"") -> 0 | AF42: 0 | AG42: =IFERROR(VLOOKUP(S42,' العامة نهاية السنة دور ثاني أ'!B41:K90,4,FALSE),"") -> 0 | AH42: 0 | AI42: 36 | AJ42: ='التلاميذ والقيود '!B38 -> 2562 | AK42: ='التلاميذ والقيود '!C38 -> فاطمه هادي كاظم | AP42: =IFERROR(VLOOKUP(AJ42,'العامة نصف السنة أ'!B41:K90,5,FALSE),"") -> 0 | AU42: 0 | AV42: =IFERROR(VLOOKUP(AJ42,' العامة نهاية السنة دور اول أ'!B41:K90,5,FALSE),"") -> 0 | AW42: 0 | AX42: =IFERROR(VLOOKUP(AJ42,' العامة نهاية السنة دور ثاني أ'!B41:K90,5,FALSE),"") -> 0 | AY42: 0 | AZ42: 36 | BA42: ='التلاميذ والقيود '!B38 -> 2562 | BB42: ='التلاميذ والقيود '!C38 -> فاطمه هادي كاظم | BG42: =IFERROR(VLOOKUP(BA42,'العامة نصف السنة أ'!B41:K90,6,FALSE),"") -> 0 | BL42: 0 | BM42: =IFERROR(VLOOKUP(BA42,' العامة نهاية السنة دور اول أ'!B41:K90,6,FALSE),"") -> 0 | BN42: 0 | BO42: =IFERROR(VLOOKUP(BA42,' العامة نهاية السنة دور ثاني أ'!B41:K90,6,FALSE),"") -> 0 | BP42: 0 | BQ42: 36 | BR42: ='التلاميذ والقيود '!B38 -> 2562 | BS42: ='التلاميذ والقيود '!C38 -> فاطمه هادي كاظم | BX42: =IFERROR(VLOOKUP(BR42,'العامة نصف السنة أ'!B41:K90,7,FALSE),"") -> 0 | CC42: 0 | CD42: =IFERROR(VLOOKUP(BR42,' العامة نهاية السنة دور اول أ'!B41:K90,7,FALSE),"") -> 0 | CE42: 0 | CF42: =IFERROR(VLOOKUP(BR42,' العامة نهاية السنة دور ثاني أ'!B41:K90,7,FALSE),"") -> 0 | CG42: 0 | CH42: 36 | CI42: ='التلاميذ والقيود '!B38 -> 2562 | CJ42: ='التلاميذ والقيود '!C38 -> فاطمه هادي كاظم | CO42: =IFERROR(VLOOKUP(CI42,'العامة نصف السنة أ'!B41:K90,8,FALSE),"") -> 0 | CT42: 0 | CU42: =IFERROR(VLOOKUP(CI42,' العامة نهاية السنة دور اول أ'!B41:K90,8,FALSE),"") -> 0 | CV42: 0 | CW42: =IFERROR(VLOOKUP(CI42,' العامة نهاية السنة دور ثاني أ'!B41:K90,8,FALSE),"") -> 0 | CX42: 0 | CY42: 36 | CZ42: ='التلاميذ والقيود '!B38 -> 2562 | DA42: ='التلاميذ والقيود '!C38 -> فاطمه هادي كاظم | DF42: =IFERROR(VLOOKUP(CZ42,'العامة نصف السنة أ'!B41:K90,9,FALSE),"") -> 0 | DK42: 0 | DL42: =IFERROR(VLOOKUP(CZ42,' العامة نهاية السنة دور اول أ'!B41:K90,9,FALSE),"") -> 0 | DM42: 0 | DN42: =IFERROR(VLOOKUP(CZ42,' العامة نهاية السنة دور ثاني أ'!B41:K90,9,FALSE),"") -> 0 | DO42: 0 | DP42: 36 | DQ42: ='التلاميذ والقيود '!B38 -> 2562 | DR42: ='التلاميذ والقيود '!C38 -> فاطمه هادي كاظم | DW42: =IFERROR(VLOOKUP(DQ42,'العامة نصف السنة أ'!B41:K90,10,FALSE),"") -> 0 | EB42: 0 | EC42: =IFERROR(VLOOKUP(DQ42,' العامة نهاية السنة دور اول أ'!B41:K90,10,FALSE),"") -> 0 | ED42: 0 | EE42: =IFERROR(VLOOKUP(DQ42,' العامة نهاية السنة دور ثاني أ'!B41:K90,10,FALSE),"") -> 0 | EF42: 0
A43: =IF(B43="","",SUBTOTAL(3,$B$7:B43)) -> 37 | B43: ='التلاميذ والقيود '!B39 -> 2589 | C43: ='التلاميذ والقيود '!C39 -> فرح عباس زغير | H43: =IFERROR(VLOOKUP(B43,'العامة نصف السنة أ'!B42:D91,3,FALSE),"") -> 0 | M43: 0 | N43: =IFERROR(VLOOKUP(B43,' العامة نهاية السنة دور اول أ'!B42:D91,3,FALSE),"") -> 0 | O43: 0 | P43: =IFERROR(VLOOKUP(B43,' العامة نهاية السنة دور ثاني أ'!B42:D91,3,FALSE),"") -> 0 | Q43: 0 | R43: 37 | S43: ='التلاميذ والقيود '!B39 -> 2589 | T43: ='التلاميذ والقيود '!C39 -> فرح عباس زغير | Y43: =IFERROR(VLOOKUP(S43,'العامة نصف السنة أ'!B42:K91,4,FALSE),"") -> 0 | AD43: 0 | AE43: =IFERROR(VLOOKUP(S43,' العامة نهاية السنة دور اول أ'!B42:K91,4,FALSE),"") -> 0 | AF43: 0 | AG43: =IFERROR(VLOOKUP(S43,' العامة نهاية السنة دور ثاني أ'!B42:K91,4,FALSE),"") -> 0 | AH43: 0 | AI43: 37 | AJ43: ='التلاميذ والقيود '!B39 -> 2589 | AK43: ='التلاميذ والقيود '!C39 -> فرح عباس زغير | AP43: =IFERROR(VLOOKUP(AJ43,'العامة نصف السنة أ'!B42:K91,5,FALSE),"") -> 0 | AU43: 0 | AV43: =IFERROR(VLOOKUP(AJ43,' العامة نهاية السنة دور اول أ'!B42:K91,5,FALSE),"") -> 0 | AW43: 0 | AX43: =IFERROR(VLOOKUP(AJ43,' العامة نهاية السنة دور ثاني أ'!B42:K91,5,FALSE),"") -> 0 | AY43: 0 | AZ43: 37 | BA43: ='التلاميذ والقيود '!B39 -> 2589 | BB43: ='التلاميذ والقيود '!C39 -> فرح عباس زغير | BG43: =IFERROR(VLOOKUP(BA43,'العامة نصف السنة أ'!B42:K91,6,FALSE),"") -> 0 | BL43: 0 | BM43: =IFERROR(VLOOKUP(BA43,' العامة نهاية السنة دور اول أ'!B42:K91,6,FALSE),"") -> 0 | BN43: 0 | BO43: =IFERROR(VLOOKUP(BA43,' العامة نهاية السنة دور ثاني أ'!B42:K91,6,FALSE),"") -> 0 | BP43: 0 | BQ43: 37 | BR43: ='التلاميذ والقيود '!B39 -> 2589 | BS43: ='التلاميذ والقيود '!C39 -> فرح عباس زغير | BX43: =IFERROR(VLOOKUP(BR43,'العامة نصف السنة أ'!B42:K91,7,FALSE),"") -> 0 | CC43: 0 | CD43: =IFERROR(VLOOKUP(BR43,' العامة نهاية السنة دور اول أ'!B42:K91,7,FALSE),"") -> 0 | CE43: 0 | CF43: =IFERROR(VLOOKUP(BR43,' العامة نهاية السنة دور ثاني أ'!B42:K91,7,FALSE),"") -> 0 | CG43: 0 | CH43: 37 | CI43: ='التلاميذ والقيود '!B39 -> 2589 | CJ43: ='التلاميذ والقيود '!C39 -> فرح عباس زغير | CO43: =IFERROR(VLOOKUP(CI43,'العامة نصف السنة أ'!B42:K91,8,FALSE),"") -> 0 | CT43: 0 | CU43: =IFERROR(VLOOKUP(CI43,' العامة نهاية السنة دور اول أ'!B42:K91,8,FALSE),"") -> 0 | CV43: 0 | CW43: =IFERROR(VLOOKUP(CI43,' العامة نهاية السنة دور ثاني أ'!B42:K91,8,FALSE),"") -> 0 | CX43: 0 | CY43: 37 | CZ43: ='التلاميذ والقيود '!B39 -> 2589 | DA43: ='التلاميذ والقيود '!C39 -> فرح عباس زغير | DF43: =IFERROR(VLOOKUP(CZ43,'العامة نصف السنة أ'!B42:K91,9,FALSE),"") -> 0 | DK43: 0 | DL43: =IFERROR(VLOOKUP(CZ43,' العامة نهاية السنة دور اول أ'!B42:K91,9,FALSE),"") -> 0 | DM43: 0 | DN43: =IFERROR(VLOOKUP(CZ43,' العامة نهاية السنة دور ثاني أ'!B42:K91,9,FALSE),"") -> 0 | DO43: 0 | DP43: 37 | DQ43: ='التلاميذ والقيود '!B39 -> 2589 | DR43: ='التلاميذ والقيود '!C39 -> فرح عباس زغير | DW43: =IFERROR(VLOOKUP(DQ43,'العامة نصف السنة أ'!B42:K91,10,FALSE),"") -> 0 | EB43: 0 | EC43: =IFERROR(VLOOKUP(DQ43,' العامة نهاية السنة دور اول أ'!B42:K91,10,FALSE),"") -> 0 | ED43: 0 | EE43: =IFERROR(VLOOKUP(DQ43,' العامة نهاية السنة دور ثاني أ'!B42:K91,10,FALSE),"") -> 0 | EF43: 0
A44: =IF(B44="","",SUBTOTAL(3,$B$7:B44)) -> 38 | B44: ='التلاميذ والقيود '!B40 -> 2523 | C44: ='التلاميذ والقيود '!C40 -> لجين حسين علي | H44: =IFERROR(VLOOKUP(B44,'العامة نصف السنة أ'!B43:D92,3,FALSE),"") -> 0 | M44: 0 | N44: =IFERROR(VLOOKUP(B44,' العامة نهاية السنة دور اول أ'!B43:D92,3,FALSE),"") -> 0 | O44: 0 | P44: =IFERROR(VLOOKUP(B44,' العامة نهاية السنة دور ثاني أ'!B43:D92,3,FALSE),"") -> 0 | Q44: 0 | R44: 38 | S44: ='التلاميذ والقيود '!B40 -> 2523 | T44: ='التلاميذ والقيود '!C40 -> لجين حسين علي | Y44: =IFERROR(VLOOKUP(S44,'العامة نصف السنة أ'!B43:K92,4,FALSE),"") -> 0 | AD44: 0 | AE44: =IFERROR(VLOOKUP(S44,' العامة نهاية السنة دور اول أ'!B43:K92,4,FALSE),"") -> 0 | AF44: 0 | AG44: =IFERROR(VLOOKUP(S44,' العامة نهاية السنة دور ثاني أ'!B43:K92,4,FALSE),"") -> 0 | AH44: 0 | AI44: 38 | AJ44: ='التلاميذ والقيود '!B40 -> 2523 | AK44: ='التلاميذ والقيود '!C40 -> لجين حسين علي | AP44: =IFERROR(VLOOKUP(AJ44,'العامة نصف السنة أ'!B43:K92,5,FALSE),"") -> 0 | AU44: 0 | AV44: =IFERROR(VLOOKUP(AJ44,' العامة نهاية السنة دور اول أ'!B43:K92,5,FALSE),"") -> 0 | AW44: 0 | AX44: =IFERROR(VLOOKUP(AJ44,' العامة نهاية السنة دور ثاني أ'!B43:K92,5,FALSE),"") -> 0 | AY44: 0 | AZ44: 38 | BA44: ='التلاميذ والقيود '!B40 -> 2523 | BB44: ='التلاميذ والقيود '!C40 -> لجين حسين علي | BG44: =IFERROR(VLOOKUP(BA44,'العامة نصف السنة أ'!B43:K92,6,FALSE),"") -> 0 | BL44: 0 | BM44: =IFERROR(VLOOKUP(BA44,' العامة نهاية السنة دور اول أ'!B43:K92,6,FALSE),"") -> 0 | BN44: 0 | BO44: =IFERROR(VLOOKUP(BA44,' العامة نهاية السنة دور ثاني أ'!B43:K92,6,FALSE),"") -> 0 | BP44: 0 | BQ44: 38 | BR44: ='التلاميذ والقيود '!B40 -> 2523 | BS44: ='التلاميذ والقيود '!C40 -> لجين حسين علي | BX44: =IFERROR(VLOOKUP(BR44,'العامة نصف السنة أ'!B43:K92,7,FALSE),"") -> 0 | CC44: 0 | CD44: =IFERROR(VLOOKUP(BR44,' العامة نهاية السنة دور اول أ'!B43:K92,7,FALSE),"") -> 0 | CE44: 0 | CF44: =IFERROR(VLOOKUP(BR44,' العامة نهاية السنة دور ثاني أ'!B43:K92,7,FALSE),"") -> 0 | CG44: 0 | CH44: 38 | CI44: ='التلاميذ والقيود '!B40 -> 2523 | CJ44: ='التلاميذ والقيود '!C40 -> لجين حسين علي | CO44: =IFERROR(VLOOKUP(CI44,'العامة نصف السنة أ'!B43:K92,8,FALSE),"") -> 0 | CT44: 0 | CU44: =IFERROR(VLOOKUP(CI44,' العامة نهاية السنة دور اول أ'!B43:K92,8,FALSE),"") -> 0 | CV44: 0 | CW44: =IFERROR(VLOOKUP(CI44,' العامة نهاية السنة دور ثاني أ'!B43:K92,8,FALSE),"") -> 0 | CX44: 0 | CY44: 38 | CZ44: ='التلاميذ والقيود '!B40 -> 2523 | DA44: ='التلاميذ والقيود '!C40 -> لجين حسين علي | DF44: =IFERROR(VLOOKUP(CZ44,'العامة نصف السنة أ'!B43:K92,9,FALSE),"") -> 0 | DK44: 0 | DL44: =IFERROR(VLOOKUP(CZ44,' العامة نهاية السنة دور اول أ'!B43:K92,9,FALSE),"") -> 0 | DM44: 0 | DN44: =IFERROR(VLOOKUP(CZ44,' العامة نهاية السنة دور ثاني أ'!B43:K92,9,FALSE),"") -> 0 | DO44: 0 | DP44: 38 | DQ44: ='التلاميذ والقيود '!B40 -> 2523 | DR44: ='التلاميذ والقيود '!C40 -> لجين حسين علي | DW44: =IFERROR(VLOOKUP(DQ44,'العامة نصف السنة أ'!B43:K92,10,FALSE),"") -> 0 | EB44: 0 | EC44: =IFERROR(VLOOKUP(DQ44,' العامة نهاية السنة دور اول أ'!B43:K92,10,FALSE),"") -> 0 | ED44: 0 | EE44: =IFERROR(VLOOKUP(DQ44,' العامة نهاية السنة دور ثاني أ'!B43:K92,10,FALSE),"") -> 0 | EF44: 0
A45: =IF(B45="","",SUBTOTAL(3,$B$7:B45)) -> 39 | B45: ='التلاميذ والقيود '!B41 -> 2545 | C45: ='التلاميذ والقيود '!C41 -> ليسينيا ميثم فاضل | H45: =IFERROR(VLOOKUP(B45,'العامة نصف السنة أ'!B44:D93,3,FALSE),"") -> 0 | M45: 0 | N45: =IFERROR(VLOOKUP(B45,' العامة نهاية السنة دور اول أ'!B44:D93,3,FALSE),"") -> 0 | O45: 0 | P45: =IFERROR(VLOOKUP(B45,' العامة نهاية السنة دور ثاني أ'!B44:D93,3,FALSE),"") -> 0 | Q45: 0 | R45: 39 | S45: ='التلاميذ والقيود '!B41 -> 2545 | T45: ='التلاميذ والقيود '!C41 -> ليسينيا ميثم فاضل | Y45: =IFERROR(VLOOKUP(S45,'العامة نصف السنة أ'!B44:K93,4,FALSE),"") -> 0 | AD45: 0 | AE45: =IFERROR(VLOOKUP(S45,' العامة نهاية السنة دور اول أ'!B44:K93,4,FALSE),"") -> 0 | AF45: 0 | AG45: =IFERROR(VLOOKUP(S45,' العامة نهاية السنة دور ثاني أ'!B44:K93,4,FALSE),"") -> 0 | AH45: 0 | AI45: 39 | AJ45: ='التلاميذ والقيود '!B41 -> 2545 | AK45: ='التلاميذ والقيود '!C41 -> ليسينيا ميثم فاضل | AP45: =IFERROR(VLOOKUP(AJ45,'العامة نصف السنة أ'!B44:K93,5,FALSE),"") -> 0 | AU45: 0 | AV45: =IFERROR(VLOOKUP(AJ45,' العامة نهاية السنة دور اول أ'!B44:K93,5,FALSE),"") -> 0 | AW45: 0 | AX45: =IFERROR(VLOOKUP(AJ45,' العامة نهاية السنة دور ثاني أ'!B44:K93,5,FALSE),"") -> 0 | AY45: 0 | AZ45: 39 | BA45: ='التلاميذ والقيود '!B41 -> 2545 | BB45: ='التلاميذ والقيود '!C41 -> ليسينيا ميثم فاضل | BG45: =IFERROR(VLOOKUP(BA45,'العامة نصف السنة أ'!B44:K93,6,FALSE),"") -> 0 | BL45: 0 | BM45: =IFERROR(VLOOKUP(BA45,' العامة نهاية السنة دور اول أ'!B44:K93,6,FALSE),"") -> 0 | BN45: 0 | BO45: =IFERROR(VLOOKUP(BA45,' العامة نهاية السنة دور ثاني أ'!B44:K93,6,FALSE),"") -> 0 | BP45: 0 | BQ45: 39 | BR45: ='التلاميذ والقيود '!B41 -> 2545 | BS45: ='التلاميذ والقيود '!C41 -> ليسينيا ميثم فاضل | BX45: =IFERROR(VLOOKUP(BR45,'العامة نصف السنة أ'!B44:K93,7,FALSE),"") -> 0 | CC45: 0 | CD45: =IFERROR(VLOOKUP(BR45,' العامة نهاية السنة دور اول أ'!B44:K93,7,FALSE),"") -> 0 | CE45: 0 | CF45: =IFERROR(VLOOKUP(BR45,' العامة نهاية السنة دور ثاني أ'!B44:K93,7,FALSE),"") -> 0 | CG45: 0 | CH45: 39 | CI45: ='التلاميذ والقيود '!B41 -> 2545 | CJ45: ='التلاميذ والقيود '!C41 -> ليسينيا ميثم فاضل | CO45: =IFERROR(VLOOKUP(CI45,'العامة نصف السنة أ'!B44:K93,8,FALSE),"") -> 0 | CT45: 0 | CU45: =IFERROR(VLOOKUP(CI45,' العامة نهاية السنة دور اول أ'!B44:K93,8,FALSE),"") -> 0 | CV45: 0 | CW45: =IFERROR(VLOOKUP(CI45,' العامة نهاية السنة دور ثاني أ'!B44:K93,8,FALSE),"") -> 0 | CX45: 0 | CY45: 39 | CZ45: ='التلاميذ والقيود '!B41 -> 2545 | DA45: ='التلاميذ والقيود '!C41 -> ليسينيا ميثم فاضل | DF45: =IFERROR(VLOOKUP(CZ45,'العامة نصف السنة أ'!B44:K93,9,FALSE),"") -> 0 | DK45: 0 | DL45: =IFERROR(VLOOKUP(CZ45,' العامة نهاية السنة دور اول أ'!B44:K93,9,FALSE),"") -> 0 | DM45: 0 | DN45: =IFERROR(VLOOKUP(CZ45,' العامة نهاية السنة دور ثاني أ'!B44:K93,9,FALSE),"") -> 0 | DO45: 0 | DP45: 39 | DQ45: ='التلاميذ والقيود '!B41 -> 2545 | DR45: ='التلاميذ والقيود '!C41 -> ليسينيا ميثم فاضل | DW45: =IFERROR(VLOOKUP(DQ45,'العامة نصف السنة أ'!B44:K93,10,FALSE),"") -> 0 | EB45: 0 | EC45: =IFERROR(VLOOKUP(DQ45,' العامة نهاية السنة دور اول أ'!B44:K93,10,FALSE),"") -> 0 | ED45: 0 | EE45: =IFERROR(VLOOKUP(DQ45,' العامة نهاية السنة دور ثاني أ'!B44:K93,10,FALSE),"") -> 0 | EF45: 0
A46: =IF(B46="","",SUBTOTAL(3,$B$7:B46)) -> 40 | B46: ='التلاميذ والقيود '!B42 -> 2549 | C46: ='التلاميذ والقيود '!C42 -> مريم عقيل حنون | H46: =IFERROR(VLOOKUP(B46,'العامة نصف السنة أ'!B45:D94,3,FALSE),"") -> 0 | M46: 0 | N46: =IFERROR(VLOOKUP(B46,' العامة نهاية السنة دور اول أ'!B45:D94,3,FALSE),"") -> 0 | O46: 0 | P46: =IFERROR(VLOOKUP(B46,' العامة نهاية السنة دور ثاني أ'!B45:D94,3,FALSE),"") -> 0 | Q46: 0 | R46: 40 | S46: ='التلاميذ والقيود '!B42 -> 2549 | T46: ='التلاميذ والقيود '!C42 -> مريم عقيل حنون | Y46: =IFERROR(VLOOKUP(S46,'العامة نصف السنة أ'!B45:K94,4,FALSE),"") -> 0 | AD46: 0 | AE46: =IFERROR(VLOOKUP(S46,' العامة نهاية السنة دور اول أ'!B45:K94,4,FALSE),"") -> 0 | AF46: 0 | AG46: =IFERROR(VLOOKUP(S46,' العامة نهاية السنة دور ثاني أ'!B45:K94,4,FALSE),"") -> 0 | AH46: 0 | AI46: 40 | AJ46: ='التلاميذ والقيود '!B42 -> 2549 | AK46: ='التلاميذ والقيود '!C42 -> مريم عقيل حنون | AP46: =IFERROR(VLOOKUP(AJ46,'العامة نصف السنة أ'!B45:K94,5,FALSE),"") -> 0 | AU46: 0 | AV46: =IFERROR(VLOOKUP(AJ46,' العامة نهاية السنة دور اول أ'!B45:K94,5,FALSE),"") -> 0 | AW46: 0 | AX46: =IFERROR(VLOOKUP(AJ46,' العامة نهاية السنة دور ثاني أ'!B45:K94,5,FALSE),"") -> 0 | AY46: 0 | AZ46: 40 | BA46: ='التلاميذ والقيود '!B42 -> 2549 | BB46: ='التلاميذ والقيود '!C42 -> مريم عقيل حنون | BG46: =IFERROR(VLOOKUP(BA46,'العامة نصف السنة أ'!B45:K94,6,FALSE),"") -> 0 | BL46: 0 | BM46: =IFERROR(VLOOKUP(BA46,' العامة نهاية السنة دور اول أ'!B45:K94,6,FALSE),"") -> 0 | BN46: 0 | BO46: =IFERROR(VLOOKUP(BA46,' العامة نهاية السنة دور ثاني أ'!B45:K94,6,FALSE),"") -> 0 | BP46: 0 | BQ46: 40 | BR46: ='التلاميذ والقيود '!B42 -> 2549 | BS46: ='التلاميذ والقيود '!C42 -> مريم عقيل حنون | BX46: =IFERROR(VLOOKUP(BR46,'العامة نصف السنة أ'!B45:K94,7,FALSE),"") -> 0 | CC46: 0 | CD46: =IFERROR(VLOOKUP(BR46,' العامة نهاية السنة دور اول أ'!B45:K94,7,FALSE),"") -> 0 | CE46: 0 | CF46: =IFERROR(VLOOKUP(BR46,' العامة نهاية السنة دور ثاني أ'!B45:K94,7,FALSE),"") -> 0 | CG46: 0 | CH46: 40 | CI46: ='التلاميذ والقيود '!B42 -> 2549 | CJ46: ='التلاميذ والقيود '!C42 -> مريم عقيل حنون | CO46: =IFERROR(VLOOKUP(CI46,'العامة نصف السنة أ'!B45:K94,8,FALSE),"") -> 0 | CT46: 0 | CU46: =IFERROR(VLOOKUP(CI46,' العامة نهاية السنة دور اول أ'!B45:K94,8,FALSE),"") -> 0 | CV46: 0 | CW46: =IFERROR(VLOOKUP(CI46,' العامة نهاية السنة دور ثاني أ'!B45:K94,8,FALSE),"") -> 0 | CX46: 0 | CY46: 40 | CZ46: ='التلاميذ والقيود '!B42 -> 2549 | DA46: ='التلاميذ والقيود '!C42 -> مريم عقيل حنون | DF46: =IFERROR(VLOOKUP(CZ46,'العامة نصف السنة أ'!B45:K94,9,FALSE),"") -> 0 | DK46: 0 | DL46: =IFERROR(VLOOKUP(CZ46,' العامة نهاية السنة دور اول أ'!B45:K94,9,FALSE),"") -> 0 | DM46: 0 | DN46: =IFERROR(VLOOKUP(CZ46,' العامة نهاية السنة دور ثاني أ'!B45:K94,9,FALSE),"") -> 0 | DO46: 0 | DP46: 40 | DQ46: ='التلاميذ والقيود '!B42 -> 2549 | DR46: ='التلاميذ والقيود '!C42 -> مريم عقيل حنون | DW46: =IFERROR(VLOOKUP(DQ46,'العامة نصف السنة أ'!B45:K94,10,FALSE),"") -> 0 | EB46: 0 | EC46: =IFERROR(VLOOKUP(DQ46,' العامة نهاية السنة دور اول أ'!B45:K94,10,FALSE),"") -> 0 | ED46: 0 | EE46: =IFERROR(VLOOKUP(DQ46,' العامة نهاية السنة دور ثاني أ'!B45:K94,10,FALSE),"") -> 0 | EF46: 0
A47: =IF(B47="","",SUBTOTAL(3,$B$7:B47)) -> 41 | B47: ='التلاميذ والقيود '!B43 -> 2554 | C47: ='التلاميذ والقيود '!C43 -> مريم ماجد رحمه | H47: =IFERROR(VLOOKUP(B47,'العامة نصف السنة أ'!B46:D95,3,FALSE),"") -> 0 | M47: 0 | N47: =IFERROR(VLOOKUP(B47,' العامة نهاية السنة دور اول أ'!B46:D95,3,FALSE),"") -> 0 | O47: 0 | P47: =IFERROR(VLOOKUP(B47,' العامة نهاية السنة دور ثاني أ'!B46:D95,3,FALSE),"") -> 0 | Q47: 0 | R47: 41 | S47: ='التلاميذ والقيود '!B43 -> 2554 | T47: ='التلاميذ والقيود '!C43 -> مريم ماجد رحمه | Y47: =IFERROR(VLOOKUP(S47,'العامة نصف السنة أ'!B46:K95,4,FALSE),"") -> 0 | AD47: 0 | AE47: =IFERROR(VLOOKUP(S47,' العامة نهاية السنة دور اول أ'!B46:K95,4,FALSE),"") -> 0 | AF47: 0 | AG47: =IFERROR(VLOOKUP(S47,' العامة نهاية السنة دور ثاني أ'!B46:K95,4,FALSE),"") -> 0 | AH47: 0 | AI47: 41 | AJ47: ='التلاميذ والقيود '!B43 -> 2554 | AK47: ='التلاميذ والقيود '!C43 -> مريم ماجد رحمه | AP47: =IFERROR(VLOOKUP(AJ47,'العامة نصف السنة أ'!B46:K95,5,FALSE),"") -> 0 | AU47: 0 | AV47: =IFERROR(VLOOKUP(AJ47,' العامة نهاية السنة دور اول أ'!B46:K95,5,FALSE),"") -> 0 | AW47: 0 | AX47: =IFERROR(VLOOKUP(AJ47,' العامة نهاية السنة دور ثاني أ'!B46:K95,5,FALSE),"") -> 0 | AY47: 0 | AZ47: 41 | BA47: ='التلاميذ والقيود '!B43 -> 2554 | BB47: ='التلاميذ والقيود '!C43 -> مريم ماجد رحمه | BG47: =IFERROR(VLOOKUP(BA47,'العامة نصف السنة أ'!B46:K95,6,FALSE),"") -> 0 | BL47: 0 | BM47: =IFERROR(VLOOKUP(BA47,' العامة نهاية السنة دور اول أ'!B46:K95,6,FALSE),"") -> 0 | BN47: 0 | BO47: =IFERROR(VLOOKUP(BA47,' العامة نهاية السنة دور ثاني أ'!B46:K95,6,FALSE),"") -> 0 | BP47: 0 | BQ47: 41 | BR47: ='التلاميذ والقيود '!B43 -> 2554 | BS47: ='التلاميذ والقيود '!C43 -> مريم ماجد رحمه | BX47: =IFERROR(VLOOKUP(BR47,'العامة نصف السنة أ'!B46:K95,7,FALSE),"") -> 0 | CC47: 0 | CD47: =IFERROR(VLOOKUP(BR47,' العامة نهاية السنة دور اول أ'!B46:K95,7,FALSE),"") -> 0 | CE47: 0 | CF47: =IFERROR(VLOOKUP(BR47,' العامة نهاية السنة دور ثاني أ'!B46:K95,7,FALSE),"") -> 0 | CG47: 0 | CH47: 41 | CI47: ='التلاميذ والقيود '!B43 -> 2554 | CJ47: ='التلاميذ والقيود '!C43 -> مريم ماجد رحمه | CO47: =IFERROR(VLOOKUP(CI47,'العامة نصف السنة أ'!B46:K95,8,FALSE),"") -> 0 | CT47: 0 | CU47: =IFERROR(VLOOKUP(CI47,' العامة نهاية السنة دور اول أ'!B46:K95,8,FALSE),"") -> 0 | CV47: 0 | CW47: =IFERROR(VLOOKUP(CI47,' العامة نهاية السنة دور ثاني أ'!B46:K95,8,FALSE),"") -> 0 | CX47: 0 | CY47: 41 | CZ47: ='التلاميذ والقيود '!B43 -> 2554 | DA47: ='التلاميذ والقيود '!C43 -> مريم ماجد رحمه | DF47: =IFERROR(VLOOKUP(CZ47,'العامة نصف السنة أ'!B46:K95,9,FALSE),"") -> 0 | DK47: 0 | DL47: =IFERROR(VLOOKUP(CZ47,' العامة نهاية السنة دور اول أ'!B46:K95,9,FALSE),"") -> 0 | DM47: 0 | DN47: =IFERROR(VLOOKUP(CZ47,' العامة نهاية السنة دور ثاني أ'!B46:K95,9,FALSE),"") -> 0 | DO47: 0 | DP47: 41 | DQ47: ='التلاميذ والقيود '!B43 -> 2554 | DR47: ='التلاميذ والقيود '!C43 -> مريم ماجد رحمه | DW47: =IFERROR(VLOOKUP(DQ47,'العامة نصف السنة أ'!B46:K95,10,FALSE),"") -> 0 | EB47: 0 | EC47: =IFERROR(VLOOKUP(DQ47,' العامة نهاية السنة دور اول أ'!B46:K95,10,FALSE),"") -> 0 | ED47: 0 | EE47: =IFERROR(VLOOKUP(DQ47,' العامة نهاية السنة دور ثاني أ'!B46:K95,10,FALSE),"") -> 0 | EF47: 0
A48: =IF(B48="","",SUBTOTAL(3,$B$7:B48)) -> 42 | B48: ='التلاميذ والقيود '!B44 -> 2524 | C48: ='التلاميذ والقيود '!C44 -> معصومه جواد كاظم | H48: =IFERROR(VLOOKUP(B48,'العامة نصف السنة أ'!B47:D96,3,FALSE),"") -> 0 | M48: 0 | N48: =IFERROR(VLOOKUP(B48,' العامة نهاية السنة دور اول أ'!B47:D96,3,FALSE),"") -> 0 | O48: 0 | P48: =IFERROR(VLOOKUP(B48,' العامة نهاية السنة دور ثاني أ'!B47:D96,3,FALSE),"") -> 0 | Q48: 0 | R48: 42 | S48: ='التلاميذ والقيود '!B44 -> 2524 | T48: ='التلاميذ والقيود '!C44 -> معصومه جواد كاظم | Y48: =IFERROR(VLOOKUP(S48,'العامة نصف السنة أ'!B47:K96,4,FALSE),"") -> 0 | AD48: 0 | AE48: =IFERROR(VLOOKUP(S48,' العامة نهاية السنة دور اول أ'!B47:K96,4,FALSE),"") -> 0 | AF48: 0 | AG48: =IFERROR(VLOOKUP(S48,' العامة نهاية السنة دور ثاني أ'!B47:K96,4,FALSE),"") -> 0 | AH48: 0 | AI48: 42 | AJ48: ='التلاميذ والقيود '!B44 -> 2524 | AK48: ='التلاميذ والقيود '!C44 -> معصومه جواد كاظم | AP48: =IFERROR(VLOOKUP(AJ48,'العامة نصف السنة أ'!B47:K96,5,FALSE),"") -> 0 | AU48: 0 | AV48: =IFERROR(VLOOKUP(AJ48,' العامة نهاية السنة دور اول أ'!B47:K96,5,FALSE),"") -> 0 | AW48: 0 | AX48: =IFERROR(VLOOKUP(AJ48,' العامة نهاية السنة دور ثاني أ'!B47:K96,5,FALSE),"") -> 0 | AY48: 0 | AZ48: 42 | BA48: ='التلاميذ والقيود '!B44 -> 2524 | BB48: ='التلاميذ والقيود '!C44 -> معصومه جواد كاظم | BG48: =IFERROR(VLOOKUP(BA48,'العامة نصف السنة أ'!B47:K96,6,FALSE),"") -> 0 | BL48: 0 | BM48: =IFERROR(VLOOKUP(BA48,' العامة نهاية السنة دور اول أ'!B47:K96,6,FALSE),"") -> 0 | BN48: 0 | BO48: =IFERROR(VLOOKUP(BA48,' العامة نهاية السنة دور ثاني أ'!B47:K96,6,FALSE),"") -> 0 | BP48: 0 | BQ48: 42 | BR48: ='التلاميذ والقيود '!B44 -> 2524 | BS48: ='التلاميذ والقيود '!C44 -> معصومه جواد كاظم | BX48: =IFERROR(VLOOKUP(BR48,'العامة نصف السنة أ'!B47:K96,7,FALSE),"") -> 0 | CC48: 0 | CD48: =IFERROR(VLOOKUP(BR48,' العامة نهاية السنة دور اول أ'!B47:K96,7,FALSE),"") -> 0 | CE48: 0 | CF48: =IFERROR(VLOOKUP(BR48,' العامة نهاية السنة دور ثاني أ'!B47:K96,7,FALSE),"") -> 0 | CG48: 0 | CH48: 42 | CI48: ='التلاميذ والقيود '!B44 -> 2524 | CJ48: ='التلاميذ والقيود '!C44 -> معصومه جواد كاظم | CO48: =IFERROR(VLOOKUP(CI48,'العامة نصف السنة أ'!B47:K96,8,FALSE),"") -> 0 | CT48: 0 | CU48: =IFERROR(VLOOKUP(CI48,' العامة نهاية السنة دور اول أ'!B47:K96,8,FALSE),"") -> 0 | CV48: 0 | CW48: =IFERROR(VLOOKUP(CI48,' العامة نهاية السنة دور ثاني أ'!B47:K96,8,FALSE),"") -> 0 | CX48: 0 | CY48: 42 | CZ48: ='التلاميذ والقيود '!B44 -> 2524 | DA48: ='التلاميذ والقيود '!C44 -> معصومه جواد كاظم | DF48: =IFERROR(VLOOKUP(CZ48,'العامة نصف السنة أ'!B47:K96,9,FALSE),"") -> 0 | DK48: 0 | DL48: =IFERROR(VLOOKUP(CZ48,' العامة نهاية السنة دور اول أ'!B47:K96,9,FALSE),"") -> 0 | DM48: 0 | DN48: =IFERROR(VLOOKUP(CZ48,' العامة نهاية السنة دور ثاني أ'!B47:K96,9,FALSE),"") -> 0 | DO48: 0 | DP48: 42 | DQ48: ='التلاميذ والقيود '!B44 -> 2524 | DR48: ='التلاميذ والقيود '!C44 -> معصومه جواد كاظم | DW48: =IFERROR(VLOOKUP(DQ48,'العامة نصف السنة أ'!B47:K96,10,FALSE),"") -> 0 | EB48: 0 | EC48: =IFERROR(VLOOKUP(DQ48,' العامة نهاية السنة دور اول أ'!B47:K96,10,FALSE),"") -> 0 | ED48: 0 | EE48: =IFERROR(VLOOKUP(DQ48,' العامة نهاية السنة دور ثاني أ'!B47:K96,10,FALSE),"") -> 0 | EF48: 0
A49: =IF(B49="","",SUBTOTAL(3,$B$7:B49)) -> 43 | B49: ='التلاميذ والقيود '!B45 -> 2372 | C49: ='التلاميذ والقيود '!C45 -> ملاك حبيب شمخي | H49: =IFERROR(VLOOKUP(B49,'العامة نصف السنة أ'!B48:D97,3,FALSE),"") -> 0 | M49: 0 | N49: =IFERROR(VLOOKUP(B49,' العامة نهاية السنة دور اول أ'!B48:D97,3,FALSE),"") -> 0 | O49: 0 | P49: =IFERROR(VLOOKUP(B49,' العامة نهاية السنة دور ثاني أ'!B48:D97,3,FALSE),"") -> 0 | Q49: 0 | R49: 43 | S49: ='التلاميذ والقيود '!B45 -> 2372 | T49: ='التلاميذ والقيود '!C45 -> ملاك حبيب شمخي | Y49: =IFERROR(VLOOKUP(S49,'العامة نصف السنة أ'!B48:K97,4,FALSE),"") -> 0 | AD49: 0 | AE49: =IFERROR(VLOOKUP(S49,' العامة نهاية السنة دور اول أ'!B48:K97,4,FALSE),"") -> 0 | AF49: 0 | AG49: =IFERROR(VLOOKUP(S49,' العامة نهاية السنة دور ثاني أ'!B48:K97,4,FALSE),"") -> 0 | AH49: 0 | AI49: 43 | AJ49: ='التلاميذ والقيود '!B45 -> 2372 | AK49: ='التلاميذ والقيود '!C45 -> ملاك حبيب شمخي | AP49: =IFERROR(VLOOKUP(AJ49,'العامة نصف السنة أ'!B48:K97,5,FALSE),"") -> 0 | AU49: 0 | AV49: =IFERROR(VLOOKUP(AJ49,' العامة نهاية السنة دور اول أ'!B48:K97,5,FALSE),"") -> 0 | AW49: 0 | AX49: =IFERROR(VLOOKUP(AJ49,' العامة نهاية السنة دور ثاني أ'!B48:K97,5,FALSE),"") -> 0 | AY49: 0 | AZ49: 43 | BA49: ='التلاميذ والقيود '!B45 -> 2372 | BB49: ='التلاميذ والقيود '!C45 -> ملاك حبيب شمخي | BG49: =IFERROR(VLOOKUP(BA49,'العامة نصف السنة أ'!B48:K97,6,FALSE),"") -> 0 | BL49: 0 | BM49: =IFERROR(VLOOKUP(BA49,' العامة نهاية السنة دور اول أ'!B48:K97,6,FALSE),"") -> 0 | BN49: 0 | BO49: =IFERROR(VLOOKUP(BA49,' العامة نهاية السنة دور ثاني أ'!B48:K97,6,FALSE),"") -> 0 | BP49: 0 | BQ49: 43 | BR49: ='التلاميذ والقيود '!B45 -> 2372 | BS49: ='التلاميذ والقيود '!C45 -> ملاك حبيب شمخي | BX49: =IFERROR(VLOOKUP(BR49,'العامة نصف السنة أ'!B48:K97,7,FALSE),"") -> 0 | CC49: 0 | CD49: =IFERROR(VLOOKUP(BR49,' العامة نهاية السنة دور اول أ'!B48:K97,7,FALSE),"") -> 0 | CE49: 0 | CF49: =IFERROR(VLOOKUP(BR49,' العامة نهاية السنة دور ثاني أ'!B48:K97,7,FALSE),"") -> 0 | CG49: 0 | CH49: 43 | CI49: ='التلاميذ والقيود '!B45 -> 2372 | CJ49: ='التلاميذ والقيود '!C45 -> ملاك حبيب شمخي | CO49: =IFERROR(VLOOKUP(CI49,'العامة نصف السنة أ'!B48:K97,8,FALSE),"") -> 0 | CT49: 0 | CU49: =IFERROR(VLOOKUP(CI49,' العامة نهاية السنة دور اول أ'!B48:K97,8,FALSE),"") -> 0 | CV49: 0 | CW49: =IFERROR(VLOOKUP(CI49,' العامة نهاية السنة دور ثاني أ'!B48:K97,8,FALSE),"") -> 0 | CX49: 0 | CY49: 43 | CZ49: ='التلاميذ والقيود '!B45 -> 2372 | DA49: ='التلاميذ والقيود '!C45 -> ملاك حبيب شمخي | DF49: =IFERROR(VLOOKUP(CZ49,'العامة نصف السنة أ'!B48:K97,9,FALSE),"") -> 0 | DK49: 0 | DL49: =IFERROR(VLOOKUP(CZ49,' العامة نهاية السنة دور اول أ'!B48:K97,9,FALSE),"") -> 0 | DM49: 0 | DN49: =IFERROR(VLOOKUP(CZ49,' العامة نهاية السنة دور ثاني أ'!B48:K97,9,FALSE),"") -> 0 | DO49: 0 | DP49: 43 | DQ49: ='التلاميذ والقيود '!B45 -> 2372 | DR49: ='التلاميذ والقيود '!C45 -> ملاك حبيب شمخي | DW49: =IFERROR(VLOOKUP(DQ49,'العامة نصف السنة أ'!B48:K97,10,FALSE),"") -> 0 | EB49: 0 | EC49: =IFERROR(VLOOKUP(DQ49,' العامة نهاية السنة دور اول أ'!B48:K97,10,FALSE),"") -> 0 | ED49: 0 | EE49: =IFERROR(VLOOKUP(DQ49,' العامة نهاية السنة دور ثاني أ'!B48:K97,10,FALSE),"") -> 0 | EF49: 0
A50: =IF(B50="","",SUBTOTAL(3,$B$7:B50)) -> 44 | B50: ='التلاميذ والقيود '!B46 -> 2535 | C50: ='التلاميذ والقيود '!C46 -> ميار حمزة مزهر | H50: =IFERROR(VLOOKUP(B50,'العامة نصف السنة أ'!B49:D98,3,FALSE),"") -> 0 | M50: 0 | N50: =IFERROR(VLOOKUP(B50,' العامة نهاية السنة دور اول أ'!B49:D98,3,FALSE),"") -> 0 | O50: 0 | P50: =IFERROR(VLOOKUP(B50,' العامة نهاية السنة دور ثاني أ'!B49:D98,3,FALSE),"") -> 0 | Q50: 0 | R50: 44 | S50: ='التلاميذ والقيود '!B46 -> 2535 | T50: ='التلاميذ والقيود '!C46 -> ميار حمزة مزهر | Y50: =IFERROR(VLOOKUP(S50,'العامة نصف السنة أ'!B49:K98,4,FALSE),"") -> 0 | AD50: 0 | AE50: =IFERROR(VLOOKUP(S50,' العامة نهاية السنة دور اول أ'!B49:K98,4,FALSE),"") -> 0 | AF50: 0 | AG50: =IFERROR(VLOOKUP(S50,' العامة نهاية السنة دور ثاني أ'!B49:K98,4,FALSE),"") -> 0 | AH50: 0 | AI50: 44 | AJ50: ='التلاميذ والقيود '!B46 -> 2535 | AK50: ='التلاميذ والقيود '!C46 -> ميار حمزة مزهر | AP50: =IFERROR(VLOOKUP(AJ50,'العامة نصف السنة أ'!B49:K98,5,FALSE),"") -> 0 | AU50: 0 | AV50: =IFERROR(VLOOKUP(AJ50,' العامة نهاية السنة دور اول أ'!B49:K98,5,FALSE),"") -> 0 | AW50: 0 | AX50: =IFERROR(VLOOKUP(AJ50,' العامة نهاية السنة دور ثاني أ'!B49:K98,5,FALSE),"") -> 0 | AY50: 0 | AZ50: 44 | BA50: ='التلاميذ والقيود '!B46 -> 2535 | BB50: ='التلاميذ والقيود '!C46 -> ميار حمزة مزهر | BG50: =IFERROR(VLOOKUP(BA50,'العامة نصف السنة أ'!B49:K98,6,FALSE),"") -> 0 | BL50: 0 | BM50: =IFERROR(VLOOKUP(BA50,' العامة نهاية السنة دور اول أ'!B49:K98,6,FALSE),"") -> 0 | BN50: 0 | BO50: =IFERROR(VLOOKUP(BA50,' العامة نهاية السنة دور ثاني أ'!B49:K98,6,FALSE),"") -> 0 | BP50: 0 | BQ50: 44 | BR50: ='التلاميذ والقيود '!B46 -> 2535 | BS50: ='التلاميذ والقيود '!C46 -> ميار حمزة مزهر | BX50: =IFERROR(VLOOKUP(BR50,'العامة نصف السنة أ'!B49:K98,7,FALSE),"") -> 0 | CC50: 0 | CD50: =IFERROR(VLOOKUP(BR50,' العامة نهاية السنة دور اول أ'!B49:K98,7,FALSE),"") -> 0 | CE50: 0 | CF50: =IFERROR(VLOOKUP(BR50,' العامة نهاية السنة دور ثاني أ'!B49:K98,7,FALSE),"") -> 0 | CG50: 0 | CH50: 44 | CI50: ='التلاميذ والقيود '!B46 -> 2535 | CJ50: ='التلاميذ والقيود '!C46 -> ميار حمزة مزهر | CO50: =IFERROR(VLOOKUP(CI50,'العامة نصف السنة أ'!B49:K98,8,FALSE),"") -> 0 | CT50: 0 | CU50: =IFERROR(VLOOKUP(CI50,' العامة نهاية السنة دور اول أ'!B49:K98,8,FALSE),"") -> 0 | CV50: 0 | CW50: =IFERROR(VLOOKUP(CI50,' العامة نهاية السنة دور ثاني أ'!B49:K98,8,FALSE),"") -> 0 | CX50: 0 | CY50: 44 | CZ50: ='التلاميذ والقيود '!B46 -> 2535 | DA50: ='التلاميذ والقيود '!C46 -> ميار حمزة مزهر | DF50: =IFERROR(VLOOKUP(CZ50,'العامة نصف السنة أ'!B49:K98,9,FALSE),"") -> 0 | DK50: 0 | DL50: =IFERROR(VLOOKUP(CZ50,' العامة نهاية السنة دور اول أ'!B49:K98,9,FALSE),"") -> 0 | DM50: 0 | DN50: =IFERROR(VLOOKUP(CZ50,' العامة نهاية السنة دور ثاني أ'!B49:K98,9,FALSE),"") -> 0 | DO50: 0 | DP50: 44 | DQ50: ='التلاميذ والقيود '!B46 -> 2535 | DR50: ='التلاميذ والقيود '!C46 -> ميار حمزة مزهر | DW50: =IFERROR(VLOOKUP(DQ50,'العامة نصف السنة أ'!B49:K98,10,FALSE),"") -> 0 | EB50: 0 | EC50: =IFERROR(VLOOKUP(DQ50,' العامة نهاية السنة دور اول أ'!B49:K98,10,FALSE),"") -> 0 | ED50: 0 | EE50: =IFERROR(VLOOKUP(DQ50,' العامة نهاية السنة دور ثاني أ'!B49:K98,10,FALSE),"") -> 0 | EF50: 0
A51: =IF(B51="","",SUBTOTAL(3,$B$7:B51)) -> 45 | B51: ='التلاميذ والقيود '!B47 -> 2584 | C51: ='التلاميذ والقيود '!C47 -> نبأ احمد عبد الحسين | H51: =IFERROR(VLOOKUP(B51,'العامة نصف السنة أ'!B50:D99,3,FALSE),"") -> 0 | M51: 0 | N51: =IFERROR(VLOOKUP(B51,' العامة نهاية السنة دور اول أ'!B50:D99,3,FALSE),"") -> 0 | O51: 0 | P51: =IFERROR(VLOOKUP(B51,' العامة نهاية السنة دور ثاني أ'!B50:D99,3,FALSE),"") -> 0 | Q51: 0 | R51: 45 | S51: ='التلاميذ والقيود '!B47 -> 2584 | T51: ='التلاميذ والقيود '!C47 -> نبأ احمد عبد الحسين | Y51: =IFERROR(VLOOKUP(S51,'العامة نصف السنة أ'!B50:K99,4,FALSE),"") -> 0 | AD51: 0 | AE51: =IFERROR(VLOOKUP(S51,' العامة نهاية السنة دور اول أ'!B50:K99,4,FALSE),"") -> 0 | AF51: 0 | AG51: =IFERROR(VLOOKUP(S51,' العامة نهاية السنة دور ثاني أ'!B50:K99,4,FALSE),"") -> 0 | AH51: 0 | AI51: 45 | AJ51: ='التلاميذ والقيود '!B47 -> 2584 | AK51: ='التلاميذ والقيود '!C47 -> نبأ احمد عبد الحسين | AP51: =IFERROR(VLOOKUP(AJ51,'العامة نصف السنة أ'!B50:K99,5,FALSE),"") -> 0 | AU51: 0 | AV51: =IFERROR(VLOOKUP(AJ51,' العامة نهاية السنة دور اول أ'!B50:K99,5,FALSE),"") -> 0 | AW51: 0 | AX51: =IFERROR(VLOOKUP(AJ51,' العامة نهاية السنة دور ثاني أ'!B50:K99,5,FALSE),"") -> 0 | AY51: 0 | AZ51: 45 | BA51: ='التلاميذ والقيود '!B47 -> 2584 | BB51: ='التلاميذ والقيود '!C47 -> نبأ احمد عبد الحسين | BG51: =IFERROR(VLOOKUP(BA51,'العامة نصف السنة أ'!B50:K99,6,FALSE),"") -> 0 | BL51: 0 | BM51: =IFERROR(VLOOKUP(BA51,' العامة نهاية السنة دور اول أ'!B50:K99,6,FALSE),"") -> 0 | BN51: 0 | BO51: =IFERROR(VLOOKUP(BA51,' العامة نهاية السنة دور ثاني أ'!B50:K99,6,FALSE),"") -> 0 | BP51: 0 | BQ51: 45 | BR51: ='التلاميذ والقيود '!B47 -> 2584 | BS51: ='التلاميذ والقيود '!C47 -> نبأ احمد عبد الحسين | BX51: =IFERROR(VLOOKUP(BR51,'العامة نصف السنة أ'!B50:K99,7,FALSE),"") -> 0 | CC51: 0 | CD51: =IFERROR(VLOOKUP(BR51,' العامة نهاية السنة دور اول أ'!B50:K99,7,FALSE),"") -> 0 | CE51: 0 | CF51: =IFERROR(VLOOKUP(BR51,' العامة نهاية السنة دور ثاني أ'!B50:K99,7,FALSE),"") -> 0 | CG51: 0 | CH51: 45 | CI51: ='التلاميذ والقيود '!B47 -> 2584 | CJ51: ='التلاميذ والقيود '!C47 -> نبأ احمد عبد الحسين | CO51: =IFERROR(VLOOKUP(CI51,'العامة نصف السنة أ'!B50:K99,8,FALSE),"") -> 0 | CT51: 0 | CU51: =IFERROR(VLOOKUP(CI51,' العامة نهاية السنة دور اول أ'!B50:K99,8,FALSE),"") -> 0 | CV51: 0 | CW51: =IFERROR(VLOOKUP(CI51,' العامة نهاية السنة دور ثاني أ'!B50:K99,8,FALSE),"") -> 0 | CX51: 0 | CY51: 45 | CZ51: ='التلاميذ والقيود '!B47 -> 2584 | DA51: ='التلاميذ والقيود '!C47 -> نبأ احمد عبد الحسين | DF51: =IFERROR(VLOOKUP(CZ51,'العامة نصف السنة أ'!B50:K99,9,FALSE),"") -> 0 | DK51: 0 | DL51: =IFERROR(VLOOKUP(CZ51,' العامة نهاية السنة دور اول أ'!B50:K99,9,FALSE),"") -> 0 | DM51: 0 | DN51: =IFERROR(VLOOKUP(CZ51,' العامة نهاية السنة دور ثاني أ'!B50:K99,9,FALSE),"") -> 0 | DO51: 0 | DP51: 45 | DQ51: ='التلاميذ والقيود '!B47 -> 2584 | DR51: ='التلاميذ والقيود '!C47 -> نبأ احمد عبد الحسين | DW51: =IFERROR(VLOOKUP(DQ51,'العامة نصف السنة أ'!B50:K99,10,FALSE),"") -> 0 | EB51: 0 | EC51: =IFERROR(VLOOKUP(DQ51,' العامة نهاية السنة دور اول أ'!B50:K99,10,FALSE),"") -> 0 | ED51: 0 | EE51: =IFERROR(VLOOKUP(DQ51,' العامة نهاية السنة دور ثاني أ'!B50:K99,10,FALSE),"") -> 0 | EF51: 0
A52: =IF(B52="","",SUBTOTAL(3,$B$7:B52)) -> 46 | B52: ='التلاميذ والقيود '!B48 -> 2897 | C52: ='التلاميذ والقيود '!C48 -> هديل يوسف | H52: =IFERROR(VLOOKUP(B52,'العامة نصف السنة أ'!B51:D100,3,FALSE),"") -> 0 | M52: 0 | N52: =IFERROR(VLOOKUP(B52,' العامة نهاية السنة دور اول أ'!B51:D100,3,FALSE),"") -> 0 | O52: 0 | P52: =IFERROR(VLOOKUP(B52,' العامة نهاية السنة دور ثاني أ'!B51:D100,3,FALSE),"") -> 0 | Q52: 0 | R52: 46 | S52: ='التلاميذ والقيود '!B48 -> 2897 | T52: ='التلاميذ والقيود '!C48 -> هديل يوسف | Y52: =IFERROR(VLOOKUP(S52,'العامة نصف السنة أ'!B51:K100,4,FALSE),"") -> 0 | AD52: 0 | AE52: =IFERROR(VLOOKUP(S52,' العامة نهاية السنة دور اول أ'!B51:K100,4,FALSE),"") -> 0 | AF52: 0 | AG52: =IFERROR(VLOOKUP(S52,' العامة نهاية السنة دور ثاني أ'!B51:K100,4,FALSE),"") -> 0 | AH52: 0 | AI52: 46 | AJ52: ='التلاميذ والقيود '!B48 -> 2897 | AK52: ='التلاميذ والقيود '!C48 -> هديل يوسف | AP52: =IFERROR(VLOOKUP(AJ52,'العامة نصف السنة أ'!B51:K100,5,FALSE),"") -> 0 | AU52: 0 | AV52: =IFERROR(VLOOKUP(AJ52,' العامة نهاية السنة دور اول أ'!B51:K100,5,FALSE),"") -> 0 | AW52: 0 | AX52: =IFERROR(VLOOKUP(AJ52,' العامة نهاية السنة دور ثاني أ'!B51:K100,5,FALSE),"") -> 0 | AY52: 0 | AZ52: 46 | BA52: ='التلاميذ والقيود '!B48 -> 2897 | BB52: ='التلاميذ والقيود '!C48 -> هديل يوسف | BG52: =IFERROR(VLOOKUP(BA52,'العامة نصف السنة أ'!B51:K100,6,FALSE),"") -> 0 | BL52: 0 | BM52: =IFERROR(VLOOKUP(BA52,' العامة نهاية السنة دور اول أ'!B51:K100,6,FALSE),"") -> 0 | BN52: 0 | BO52: =IFERROR(VLOOKUP(BA52,' العامة نهاية السنة دور ثاني أ'!B51:K100,6,FALSE),"") -> 0 | BP52: 0 | BQ52: 46 | BR52: ='التلاميذ والقيود '!B48 -> 2897 | BS52: ='التلاميذ والقيود '!C48 -> هديل يوسف | BX52: =IFERROR(VLOOKUP(BR52,'العامة نصف السنة أ'!B51:K100,7,FALSE),"") -> 0 | CC52: 0 | CD52: =IFERROR(VLOOKUP(BR52,' العامة نهاية السنة دور اول أ'!B51:K100,7,FALSE),"") -> 0 | CE52: 0 | CF52: =IFERROR(VLOOKUP(BR52,' العامة نهاية السنة دور ثاني أ'!B51:K100,7,FALSE),"") -> 0 | CG52: 0 | CH52: 46 | CI52: ='التلاميذ والقيود '!B48 -> 2897 | CJ52: ='التلاميذ والقيود '!C48 -> هديل يوسف | CO52: =IFERROR(VLOOKUP(CI52,'العامة نصف السنة أ'!B51:K100,8,FALSE),"") -> 0 | CT52: 0 | CU52: =IFERROR(VLOOKUP(CI52,' العامة نهاية السنة دور اول أ'!B51:K100,8,FALSE),"") -> 0 | CV52: 0 | CW52: =IFERROR(VLOOKUP(CI52,' العامة نهاية السنة دور ثاني أ'!B51:K100,8,FALSE),"") -> 0 | CX52: 0 | CY52: 46 | CZ52: ='التلاميذ والقيود '!B48 -> 2897 | DA52: ='التلاميذ والقيود '!C48 -> هديل يوسف | DF52: =IFERROR(VLOOKUP(CZ52,'العامة نصف السنة أ'!B51:K100,9,FALSE),"") -> 0 | DK52: 0 | DL52: =IFERROR(VLOOKUP(CZ52,' العامة نهاية السنة دور اول أ'!B51:K100,9,FALSE),"") -> 0 | DM52: 0 | DN52: =IFERROR(VLOOKUP(CZ52,' العامة نهاية السنة دور ثاني أ'!B51:K100,9,FALSE),"") -> 0 | DO52: 0 | DP52: 46 | DQ52: ='التلاميذ والقيود '!B48 -> 2897 | DR52: ='التلاميذ والقيود '!C48 -> هديل يوسف | DW52: =IFERROR(VLOOKUP(DQ52,'العامة نصف السنة أ'!B51:K100,10,FALSE),"") -> 0 | EB52: 0 | EC52: =IFERROR(VLOOKUP(DQ52,' العامة نهاية السنة دور اول أ'!B51:K100,10,FALSE),"") -> 0 | ED52: 0 | EE52: =IFERROR(VLOOKUP(DQ52,' العامة نهاية السنة دور ثاني أ'!B51:K100,10,FALSE),"") -> 0 | EF52: 0
A53: =IF(B53="","",SUBTOTAL(3,$B$7:B53)) -> 47 | B53: ='التلاميذ والقيود '!B49 -> 0 | C53: ='التلاميذ والقيود '!C49 -> 0 | H53: =IFERROR(VLOOKUP(B53,'العامة نصف السنة أ'!B52:D101,3,FALSE),"") -> 0 | M53: 0 | N53: =IFERROR(VLOOKUP(B53,' العامة نهاية السنة دور اول أ'!B52:D101,3,FALSE),"") -> 0 | O53: 0 | P53: =IFERROR(VLOOKUP(B53,' العامة نهاية السنة دور ثاني أ'!B52:D101,3,FALSE),"") -> 0 | Q53: 0 | R53: 47 | S53: ='التلاميذ والقيود '!B49 -> 0 | T53: ='التلاميذ والقيود '!C49 -> 0 | Y53: =IFERROR(VLOOKUP(S53,'العامة نصف السنة أ'!B52:K101,4,FALSE),"") -> 0 | AD53: 0 | AE53: =IFERROR(VLOOKUP(S53,' العامة نهاية السنة دور اول أ'!B52:K101,4,FALSE),"") -> 0 | AF53: 0 | AG53: =IFERROR(VLOOKUP(S53,' العامة نهاية السنة دور ثاني أ'!B52:K101,4,FALSE),"") -> 0 | AH53: 0 | AI53: 47 | AJ53: ='التلاميذ والقيود '!B49 -> 0 | AK53: ='التلاميذ والقيود '!C49 -> 0 | AP53: =IFERROR(VLOOKUP(AJ53,'العامة نصف السنة أ'!B52:K101,5,FALSE),"") -> 0 | AU53: 0 | AV53: =IFERROR(VLOOKUP(AJ53,' العامة نهاية السنة دور اول أ'!B52:K101,5,FALSE),"") -> 0 | AW53: 0 | AX53: =IFERROR(VLOOKUP(AJ53,' العامة نهاية السنة دور ثاني أ'!B52:K101,5,FALSE),"") -> 0 | AY53: 0 | AZ53: 47 | BA53: ='التلاميذ والقيود '!B49 -> 0 | BB53: ='التلاميذ والقيود '!C49 -> 0 | BG53: =IFERROR(VLOOKUP(BA53,'العامة نصف السنة أ'!B52:K101,6,FALSE),"") -> 0 | BL53: 0 | BM53: =IFERROR(VLOOKUP(BA53,' العامة نهاية السنة دور اول أ'!B52:K101,6,FALSE),"") -> 0 | BN53: 0 | BO53: =IFERROR(VLOOKUP(BA53,' العامة نهاية السنة دور ثاني أ'!B52:K101,6,FALSE),"") -> 0 | BP53: 0 | BQ53: 47 | BR53: ='التلاميذ والقيود '!B49 -> 0 | BS53: ='التلاميذ والقيود '!C49 -> 0 | BX53: =IFERROR(VLOOKUP(BR53,'العامة نصف السنة أ'!B52:K101,7,FALSE),"") -> 0 | CC53: 0 | CD53: =IFERROR(VLOOKUP(BR53,' العامة نهاية السنة دور اول أ'!B52:K101,7,FALSE),"") -> 0 | CE53: 0 | CF53: =IFERROR(VLOOKUP(BR53,' العامة نهاية السنة دور ثاني أ'!B52:K101,7,FALSE),"") -> 0 | CG53: 0 | CH53: 47 | CI53: ='التلاميذ والقيود '!B49 -> 0 | CJ53: ='التلاميذ والقيود '!C49 -> 0 | CO53: =IFERROR(VLOOKUP(CI53,'العامة نصف السنة أ'!B52:K101,8,FALSE),"") -> 0 | CT53: 0 | CU53: =IFERROR(VLOOKUP(CI53,' العامة نهاية السنة دور اول أ'!B52:K101,8,FALSE),"") -> 0 | CV53: 0 | CW53: =IFERROR(VLOOKUP(CI53,' العامة نهاية السنة دور ثاني أ'!B52:K101,8,FALSE),"") -> 0 | CX53: 0 | CY53: 47 | CZ53: ='التلاميذ والقيود '!B49 -> 0 | DA53: ='التلاميذ والقيود '!C49 -> 0 | DF53: =IFERROR(VLOOKUP(CZ53,'العامة نصف السنة أ'!B52:K101,9,FALSE),"") -> 0 | DK53: 0 | DL53: =IFERROR(VLOOKUP(CZ53,' العامة نهاية السنة دور اول أ'!B52:K101,9,FALSE),"") -> 0 | DM53: 0 | DN53: =IFERROR(VLOOKUP(CZ53,' العامة نهاية السنة دور ثاني أ'!B52:K101,9,FALSE),"") -> 0 | DO53: 0 | DP53: 47 | DQ53: ='التلاميذ والقيود '!B49 -> 0 | DR53: ='التلاميذ والقيود '!C49 -> 0 | DW53: =IFERROR(VLOOKUP(DQ53,'العامة نصف السنة أ'!B52:K101,10,FALSE),"") -> 0 | EB53: 0 | EC53: =IFERROR(VLOOKUP(DQ53,' العامة نهاية السنة دور اول أ'!B52:K101,10,FALSE),"") -> 0 | ED53: 0 | EE53: =IFERROR(VLOOKUP(DQ53,' العامة نهاية السنة دور ثاني أ'!B52:K101,10,FALSE),"") -> 0 | EF53: 0
A54: =IF(B54="","",SUBTOTAL(3,$B$7:B54)) -> 48 | B54: ='التلاميذ والقيود '!B50 -> 0 | C54: ='التلاميذ والقيود '!C50 -> 0 | H54: =IFERROR(VLOOKUP(B54,'العامة نصف السنة أ'!B53:D102,3,FALSE),"") -> 0 | M54: 0 | N54: =IFERROR(VLOOKUP(B54,' العامة نهاية السنة دور اول أ'!B53:D102,3,FALSE),"") -> 0 | O54: 0 | P54: =IFERROR(VLOOKUP(B54,' العامة نهاية السنة دور ثاني أ'!B53:D102,3,FALSE),"") -> 0 | Q54: 0 | R54: 48 | S54: ='التلاميذ والقيود '!B50 -> 0 | T54: ='التلاميذ والقيود '!C50 -> 0 | Y54: =IFERROR(VLOOKUP(S54,'العامة نصف السنة أ'!B53:K102,4,FALSE),"") -> 0 | AD54: 0 | AE54: =IFERROR(VLOOKUP(S54,' العامة نهاية السنة دور اول أ'!B53:K102,4,FALSE),"") -> 0 | AF54: 0 | AG54: =IFERROR(VLOOKUP(S54,' العامة نهاية السنة دور ثاني أ'!B53:K102,4,FALSE),"") -> 0 | AH54: 0 | AI54: 48 | AJ54: ='التلاميذ والقيود '!B50 -> 0 | AK54: ='التلاميذ والقيود '!C50 -> 0 | AP54: =IFERROR(VLOOKUP(AJ54,'العامة نصف السنة أ'!B53:K102,5,FALSE),"") -> 0 | AU54: 0 | AV54: =IFERROR(VLOOKUP(AJ54,' العامة نهاية السنة دور اول أ'!B53:K102,5,FALSE),"") -> 0 | AW54: 0 | AX54: =IFERROR(VLOOKUP(AJ54,' العامة نهاية السنة دور ثاني أ'!B53:K102,5,FALSE),"") -> 0 | AY54: 0 | AZ54: 48 | BA54: ='التلاميذ والقيود '!B50 -> 0 | BB54: ='التلاميذ والقيود '!C50 -> 0 | BG54: =IFERROR(VLOOKUP(BA54,'العامة نصف السنة أ'!B53:K102,6,FALSE),"") -> 0 | BL54: 0 | BM54: =IFERROR(VLOOKUP(BA54,' العامة نهاية السنة دور اول أ'!B53:K102,6,FALSE),"") -> 0 | BN54: 0 | BO54: =IFERROR(VLOOKUP(BA54,' العامة نهاية السنة دور ثاني أ'!B53:K102,6,FALSE),"") -> 0 | BP54: 0 | BQ54: 48 | BR54: ='التلاميذ والقيود '!B50 -> 0 | BS54: ='التلاميذ والقيود '!C50 -> 0 | BX54: =IFERROR(VLOOKUP(BR54,'العامة نصف السنة أ'!B53:K102,7,FALSE),"") -> 0 | CC54: 0 | CD54: =IFERROR(VLOOKUP(BR54,' العامة نهاية السنة دور اول أ'!B53:K102,7,FALSE),"") -> 0 | CE54: 0 | CF54: =IFERROR(VLOOKUP(BR54,' العامة نهاية السنة دور ثاني أ'!B53:K102,7,FALSE),"") -> 0 | CG54: 0 | CH54: 48 | CI54: ='التلاميذ والقيود '!B50 -> 0 | CJ54: ='التلاميذ والقيود '!C50 -> 0 | CO54: =IFERROR(VLOOKUP(CI54,'العامة نصف السنة أ'!B53:K102,8,FALSE),"") -> 0 | CT54: 0 | CU54: =IFERROR(VLOOKUP(CI54,' العامة نهاية السنة دور اول أ'!B53:K102,8,FALSE),"") -> 0 | CV54: 0 | CW54: =IFERROR(VLOOKUP(CI54,' العامة نهاية السنة دور ثاني أ'!B53:K102,8,FALSE),"") -> 0 | CX54: 0 | CY54: 48 | CZ54: ='التلاميذ والقيود '!B50 -> 0 | DA54: ='التلاميذ والقيود '!C50 -> 0 | DF54: =IFERROR(VLOOKUP(CZ54,'العامة نصف السنة أ'!B53:K102,9,FALSE),"") -> 0 | DK54: 0 | DL54: =IFERROR(VLOOKUP(CZ54,' العامة نهاية السنة دور اول أ'!B53:K102,9,FALSE),"") -> 0 | DM54: 0 | DN54: =IFERROR(VLOOKUP(CZ54,' العامة نهاية السنة دور ثاني أ'!B53:K102,9,FALSE),"") -> 0 | DO54: 0 | DP54: 48 | DQ54: ='التلاميذ والقيود '!B50 -> 0 | DR54: ='التلاميذ والقيود '!C50 -> 0 | DW54: =IFERROR(VLOOKUP(DQ54,'العامة نصف السنة أ'!B53:K102,10,FALSE),"") -> 0 | EB54: 0 | EC54: =IFERROR(VLOOKUP(DQ54,' العامة نهاية السنة دور اول أ'!B53:K102,10,FALSE),"") -> 0 | ED54: 0 | EE54: =IFERROR(VLOOKUP(DQ54,' العامة نهاية السنة دور ثاني أ'!B53:K102,10,FALSE),"") -> 0 | EF54: 0
A55: =IF(B55="","",SUBTOTAL(3,$B$7:B55)) -> 49 | B55: ='التلاميذ والقيود '!B51 -> 0 | C55: ='التلاميذ والقيود '!C51 -> 0 | H55: =IFERROR(VLOOKUP(B55,'العامة نصف السنة أ'!B54:D103,3,FALSE),"") -> 0 | M55: 0 | N55: =IFERROR(VLOOKUP(B55,' العامة نهاية السنة دور اول أ'!B54:D103,3,FALSE),"") -> 0 | O55: 0 | P55: =IFERROR(VLOOKUP(B55,' العامة نهاية السنة دور ثاني أ'!B54:D103,3,FALSE),"") -> 0 | Q55: 0 | R55: 49 | S55: ='التلاميذ والقيود '!B51 -> 0 | T55: ='التلاميذ والقيود '!C51 -> 0 | Y55: =IFERROR(VLOOKUP(S55,'العامة نصف السنة أ'!B54:K103,4,FALSE),"") -> 0 | AD55: 0 | AE55: =IFERROR(VLOOKUP(S55,' العامة نهاية السنة دور اول أ'!B54:K103,4,FALSE),"") -> 0 | AF55: 0 | AG55: =IFERROR(VLOOKUP(S55,' العامة نهاية السنة دور ثاني أ'!B54:K103,4,FALSE),"") -> 0 | AH55: 0 | AI55: 49 | AJ55: ='التلاميذ والقيود '!B51 -> 0 | AK55: ='التلاميذ والقيود '!C51 -> 0 | AP55: =IFERROR(VLOOKUP(AJ55,'العامة نصف السنة أ'!B54:K103,5,FALSE),"") -> 0 | AU55: 0 | AV55: =IFERROR(VLOOKUP(AJ55,' العامة نهاية السنة دور اول أ'!B54:K103,5,FALSE),"") -> 0 | AW55: 0 | AX55: =IFERROR(VLOOKUP(AJ55,' العامة نهاية السنة دور ثاني أ'!B54:K103,5,FALSE),"") -> 0 | AY55: 0 | AZ55: 49 | BA55: ='التلاميذ والقيود '!B51 -> 0 | BB55: ='التلاميذ والقيود '!C51 -> 0 | BG55: =IFERROR(VLOOKUP(BA55,'العامة نصف السنة أ'!B54:K103,6,FALSE),"") -> 0 | BL55: 0 | BM55: =IFERROR(VLOOKUP(BA55,' العامة نهاية السنة دور اول أ'!B54:K103,6,FALSE),"") -> 0 | BN55: 0 | BO55: =IFERROR(VLOOKUP(BA55,' العامة نهاية السنة دور ثاني أ'!B54:K103,6,FALSE),"") -> 0 | BP55: 0 | BQ55: 49 | BR55: ='التلاميذ والقيود '!B51 -> 0 | BS55: ='التلاميذ والقيود '!C51 -> 0 | BX55: =IFERROR(VLOOKUP(BR55,'العامة نصف السنة أ'!B54:K103,7,FALSE),"") -> 0 | CC55: 0 | CD55: =IFERROR(VLOOKUP(BR55,' العامة نهاية السنة دور اول أ'!B54:K103,7,FALSE),"") -> 0 | CE55: 0 | CF55: =IFERROR(VLOOKUP(BR55,' العامة نهاية السنة دور ثاني أ'!B54:K103,7,FALSE),"") -> 0 | CG55: 0 | CH55: 49 | CI55: ='التلاميذ والقيود '!B51 -> 0 | CJ55: ='التلاميذ والقيود '!C51 -> 0 | CO55: =IFERROR(VLOOKUP(CI55,'العامة نصف السنة أ'!B54:K103,8,FALSE),"") -> 0 | CT55: 0 | CU55: =IFERROR(VLOOKUP(CI55,' العامة نهاية السنة دور اول أ'!B54:K103,8,FALSE),"") -> 0 | CV55: 0 | CW55: =IFERROR(VLOOKUP(CI55,' العامة نهاية السنة دور ثاني أ'!B54:K103,8,FALSE),"") -> 0 | CX55: 0 | CY55: 49 | CZ55: ='التلاميذ والقيود '!B51 -> 0 | DA55: ='التلاميذ والقيود '!C51 -> 0 | DF55: =IFERROR(VLOOKUP(CZ55,'العامة نصف السنة أ'!B54:K103,9,FALSE),"") -> 0 | DK55: 0 | DL55: =IFERROR(VLOOKUP(CZ55,' العامة نهاية السنة دور اول أ'!B54:K103,9,FALSE),"") -> 0 | DM55: 0 | DN55: =IFERROR(VLOOKUP(CZ55,' العامة نهاية السنة دور ثاني أ'!B54:K103,9,FALSE),"") -> 0 | DO55: 0 | DP55: 49 | DQ55: ='التلاميذ والقيود '!B51 -> 0 | DR55: ='التلاميذ والقيود '!C51 -> 0 | DW55: =IFERROR(VLOOKUP(DQ55,'العامة نصف السنة أ'!B54:K103,10,FALSE),"") -> 0 | EB55: 0 | EC55: =IFERROR(VLOOKUP(DQ55,' العامة نهاية السنة دور اول أ'!B54:K103,10,FALSE),"") -> 0 | ED55: 0 | EE55: =IFERROR(VLOOKUP(DQ55,' العامة نهاية السنة دور ثاني أ'!B54:K103,10,FALSE),"") -> 0 | EF55: 0
A56: =IF(B56="","",SUBTOTAL(3,$B$7:B56)) -> 50 | B56: ='التلاميذ والقيود '!B52 -> 0 | C56: ='التلاميذ والقيود '!C52 -> 0 | H56: =IFERROR(VLOOKUP(B56,'العامة نصف السنة أ'!B55:D104,3,FALSE),"") -> 0 | M56: 0 | N56: =IFERROR(VLOOKUP(B56,' العامة نهاية السنة دور اول أ'!B55:D104,3,FALSE),"") -> 0 | O56: 0 | P56: =IFERROR(VLOOKUP(B56,' العامة نهاية السنة دور ثاني أ'!B55:D104,3,FALSE),"") -> 0 | Q56: 0 | R56: 50 | S56: ='التلاميذ والقيود '!B52 -> 0 | T56: ='التلاميذ والقيود '!C52 -> 0 | Y56: =IFERROR(VLOOKUP(S56,'العامة نصف السنة أ'!B55:K104,4,FALSE),"") -> 0 | AD56: 0 | AE56: =IFERROR(VLOOKUP(S56,' العامة نهاية السنة دور اول أ'!B55:K104,4,FALSE),"") -> 0 | AF56: 0 | AG56: =IFERROR(VLOOKUP(S56,' العامة نهاية السنة دور ثاني أ'!B55:K104,4,FALSE),"") -> 0 | AH56: 0 | AI56: 50 | AJ56: ='التلاميذ والقيود '!B52 -> 0 | AK56: ='التلاميذ والقيود '!C52 -> 0 | AP56: =IFERROR(VLOOKUP(AJ56,'العامة نصف السنة أ'!B55:K104,5,FALSE),"") -> 0 | AU56: 0 | AV56: =IFERROR(VLOOKUP(AJ56,' العامة نهاية السنة دور اول أ'!B55:K104,5,FALSE),"") -> 0 | AW56: 0 | AX56: =IFERROR(VLOOKUP(AJ56,' العامة نهاية السنة دور ثاني أ'!B55:K104,5,FALSE),"") -> 0 | AY56: 0 | AZ56: 50 | BA56: ='التلاميذ والقيود '!B52 -> 0 | BB56: ='التلاميذ والقيود '!C52 -> 0 | BG56: =IFERROR(VLOOKUP(BA56,'العامة نصف السنة أ'!B55:K104,6,FALSE),"") -> 0 | BL56: 0 | BM56: =IFERROR(VLOOKUP(BA56,' العامة نهاية السنة دور اول أ'!B55:K104,6,FALSE),"") -> 0 | BN56: 0 | BO56: =IFERROR(VLOOKUP(BA56,' العامة نهاية السنة دور ثاني أ'!B55:K104,6,FALSE),"") -> 0 | BP56: 0 | BQ56: 50 | BR56: ='التلاميذ والقيود '!B52 -> 0 | BS56: ='التلاميذ والقيود '!C52 -> 0 | BX56: =IFERROR(VLOOKUP(BR56,'العامة نصف السنة أ'!B55:K104,7,FALSE),"") -> 0 | CC56: 0 | CD56: =IFERROR(VLOOKUP(BR56,' العامة نهاية السنة دور اول أ'!B55:K104,7,FALSE),"") -> 0 | CE56: 0 | CF56: =IFERROR(VLOOKUP(BR56,' العامة نهاية السنة دور ثاني أ'!B55:K104,7,FALSE),"") -> 0 | CG56: 0 | CH56: 50 | CI56: ='التلاميذ والقيود '!B52 -> 0 | CJ56: ='التلاميذ والقيود '!C52 -> 0 | CO56: =IFERROR(VLOOKUP(CI56,'العامة نصف السنة أ'!B55:K104,8,FALSE),"") -> 0 | CT56: 0 | CU56: =IFERROR(VLOOKUP(CI56,' العامة نهاية السنة دور اول أ'!B55:K104,8,FALSE),"") -> 0 | CV56: 0 | CW56: =IFERROR(VLOOKUP(CI56,' العامة نهاية السنة دور ثاني أ'!B55:K104,8,FALSE),"") -> 0 | CX56: 0 | CY56: 50 | CZ56: ='التلاميذ والقيود '!B52 -> 0 | DA56: ='التلاميذ والقيود '!C52 -> 0 | DF56: =IFERROR(VLOOKUP(CZ56,'العامة نصف السنة أ'!B55:K104,9,FALSE),"") -> 0 | DK56: 0 | DL56: =IFERROR(VLOOKUP(CZ56,' العامة نهاية السنة دور اول أ'!B55:K104,9,FALSE),"") -> 0 | DM56: 0 | DN56: =IFERROR(VLOOKUP(CZ56,' العامة نهاية السنة دور ثاني أ'!B55:K104,9,FALSE),"") -> 0 | DO56: 0 | DP56: 50 | DQ56: ='التلاميذ والقيود '!B52 -> 0 | DR56: ='التلاميذ والقيود '!C52 -> 0 | DW56: =IFERROR(VLOOKUP(DQ56,'العامة نصف السنة أ'!B55:K104,10,FALSE),"") -> 0 | EB56: 0 | EC56: =IFERROR(VLOOKUP(DQ56,' العامة نهاية السنة دور اول أ'!B55:K104,10,FALSE),"") -> 0 | ED56: 0 | EE56: =IFERROR(VLOOKUP(DQ56,' العامة نهاية السنة دور ثاني أ'!B55:K104,10,FALSE),"") -> 0 | EF56: 0
A58: المشتركون | G58: =COUNT(G7:G56) -> 4 | H58: 50 | L58: 2 | N58: 50 | O58: 50 | P58: 49 | Q58: 48 | R58: المشتركون | X58: =COUNT(X7:X56) -> 4 | Y58: 50 | AC58: 2 | AE58: 49 | AF58: 50 | AG58: 50 | AH58: 49 | AI58: المشتركون | AO58: =COUNT(AO7:AO56) -> 4 | AP58: 50 | AT58: 2 | AV58: 50 | AW58: 50 | AX58: 48 | AY58: 49 | AZ58: المشتركون | BF58: =COUNT(BF7:BF56) -> 4 | BG58: 50 | BK58: 2 | BM58: 50 | BN58: 50 | BO58: 49 | BP58: 50 | BQ58: المشتركون | BW58: =COUNT(BW7:BW56) -> 4 | BX58: 50 | CB58: 2 | CD58: 50 | CE58: 50 | CF58: 50 | CG58: 50 | CH58: المشتركون | CN58: =COUNT(CN7:CN56) -> 4 | CO58: 50 | CS58: 2 | CU58: 50 | CV58: 50 | CW58: 50 | CX58: 50 | CY58: المشتركون | DE58: =COUNT(DE7:DE56) -> 4 | DF58: 50 | DJ58: 2 | DL58: 50 | DM58: 50 | DN58: 50 | DO58: 50 | DP58: المشتركون | DV58: =COUNT(DV7:DV56) -> 4 | DW58: 50 | EA58: 2 | EC58: 50 | ED58: 50 | EE58: 50 | EF58: 50
A59: الناجحون | G59: =COUNTIF(G7:G56,">49") -> 2 | H59: 1 | L59: =COUNTIF(L7:L56,">49") -> 1 | N59: 2 | O59: 2 | P59: 6 | Q59: 2 | R59: الناجحون | X59: =COUNTIF(X7:X56,">49") -> 2 | Y59: 1 | AC59: =COUNTIF(AC7:AC56,">49") -> 1 | AE59: 2 | AF59: 1 | AG59: 8 | AH59: 3 | AI59: الناجحون | AO59: =COUNTIF(AO7:AO56,">49") -> 2 | AP59: 1 | AT59: =COUNTIF(AT7:AT56,">49") -> 1 | AV59: 3 | AW59: 1 | AX59: 6 | AY59: 1 | AZ59: الناجحون | BF59: =COUNTIF(BF7:BF56,">49") -> 2 | BG59: 1 | BK59: =COUNTIF(BK7:BK56,">49") -> 1 | BM59: 3 | BN59: 0 | BO59: 7 | BP59: 1 | BQ59: الناجحون | BW59: =COUNTIF(BW7:BW56,">49") -> 2 | BX59: 1 | CB59: =COUNTIF(CB7:CB56,">49") -> 1 | CD59: 3 | CE59: 0 | CF59: 5 | CG59: 2 | CH59: الناجحون | CN59: =COUNTIF(CN7:CN56,">49") -> 3 | CO59: 1 | CS59: =COUNTIF(CS7:CS56,">49") -> 1 | CU59: 3 | CV59: 0 | CW59: 4 | CX59: 0 | CY59: الناجحون | DE59: =COUNTIF(DE7:DE56,">49") -> 2 | DF59: 1 | DJ59: =COUNTIF(DJ7:DJ56,">49") -> 1 | DL59: 3 | DM59: 0 | DN59: 5 | DO59: 2 | DP59: الناجحون | DV59: =COUNTIF(DV7:DV56,">49") -> 2 | DW59: 1 | EA59: =COUNTIF(EA7:EA56,">49") -> 1 | EC59: 3 | ED59: 0 | EE59: 8 | EF59: 3
A60: الراسبون | G60: =COUNTIF(G7:G56,"<50") -> 2 | H60: 49 | L60: 1 | N60: 48 | O60: 48 | P60: 43 | Q60: 46 | R60: الراسبون | X60: =COUNTIF(X7:X56,"<50") -> 2 | Y60: 49 | AC60: 1 | AE60: 47 | AF60: 49 | AG60: 42 | AH60: 46 | AI60: الراسبون | AO60: =COUNTIF(AO7:AO56,"<50") -> 2 | AP60: 49 | AT60: 1 | AV60: 47 | AW60: 49 | AX60: 42 | AY60: 48 | AZ60: الراسبون | BF60: =COUNTIF(BF7:BF56,"<50") -> 2 | BG60: 49 | BK60: 1 | BM60: 47 | BN60: 50 | BO60: 42 | BP60: 49 | BQ60: الراسبون | BW60: =COUNTIF(BW7:BW56,"<50") -> 2 | BX60: 49 | CB60: 1 | CD60: 47 | CE60: 50 | CF60: 45 | CG60: 48 | CH60: الراسبون | CN60: =COUNTIF(CN7:CN56,"<50") -> 1 | CO60: 49 | CS60: 1 | CU60: 47 | CV60: 50 | CW60: 46 | CX60: 50 | CY60: الراسبون | DE60: =COUNTIF(DE7:DE56,"<50") -> 2 | DF60: 49 | DJ60: 1 | DL60: 47 | DM60: 50 | DN60: 45 | DO60: 48 | DP60: الراسبون | DV60: =COUNTIF(DV7:DV56,"<50") -> 2 | DW60: 49 | EA60: 1 | EC60: 47 | ED60: 50 | EE60: 42 | EF60: 47
A61: الممتحنون | R61: الممتحنون | AI61: الممتحنون | AZ61: الممتحنون | BQ61: الممتحنون | CH61: الممتحنون | CY61: الممتحنون | DP61: الممتحنون
A62: الغائبون | R62: الغائبون | AI62: الغائبون | AZ62: الغائبون | BQ62: الغائبون | CH62: الغائبون | CY62: الغائبون | DP62: الغائبون
A63: النسبة المئوية | G63: =IFERROR(G59*100/G58,"") -> 50 | H63: =IFERROR(H59*100/H58,"") -> 2 | L63: =IFERROR(L59*100/L58,"") -> 50 | N63: =IFERROR(N59*100/N58,"") -> 4 | O63: =IFERROR(O59*100/O58,"") -> 4 | P63: =IFERROR(P59*100/P58,"") -> 12.24489796 | Q63: =IFERROR(Q59*100/Q58,"") -> 4.166666667 | R63: النسبة المئوية | X63: =IFERROR(X59*100/X58,"") -> 50 | Y63: =IFERROR(Y59*100/Y58,"") -> 2 | AC63: =IFERROR(AC59*100/AC58,"") -> 50 | AE63: =IFERROR(AE59*100/AE58,"") -> 4.081632653 | AF63: =IFERROR(AF59*100/AF58,"") -> 2 | AG63: =IFERROR(AG59*100/AG58,"") -> 16 | AH63: =IFERROR(AH59*100/AH58,"") -> 6.12244898 | AI63: النسبة المئوية | AO63: =IFERROR(AO59*100/AO58,"") -> 50 | AP63: =IFERROR(AP59*100/AP58,"") -> 2 | AT63: =IFERROR(AT59*100/AT58,"") -> 50 | AV63: =IFERROR(AV59*100/AV58,"") -> 6 | AW63: =IFERROR(AW59*100/AW58,"") -> 2 | AX63: =IFERROR(AX59*100/AX58,"") -> 12.5 | AY63: =IFERROR(AY59*100/AY58,"") -> 2.040816327 | AZ63: النسبة المئوية | BF63: =IFERROR(BF59*100/BF58,"") -> 50 | BG63: =IFERROR(BG59*100/BG58,"") -> 2 | BK63: =IFERROR(BK59*100/BK58,"") -> 50 | BM63: =IFERROR(BM59*100/BM58,"") -> 6 | BN63: =IFERROR(BN59*100/BN58,"") -> 0 | BO63: =IFERROR(BO59*100/BO58,"") -> 14.28571429 | BP63: =IFERROR(BP59*100/BP58,"") -> 2 | BQ63: النسبة المئوية | BW63: =IFERROR(BW59*100/BW58,"") -> 50 | BX63: =IFERROR(BX59*100/BX58,"") -> 2 | CB63: =IFERROR(CB59*100/CB58,"") -> 50 | CD63: =IFERROR(CD59*100/CD58,"") -> 6 | CE63: =IFERROR(CE59*100/CE58,"") -> 0 | CF63: =IFERROR(CF59*100/CF58,"") -> 10 | CG63: =IFERROR(CG59*100/CG58,"") -> 4 | CH63: النسبة المئوية | CN63: =IFERROR(CN59*100/CN58,"") -> 75 | CO63: =IFERROR(CO59*100/CO58,"") -> 2 | CS63: =IFERROR(CS59*100/CS58,"") -> 50 | CU63: =IFERROR(CU59*100/CU58,"") -> 6 | CV63: =IFERROR(CV59*100/CV58,"") -> 0 | CW63: =IFERROR(CW59*100/CW58,"") -> 8 | CX63: =IFERROR(CX59*100/CX58,"") -> 0 | CY63: النسبة المئوية | DE63: =IFERROR(DE59*100/DE58,"") -> 50 | DF63: =IFERROR(DF59*100/DF58,"") -> 2 | DJ63: =IFERROR(DJ59*100/DJ58,"") -> 50 | DL63: =IFERROR(DL59*100/DL58,"") -> 6 | DM63: =IFERROR(DM59*100/DM58,"") -> 0 | DN63: =IFERROR(DN59*100/DN58,"") -> 10 | DO63: =IFERROR(DO59*100/DO58,"") -> 4 | DP63: النسبة المئوية | DV63: =IFERROR(DV59*100/DV58,"") -> 50 | DW63: =IFERROR(DW59*100/DW58,"") -> 2 | EA63: =IFERROR(EA59*100/EA58,"") -> 50 | EC63: =IFERROR(EC59*100/EC58,"") -> 6 | ED63: =IFERROR(ED59*100/ED58,"") -> 0 | EE63: =IFERROR(EE59*100/EE58,"") -> 16 | EF63: =IFERROR(EF59*100/EF58,"") -> 6

Sheet العامة نصف السنة أ
A1: أدارة مدرسة المناذرة | O1: الصف | Q1: الخامس أ
A2: الابتدائية للبنات
A3: للعام الدراسي 2019 - 2020
A4: ت | B4: رقم القيد | C4: اسم التلميذ | D4: التربية الإسلامية | E4: اللغة العربية | F4: اللغة الإنكليزية | G4: الرياضيات | H4: العلوم | I4: الاجتماعيات | J4: التربية الفنية | K4: التربية الرياضية | L4: المجموع | N4: النتيجة | O4: الملاحظات
L5: رقما | M5: كتابة | T5: الناجحون | U5: الراسبون
A6: 1 | B6: ='التلاميذ والقيود '!B3 -> 2787 | C6: ='التلاميذ والقيود '!C3 -> آمنه حسين علوان | D6: 1 | E6: 2 | F6: 3 | G6: 4 | H6: 5 | I6: 6 | J6: 7 | K6: 8 | L6: =IF(SUM(D6:K6)=0,"",SUM(D6:K6)) -> 36 | M6: =IFERROR(IF(L6=100,"مائة درجة",B_Only(L6,1,1,2,"","","")),"") -> ست وثلاثون | N6: =IF(D6:K6="","",IF(COUNTIF(D6:K6,"غ")+COUNTIF(D6:K6,"<50")=0,"ناجح",IF(COUNTIF(D6:K6,"غ")+COUNTIF(D6:K6,"<50")>=1,"راسب"))) -> راسب | T6: =IF(N6="ناجح",2,"") ->  | U6: =IF(N6="راسب",3,"") -> 3
A7: 2 | B7: ='التلاميذ والقيود '!B4 -> 2373 | C7: ='التلاميذ والقيود '!C4 -> آمنه قاسم ثجيل | D7: 50 | E7: 50 | F7: 50 | G7: 50 | H7: 50 | I7: 50 | J7: 50 | K7: 50 | L7: =IF(SUM(D7:K7)=0,"",SUM(D7:K7)) -> 400 | M7: =IFERROR(IF(L7=100,"مائة درجة",B_Only(L7,1,1,2,"","","")),"") -> أربعمائة | N7: =IF(D7:K7="","",IF(COUNTIF(D7:K7,"غ")+COUNTIF(D7:K7,"<50")=0,"ناجح",IF(COUNTIF(D7:K7,"غ")+COUNTIF(D7:K7,"<50")>=1,"راسب"))) -> ناجح | T7: =IF(N7="ناجح",2,"") -> 2 | U7: =IF(N7="راسب",3,"") -> 
A8: 3 | B8: ='التلاميذ والقيود '!B5 -> 2430 | C8: ='التلاميذ والقيود '!C5 -> ايمان محمد مجبل | D8: 5 | E8: 5 | F8: 5 | G8: 2 | H8: 5 | J8: 1 | K8: 10 | L8: 33 | M8: =IFERROR(IF(L8=100,"مائة درجة",B_Only(L8,1,1,2,"","","")),"") -> ثلاث وثلاثون | N8: =IF(D8:K8="","",IF(COUNTIF(D8:K8,"غ")+COUNTIF(D8:K8,"<50")=0,"ناجح",IF(COUNTIF(D8:K8,"غ")+COUNTIF(D8:K8,"<50")>=1,"راسب"))) -> راسب | U8: 3
A9: 4 | B9: ='التلاميذ والقيود '!B6 -> 2348 | C9: ='التلاميذ والقيود '!C6 -> آيه احمد جبار | D9: 5 | H9: 10 | J9: 0 | K9: 4 | L9: 19 | M9: =IFERROR(IF(L9=100,"مائة درجة",B_Only(L9,1,1,2,"","","")),"") -> تسع عشرة | N9: =IF(D9:K9="","",IF(COUNTIF(D9:K9,"غ")+COUNTIF(D9:K9,"<50")=0,"ناجح",IF(COUNTIF(D9:K9,"غ")+COUNTIF(D9:K9,"<50")>=1,"راسب"))) -> راسب | U9: 3
A10: 5 | B10: ='التلاميذ والقيود '!B7 -> 2539 | C10: ='التلاميذ والقيود '!C7 -> آيه حسين حسن | D10: 5 | L10: 5 | M10: =IFERROR(IF(L10=100,"مائة درجة",B_Only(L10,1,1,2,"","","")),"") -> خمس | N10: =IF(D10:K10="","",IF(COUNTIF(D10:K10,"غ")+COUNTIF(D10:K10,"<50")=0,"ناجح",IF(COUNTIF(D10:K10,"غ")+COUNTIF(D10:K10,"<50")>=1,"راسب"))) -> راسب | U10: 3
A11: 6 | B11: ='التلاميذ والقيود '!B8 -> 2561 | C11: ='التلاميذ والقيود '!C8 -> آيه علي كاظم | D11: 5 | L11: 5 | M11: =IFERROR(IF(L11=100,"مائة درجة",B_Only(L11,1,1,2,"","","")),"") -> خمس | N11: =IF(D11:K11="","",IF(COUNTIF(D11:K11,"غ")+COUNTIF(D11:K11,"<50")=0,"ناجح",IF(COUNTIF(D11:K11,"غ")+COUNTIF(D11:K11,"<50")>=1,"راسب"))) -> راسب | U11: 3
A12: 7 | B12: ='التلاميذ والقيود '!B9 -> 2417 | C12: ='التلاميذ والقيود '!C9 -> براء سليم مجيد | D12: 5 | L12: 5 | M12: =IFERROR(IF(L12=100,"مائة درجة",B_Only(L12,1,1,2,"","","")),"") -> خمس | N12: =IF(D12:K12="","",IF(COUNTIF(D12:K12,"غ")+COUNTIF(D12:K12,"<50")=0,"ناجح",IF(COUNTIF(D12:K12,"غ")+COUNTIF(D12:K12,"<50")>=1,"راسب"))) -> راسب | U12: 3
A13: 8 | B13: ='التلاميذ والقيود '!B10 -> 2445 | C13: ='التلاميذ والقيود '!C10 -> بنين احمد أسعد | D13: 5 | L13: 5 | M13: =IFERROR(IF(L13=100,"مائة درجة",B_Only(L13,1,1,2,"","","")),"") -> خمس | N13: =IF(D13:K13="","",IF(COUNTIF(D13:K13,"غ")+COUNTIF(D13:K13,"<50")=0,"ناجح",IF(COUNTIF(D13:K13,"غ")+COUNTIF(D13:K13,"<50")>=1,"راسب"))) -> راسب | U13: 3
A14: 9 | B14: ='التلاميذ والقيود '!B11 -> 2501 | C14: ='التلاميذ والقيود '!C11 -> بنين خضير عباس | M14: =IFERROR(IF(L14=100,"مائة درجة",B_Only(L14,1,1,2,"","","")),"") ->  | N14: =IF(D14:K14="","",IF(COUNTIF(D14:K14,"غ")+COUNTIF(D14:K14,"<50")=0,"ناجح",IF(COUNTIF(D14:K14,"غ")+COUNTIF(D14:K14,"<50")>=1,"راسب"))) -> 
A15: 10 | B15: ='التلاميذ والقيود '!B12 -> 2502 | C15: ='التلاميذ والقيود '!C12 -> بنين عامر كاظم | M15: =IFERROR(IF(L15=100,"مائة درجة",B_Only(L15,1,1,2,"","","")),"") ->  | N15: =IF(D15:K15="","",IF(COUNTIF(D15:K15,"غ")+COUNTIF(D15:K15,"<50")=0,"ناجح",IF(COUNTIF(D15:K15,"غ")+COUNTIF(D15:K15,"<50")>=1,"راسب"))) -> 
A16: 11 | B16: ='التلاميذ والقيود '!B13 -> 2610 | C16: ='التلاميذ والقيود '!C13 -> جمانه حسين جبار | M16: =IFERROR(IF(L16=100,"مائة درجة",B_Only(L16,1,1,2,"","","")),"") ->  | N16: =IF(D16:K16="","",IF(COUNTIF(D16:K16,"غ")+COUNTIF(D16:K16,"<50")=0,"ناجح",IF(COUNTIF(D16:K16,"غ")+COUNTIF(D16:K16,"<50")>=1,"راسب"))) -> 
A17: 12 | B17: ='التلاميذ والقيود '!B14 -> 2517 | C17: ='التلاميذ والقيود '!C14 -> جنه زهير قاسم | M17: =IFERROR(IF(L17=100,"مائة درجة",B_Only(L17,1,1,2,"","","")),"") ->  | N17: =IF(D17:K17="","",IF(COUNTIF(D17:K17,"غ")+COUNTIF(D17:K17,"<50")=0,"ناجح",IF(COUNTIF(D17:K17,"غ")+COUNTIF(D17:K17,"<50")>=1,"راسب"))) -> 
A18: 13 | B18: ='التلاميذ والقيود '!B15 -> 2479 | C18: ='التلاميذ والقيود '!C15 -> حوراء رزاق درك | M18: =IFERROR(IF(L18=100,"مائة درجة",B_Only(L18,1,1,2,"","","")),"") ->  | N18: =IF(D18:K18="","",IF(COUNTIF(D18:K18,"غ")+COUNTIF(D18:K18,"<50")=0,"ناجح",IF(COUNTIF(D18:K18,"غ")+COUNTIF(D18:K18,"<50")>=1,"راسب"))) -> 
A19: 14 | B19: ='التلاميذ والقيود '!B16 -> 2559 | C19: ='التلاميذ والقيود '!C16 -> حوراء عادل مطشر | N19: =IF(D19:K19="","",IF(COUNTIF(D19:K19,"غ")+COUNTIF(D19:K19,"<50")=0,"ناجح",IF(COUNTIF(D19:K19,"غ")+COUNTIF(D19:K19,"<50")>=1,"راسب"))) -> 
A20: 15 | B20: ='التلاميذ والقيود '!B17 -> 2799 | C20: ='التلاميذ والقيود '!C17 -> رتاج علي ناصر حيدر | M20: =IFERROR(cur(L20,"",""),"") ->  | N20: =IF(D20:K20="","",IF(COUNTIF(D20:K20,"غ")+COUNTIF(D20:K20,"<50")=0,"ناجح",IF(COUNTIF(D20:K20,"غ")+COUNTIF(D20:K20,"<50")>=1,"راسب"))) -> 
A21: 16 | B21: ='التلاميذ والقيود '!B18 -> 2590 | C21: ='التلاميذ والقيود '!C18 -> رحمه عباس زغير | M21: =IFERROR(cur(L21,"",""),"") ->  | N21: =IF(D21:K21="","",IF(COUNTIF(D21:K21,"غ")+COUNTIF(D21:K21,"<50")=0,"ناجح",IF(COUNTIF(D21:K21,"غ")+COUNTIF(D21:K21,"<50")>=1,"راسب"))) -> 
A22: 17 | B22: ='التلاميذ والقيود '!B19 -> 2421 | C22: ='التلاميذ والقيود '!C19 -> رقيه رعد سعد | M22: =IFERROR(cur(L22,"",""),"") ->  | N22: =IF(D22:K22="","",IF(COUNTIF(D22:K22,"غ")+COUNTIF(D22:K22,"<50")=0,"ناجح",IF(COUNTIF(D22:K22,"غ")+COUNTIF(D22:K22,"<50")>=1,"راسب"))) -> 
A23: 18 | B23: ='التلاميذ والقيود '!B20 -> 2440 | C23: ='التلاميذ والقيود '!C20 -> رقيه علي مزهر | M23: =IFERROR(cur(L23,"",""),"") ->  | N23: =IF(D23:K23="","",IF(COUNTIF(D23:K23,"غ")+COUNTIF(D23:K23,"<50")=0,"ناجح",IF(COUNTIF(D23:K23,"غ")+COUNTIF(D23:K23,"<50")>=1,"راسب"))) -> 
A24: 19 | B24: ='التلاميذ والقيود '!B21 -> 2513 | C24: ='التلاميذ والقيود '!C21 -> رقيه محمد كاظم | M24: =IFERROR(cur(L24,"",""),"") ->  | N24: =IF(D24:K24="","",IF(COUNTIF(D24:K24,"غ")+COUNTIF(D24:K24,"<50")=0,"ناجح",IF(COUNTIF(D24:K24,"غ")+COUNTIF(D24:K24,"<50")>=1,"راسب"))) -> 
A25: 20 | B25: ='التلاميذ والقيود '!B22 -> 2580 | C25: ='التلاميذ والقيود '!C22 -> روان احمد قاسم | M25: =IFERROR(cur(L25,"",""),"") ->  | N25: =IF(D25:K25="","",IF(COUNTIF(D25:K25,"غ")+COUNTIF(D25:K25,"<50")=0,"ناجح",IF(COUNTIF(D25:K25,"غ")+COUNTIF(D25:K25,"<50")>=1,"راسب"))) -> 
A26: 21 | B26: ='التلاميذ والقيود '!B23 -> 2585 | C26: ='التلاميذ والقيود '!C23 -> روان استبرق جمعه | M26: =IFERROR(cur(L26,"",""),"") ->  | N26: =IF(D26:K26="","",IF(COUNTIF(D26:K26,"غ")+COUNTIF(D26:K26,"<50")=0,"ناجح",IF(COUNTIF(D26:K26,"غ")+COUNTIF(D26:K26,"<50")>=1,"راسب"))) -> 
A27: 22 | B27: ='التلاميذ والقيود '!B24 -> 2583 | C27: ='التلاميذ والقيود '!C24 -> ريتا احمد فاخر | M27: =IFERROR(cur(L27,"",""),"") ->  | N27: =IF(D27:K27="","",IF(COUNTIF(D27:K27,"غ")+COUNTIF(D27:K27,"<50")=0,"ناجح",IF(COUNTIF(D27:K27,"غ")+COUNTIF(D27:K27,"<50")>=1,"راسب"))) -> 
A28: 23 | B28: ='التلاميذ والقيود '!B25 -> 2134 | C28: ='التلاميذ والقيود '!C25 -> زهراء احمد محمود | M28: =IFERROR(cur(L28,"",""),"") ->  | N28: =IF(D28:K28="","",IF(COUNTIF(D28:K28,"غ")+COUNTIF(D28:K28,"<50")=0,"ناجح",IF(COUNTIF(D28:K28,"غ")+COUNTIF(D28:K28,"<50")>=1,"راسب"))) -> 
A29: 24 | B29: ='التلاميذ والقيود '!B26 -> 2189 | C29: ='التلاميذ والقيود '!C26 -> زهراء حيدر لفته | M29: =IFERROR(cur(L29,"",""),"") ->  | N29: =IF(D29:K29="","",IF(COUNTIF(D29:K29,"غ")+COUNTIF(D29:K29,"<50")=0,"ناجح",IF(COUNTIF(D29:K29,"غ")+COUNTIF(D29:K29,"<50")>=1,"راسب"))) -> 
A30: 25 | B30: ='التلاميذ والقيود '!B27 -> 2427 | C30: ='التلاميذ والقيود '!C27 -> زهراء صادق عباس | M30: =IFERROR(cur(L30,"",""),"") ->  | N30: =IF(D30:K30="","",IF(COUNTIF(D30:K30,"غ")+COUNTIF(D30:K30,"<50")=0,"ناجح",IF(COUNTIF(D30:K30,"غ")+COUNTIF(D30:K30,"<50")>=1,"راسب"))) -> 
A31: 26 | B31: ='التلاميذ والقيود '!B28 -> 2569 | C31: ='التلاميذ والقيود '!C28 -> زهراء عباس جبر | M31: =IFERROR(cur(L31,"",""),"") ->  | N31: =IF(D31:K31="","",IF(COUNTIF(D31:K31,"غ")+COUNTIF(D31:K31,"<50")=0,"ناجح",IF(COUNTIF(D31:K31,"غ")+COUNTIF(D31:K31,"<50")>=1,"راسب"))) -> 
A32: 27 | B32: ='التلاميذ والقيود '!B29 -> 2557 | C32: ='التلاميذ والقيود '!C29 -> زهراء علي زامل | M32: =IFERROR(cur(L32,"",""),"") ->  | N32: =IF(D32:K32="","",IF(COUNTIF(D32:K32,"غ")+COUNTIF(D32:K32,"<50")=0,"ناجح",IF(COUNTIF(D32:K32,"غ")+COUNTIF(D32:K32,"<50")>=1,"راسب"))) -> 
A33: 28 | B33: ='التلاميذ والقيود '!B30 -> 2275 | C33: ='التلاميذ والقيود '!C30 -> زينب رزاق درك | M33: =IFERROR(cur(L33,"",""),"") ->  | N33: =IF(D33:K33="","",IF(COUNTIF(D33:K33,"غ")+COUNTIF(D33:K33,"<50")=0,"ناجح",IF(COUNTIF(D33:K33,"غ")+COUNTIF(D33:K33,"<50")>=1,"راسب"))) -> 
A34: 29 | B34: ='التلاميذ والقيود '!B31 -> 2592 | C34: ='التلاميذ والقيود '!C31 -> زينب مشتاق ابراهيم | M34: =IFERROR(cur(L34,"",""),"") ->  | N34: =IF(D34:K34="","",IF(COUNTIF(D34:K34,"غ")+COUNTIF(D34:K34,"<50")=0,"ناجح",IF(COUNTIF(D34:K34,"غ")+COUNTIF(D34:K34,"<50")>=1,"راسب"))) -> 
A35: 30 | B35: ='التلاميذ والقيود '!B32 -> 2522 | C35: ='التلاميذ والقيود '!C32 -> شهد فراس كاظم | M35: =IFERROR(cur(L35,"",""),"") ->  | N35: =IF(D35:K35="","",IF(COUNTIF(D35:K35,"غ")+COUNTIF(D35:K35,"<50")=0,"ناجح",IF(COUNTIF(D35:K35,"غ")+COUNTIF(D35:K35,"<50")>=1,"راسب"))) -> 
A36: 31 | B36: ='التلاميذ والقيود '!B33 -> 2570 | C36: ='التلاميذ والقيود '!C33 -> غدير عادل ثجيل | M36: =IFERROR(cur(L36,"",""),"") ->  | N36: =IF(D36:K36="","",IF(COUNTIF(D36:K36,"غ")+COUNTIF(D36:K36,"<50")=0,"ناجح",IF(COUNTIF(D36:K36,"غ")+COUNTIF(D36:K36,"<50")>=1,"راسب"))) -> 
A37: 32 | B37: ='التلاميذ والقيود '!B34 -> 2567 | C37: ='التلاميذ والقيود '!C34 -> غدير عصام حسن | M37: =IFERROR(cur(L37,"",""),"") ->  | N37: =IF(D37:K37="","",IF(COUNTIF(D37:K37,"غ")+COUNTIF(D37:K37,"<50")=0,"ناجح",IF(COUNTIF(D37:K37,"غ")+COUNTIF(D37:K37,"<50")>=1,"راسب"))) -> 
A38: 33 | B38: ='التلاميذ والقيود '!B35 -> 2308 | C38: ='التلاميذ والقيود '!C35 -> فاطمه خضير دعبول | M38: =IFERROR(cur(L38,"",""),"") ->  | N38: =IF(D38:K38="","",IF(COUNTIF(D38:K38,"غ")+COUNTIF(D38:K38,"<50")=0,"ناجح",IF(COUNTIF(D38:K38,"غ")+COUNTIF(D38:K38,"<50")>=1,"راسب"))) -> 
A39: 34 | B39: ='التلاميذ والقيود '!B36 -> 2252 | C39: ='التلاميذ والقيود '!C36 -> فاطمه علي خشم | M39: =IFERROR(cur(L39,"",""),"") ->  | N39: =IF(D39:K39="","",IF(COUNTIF(D39:K39,"غ")+COUNTIF(D39:K39,"<50")=0,"ناجح",IF(COUNTIF(D39:K39,"غ")+COUNTIF(D39:K39,"<50")>=1,"راسب"))) -> 
A40: 35 | B40: ='التلاميذ والقيود '!B37 -> 2687 | C40: ='التلاميذ والقيود '!C37 -> فاطمه ماجد عبد الحسين | M40: =IFERROR(cur(L40,"",""),"") ->  | N40: =IF(D40:K40="","",IF(COUNTIF(D40:K40,"غ")+COUNTIF(D40:K40,"<50")=0,"ناجح",IF(COUNTIF(D40:K40,"غ")+COUNTIF(D40:K40,"<50")>=1,"راسب"))) -> 
A41: 36 | B41: ='التلاميذ والقيود '!B38 -> 2562 | C41: ='التلاميذ والقيود '!C38 -> فاطمه هادي كاظم | M41: =IFERROR(cur(L41,"",""),"") ->  | N41: =IF(D41:K41="","",IF(COUNTIF(D41:K41,"غ")+COUNTIF(D41:K41,"<50")=0,"ناجح",IF(COUNTIF(D41:K41,"غ")+COUNTIF(D41:K41,"<50")>=1,"راسب"))) -> 
A42: 37 | B42: ='التلاميذ والقيود '!B39 -> 2589 | C42: ='التلاميذ والقيود '!C39 -> فرح عباس زغير | M42: =IFERROR(cur(L42,"",""),"") ->  | N42: =IF(D42:K42="","",IF(COUNTIF(D42:K42,"غ")+COUNTIF(D42:K42,"<50")=0,"ناجح",IF(COUNTIF(D42:K42,"غ")+COUNTIF(D42:K42,"<50")>=1,"راسب"))) -> 
A43: 38 | B43: ='التلاميذ والقيود '!B40 -> 2523 | C43: ='التلاميذ والقيود '!C40 -> لجين حسين علي | M43: =IFERROR(cur(L43,"",""),"") ->  | N43: =IF(D43:K43="","",IF(COUNTIF(D43:K43,"غ")+COUNTIF(D43:K43,"<50")=0,"ناجح",IF(COUNTIF(D43:K43,"غ")+COUNTIF(D43:K43,"<50")>=1,"راسب"))) -> 
A44: 39 | B44: ='التلاميذ والقيود '!B41 -> 2545 | C44: ='التلاميذ والقيود '!C41 -> ليسينيا ميثم فاضل | M44: =IFERROR(cur(L44,"",""),"") ->  | N44: =IF(D44:K44="","",IF(COUNTIF(D44:K44,"غ")+COUNTIF(D44:K44,"<50")=0,"ناجح",IF(COUNTIF(D44:K44,"غ")+COUNTIF(D44:K44,"<50")>=1,"راسب"))) -> 
A45: 40 | B45: ='التلاميذ والقيود '!B42 -> 2549 | C45: ='التلاميذ والقيود '!C42 -> مريم عقيل حنون | M45: =IFERROR(cur(L45,"",""),"") ->  | N45: =IF(D45:K45="","",IF(COUNTIF(D45:K45,"غ")+COUNTIF(D45:K45,"<50")=0,"ناجح",IF(COUNTIF(D45:K45,"غ")+COUNTIF(D45:K45,"<50")>=1,"راسب"))) -> 
A46: 41 | B46: ='التلاميذ والقيود '!B43 -> 2554 | C46: ='التلاميذ والقيود '!C43 -> مريم ماجد رحمه | M46: =IFERROR(cur(L46,"",""),"") ->  | N46: =IF(D46:K46="","",IF(COUNTIF(D46:K46,"غ")+COUNTIF(D46:K46,"<50")=0,"ناجح",IF(COUNTIF(D46:K46,"غ")+COUNTIF(D46:K46,"<50")>=1,"راسب"))) -> 
A47: 42 | B47: ='التلاميذ والقيود '!B44 -> 2524 | C47: ='التلاميذ والقيود '!C44 -> معصومه جواد كاظم | M47: =IFERROR(cur(L47,"",""),"") ->  | N47: =IF(D47:K47="","",IF(COUNTIF(D47:K47,"غ")+COUNTIF(D47:K47,"<50")=0,"ناجح",IF(COUNTIF(D47:K47,"غ")+COUNTIF(D47:K47,"<50")>=1,"راسب"))) -> 
A48: 43 | B48: ='التلاميذ والقيود '!B45 -> 2372 | C48: ='التلاميذ والقيود '!C45 -> ملاك حبيب شمخي | M48: =IFERROR(cur(L48,"",""),"") ->  | N48: =IF(D48:K48="","",IF(COUNTIF(D48:K48,"غ")+COUNTIF(D48:K48,"<50")=0,"ناجح",IF(COUNTIF(D48:K48,"غ")+COUNTIF(D48:K48,"<50")>=1,"راسب"))) -> 
A49: 44 | B49: ='التلاميذ والقيود '!B46 -> 2535 | C49: ='التلاميذ والقيود '!C46 -> ميار حمزة مزهر | M49: =IFERROR(cur(L49,"",""),"") ->  | N49: =IF(D49:K49="","",IF(COUNTIF(D49:K49,"غ")+COUNTIF(D49:K49,"<50")=0,"ناجح",IF(COUNTIF(D49:K49,"غ")+COUNTIF(D49:K49,"<50")>=1,"راسب"))) -> 
A50: 45 | B50: ='التلاميذ والقيود '!B47 -> 2584 | C50: ='التلاميذ والقيود '!C47 -> نبأ احمد عبد الحسين | M50: =IFERROR(cur(L50,"",""),"") ->  | N50: =IF(D50:K50="","",IF(COUNTIF(D50:K50,"غ")+COUNTIF(D50:K50,"<50")=0,"ناجح",IF(COUNTIF(D50:K50,"غ")+COUNTIF(D50:K50,"<50")>=1,"راسب"))) -> 
A51: 46 | B51: ='التلاميذ والقيود '!B48 -> 2897 | C51: ='التلاميذ والقيود '!C48 -> هديل يوسف | M51: =IFERROR(cur(L51,"",""),"") ->  | N51: =IF(D51:K51="","",IF(COUNTIF(D51:K51,"غ")+COUNTIF(D51:K51,"<50")=0,"ناجح",IF(COUNTIF(D51:K51,"غ")+COUNTIF(D51:K51,"<50")>=1,"راسب"))) -> 
A52: 47 | B52: ='التلاميذ والقيود '!B49 -> 0 | C52: ='التلاميذ والقيود '!C49 -> 0 | M52: =IFERROR(cur(L52,"",""),"") ->  | N52: =IF(D52:K52="","",IF(COUNTIF(D52:K52,"غ")+COUNTIF(D52:K52,"<50")=0,"ناجح",IF(COUNTIF(D52:K52,"غ")+COUNTIF(D52:K52,"<50")>=1,"راسب"))) -> 
A53: 48 | B53: ='التلاميذ والقيود '!B50 -> 0 | C53: ='التلاميذ والقيود '!C50 -> 0 | M53: =IFERROR(cur(L53,"",""),"") ->  | N53: =IF(D53:K53="","",IF(COUNTIF(D53:K53,"غ")+COUNTIF(D53:K53,"<50")=0,"ناجح",IF(COUNTIF(D53:K53,"غ")+COUNTIF(D53:K53,"<50")>=1,"راسب"))) -> 
A54: 49 | B54: ='التلاميذ والقيود '!B51 -> 0 | C54: ='التلاميذ والقيود '!C51 -> 0 | M54: =IFERROR(cur(L54,"",""),"") ->  | N54: =IF(D54:K54="","",IF(COUNTIF(D54:K54,"غ")+COUNTIF(D54:K54,"<50")=0,"ناجح",IF(COUNTIF(D54:K54,"غ")+COUNTIF(D54:K54,"<50")>=1,"راسب"))) -> 
A55: 50 | B55: ='التلاميذ والقيود '!B52 -> 0 | C55: ='التلاميذ والقيود '!C52 -> 0 | M55: =IFERROR(cur(L55,"",""),"") ->  | N55: =IF(D55:K55="","",IF(COUNTIF(D55:K55,"غ")+COUNTIF(D55:K55,"<50")=0,"ناجح",IF(COUNTIF(D55:K55,"غ")+COUNTIF(D55:K55,"<50")>=1,"راسب"))) -> 
B57: المشتركون
B58: الناجحون | D58: =COUNTIF(T6:T55,"=2") -> 1
B59: الراسبون | D59: =COUNTIF(U5:U54,"=3") -> 7
B60: الممتحنون
B61: الغائبون
B62: النسبة المئوية

Sheet العامة نهاية السنة دور اول أ
A1: أدارة مدرسة المناذرة | O1: الصف | Q1: الخامس أ
A2: الابتدائية للبنات | O2: الدور | Q2: الأول
A3: للعام الدراسي 2019 - 2020
L4: المجموع
A5: ت | B5: رقم القيد | C5: اسم التلميذ | D5: التربية الإسلامية | E5: اللغة العربية | F5: اللغة الإنكليزية | G5: الرياضيات | H5: العلوم | I5: الاجتماعيات | J5: التربية الفنية | K5: التربية الرياضية | L5: رقما | M5: كتابة | N5: النتيجة | O5: الدروس التي اكمل فيها | S5: المكملون | T5: الناجحون | U5: الراسبون | W5: الدروس التي رسب فيها
A6: 1 | B6: ='التلاميذ والقيود '!B3 -> 2787 | C6: =INDEX('التلاميذ والقيود '!C3,1,1) -> آمنه حسين علوان | D6: 100 | E6: 99 | F6: 88 | G6: 77 | H6: 66 | I6: 66 | J6: 60 | K6: 50 | L6: =IF(OR(N6="ناجح",N6="راسب"),SUM(D6:K6),"") -> 606 | M6: =IFERROR(IF(L6=100,"مائة درجة",B_Only(L6,1,1,2,"","","")),"") -> ستمائة وست | N6: =IF(D6:K6="","",IF(COUNTIF(D6:K6,"غ")+COUNTIF(D6:K6,"<50")=0,"ناجح",IF(COUNTIF(D6:K6,"غ")+COUNTIF(D6:K6,"<50")<=3,"مكمل",IF(COUNTIF(D6:K6,"غ")+COUNTIF(D6:K6,"<50")>=4,"راسب")))) -> ناجح | O6: =IF(N6="","",IF(OR(D6<50,D6="غ"),D$5,"")&" "&IF(OR(E6<50,E6="غ"),E$5,"")&" "&IF(OR(F6<50,F6="غ"),F$5,"")&" "&IF(OR(G6<50,G6="غ"),G$5," ")&" "&IF(OR(H6<50,H6="غ"),H$5,"")&" "&IF(OR(I6<50,I6="غ"),I$5,"")&" "&IF(OR(J6<50,J6="غ"),J$5,"")&" "&IF(OR(K6<50,K6="غ"),K$5,"")) ->  | S6: =IF(N6="مكمل",1,"") ->  | T6: =IF(N6="ناجح",2,"") -> 2 | U6: =IF(N6="راسب",3,"") -> 
A7: 2 | B7: ='التلاميذ والقيود '!B4 -> 2373 | C7: =INDEX('التلاميذ والقيود '!C4,1,1) -> آمنه قاسم ثجيل | D7: 10 | E7: 3 | F7: 3 | G7: 4 | H7: 6 | I7: 5 | J7: 10 | K7: 10 | L7: =IF(OR(N7="ناجح",N7="راسب"),SUM(D7:K7),"") -> 51 | M7: =IFERROR(IF(L7=100,"مائة درجة",B_Only(L7,1,1,2,"","","")),"") -> إحدى وخمسون | N7: =IF(D7:K7="","",IF(COUNTIF(D7:K7,"غ")+COUNTIF(D7:K7,"<50")=0,"ناجح",IF(COUNTIF(D7:K7,"غ")+COUNTIF(D7:K7,"<50")<=3,"مكمل",IF(COUNTIF(D7:K7,"غ")+COUNTIF(D7:K7,"<50")>=4,"راسب")))) -> راسب | O7: =IF(N7="","",IF(OR(D7<50,D7="غ"),D$5,"")&" "&IF(OR(E7<50,E7="غ"),E$5,"")&" "&IF(OR(F7<50,F7="غ"),F$5,"")&" "&IF(OR(G7<50,G7="غ"),G$5," ")&" "&IF(OR(H7<50,H7="غ"),H$5,"")&" "&IF(OR(I7<50,I7="غ"),I$5,"")&" "&IF(OR(J7<50,J7="غ"),J$5,"")&" "&IF(OR(K7<50,K7="غ"),K$5,"")) -> التربية الإسلامية اللغة العربية اللغة الإنكليزية الرياضيات العلوم الاجتماعيات التربية الفنية التربية الرياضية | S7: =IF(N7="مكمل",1,"") ->  | T7: =IF(N7="ناجح",2,"") ->  | U7: =IF(N7="راسب",3,"") -> 3
A8: 3 | B8: ='التلاميذ والقيود '!B5 -> 2430 | C8: =INDEX('التلاميذ والقيود '!C5,1,1) -> ايمان محمد مجبل | D8: 80 | E8: 50 | F8: 80 | G8: 66 | H8: 55 | I8: 50 | J8: 50 | K8: 60 | L8: 491 | M8: =IFERROR(IF(L8=100,"مائة درجة",B_Only(L8,1,1,2,"","","")),"") -> أربعمائة وإحدى وتسعون | N8: =IF(D8:K8="","",IF(COUNTIF(D8:K8,"غ")+COUNTIF(D8:K8,"<50")=0,"ناجح",IF(COUNTIF(D8:K8,"غ")+COUNTIF(D8:K8,"<50")<=3,"مكمل",IF(COUNTIF(D8:K8,"غ")+COUNTIF(D8:K8,"<50")>=4,"راسب")))) -> ناجح | T8: 2
A9: 4 | B9: ='التلاميذ والقيود '!B6 -> 2348 | C9: =INDEX('التلاميذ والقيود '!C6,1,1) -> آيه احمد جبار | D9: 4 | E9: غ | F9: 50 | G9: 50 | H9: 50 | I9: 50 | J9: 50 | K9: 50 | M9: =IFERROR(IF(L9=100,"مائة درجة",B_Only(L9,1,1,2,"","","")),"") ->  | N9: =IF(D9:K9="","",IF(COUNTIF(D9:K9,"غ")+COUNTIF(D9:K9,"<50")=0,"ناجح",IF(COUNTIF(D9:K9,"غ")+COUNTIF(D9:K9,"<50")<=3,"مكمل",IF(COUNTIF(D9:K9,"غ")+COUNTIF(D9:K9,"<50")>=4,"راسب")))) -> مكمل | O9: التربية الإسلامية اللغة العربية | S9: 1
A10: 5 | B10: ='التلاميذ والقيود '!B7 -> 2539 | C10: =INDEX('التلاميذ والقيود '!C7,1,1) -> آيه حسين حسن | D10: 10 | J10: 3 | K10: 4 | M10: =IFERROR(IF(L10=100,"مائة درجة",B_Only(L10,1,1,2,"","","")),"") ->  | N10: =IF(D10:K10="","",IF(COUNTIF(D10:K10,"غ")+COUNTIF(D10:K10,"<50")=0,"ناجح",IF(COUNTIF(D10:K10,"غ")+COUNTIF(D10:K10,"<50")<=3,"مكمل",IF(COUNTIF(D10:K10,"غ")+COUNTIF(D10:K10,"<50")>=4,"راسب")))) -> مكمل | O10: التربية الإسلامية اللغة العربية اللغة الإنكليزية الرياضيات العلوم الاجتماعيات التربية الفنية التربية الرياضية | S10: 1
A11: 6 | B11: ='التلاميذ والقيود '!B8 -> 2561 | C11: =INDEX('التلاميذ والقيود '!C8,1,1) -> آيه علي كاظم | D11: 10 | H11: 5 | J11: 2 | K11: 3 | L11: 20 | M11: =IFERROR(IF(L11=100,"مائة درجة",B_Only(L11,1,1,2,"","","")),"") -> عشرون | N11: =IF(D11:K11="","",IF(COUNTIF(D11:K11,"غ")+COUNTIF(D11:K11,"<50")=0,"ناجح",IF(COUNTIF(D11:K11,"غ")+COUNTIF(D11:K11,"<50")<=3,"مكمل",IF(COUNTIF(D11:K11,"غ")+COUNTIF(D11:K11,"<50")>=4,"راسب")))) -> راسب | O11: التربية الإسلامية اللغة العربية اللغة الإنكليزية الرياضيات العلوم الاجتماعيات التربية الفنية التربية الرياضية | U11: 3
A12: 7 | B12: ='التلاميذ والقيود '!B9 -> 2417 | C12: =INDEX('التلاميذ والقيود '!C9,1,1) -> براء سليم مجيد | D12: 10 | M12: =IFERROR(IF(L12=100,"مائة درجة",B_Only(L12,1,1,2,"","","")),"") ->  | N12: =IF(D12:K12="","",IF(COUNTIF(D12:K12,"غ")+COUNTIF(D12:K12,"<50")=0,"ناجح",IF(COUNTIF(D12:K12,"غ")+COUNTIF(D12:K12,"<50")<=3,"مكمل",IF(COUNTIF(D12:K12,"غ")+COUNTIF(D12:K12,"<50")>=4,"راسب")))) -> مكمل | O12: التربية الإسلامية اللغة العربية اللغة الإنكليزية الرياضيات العلوم الاجتماعيات التربية الفنية التربية الرياضية | S12: 1
A13: 8 | B13: ='التلاميذ والقيود '!B10 -> 2445 | C13: =INDEX('التلاميذ والقيود '!C10,1,1) -> بنين احمد أسعد | D13: 10 | M13: =IFERROR(IF(L13=100,"مائة درجة",B_Only(L13,1,1,2,"","","")),"") ->  | N13: =IF(D13:K13="","",IF(COUNTIF(D13:K13,"غ")+COUNTIF(D13:K13,"<50")=0,"ناجح",IF(COUNTIF(D13:K13,"غ")+COUNTIF(D13:K13,"<50")<=3,"مكمل",IF(COUNTIF(D13:K13,"غ")+COUNTIF(D13:K13,"<50")>=4,"راسب")))) -> مكمل | O13: التربية الإسلامية اللغة العربية اللغة الإنكليزية الرياضيات العلوم الاجتماعيات التربية الفنية التربية الرياضية | S13: 1
A14: 9 | B14: ='التلاميذ والقيود '!B11 -> 2501 | C14: =INDEX('التلاميذ والقيود '!C11,1,1) -> بنين خضير عباس | M14: =IFERROR(IF(L14=100,"مائة درجة",B_Only(L14,1,1,2,"","","")),"") ->  | N14: =IF(D14:K14="","",IF(COUNTIF(D14:K14,"غ")+COUNTIF(D14:K14,"<50")=0,"ناجح",IF(COUNTIF(D14:K14,"غ")+COUNTIF(D14:K14,"<50")<=3,"مكمل",IF(COUNTIF(D14:K14,"غ")+COUNTIF(D14:K14,"<50")>=4,"راسب")))) -> 
A15: 10 | B15: ='التلاميذ والقيود '!B12 -> 2502 | C15: =INDEX('التلاميذ والقيود '!C12,1,1) -> بنين عامر كاظم | M15: =IFERROR(IF(L15=100,"مائة درجة",B_Only(L15,1,1,2,"","","")),"") ->  | N15: =IF(D15:K15="","",IF(COUNTIF(D15:K15,"غ")+COUNTIF(D15:K15,"<50")=0,"ناجح",IF(COUNTIF(D15:K15,"غ")+COUNTIF(D15:K15,"<50")<=3,"مكمل",IF(COUNTIF(D15:K15,"غ")+COUNTIF(D15:K15,"<50")>=4,"راسب")))) -> 
A16: 11 | B16: ='التلاميذ والقيود '!B13 -> 2610 | C16: =INDEX('التلاميذ والقيود '!C13,1,1) -> جمانه حسين جبار | M16: =IFERROR(IF(L16=100,"مائة درجة",B_Only(L16,1,1,2,"","","")),"") ->  | N16: =IF(D16:K16="","",IF(COUNTIF(D16:K16,"غ")+COUNTIF(D16:K16,"<50")=0,"ناجح",IF(COUNTIF(D16:K16,"غ")+COUNTIF(D16:K16,"<50")<=3,"مكمل",IF(COUNTIF(D16:K16,"غ")+COUNTIF(D16:K16,"<50")>=4,"راسب")))) -> 
A17: 12 | B17: ='التلاميذ والقيود '!B14 -> 2517 | C17: =INDEX('التلاميذ والقيود '!C14,1,1) -> جنه زهير قاسم | M17: =IFERROR(IF(L17=100,"مائة درجة",B_Only(L17,1,1,2,"","","")),"") ->  | N17: =IF(D17:K17="","",IF(COUNTIF(D17:K17,"غ")+COUNTIF(D17:K17,"<50")=0,"ناجح",IF(COUNTIF(D17:K17,"غ")+COUNTIF(D17:K17,"<50")<=3,"مكمل",IF(COUNTIF(D17:K17,"غ")+COUNTIF(D17:K17,"<50")>=4,"راسب")))) -> 
A18: 13 | B18: ='التلاميذ والقيود '!B15 -> 2479 | C18: =INDEX('التلاميذ والقيود '!C15,1,1) -> حوراء رزاق درك | M18: =IFERROR(IF(L18=100,"مائة درجة",B_Only(L18,1,1,2,"","","")),"") ->  | N18: =IF(D18:K18="","",IF(COUNTIF(D18:K18,"غ")+COUNTIF(D18:K18,"<50")=0,"ناجح",IF(COUNTIF(D18:K18,"غ")+COUNTIF(D18:K18,"<50")<=3,"مكمل",IF(COUNTIF(D18:K18,"غ")+COUNTIF(D18:K18,"<50")>=4,"راسب")))) -> 
A19: 14 | B19: ='التلاميذ والقيود '!B16 -> 2559 | C19: =INDEX('التلاميذ والقيود '!C16,1,1) -> حوراء عادل مطشر | M19: =IFERROR(IF(L19=100,"مائة درجة",B_Only(L19,1,1,2,"","","")),"") ->  | N19: =IF(D19:K19="","",IF(COUNTIF(D19:K19,"غ")+COUNTIF(D19:K19,"<50")=0,"ناجح",IF(COUNTIF(D19:K19,"غ")+COUNTIF(D19:K19,"<50")<=3,"مكمل",IF(COUNTIF(D19:K19,"غ")+COUNTIF(D19:K19,"<50")>=4,"راسب")))) -> 
A20: 15 | B20: ='التلاميذ والقيود '!B17 -> 2799 | C20: =INDEX('التلاميذ والقيود '!C17,1,1) -> رتاج علي ناصر حيدر | M20: =IFERROR(IF(L20=100,"مائة درجة",B_Only(L20,1,1,2,"","","")),"") ->  | N20: =IF(D20:K20="","",IF(COUNTIF(D20:K20,"غ")+COUNTIF(D20:K20,"<50")=0,"ناجح",IF(COUNTIF(D20:K20,"غ")+COUNTIF(D20:K20,"<50")<=3,"مكمل",IF(COUNTIF(D20:K20,"غ")+COUNTIF(D20:K20,"<50")>=4,"راسب")))) -> 
A21: 16 | B21: ='التلاميذ والقيود '!B18 -> 2590 | C21: =INDEX('التلاميذ والقيود '!C18,1,1) -> رحمه عباس زغير | M21: =IFERROR(IF(L21=100,"مائة درجة",B_Only(L21,1,1,2,"","","")),"") ->  | N21: =IF(D21:K21="","",IF(COUNTIF(D21:K21,"غ")+COUNTIF(D21:K21,"<50")=0,"ناجح",IF(COUNTIF(D21:K21,"غ")+COUNTIF(D21:K21,"<50")<=3,"مكمل",IF(COUNTIF(D21:K21,"غ")+COUNTIF(D21:K21,"<50")>=4,"راسب")))) -> 
A22: 17 | B22: ='التلاميذ والقيود '!B19 -> 2421 | C22: =INDEX('التلاميذ والقيود '!C19,1,1) -> رقيه رعد سعد | M22: =IFERROR(IF(L22=100,"مائة درجة",B_Only(L22,1,1,2,"","","")),"") ->  | N22: =IF(D22:K22="","",IF(COUNTIF(D22:K22,"غ")+COUNTIF(D22:K22,"<50")=0,"ناجح",IF(COUNTIF(D22:K22,"غ")+COUNTIF(D22:K22,"<50")<=3,"مكمل",IF(COUNTIF(D22:K22,"غ")+COUNTIF(D22:K22,"<50")>=4,"راسب")))) -> 
A23: 18 | B23: ='التلاميذ والقيود '!B20 -> 2440 | C23: =INDEX('التلاميذ والقيود '!C20,1,1) -> رقيه علي مزهر | M23: =IFERROR(IF(L23=100,"مائة درجة",B_Only(L23,1,1,2,"","","")),"") ->  | N23: =IF(D23:K23="","",IF(COUNTIF(D23:K23,"غ")+COUNTIF(D23:K23,"<50")=0,"ناجح",IF(COUNTIF(D23:K23,"غ")+COUNTIF(D23:K23,"<50")<=3,"مكمل",IF(COUNTIF(D23:K23,"غ")+COUNTIF(D23:K23,"<50")>=4,"راسب")))) -> 
A24: 19 | B24: ='التلاميذ والقيود '!B21 -> 2513 | C24: =INDEX('التلاميذ والقيود '!C21,1,1) -> رقيه محمد كاظم | M24: =IFERROR(IF(L24=100,"مائة درجة",B_Only(L24,1,1,2,"","","")),"") ->  | N24: =IF(D24:K24="","",IF(COUNTIF(D24:K24,"غ")+COUNTIF(D24:K24,"<50")=0,"ناجح",IF(COUNTIF(D24:K24,"غ")+COUNTIF(D24:K24,"<50")<=3,"مكمل",IF(COUNTIF(D24:K24,"غ")+COUNTIF(D24:K24,"<50")>=4,"راسب")))) -> 
A25: 20 | B25: ='التلاميذ والقيود '!B22 -> 2580 | C25: =INDEX('التلاميذ والقيود '!C22,1,1) -> روان احمد قاسم | M25: =IFERROR(IF(L25=100,"مائة درجة",B_Only(L25,1,1,2,"","","")),"") ->  | N25: =IF(D25:K25="","",IF(COUNTIF(D25:K25,"غ")+COUNTIF(D25:K25,"<50")=0,"ناجح",IF(COUNTIF(D25:K25,"غ")+COUNTIF(D25:K25,"<50")<=3,"مكمل",IF(COUNTIF(D25:K25,"غ")+COUNTIF(D25:K25,"<50")>=4,"راسب")))) -> 
A26: 21 | B26: ='التلاميذ والقيود '!B23 -> 2585 | C26: =INDEX('التلاميذ والقيود '!C23,1,1) -> روان استبرق جمعه | M26: =IFERROR(IF(L26=100,"مائة درجة",B_Only(L26,1,1,2,"","","")),"") ->  | N26: =IF(D26:K26="","",IF(COUNTIF(D26:K26,"غ")+COUNTIF(D26:K26,"<50")=0,"ناجح",IF(COUNTIF(D26:K26,"غ")+COUNTIF(D26:K26,"<50")<=3,"مكمل",IF(COUNTIF(D26:K26,"غ")+COUNTIF(D26:K26,"<50")>=4,"راسب")))) -> 
A27: 22 | B27: ='التلاميذ والقيود '!B24 -> 2583 | C27: =INDEX('التلاميذ والقيود '!C24,1,1) -> ريتا احمد فاخر | M27: =IFERROR(IF(L27=100,"مائة درجة",B_Only(L27,1,1,2,"","","")),"") ->  | N27: =IF(D27:K27="","",IF(COUNTIF(D27:K27,"غ")+COUNTIF(D27:K27,"<50")=0,"ناجح",IF(COUNTIF(D27:K27,"غ")+COUNTIF(D27:K27,"<50")<=3,"مكمل",IF(COUNTIF(D27:K27,"غ")+COUNTIF(D27:K27,"<50")>=4,"راسب")))) -> 
A28: 23 | B28: ='التلاميذ والقيود '!B25 -> 2134 | C28: =INDEX('التلاميذ والقيود '!C25,1,1) -> زهراء احمد محمود | M28: =IFERROR(IF(L28=100,"مائة درجة",B_Only(L28,1,1,2,"","","")),"") ->  | N28: =IF(D28:K28="","",IF(COUNTIF(D28:K28,"غ")+COUNTIF(D28:K28,"<50")=0,"ناجح",IF(COUNTIF(D28:K28,"غ")+COUNTIF(D28:K28,"<50")<=3,"مكمل",IF(COUNTIF(D28:K28,"غ")+COUNTIF(D28:K28,"<50")>=4,"راسب")))) -> 
A29: 24 | B29: ='التلاميذ والقيود '!B26 -> 2189 | C29: =INDEX('التلاميذ والقيود '!C26,1,1) -> زهراء حيدر لفته | M29: =IFERROR(IF(L29=100,"مائة درجة",B_Only(L29,1,1,2,"","","")),"") ->  | N29: =IF(D29:K29="","",IF(COUNTIF(D29:K29,"غ")+COUNTIF(D29:K29,"<50")=0,"ناجح",IF(COUNTIF(D29:K29,"غ")+COUNTIF(D29:K29,"<50")<=3,"مكمل",IF(COUNTIF(D29:K29,"غ")+COUNTIF(D29:K29,"<50")>=4,"راسب")))) -> 
A30: 25 | B30: ='التلاميذ والقيود '!B27 -> 2427 | C30: =INDEX('التلاميذ والقيود '!C27,1,1) -> زهراء صادق عباس | M30: =IFERROR(IF(L30=100,"مائة درجة",B_Only(L30,1,1,2,"","","")),"") ->  | N30: =IF(D30:K30="","",IF(COUNTIF(D30:K30,"غ")+COUNTIF(D30:K30,"<50")=0,"ناجح",IF(COUNTIF(D30:K30,"غ")+COUNTIF(D30:K30,"<50")<=3,"مكمل",IF(COUNTIF(D30:K30,"غ")+COUNTIF(D30:K30,"<50")>=4,"راسب")))) -> 
A31: 26 | B31: ='التلاميذ والقيود '!B28 -> 2569 | C31: =INDEX('التلاميذ والقيود '!C28,1,1) -> زهراء عباس جبر | M31: =IFERROR(IF(L31=100,"مائة درجة",B_Only(L31,1,1,2,"","","")),"") ->  | N31: =IF(D31:K31="","",IF(COUNTIF(D31:K31,"غ")+COUNTIF(D31:K31,"<50")=0,"ناجح",IF(COUNTIF(D31:K31,"غ")+COUNTIF(D31:K31,"<50")<=3,"مكمل",IF(COUNTIF(D31:K31,"غ")+COUNTIF(D31:K31,"<50")>=4,"راسب")))) -> 
A32: 27 | B32: ='التلاميذ والقيود '!B29 -> 2557 | C32: =INDEX('التلاميذ والقيود '!C29,1,1) -> زهراء علي زامل | M32: =IFERROR(IF(L32=100,"مائة درجة",B_Only(L32,1,1,2,"","","")),"") ->  | N32: =IF(D32:K32="","",IF(COUNTIF(D32:K32,"غ")+COUNTIF(D32:K32,"<50")=0,"ناجح",IF(COUNTIF(D32:K32,"غ")+COUNTIF(D32:K32,"<50")<=3,"مكمل",IF(COUNTIF(D32:K32,"غ")+COUNTIF(D32:K32,"<50")>=4,"راسب")))) -> 
A33: 28 | B33: ='التلاميذ والقيود '!B30 -> 2275 | C33: =INDEX('التلاميذ والقيود '!C30,1,1) -> زينب رزاق درك | M33: =IFERROR(IF(L33=100,"مائة درجة",B_Only(L33,1,1,2,"","","")),"") ->  | N33: =IF(D33:K33="","",IF(COUNTIF(D33:K33,"غ")+COUNTIF(D33:K33,"<50")=0,"ناجح",IF(COUNTIF(D33:K33,"غ")+COUNTIF(D33:K33,"<50")<=3,"مكمل",IF(COUNTIF(D33:K33,"غ")+COUNTIF(D33:K33,"<50")>=4,"راسب")))) -> 
A34: 29 | B34: ='التلاميذ والقيود '!B31 -> 2592 | C34: =INDEX('التلاميذ والقيود '!C31,1,1) -> زينب مشتاق ابراهيم | M34: =IFERROR(IF(L34=100,"مائة درجة",B_Only(L34,1,1,2,"","","")),"") ->  | N34: =IF(D34:K34="","",IF(COUNTIF(D34:K34,"غ")+COUNTIF(D34:K34,"<50")=0,"ناجح",IF(COUNTIF(D34:K34,"غ")+COUNTIF(D34:K34,"<50")<=3,"مكمل",IF(COUNTIF(D34:K34,"غ")+COUNTIF(D34:K34,"<50")>=4,"راسب")))) -> 
A35: 30 | B35: ='التلاميذ والقيود '!B32 -> 2522 | C35: =INDEX('التلاميذ والقيود '!C32,1,1) -> شهد فراس كاظم | M35: =IFERROR(IF(L35=100,"مائة درجة",B_Only(L35,1,1,2,"","","")),"") ->  | N35: =IF(D35:K35="","",IF(COUNTIF(D35:K35,"غ")+COUNTIF(D35:K35,"<50")=0,"ناجح",IF(COUNTIF(D35:K35,"غ")+COUNTIF(D35:K35,"<50")<=3,"مكمل",IF(COUNTIF(D35:K35,"غ")+COUNTIF(D35:K35,"<50")>=4,"راسب")))) -> 
A36: 31 | B36: ='التلاميذ والقيود '!B33 -> 2570 | C36: =INDEX('التلاميذ والقيود '!C33,1,1) -> غدير عادل ثجيل | M36: =IFERROR(IF(L36=100,"مائة درجة",B_Only(L36,1,1,2,"","","")),"") ->  | N36: =IF(D36:K36="","",IF(COUNTIF(D36:K36,"غ")+COUNTIF(D36:K36,"<50")=0,"ناجح",IF(COUNTIF(D36:K36,"غ")+COUNTIF(D36:K36,"<50")<=3,"مكمل",IF(COUNTIF(D36:K36,"غ")+COUNTIF(D36:K36,"<50")>=4,"راسب")))) -> 
A37: 32 | B37: ='التلاميذ والقيود '!B34 -> 2567 | C37: =INDEX('التلاميذ والقيود '!C34,1,1) -> غدير عصام حسن | M37: =IFERROR(IF(L37=100,"مائة درجة",B_Only(L37,1,1,2,"","","")),"") ->  | N37: =IF(D37:K37="","",IF(COUNTIF(D37:K37,"غ")+COUNTIF(D37:K37,"<50")=0,"ناجح",IF(COUNTIF(D37:K37,"غ")+COUNTIF(D37:K37,"<50")<=3,"مكمل",IF(COUNTIF(D37:K37,"غ")+COUNTIF(D37:K37,"<50")>=4,"راسب")))) -> 
A38: 33 | B38: ='التلاميذ والقيود '!B35 -> 2308 | C38: =INDEX('التلاميذ والقيود '!C35,1,1) -> فاطمه خضير دعبول | M38: =IFERROR(IF(L38=100,"مائة درجة",B_Only(L38,1,1,2,"","","")),"") ->  | N38: =IF(D38:K38="","",IF(COUNTIF(D38:K38,"غ")+COUNTIF(D38:K38,"<50")=0,"ناجح",IF(COUNTIF(D38:K38,"غ")+COUNTIF(D38:K38,"<50")<=3,"مكمل",IF(COUNTIF(D38:K38,"غ")+COUNTIF(D38:K38,"<50")>=4,"راسب")))) -> 
A39: 34 | B39: ='التلاميذ والقيود '!B36 -> 2252 | C39: =INDEX('التلاميذ والقيود '!C36,1,1) -> فاطمه علي خشم | M39: =IFERROR(IF(L39=100,"مائة درجة",B_Only(L39,1,1,2,"","","")),"") ->  | N39: =IF(D39:K39="","",IF(COUNTIF(D39:K39,"غ")+COUNTIF(D39:K39,"<50")=0,"ناجح",IF(COUNTIF(D39:K39,"غ")+COUNTIF(D39:K39,"<50")<=3,"مكمل",IF(COUNTIF(D39:K39,"غ")+COUNTIF(D39:K39,"<50")>=4,"راسب")))) -> 
A40: 35 | B40: ='التلاميذ والقيود '!B37 -> 2687 | C40: =INDEX('التلاميذ والقيود '!C37,1,1) -> فاطمه ماجد عبد الحسين | M40: =IFERROR(IF(L40=100,"مائة درجة",B_Only(L40,1,1,2,"","","")),"") ->  | N40: =IF(D40:K40="","",IF(COUNTIF(D40:K40,"غ")+COUNTIF(D40:K40,"<50")=0,"ناجح",IF(COUNTIF(D40:K40,"غ")+COUNTIF(D40:K40,"<50")<=3,"مكمل",IF(COUNTIF(D40:K40,"غ")+COUNTIF(D40:K40,"<50")>=4,"راسب")))) -> 
A41: 36 | B41: ='التلاميذ والقيود '!B38 -> 2562 | C41: =INDEX('التلاميذ والقيود '!C38,1,1) -> فاطمه هادي كاظم | M41: =IFERROR(IF(L41=100,"مائة درجة",B_Only(L41,1,1,2,"","","")),"") ->  | N41: =IF(D41:K41="","",IF(COUNTIF(D41:K41,"غ")+COUNTIF(D41:K41,"<50")=0,"ناجح",IF(COUNTIF(D41:K41,"غ")+COUNTIF(D41:K41,"<50")<=3,"مكمل",IF(COUNTIF(D41:K41,"غ")+COUNTIF(D41:K41,"<50")>=4,"راسب")))) -> 
A42: 37 | B42: ='التلاميذ والقيود '!B39 -> 2589 | C42: =INDEX('التلاميذ والقيود '!C39,1,1) -> فرح عباس زغير | M42: =IFERROR(IF(L42=100,"مائة درجة",B_Only(L42,1,1,2,"","","")),"") ->  | N42: =IF(D42:K42="","",IF(COUNTIF(D42:K42,"غ")+COUNTIF(D42:K42,"<50")=0,"ناجح",IF(COUNTIF(D42:K42,"غ")+COUNTIF(D42:K42,"<50")<=3,"مكمل",IF(COUNTIF(D42:K42,"غ")+COUNTIF(D42:K42,"<50")>=4,"راسب")))) -> 
A43: 38 | B43: ='التلاميذ والقيود '!B40 -> 2523 | C43: =INDEX('التلاميذ والقيود '!C40,1,1) -> لجين حسين علي | M43: =IFERROR(IF(L43=100,"مائة درجة",B_Only(L43,1,1,2,"","","")),"") ->  | N43: =IF(D43:K43="","",IF(COUNTIF(D43:K43,"غ")+COUNTIF(D43:K43,"<50")=0,"ناجح",IF(COUNTIF(D43:K43,"غ")+COUNTIF(D43:K43,"<50")<=3,"مكمل",IF(COUNTIF(D43:K43,"غ")+COUNTIF(D43:K43,"<50")>=4,"راسب")))) -> 
A44: 39 | B44: ='التلاميذ والقيود '!B41 -> 2545 | C44: =INDEX('التلاميذ والقيود '!C41,1,1) -> ليسينيا ميثم فاضل | M44: =IFERROR(IF(L44=100,"مائة درجة",B_Only(L44,1,1,2,"","","")),"") ->  | N44: =IF(D44:K44="","",IF(COUNTIF(D44:K44,"غ")+COUNTIF(D44:K44,"<50")=0,"ناجح",IF(COUNTIF(D44:K44,"غ")+COUNTIF(D44:K44,"<50")<=3,"مكمل",IF(COUNTIF(D44:K44,"غ")+COUNTIF(D44:K44,"<50")>=4,"راسب")))) -> 
A45: 40 | B45: ='التلاميذ والقيود '!B42 -> 2549 | C45: =INDEX('التلاميذ والقيود '!C42,1,1) -> مريم عقيل حنون | M45: =IFERROR(IF(L45=100,"مائة درجة",B_Only(L45,1,1,2,"","","")),"") ->  | N45: =IF(D45:K45="","",IF(COUNTIF(D45:K45,"غ")+COUNTIF(D45:K45,"<50")=0,"ناجح",IF(COUNTIF(D45:K45,"غ")+COUNTIF(D45:K45,"<50")<=3,"مكمل",IF(COUNTIF(D45:K45,"غ")+COUNTIF(D45:K45,"<50")>=4,"راسب")))) -> 
A46: 41 | B46: ='التلاميذ والقيود '!B43 -> 2554 | C46: =INDEX('التلاميذ والقيود '!C43,1,1) -> مريم ماجد رحمه | M46: =IFERROR(IF(L46=100,"مائة درجة",B_Only(L46,1,1,2,"","","")),"") ->  | N46: =IF(D46:K46="","",IF(COUNTIF(D46:K46,"غ")+COUNTIF(D46:K46,"<50")=0,"ناجح",IF(COUNTIF(D46:K46,"غ")+COUNTIF(D46:K46,"<50")<=3,"مكمل",IF(COUNTIF(D46:K46,"غ")+COUNTIF(D46:K46,"<50")>=4,"راسب")))) -> 
A47: 42 | B47: ='التلاميذ والقيود '!B44 -> 2524 | C47: =INDEX('التلاميذ والقيود '!C44,1,1) -> معصومه جواد كاظم | M47: =IFERROR(IF(L47=100,"مائة درجة",B_Only(L47,1,1,2,"","","")),"") ->  | N47: =IF(D47:K47="","",IF(COUNTIF(D47:K47,"غ")+COUNTIF(D47:K47,"<50")=0,"ناجح",IF(COUNTIF(D47:K47,"غ")+COUNTIF(D47:K47,"<50")<=3,"مكمل",IF(COUNTIF(D47:K47,"غ")+COUNTIF(D47:K47,"<50")>=4,"راسب")))) -> 
A48: 43 | B48: ='التلاميذ والقيود '!B45 -> 2372 | C48: =INDEX('التلاميذ والقيود '!C45,1,1) -> ملاك حبيب شمخي | M48: =IFERROR(IF(L48=100,"مائة درجة",B_Only(L48,1,1,2,"","","")),"") ->  | N48: =IF(D48:K48="","",IF(COUNTIF(D48:K48,"غ")+COUNTIF(D48:K48,"<50")=0,"ناجح",IF(COUNTIF(D48:K48,"غ")+COUNTIF(D48:K48,"<50")<=3,"مكمل",IF(COUNTIF(D48:K48,"غ")+COUNTIF(D48:K48,"<50")>=4,"راسب")))) -> 
A49: 44 | B49: ='التلاميذ والقيود '!B46 -> 2535 | C49: =INDEX('التلاميذ والقيود '!C46,1,1) -> ميار حمزة مزهر | M49: =IFERROR(IF(L49=100,"مائة درجة",B_Only(L49,1,1,2,"","","")),"") ->  | N49: =IF(D49:K49="","",IF(COUNTIF(D49:K49,"غ")+COUNTIF(D49:K49,"<50")=0,"ناجح",IF(COUNTIF(D49:K49,"غ")+COUNTIF(D49:K49,"<50")<=3,"مكمل",IF(COUNTIF(D49:K49,"غ")+COUNTIF(D49:K49,"<50")>=4,"راسب")))) -> 
A50: 45 | B50: ='التلاميذ والقيود '!B47 -> 2584 | C50: =INDEX('التلاميذ والقيود '!C47,1,1) -> نبأ احمد عبد الحسين | M50: =IFERROR(IF(L50=100,"مائة درجة",B_Only(L50,1,1,2,"","","")),"") ->  | N50: =IF(D50:K50="","",IF(COUNTIF(D50:K50,"غ")+COUNTIF(D50:K50,"<50")=0,"ناجح",IF(COUNTIF(D50:K50,"غ")+COUNTIF(D50:K50,"<50")<=3,"مكمل",IF(COUNTIF(D50:K50,"غ")+COUNTIF(D50:K50,"<50")>=4,"راسب")))) -> 
A51: 46 | B51: ='التلاميذ والقيود '!B48 -> 2897 | C51: =INDEX('التلاميذ والقيود '!C48,1,1) -> هديل يوسف | M51: =IFERROR(IF(L51=100,"مائة درجة",B_Only(L51,1,1,2,"","","")),"") ->  | N51: =IF(D51:K51="","",IF(COUNTIF(D51:K51,"غ")+COUNTIF(D51:K51,"<50")=0,"ناجح",IF(COUNTIF(D51:K51,"غ")+COUNTIF(D51:K51,"<50")<=3,"مكمل",IF(COUNTIF(D51:K51,"غ")+COUNTIF(D51:K51,"<50")>=4,"راسب")))) -> 
A52: 47 | B52: ='التلاميذ والقيود '!B49 -> 0 | C52: =INDEX('التلاميذ والقيود '!C49,1,1) -> 0 | M52: =IFERROR(IF(L52=100,"مائة درجة",B_Only(L52,1,1,2,"","","")),"") ->  | N52: =IF(D52:K52="","",IF(COUNTIF(D52:K52,"غ")+COUNTIF(D52:K52,"<50")=0,"ناجح",IF(COUNTIF(D52:K52,"غ")+COUNTIF(D52:K52,"<50")<=3,"مكمل",IF(COUNTIF(D52:K52,"غ")+COUNTIF(D52:K52,"<50")>=4,"راسب")))) -> 
A53: 48 | B53: ='التلاميذ والقيود '!B50 -> 0 | C53: =INDEX('التلاميذ والقيود '!C50,1,1) -> 0 | M53: =IFERROR(IF(L53=100,"مائة درجة",B_Only(L53,1,1,2,"","","")),"") ->  | N53: =IF(D53:K53="","",IF(COUNTIF(D53:K53,"غ")+COUNTIF(D53:K53,"<50")=0,"ناجح",IF(COUNTIF(D53:K53,"غ")+COUNTIF(D53:K53,"<50")<=3,"مكمل",IF(COUNTIF(D53:K53,"غ")+COUNTIF(D53:K53,"<50")>=4,"راسب")))) -> 
A54: 49 | B54: ='التلاميذ والقيود '!B51 -> 0 | C54: =INDEX('التلاميذ والقيود '!C51,1,1) -> 0 | M54: =IFERROR(IF(L54=100,"مائة درجة",B_Only(L54,1,1,2,"","","")),"") ->  | N54: =IF(D54:K54="","",IF(COUNTIF(D54:K54,"غ")+COUNTIF(D54:K54,"<50")=0,"ناجح",IF(COUNTIF(D54:K54,"غ")+COUNTIF(D54:K54,"<50")<=3,"مكمل",IF(COUNTIF(D54:K54,"غ")+COUNTIF(D54:K54,"<50")>=4,"راسب")))) -> 
A55: 50 | B55: ='التلاميذ والقيود '!B52 -> 0 | C55: =INDEX('التلاميذ والقيود '!C52,1,1) -> 0 | M55: =IFERROR(IF(L55=100,"مائة درجة",B_Only(L55,1,1,2,"","","")),"") ->  | N55: =IF(D55:K55="","",IF(COUNTIF(D55:K55,"غ")+COUNTIF(D55:K55,"<50")=0,"ناجح",IF(COUNTIF(D55:K55,"غ")+COUNTIF(D55:K55,"<50")<=3,"مكمل",IF(COUNTIF(D55:K55,"غ")+COUNTIF(D55:K55,"<50")>=4,"راسب")))) -> 
B57: المشتركون
B58: الناجحون | D58: =COUNTIF(T6:T55,"=2") -> 2
B59: المكملون | D59: =COUNTIF(S6:S55,"=1") -> 4
B60: الراسبون | D60: =COUNTIF(U6:U55,"=3") -> 2
B61: الممتحنون
B62: الغائبون
B63: النسبة المئوية

Sheet العامة نهاية السنة دور ثاني أ
A1: أدارة مدرسة المناذرة | O1: الصف | Q1: الخامس أ
A2: الابتدائية للبنات | O2: الدور | Q2: الثاني
A3: للعام الدراسي 2019 - 2020
L4: المجموع
A5: ت | B5: رقم القيد | C5: اسم التلميذ | D5: التربية الإسلامية | E5: اللغة العربية | F5: اللغة الإنكليزية | G5: الرياضيات | H5: العلوم | I5: الاجتماعيات | J5: التربية الفنية | K5: التربية الرياضية | L5: رقما | M5: كتابة | N5: النتيجة | O5: الملاحظات | R5: احد التفقيط اختر اي منها | T5: الناجحون | U5: الراسبون
A6: 1 | B6: ='التلاميذ والقيود '!B3 -> 2787 | C6: ='التلاميذ والقيود '!C3 -> آمنه حسين علوان | D6: 77 | E6: 89 | F6: 75 | G6: 75 | H6: 2 | I6: 50 | J6: 50 | K6: 50 | L6: =IF(OR(N6="ناجح",N6="راسب"),SUM(D6:K6),"") -> 468 | M6: =IFERROR(IF(L6=100,"مائة درجة",B_Only(L6,1,1,2,"","","")),"") -> أربعمائة وثمان وستون | N6: =IF(D6:K6="","",IF(COUNTIF(D6:K6,"غ")+COUNTIF(D6:K6,"<50")=0,"ناجح",IF(COUNTIF(D6:K6,"غ")+COUNTIF(D6:K6,"<50")>=1,"راسب"))) -> راسب | R6: =IFERROR(IF(K6="","",IF(K6=0,"صفر",n2t(K6))),"") -> خمسونَ درجةً | T6: =IF(N6="ناجح",2,"") ->  | U6: =IF(N6="راسب",3,"") -> 3
A7: 2 | B7: ='التلاميذ والقيود '!B4 -> 2373 | C7: ='التلاميذ والقيود '!C4 -> آمنه قاسم ثجيل | D7: 66 | E7: 77 | F7: 82 | G7: 55 | H7: 55 | I7: 22 | J7: 44 | K7: 55 | L7: =IF(OR(N7="ناجح",N7="راسب"),SUM(D7:K7),"") -> 456 | M7: =IFERROR(IF(L7=100,"مائة درجة",B_Only(L7,1,1,2,"","","")),"") -> أربعمائة وست وخمسون | N7: =IF(D7:K7="","",IF(COUNTIF(D7:K7,"غ")+COUNTIF(D7:K7,"<50")=0,"ناجح",IF(COUNTIF(D7:K7,"غ")+COUNTIF(D7:K7,"<50")>=1,"راسب"))) -> راسب | R7: =IFERROR(IF(K7="","",IF(K7=0,"صفر",n2t(K7))),"") -> خمس و خمسونَ درجةً | T7: =IF(N7="ناجح",2,"") ->  | U7: =IF(N7="راسب",3,"") -> 3
A8: 3 | B8: ='التلاميذ والقيود '!B5 -> 2430 | C8: ='التلاميذ والقيود '!C5 -> ايمان محمد مجبل | D8: 99 | E8: 100 | F8: 55 | G8: 63 | H8: 78 | I8: 54 | J8: 33 | K8: 99 | L8: 581 | M8: =IFERROR(IF(L8=100,"مائة درجة",B_Only(L8,1,1,2,"","","")),"") -> خمسمائة وإحدى وثمانون | N8: =IF(D8:K8="","",IF(COUNTIF(D8:K8,"غ")+COUNTIF(D8:K8,"<50")=0,"ناجح",IF(COUNTIF(D8:K8,"غ")+COUNTIF(D8:K8,"<50")>=1,"راسب"))) -> راسب | R8: =IFERROR(IF(K8="","",IF(K8=0,"صفر",n2t(K8))),"") -> تسع و تسعونَ درجةً | U8: 3
A9: 4 | B9: ='التلاميذ والقيود '!B6 -> 2348 | C9: ='التلاميذ والقيود '!C6 -> آيه احمد جبار | D9: 88 | E9: 99 | F9: 57 | G9: 65 | H9: 66 | I9: 51 | J9: 88 | K9: 91 | L9: 605 | M9: =IFERROR(IF(L9=100,"مائة درجة",B_Only(L9,1,1,2,"","","")),"") -> ستمائة وخمس | N9: =IF(D9:K9="","",IF(COUNTIF(D9:K9,"غ")+COUNTIF(D9:K9,"<50")=0,"ناجح",IF(COUNTIF(D9:K9,"غ")+COUNTIF(D9:K9,"<50")>=1,"راسب"))) -> ناجح | R9: =IFERROR(IF(K9="","",IF(K9=0,"صفر",n2t(K9))),"") -> إحدى و تسعونَ درجةً | T9: 2
A10: 5 | B10: ='التلاميذ والقيود '!B7 -> 2539 | C10: ='التلاميذ والقيود '!C7 -> آيه حسين حسن | D10: 77 | E10: 98 | F10: غ | G10: غ | H10: 54 | I10: 48 | J10: 77 | K10: 83 | L10: 437 | M10: =IFERROR(IF(L10=100,"مائة درجة",B_Only(L10,1,1,2,"","","")),"") -> أربعمائة وسبع وثلاثون | N10: =IF(D10:K10="","",IF(COUNTIF(D10:K10,"غ")+COUNTIF(D10:K10,"<50")=0,"ناجح",IF(COUNTIF(D10:K10,"غ")+COUNTIF(D10:K10,"<50")>=1,"راسب"))) -> راسب | R10: =IFERROR(IF(K10="","",IF(K10=0,"صفر",n2t(K10))),"") -> ثلاث و ثمانونَ درجةً | U10: 3
A11: 6 | B11: ='التلاميذ والقيود '!B8 -> 2561 | C11: ='التلاميذ والقيود '!C8 -> آيه علي كاظم | D11: غ | E11: 50 | F11: 50 | G11: 69 | H11: 55 | I11: 77 | J11: 66 | K11: 50 | L11: 417 | M11: =IFERROR(IF(L11=100,"مائة درجة",B_Only(L11,1,1,2,"","","")),"") -> أربعمائة وسبع عشرة | N11: =IF(D11:K11="","",IF(COUNTIF(D11:K11,"غ")+COUNTIF(D11:K11,"<50")=0,"ناجح",IF(COUNTIF(D11:K11,"غ")+COUNTIF(D11:K11,"<50")>=1,"راسب"))) -> راسب | R11: =IFERROR(IF(K11="","",IF(K11=0,"صفر",n2t(K11))),"") -> خمسونَ درجةً | U11: 3
A12: 7 | B12: ='التلاميذ والقيود '!B9 -> 2417 | C12: ='التلاميذ والقيود '!C9 -> براء سليم مجيد | D12: 55 | E12: 96 | F12: غ | G12: 71 | H12: 30 | I12: 42 | J12: 55 | K12: 67 | L12: 416 | M12: =IFERROR(IF(L12=100,"مائة درجة",B_Only(L12,1,1,2,"","","")),"") -> أربعمائة وست عشرة | N12: =IF(D12:K12="","",IF(COUNTIF(D12:K12,"غ")+COUNTIF(D12:K12,"<50")=0,"ناجح",IF(COUNTIF(D12:K12,"غ")+COUNTIF(D12:K12,"<50")>=1,"راسب"))) -> راسب | R12: =IFERROR(IF(K12="","",IF(K12=0,"صفر",n2t(K12))),"") -> سبع و ستونَ درجةً | U12: 3
A13: 8 | B13: ='التلاميذ والقيود '!B10 -> 2445 | C13: ='التلاميذ والقيود '!C10 -> بنين احمد أسعد | D13: 44 | E13: 95 | F13: 65 | G13: 73 | H13: 18 | I13: 39 | J13: 44 | K13: 59 | L13: 437 | M13: =IFERROR(IF(L13=100,"مائة درجة",B_Only(L13,1,1,2,"","","")),"") -> أربعمائة وسبع وثلاثون | N13: =IF(D13:K13="","",IF(COUNTIF(D13:K13,"غ")+COUNTIF(D13:K13,"<50")=0,"ناجح",IF(COUNTIF(D13:K13,"غ")+COUNTIF(D13:K13,"<50")>=1,"راسب"))) -> راسب | R13: =IFERROR(IF(K13="","",IF(K13=0,"صفر",n2t(K13))),"") -> تسع و خمسونَ درجةً | U13: 3
A14: 9 | B14: ='التلاميذ والقيود '!B11 -> 2501 | C14: ='التلاميذ والقيود '!C11 -> بنين خضير عباس | M14: =IFERROR(IF(L14=100,"مائة درجة",B_Only(L14,1,1,2,"","","")),"") ->  | N14: =IF(D14:K14="","",IF(COUNTIF(D14:K14,"غ")+COUNTIF(D14:K14,"<50")=0,"ناجح",IF(COUNTIF(D14:K14,"غ")+COUNTIF(D14:K14,"<50")>=1,"راسب"))) -> 
A15: 10 | B15: ='التلاميذ والقيود '!B12 -> 2502 | C15: ='التلاميذ والقيود '!C12 -> بنين عامر كاظم | M15: =IFERROR(IF(L15=100,"مائة درجة",B_Only(L15,1,1,2,"","","")),"") ->  | N15: =IF(D15:K15="","",IF(COUNTIF(D15:K15,"غ")+COUNTIF(D15:K15,"<50")=0,"ناجح",IF(COUNTIF(D15:K15,"غ")+COUNTIF(D15:K15,"<50")>=1,"راسب"))) -> 
A16: 11 | B16: ='التلاميذ والقيود '!B13 -> 2610 | C16: ='التلاميذ والقيود '!C13 -> جمانه حسين جبار | M16: =IFERROR(IF(L16=100,"مائة درجة",B_Only(L16,1,1,2,"","","")),"") ->  | N16: =IF(D16:K16="","",IF(COUNTIF(D16:K16,"غ")+COUNTIF(D16:K16,"<50")=0,"ناجح",IF(COUNTIF(D16:K16,"غ")+COUNTIF(D16:K16,"<50")>=1,"راسب"))) -> 
A17: 12 | B17: ='التلاميذ والقيود '!B14 -> 2517 | C17: ='التلاميذ والقيود '!C14 -> جنه زهير قاسم | M17: =IFERROR(IF(L17=100,"مائة درجة",B_Only(L17,1,1,2,"","","")),"") ->  | N17: =IF(D17:K17="","",IF(COUNTIF(D17:K17,"غ")+COUNTIF(D17:K17,"<50")=0,"ناجح",IF(COUNTIF(D17:K17,"غ")+COUNTIF(D17:K17,"<50")>=1,"راسب"))) -> 
A18: 13 | B18: ='التلاميذ والقيود '!B15 -> 2479 | C18: ='التلاميذ والقيود '!C15 -> حوراء رزاق درك | M18: =IFERROR(IF(L18=100,"مائة درجة",B_Only(L18,1,1,2,"","","")),"") ->  | N18: =IF(D18:K18="","",IF(COUNTIF(D18:K18,"غ")+COUNTIF(D18:K18,"<50")=0,"ناجح",IF(COUNTIF(D18:K18,"غ")+COUNTIF(D18:K18,"<50")>=1,"راسب"))) -> 
A19: 14 | B19: ='التلاميذ والقيود '!B16 -> 2559 | C19: ='التلاميذ والقيود '!C16 -> حوراء عادل مطشر | M19: =IFERROR(IF(L19=100,"مائة درجة",B_Only(L19,1,1,2,"","","")),"") ->  | N19: =IF(D19:K19="","",IF(COUNTIF(D19:K19,"غ")+COUNTIF(D19:K19,"<50")=0,"ناجح",IF(COUNTIF(D19:K19,"غ")+COUNTIF(D19:K19,"<50")>=1,"راسب"))) -> 
A20: 15 | B20: ='التلاميذ والقيود '!B17 -> 2799 | C20: ='التلاميذ والقيود '!C17 -> رتاج علي ناصر حيدر | M20: =IFERROR(IF(L20=100,"مائة درجة",B_Only(L20,1,1,2,"","","")),"") ->  | N20: =IF(D20:K20="","",IF(COUNTIF(D20:K20,"غ")+COUNTIF(D20:K20,"<50")=0,"ناجح",IF(COUNTIF(D20:K20,"غ")+COUNTIF(D20:K20,"<50")>=1,"راسب"))) -> 
A21: 16 | B21: ='التلاميذ والقيود '!B18 -> 2590 | C21: ='التلاميذ والقيود '!C18 -> رحمه عباس زغير | M21: =IFERROR(IF(L21=100,"مائة درجة",B_Only(L21,1,1,2,"","","")),"") ->  | N21: =IF(D21:K21="","",IF(COUNTIF(D21:K21,"غ")+COUNTIF(D21:K21,"<50")=0,"ناجح",IF(COUNTIF(D21:K21,"غ")+COUNTIF(D21:K21,"<50")>=1,"راسب"))) -> 
A22: 17 | B22: ='التلاميذ والقيود '!B19 -> 2421 | C22: ='التلاميذ والقيود '!C19 -> رقيه رعد سعد | M22: =IFERROR(IF(L22=100,"مائة درجة",B_Only(L22,1,1,2,"","","")),"") ->  | N22: =IF(D22:K22="","",IF(COUNTIF(D22:K22,"غ")+COUNTIF(D22:K22,"<50")=0,"ناجح",IF(COUNTIF(D22:K22,"غ")+COUNTIF(D22:K22,"<50")>=1,"راسب"))) -> 
A23: 18 | B23: ='التلاميذ والقيود '!B20 -> 2440 | C23: ='التلاميذ والقيود '!C20 -> رقيه علي مزهر | M23: =IFERROR(IF(L23=100,"مائة درجة",B_Only(L23,1,1,2,"","","")),"") ->  | N23: =IF(D23:K23="","",IF(COUNTIF(D23:K23,"غ")+COUNTIF(D23:K23,"<50")=0,"ناجح",IF(COUNTIF(D23:K23,"غ")+COUNTIF(D23:K23,"<50")>=1,"راسب"))) -> 
A24: 19 | B24: ='التلاميذ والقيود '!B21 -> 2513 | C24: ='التلاميذ والقيود '!C21 -> رقيه محمد كاظم | M24: =IFERROR(IF(L24=100,"مائة درجة",B_Only(L24,1,1,2,"","","")),"") ->  | N24: =IF(D24:K24="","",IF(COUNTIF(D24:K24,"غ")+COUNTIF(D24:K24,"<50")=0,"ناجح",IF(COUNTIF(D24:K24,"غ")+COUNTIF(D24:K24,"<50")>=1,"راسب"))) -> 
A25: 20 | B25: ='التلاميذ والقيود '!B22 -> 2580 | C25: ='التلاميذ والقيود '!C22 -> روان احمد قاسم | M25: =IFERROR(IF(L25=100,"مائة درجة",B_Only(L25,1,1,2,"","","")),"") ->  | N25: =IF(D25:K25="","",IF(COUNTIF(D25:K25,"غ")+COUNTIF(D25:K25,"<50")=0,"ناجح",IF(COUNTIF(D25:K25,"غ")+COUNTIF(D25:K25,"<50")>=1,"راسب"))) -> 
A26: 21 | B26: ='التلاميذ والقيود '!B23 -> 2585 | C26: ='التلاميذ والقيود '!C23 -> روان استبرق جمعه | M26: =IFERROR(IF(L26=100,"مائة درجة",B_Only(L26,1,1,2,"","","")),"") ->  | N26: =IF(D26:K26="","",IF(COUNTIF(D26:K26,"غ")+COUNTIF(D26:K26,"<50")=0,"ناجح",IF(COUNTIF(D26:K26,"غ")+COUNTIF(D26:K26,"<50")>=1,"راسب"))) -> 
A27: 22 | B27: ='التلاميذ والقيود '!B24 -> 2583 | C27: ='التلاميذ والقيود '!C24 -> ريتا احمد فاخر | M27: =IFERROR(IF(L27=100,"مائة درجة",B_Only(L27,1,1,2,"","","")),"") ->  | N27: =IF(D27:K27="","",IF(COUNTIF(D27:K27,"غ")+COUNTIF(D27:K27,"<50")=0,"ناجح",IF(COUNTIF(D27:K27,"غ")+COUNTIF(D27:K27,"<50")>=1,"راسب"))) -> 
A28: 23 | B28: ='التلاميذ والقيود '!B25 -> 2134 | C28: ='التلاميذ والقيود '!C25 -> زهراء احمد محمود | M28: =IFERROR(IF(L28=100,"مائة درجة",B_Only(L28,1,1,2,"","","")),"") ->  | N28: =IF(D28:K28="","",IF(COUNTIF(D28:K28,"غ")+COUNTIF(D28:K28,"<50")=0,"ناجح",IF(COUNTIF(D28:K28,"غ")+COUNTIF(D28:K28,"<50")>=1,"راسب"))) -> 
A29: 24 | B29: ='التلاميذ والقيود '!B26 -> 2189 | C29: ='التلاميذ والقيود '!C26 -> زهراء حيدر لفته | M29: =IFERROR(IF(L29=100,"مائة درجة",B_Only(L29,1,1,2,"","","")),"") ->  | N29: =IF(D29:K29="","",IF(COUNTIF(D29:K29,"غ")+COUNTIF(D29:K29,"<50")=0,"ناجح",IF(COUNTIF(D29:K29,"غ")+COUNTIF(D29:K29,"<50")>=1,"راسب"))) -> 
A30: 25 | B30: ='التلاميذ والقيود '!B27 -> 2427 | C30: ='التلاميذ والقيود '!C27 -> زهراء صادق عباس | M30: =IFERROR(IF(L30=100,"مائة درجة",B_Only(L30,1,1,2,"","","")),"") ->  | N30: =IF(D30:K30="","",IF(COUNTIF(D30:K30,"غ")+COUNTIF(D30:K30,"<50")=0,"ناجح",IF(COUNTIF(D30:K30,"غ")+COUNTIF(D30:K30,"<50")>=1,"راسب"))) -> 
A31: 26 | B31: ='التلاميذ والقيود '!B28 -> 2569 | C31: ='التلاميذ والقيود '!C28 -> زهراء عباس جبر | M31: =IFERROR(IF(L31=100,"مائة درجة",B_Only(L31,1,1,2,"","","")),"") ->  | N31: =IF(D31:K31="","",IF(COUNTIF(D31:K31,"غ")+COUNTIF(D31:K31,"<50")=0,"ناجح",IF(COUNTIF(D31:K31,"غ")+COUNTIF(D31:K31,"<50")>=1,"راسب"))) -> 
A32: 27 | B32: ='التلاميذ والقيود '!B29 -> 2557 | C32: ='التلاميذ والقيود '!C29 -> زهراء علي زامل | M32: =IFERROR(IF(L32=100,"مائة درجة",B_Only(L32,1,1,2,"","","")),"") ->  | N32: =IF(D32:K32="","",IF(COUNTIF(D32:K32,"غ")+COUNTIF(D32:K32,"<50")=0,"ناجح",IF(COUNTIF(D32:K32,"غ")+COUNTIF(D32:K32,"<50")>=1,"راسب"))) -> 
A33: 28 | B33: ='التلاميذ والقيود '!B30 -> 2275 | C33: ='التلاميذ والقيود '!C30 -> زينب رزاق درك | M33: =IFERROR(IF(L33=100,"مائة درجة",B_Only(L33,1,1,2,"","","")),"") ->  | N33: =IF(D33:K33="","",IF(COUNTIF(D33:K33,"غ")+COUNTIF(D33:K33,"<50")=0,"ناجح",IF(COUNTIF(D33:K33,"غ")+COUNTIF(D33:K33,"<50")>=1,"راسب"))) -> 
A34: 29 | B34: ='التلاميذ والقيود '!B31 -> 2592 | C34: ='التلاميذ والقيود '!C31 -> زينب مشتاق ابراهيم | M34: =IFERROR(IF(L34=100,"مائة درجة",B_Only(L34,1,1,2,"","","")),"") ->  | N34: =IF(D34:K34="","",IF(COUNTIF(D34:K34,"غ")+COUNTIF(D34:K34,"<50")=0,"ناجح",IF(COUNTIF(D34:K34,"غ")+COUNTIF(D34:K34,"<50")>=1,"راسب"))) -> 
A35: 30 | B35: ='التلاميذ والقيود '!B32 -> 2522 | C35: ='التلاميذ والقيود '!C32 -> شهد فراس كاظم | M35: =IFERROR(IF(L35=100,"مائة درجة",B_Only(L35,1,1,2,"","","")),"") ->  | N35: =IF(D35:K35="","",IF(COUNTIF(D35:K35,"غ")+COUNTIF(D35:K35,"<50")=0,"ناجح",IF(COUNTIF(D35:K35,"غ")+COUNTIF(D35:K35,"<50")>=1,"راسب"))) -> 
A36: 31 | B36: ='التلاميذ والقيود '!B33 -> 2570 | C36: ='التلاميذ والقيود '!C33 -> غدير عادل ثجيل | M36: =IFERROR(IF(L36=100,"مائة درجة",B_Only(L36,1,1,2,"","","")),"") ->  | N36: =IF(D36:K36="","",IF(COUNTIF(D36:K36,"غ")+COUNTIF(D36:K36,"<50")=0,"ناجح",IF(COUNTIF(D36:K36,"غ")+COUNTIF(D36:K36,"<50")>=1,"راسب"))) -> 
A37: 32 | B37: ='التلاميذ والقيود '!B34 -> 2567 | C37: ='التلاميذ والقيود '!C34 -> غدير عصام حسن | M37: =IFERROR(IF(L37=100,"مائة درجة",B_Only(L37,1,1,2,"","","")),"") ->  | N37: =IF(D37:K37="","",IF(COUNTIF(D37:K37,"غ")+COUNTIF(D37:K37,"<50")=0,"ناجح",IF(COUNTIF(D37:K37,"غ")+COUNTIF(D37:K37,"<50")>=1,"راسب"))) -> 
A38: 33 | B38: ='التلاميذ والقيود '!B35 -> 2308 | C38: ='التلاميذ والقيود '!C35 -> فاطمه خضير دعبول | M38: =IFERROR(IF(L38=100,"مائة درجة",B_Only(L38,1,1,2,"","","")),"") ->  | N38: =IF(D38:K38="","",IF(COUNTIF(D38:K38,"غ")+COUNTIF(D38:K38,"<50")=0,"ناجح",IF(COUNTIF(D38:K38,"غ")+COUNTIF(D38:K38,"<50")>=1,"راسب"))) -> 
A39: 34 | B39: ='التلاميذ والقيود '!B36 -> 2252 | C39: ='التلاميذ والقيود '!C36 -> فاطمه علي خشم | M39: =IFERROR(IF(L39=100,"مائة درجة",B_Only(L39,1,1,2,"","","")),"") ->  | N39: =IF(D39:K39="","",IF(COUNTIF(D39:K39,"غ")+COUNTIF(D39:K39,"<50")=0,"ناجح",IF(COUNTIF(D39:K39,"غ")+COUNTIF(D39:K39,"<50")>=1,"راسب"))) -> 
A40: 35 | B40: ='التلاميذ والقيود '!B37 -> 2687 | C40: ='التلاميذ والقيود '!C37 -> فاطمه ماجد عبد الحسين | M40: =IFERROR(IF(L40=100,"مائة درجة",B_Only(L40,1,1,2,"","","")),"") ->  | N40: =IF(D40:K40="","",IF(COUNTIF(D40:K40,"غ")+COUNTIF(D40:K40,"<50")=0,"ناجح",IF(COUNTIF(D40:K40,"غ")+COUNTIF(D40:K40,"<50")>=1,"راسب"))) -> 
A41: 36 | B41: ='التلاميذ والقيود '!B38 -> 2562 | C41: ='التلاميذ والقيود '!C38 -> فاطمه هادي كاظم | M41: =IFERROR(IF(L41=100,"مائة درجة",B_Only(L41,1,1,2,"","","")),"") ->  | N41: =IF(D41:K41="","",IF(COUNTIF(D41:K41,"غ")+COUNTIF(D41:K41,"<50")=0,"ناجح",IF(COUNTIF(D41:K41,"غ")+COUNTIF(D41:K41,"<50")>=1,"راسب"))) -> 
A42: 37 | B42: ='التلاميذ والقيود '!B39 -> 2589 | C42: ='التلاميذ والقيود '!C39 -> فرح عباس زغير | M42: =IFERROR(IF(L42=100,"مائة درجة",B_Only(L42,1,1,2,"","","")),"") ->  | N42: =IF(D42:K42="","",IF(COUNTIF(D42:K42,"غ")+COUNTIF(D42:K42,"<50")=0,"ناجح",IF(COUNTIF(D42:K42,"غ")+COUNTIF(D42:K42,"<50")>=1,"راسب"))) -> 
A43: 38 | B43: ='التلاميذ والقيود '!B40 -> 2523 | C43: ='التلاميذ والقيود '!C40 -> لجين حسين علي | M43: =IFERROR(IF(L43=100,"مائة درجة",B_Only(L43,1,1,2,"","","")),"") ->  | N43: =IF(D43:K43="","",IF(COUNTIF(D43:K43,"غ")+COUNTIF(D43:K43,"<50")=0,"ناجح",IF(COUNTIF(D43:K43,"غ")+COUNTIF(D43:K43,"<50")>=1,"راسب"))) -> 
A44: 39 | B44: ='التلاميذ والقيود '!B41 -> 2545 | C44: ='التلاميذ والقيود '!C41 -> ليسينيا ميثم فاضل | M44: =IFERROR(IF(L44=100,"مائة درجة",B_Only(L44,1,1,2,"","","")),"") ->  | N44: =IF(D44:K44="","",IF(COUNTIF(D44:K44,"غ")+COUNTIF(D44:K44,"<50")=0,"ناجح",IF(COUNTIF(D44:K44,"غ")+COUNTIF(D44:K44,"<50")>=1,"راسب"))) -> 
A45: 40 | B45: ='التلاميذ والقيود '!B42 -> 2549 | C45: ='التلاميذ والقيود '!C42 -> مريم عقيل حنون | M45: =IFERROR(IF(L45=100,"مائة درجة",B_Only(L45,1,1,2,"","","")),"") ->  | N45: =IF(D45:K45="","",IF(COUNTIF(D45:K45,"غ")+COUNTIF(D45:K45,"<50")=0,"ناجح",IF(COUNTIF(D45:K45,"غ")+COUNTIF(D45:K45,"<50")>=1,"راسب"))) -> 
A46: 41 | B46: ='التلاميذ والقيود '!B43 -> 2554 | C46: ='التلاميذ والقيود '!C43 -> مريم ماجد رحمه | M46: =IFERROR(IF(L46=100,"مائة درجة",B_Only(L46,1,1,2,"","","")),"") ->  | N46: =IF(D46:K46="","",IF(COUNTIF(D46:K46,"غ")+COUNTIF(D46:K46,"<50")=0,"ناجح",IF(COUNTIF(D46:K46,"غ")+COUNTIF(D46:K46,"<50")>=1,"راسب"))) -> 
A47: 42 | B47: ='التلاميذ والقيود '!B44 -> 2524 | C47: ='التلاميذ والقيود '!C44 -> معصومه جواد كاظم | M47: =IFERROR(IF(L47=100,"مائة درجة",B_Only(L47,1,1,2,"","","")),"") ->  | N47: =IF(D47:K47="","",IF(COUNTIF(D47:K47,"غ")+COUNTIF(D47:K47,"<50")=0,"ناجح",IF(COUNTIF(D47:K47,"غ")+COUNTIF(D47:K47,"<50")>=1,"راسب"))) -> 
A48: 43 | B48: ='التلاميذ والقيود '!B45 -> 2372 | C48: ='التلاميذ والقيود '!C45 -> ملاك حبيب شمخي | M48: =IFERROR(IF(L48=100,"مائة درجة",B_Only(L48,1,1,2,"","","")),"") ->  | N48: =IF(D48:K48="","",IF(COUNTIF(D48:K48,"غ")+COUNTIF(D48:K48,"<50")=0,"ناجح",IF(COUNTIF(D48:K48,"غ")+COUNTIF(D48:K48,"<50")>=1,"راسب"))) -> 
A49: 44 | B49: ='التلاميذ والقيود '!B46 -> 2535 | C49: ='التلاميذ والقيود '!C46 -> ميار حمزة مزهر | M49: =IFERROR(IF(L49=100,"مائة درجة",B_Only(L49,1,1,2,"","","")),"") ->  | N49: =IF(D49:K49="","",IF(COUNTIF(D49:K49,"غ")+COUNTIF(D49:K49,"<50")=0,"ناجح",IF(COUNTIF(D49:K49,"غ")+COUNTIF(D49:K49,"<50")>=1,"راسب"))) -> 
A50: 45 | B50: ='التلاميذ والقيود '!B47 -> 2584 | C50: ='التلاميذ والقيود '!C47 -> نبأ احمد عبد الحسين | M50: =IFERROR(IF(L50=100,"مائة درجة",B_Only(L50,1,1,2,"","","")),"") ->  | N50: =IF(D50:K50="","",IF(COUNTIF(D50:K50,"غ")+COUNTIF(D50:K50,"<50")=0,"ناجح",IF(COUNTIF(D50:K50,"غ")+COUNTIF(D50:K50,"<50")>=1,"راسب"))) -> 
A51: 46 | B51: ='التلاميذ والقيود '!B48 -> 2897 | C51: ='التلاميذ والقيود '!C48 -> هديل يوسف | M51: =IFERROR(IF(L51=100,"مائة درجة",B_Only(L51,1,1,2,"","","")),"") ->  | N51: =IF(D51:K51="","",IF(COUNTIF(D51:K51,"غ")+COUNTIF(D51:K51,"<50")=0,"ناجح",IF(COUNTIF(D51:K51,"غ")+COUNTIF(D51:K51,"<50")>=1,"راسب"))) -> 
A52: 47 | B52: ='التلاميذ والقيود '!B49 -> 0 | C52: ='التلاميذ والقيود '!C49 -> 0 | M52: =IFERROR(IF(L52=100,"مائة درجة",B_Only(L52,1,1,2,"","","")),"") ->  | N52: =IF(D52:K52="","",IF(COUNTIF(D52:K52,"غ")+COUNTIF(D52:K52,"<50")=0,"ناجح",IF(COUNTIF(D52:K52,"غ")+COUNTIF(D52:K52,"<50")>=1,"راسب"))) -> 
A53: 48 | B53: ='التلاميذ والقيود '!B50 -> 0 | C53: ='التلاميذ والقيود '!C50 -> 0 | M53: =IFERROR(IF(L53=100,"مائة درجة",B_Only(L53,1,1,2,"","","")),"") ->  | N53: =IF(D53:K53="","",IF(COUNTIF(D53:K53,"غ")+COUNTIF(D53:K53,"<50")=0,"ناجح",IF(COUNTIF(D53:K53,"غ")+COUNTIF(D53:K53,"<50")>=1,"راسب"))) -> 
A54: 49 | B54: ='التلاميذ والقيود '!B51 -> 0 | C54: ='التلاميذ والقيود '!C51 -> 0 | M54: =IFERROR(IF(L54=100,"مائة درجة",B_Only(L54,1,1,2,"","","")),"") ->  | N54: =IF(D54:K54="","",IF(COUNTIF(D54:K54,"غ")+COUNTIF(D54:K54,"<50")=0,"ناجح",IF(COUNTIF(D54:K54,"غ")+COUNTIF(D54:K54,"<50")>=1,"راسب"))) -> 
A55: 50 | B55: ='التلاميذ والقيود '!B52 -> 0 | C55: ='التلاميذ والقيود '!C52 -> 0 | M55: =IFERROR(IF(L55=100,"مائة درجة",B_Only(L55,1,1,2,"","","")),"") ->  | N55: =IF(D55:K55="","",IF(COUNTIF(D55:K55,"غ")+COUNTIF(D55:K55,"<50")=0,"ناجح",IF(COUNTIF(D55:K55,"غ")+COUNTIF(D55:K55,"<50")>=1,"راسب"))) -> 
B57: المشتركون
B58: الناجحون | D58: =COUNTIF(T6:T55,"=2") -> 1
B59: الراسبون | D59: =COUNTIF(U5:U54,"=3") -> 7
B60: الممتحنون
B61: الغائبون
B62: النسبة المئوية

Sheet النتيجة أ
A1: =MAX('قوائم شهرية أ'!A7:A56)-1 -> 49 | M1: 50 | N1: 4 | Q1: 38
A4: 49
B8: اسم التلميذ/ | C8: =IFERROR(VLOOKUP(N8,'قوائم شهرية أ'!$B$7:$C$56,2,0),"") -> 0 | L8: رقم القيد | N8: =IFERROR(VLOOKUP(A4,data,2,0),"") -> 0
B9: المادة | C9: النصف الأول | H9: النصف الثاني
C10: تشرين الاول | D10: تشرين الثاني | E10: كانون الاول | F10: معدل النصف الاول | G10: نصف السنة | H10: شباط | I10: آذار | J10: نيسان | K10: معدل النصف الثاني | L10: السعي السنوي | M10: امتحان الدور الأول | N10: الدرجة النهائية | O10: امتحان الدور الثاني | P10: الدرجة النهائية
B11: التربية الإسلامية | C11: =IFERROR(VLOOKUP($N$8,'قوائم شهرية أ'!$B$7:$Q$56,3,0),"") -> 0 | D11: =IFERROR(VLOOKUP($N$8,'قوائم شهرية أ'!$B$7:$Q$56,4,0),"") -> 0 | E11: =IFERROR(VLOOKUP($N$8,'قوائم شهرية أ'!$B$7:$Q$56,5,0),"") -> 0 | F11: =IFERROR(VLOOKUP($N$8,'قوائم شهرية أ'!$B$7:$Q$56,6,0),"") ->  | G11: =IFERROR(VLOOKUP($N$8,'قوائم شهرية أ'!$B$7:$Q$56,7,0),"") -> 0 | H11: =IFERROR(VLOOKUP($N$8,'قوائم شهرية أ'!$B$7:$Q$56,8,0),"") -> 0 | I11: =IFERROR(VLOOKUP($N$8,'قوائم شهرية أ'!$B$7:$Q$56,9,0),"") -> 0 | J11: =IFERROR(VLOOKUP($N$8,'قوائم شهرية أ'!$B$7:$Q$56,10,0),"") -> 0 | K11: =IFERROR(VLOOKUP($N$8,'قوائم شهرية أ'!$B$7:$Q$56,11,0),"") ->  | L11: =IFERROR(VLOOKUP($N$8,'قوائم شهرية أ'!$B$7:$Q$56,12,0),"") -> 0 | M11: =IFERROR(VLOOKUP($N$8,'قوائم شهرية أ'!$B$7:$Q$56,13,0),"") -> 0 | N11: =IFERROR(VLOOKUP($N$8,'قوائم شهرية أ'!$B$7:$Q$56,14,0),"") -> 0 | O11: =IFERROR(VLOOKUP($N$8,'قوائم شهرية أ'!$B$7:$Q$56,15,0),"") -> 0 | P11: =IFERROR(VLOOKUP($N$8,'قوائم شهرية أ'!$B$7:$Q$56,16,0),"") -> 0
B12: اللغة العربية | C12: =IFERROR(VLOOKUP($N$8,'قوائم شهرية أ'!$B$7:$EF$56,20,0),"") -> 0 | D12: =IFERROR(VLOOKUP($N$8,'قوائم شهرية أ'!$B$7:$EF$56,21,0),"") -> 0 | E12: =IFERROR(VLOOKUP($N$8,'قوائم شهرية أ'!$B$7:$EF$56,22,0),"") -> 0 | F12: =IFERROR(VLOOKUP($N$8,'قوائم شهرية أ'!$B$7:$EF$56,23,0),"") ->  | G12: =IFERROR(VLOOKUP($N$8,'قوائم شهرية أ'!$B$7:$EF$56,24,0),"") -> 0 | H12: =IFERROR(VLOOKUP($N$8,'قوائم شهرية أ'!$B$7:$EF$56,25,0),"") -> 0 | I12: =IFERROR(VLOOKUP($N$8,'قوائم شهرية أ'!$B$7:$EF$56,26,0),"") -> 0 | J12: =IFERROR(VLOOKUP($N$8,'قوائم شهرية أ'!$B$7:$EF$56,27,0),"") -> 0 | K12: =IFERROR(VLOOKUP($N$8,'قوائم شهرية أ'!$B$7:$EF$56,28,0),"") ->  | L12: =IFERROR(VLOOKUP($N$8,'قوائم شهرية أ'!$B$7:$EF$56,29,0),"") -> 0 | M12: =IFERROR(VLOOKUP($N$8,'قوائم شهرية أ'!$B$7:$EF$56,30,0),"") -> 0 | N12: =IFERROR(VLOOKUP($N$8,'قوائم شهرية أ'!$B$7:$EF$56,31,0),"") -> 0 | O12: =IFERROR(VLOOKUP($N$8,'قوائم شهرية أ'!$B$7:$EF$56,32,0),"") -> 0 | P12: =IFERROR(VLOOKUP($N$8,'قوائم شهرية أ'!$B$7:$EF$56,33,0),"") -> 0
B13: اللغة الإنكليزية | C13: =IFERROR(VLOOKUP($N$8,'قوائم شهرية أ'!$B$7:$EF$56,37,0),"") -> 0 | D13: =IFERROR(VLOOKUP($N$8,'قوائم شهرية أ'!$B$7:$EF$56,38,0),"") -> 0 | E13: =IFERROR(VLOOKUP($N$8,'قوائم شهرية أ'!$B$7:$EF$56,39,0),"") -> 0 | F13: =IFERROR(VLOOKUP($N$8,'قوائم شهرية أ'!$B$7:$EF$56,40,0),"") ->  | G13: =IFERROR(VLOOKUP($N$8,'قوائم شهرية أ'!$B$7:$EF$56,41,0),"") -> 0 | H13: =IFERROR(VLOOKUP($N$8,'قوائم شهرية أ'!$B$7:$EF$56,42,0),"") -> 0 | I13: =IFERROR(VLOOKUP($N$8,'قوائم شهرية أ'!$B$7:$EF$56,43,0),"") -> 0 | J13: =IFERROR(VLOOKUP($N$8,'قوائم شهرية أ'!$B$7:$EF$56,44,0),"") -> 0 | K13: =IFERROR(VLOOKUP($N$8,'قوائم شهرية أ'!$B$7:$EF$56,45,0),"") ->  | L13: =IFERROR(VLOOKUP($N$8,'قوائم شهرية أ'!$B$7:$EF$56,46,0),"") -> 0 | M13: =IFERROR(VLOOKUP($N$8,'قوائم شهرية أ'!$B$7:$EF$56,47,0),"") -> 0 | N13: =IFERROR(VLOOKUP($N$8,'قوائم شهرية أ'!$B$7:$EF$56,48,0),"") -> 0 | O13: =IFERROR(VLOOKUP($N$8,'قوائم شهرية أ'!$B$7:$EF$56,49,0),"") -> 0 | P13: =IFERROR(VLOOKUP($N$8,'قوائم شهرية أ'!$B$7:$EF$56,50,0),"") -> 0
B14: الرياضيات | C14: =IFERROR(VLOOKUP($N$8,'قوائم شهرية أ'!$B$7:$EF$56,54,0),"") -> 0 | D14: =IFERROR(VLOOKUP($N$8,'قوائم شهرية أ'!$B$7:$EF$56,55,0),"") -> 0 | E14: =IFERROR(VLOOKUP($N$8,'قوائم شهرية أ'!$B$7:$EF$56,56,0),"") -> 0 | F14: =IFERROR(VLOOKUP($N$8,'قوائم شهرية أ'!$B$7:$EF$56,57,0),"") ->  | G14: =IFERROR(VLOOKUP($N$8,'قوائم شهرية أ'!$B$7:$EF$56,58,0),"") -> 0 | H14: =IFERROR(VLOOKUP($N$8,'قوائم شهرية أ'!$B$7:$EF$56,59,0),"") -> 0 | I14: =IFERROR(VLOOKUP($N$8,'قوائم شهرية أ'!$B$7:$EF$56,60,0),"") -> 0 | J14: =IFERROR(VLOOKUP($N$8,'قوائم شهرية أ'!$B$7:$EF$56,61,0),"") -> 0 | K14: =IFERROR(VLOOKUP($N$8,'قوائم شهرية أ'!$B$7:$EF$56,62,0),"") ->  | L14: =IFERROR(VLOOKUP($N$8,'قوائم شهرية أ'!$B$7:$EF$56,63,0),"") -> 0 | M14: =IFERROR(VLOOKUP($N$8,'قوائم شهرية أ'!$B$7:$EF$56,64,0),"") -> 0 | N14: =IFERROR(VLOOKUP($N$8,'قوائم شهرية أ'!$B$7:$EF$56,65,0),"") -> 0 | O14: =IFERROR(VLOOKUP($N$8,'قوائم شهرية أ'!$B$7:$EF$56,66,0),"") -> 0 | P14: =IFERROR(VLOOKUP($N$8,'قوائم شهرية أ'!$B$7:$EF$56,67,0),"") -> 0
B15: العلوم | C15: =IFERROR(VLOOKUP($N$8,'قوائم شهرية أ'!$B$7:$EF$56,71,0),"") -> 0 | D15: =IFERROR(VLOOKUP($N$8,'قوائم شهرية أ'!$B$7:$EF$56,72,0),"") -> 0 | E15: =IFERROR(VLOOKUP($N$8,'قوائم شهرية أ'!$B$7:$EF$56,73,0),"") -> 0 | F15: =IFERROR(VLOOKUP($N$8,'قوائم شهرية أ'!$B$7:$EF$56,74,0),"") ->  | G15: =IFERROR(VLOOKUP($N$8,'قوائم شهرية أ'!$B$7:$EF$56,75,0),"") -> 0 | H15: =IFERROR(VLOOKUP($N$8,'قوائم شهرية أ'!$B$7:$EF$56,76,0),"") -> 0 | I15: =IFERROR(VLOOKUP($N$8,'قوائم شهرية أ'!$B$7:$EF$56,77,0),"") -> 0 | J15: =IFERROR(VLOOKUP($N$8,'قوائم شهرية أ'!$B$7:$EF$56,78,0),"") -> 0 | K15: =IFERROR(VLOOKUP($N$8,'قوائم شهرية أ'!$B$7:$EF$56,79,0),"") ->  | L15: =IFERROR(VLOOKUP($N$8,'قوائم شهرية أ'!$B$7:$EF$56,80,0),"") -> 0 | M15: =IFERROR(VLOOKUP($N$8,'قوائم شهرية أ'!$B$7:$EF$56,81,0),"") -> 0 | N15: =IFERROR(VLOOKUP($N$8,'قوائم شهرية أ'!$B$7:$EF$56,82,0),"") -> 0 | O15: =IFERROR(VLOOKUP($N$8,'قوائم شهرية أ'!$B$7:$EF$56,83,0),"") -> 0 | P15: =IFERROR(VLOOKUP($N$8,'قوائم شهرية أ'!$B$7:$EF$56,84,0),"") -> 0
B16: الاجتماعيات | C16: =IFERROR(VLOOKUP($N$8,'قوائم شهرية أ'!$B$7:$EF$56,88,0),"") -> 0 | D16: =IFERROR(VLOOKUP($N$8,'قوائم شهرية أ'!$B$7:$EF$56,89,0),"") -> 0 | E16: =IFERROR(VLOOKUP($N$8,'قوائم شهرية أ'!$B$7:$EF$56,90,0),"") -> 0 | F16: =IFERROR(VLOOKUP($N$8,'قوائم شهرية أ'!$B$7:$EF$56,91,0),"") ->  | G16: =IFERROR(VLOOKUP($N$8,'قوائم شهرية أ'!$B$7:$EF$56,92,0),"") -> 0 | H16: =IFERROR(VLOOKUP($N$8,'قوائم شهرية أ'!$B$7:$EF$56,93,0),"") -> 0 | I16: =IFERROR(VLOOKUP($N$8,'قوائم شهرية أ'!$B$7:$EF$56,94,0),"") -> 0 | J16: =IFERROR(VLOOKUP($N$8,'قوائم شهرية أ'!$B$7:$EF$56,95,0),"") -> 0 | K16: =IFERROR(VLOOKUP($N$8,'قوائم شهرية أ'!$B$7:$EF$56,96,0),"") ->  | L16: =IFERROR(VLOOKUP($N$8,'قوائم شهرية أ'!$B$7:$EF$56,97,0),"") -> 0 | M16: =IFERROR(VLOOKUP($N$8,'قوائم شهرية أ'!$B$7:$EF$56,98,0),"") -> 0 | N16: =IFERROR(VLOOKUP($N$8,'قوائم شهرية أ'!$B$7:$EF$56,99,0),"") -> 0 | O16: =IFERROR(VLOOKUP($N$8,'قوائم شهرية أ'!$B$7:$EF$56,100,0),"") -> 0 | P16: =IFERROR(VLOOKUP($N$8,'قوائم شهرية أ'!$B$7:$EF$56,101,0),"") -> 0
B17: التربية الفنية | C17: =IFERROR(VLOOKUP($N$8,'قوائم شهرية أ'!$B$7:$EF$56,105,0),"") -> 0 | D17: =IFERROR(VLOOKUP($N$8,'قوائم شهرية أ'!$B$7:$EF$56,106,0),"") -> 0 | E17: =IFERROR(VLOOKUP($N$8,'قوائم شهرية أ'!$B$7:$EF$56,107,0),"") -> 0 | F17: =IFERROR(VLOOKUP($N$8,'قوائم شهرية أ'!$B$7:$EF$56,108,0),"") ->  | G17: =IFERROR(VLOOKUP($N$8,'قوائم شهرية أ'!$B$7:$EF$56,109,0),"") -> 0 | H17: =IFERROR(VLOOKUP($N$8,'قوائم شهرية أ'!$B$7:$EF$56,110,0),"") -> 0 | I17: =IFERROR(VLOOKUP($N$8,'قوائم شهرية أ'!$B$7:$EF$56,111,0),"") -> 0 | J17: =IFERROR(VLOOKUP($N$8,'قوائم شهرية أ'!$B$7:$EF$56,112,0),"") -> 0 | K17: =IFERROR(VLOOKUP($N$8,'قوائم شهرية أ'!$B$7:$EF$56,113,0),"") ->  | L17: =IFERROR(VLOOKUP($N$8,'قوائم شهرية أ'!$B$7:$EF$56,114,0),"") -> 0 | M17: =IFERROR(VLOOKUP($N$8,'قوائم شهرية أ'!$B$7:$EF$56,115,0),"") -> 0 | N17: =IFERROR(VLOOKUP($N$8,'قوائم شهرية أ'!$B$7:$EF$56,116,0),"") -> 0 | O17: =IFERROR(VLOOKUP($N$8,'قوائم شهرية أ'!$B$7:$EF$56,117,0),"") -> 0 | P17: =IFERROR(VLOOKUP($N$8,'قوائم شهرية أ'!$B$7:$EF$56,118,0),"") -> 0
B18: التربية الرياضية | C18: =IFERROR(VLOOKUP($N$8,'قوائم شهرية أ'!$B$7:$EF$56,122,0),"") -> 0 | D18: =IFERROR(VLOOKUP($N$8,'قوائم شهرية أ'!$B$7:$EF$56,123,0),"") -> 0 | E18: =IFERROR(VLOOKUP($N$8,'قوائم شهرية أ'!$B$7:$EF$56,124,0),"") -> 0 | F18: =IFERROR(VLOOKUP($N$8,'قوائم شهرية أ'!$B$7:$EF$56,125,0),"") ->  | G18: =IFERROR(VLOOKUP($N$8,'قوائم شهرية أ'!$B$7:$EF$56,126,0),"") -> 0 | H18: =IFERROR(VLOOKUP($N$8,'قوائم شهرية أ'!$B$7:$EF$56,127,0),"") -> 0 | I18: =IFERROR(VLOOKUP($N$8,'قوائم شهرية أ'!$B$7:$EF$56,128,0),"") -> 0 | J18: =IFERROR(VLOOKUP($N$8,'قوائم شهرية أ'!$B$7:$EF$56,129,0),"") -> 0 | K18: =IFERROR(VLOOKUP($N$8,'قوائم شهرية أ'!$B$7:$EF$56,130,0),"") ->  | L18: =IFERROR(VLOOKUP($N$8,'قوائم شهرية أ'!$B$7:$EF$56,131,0),"") -> 0 | M18: =IFERROR(VLOOKUP($N$8,'قوائم شهرية أ'!$B$7:$EF$56,132,0),"") -> 0 | N18: =IFERROR(VLOOKUP($N$8,'قوائم شهرية أ'!$B$7:$EF$56,133,0),"") -> 0 | O18: =IFERROR(VLOOKUP($N$8,'قوائم شهرية أ'!$B$7:$EF$56,134,0),"") -> 0 | P18: =IFERROR(VLOOKUP($N$8,'قوائم شهرية أ'!$B$7:$EF$56,135,0),"") -> 0
L19: أحلام مشري منصور
L20: مديرة المدرسة
A21: =A4+1 -> 50
B23: اسم التلميذ/ | C23: =IFERROR(VLOOKUP(N23,'قوائم شهرية أ'!B7:C56,2,0),"") -> 0 | L23: رقم القيد | N23: =IFERROR(VLOOKUP(A21,data,2,0),"") -> 0
B24: المادة | C24: النصف الأول | H24: النصف الثاني
C25: تشرين الاول | D25: تشرين الثاني | E25: كانون الاول | F25: معدل النصف الاول | G25: نصف السنة | H25: شباط | I25: آذار | J25: نيسان | K25: معدل النصف الثاني | L25: السعي السنوي | M25: امتحان الدور الأول | O25: امتحان الدور الثاني | P25: الدرجة النهائية
B26: التربية الإسلامية | C26: =IFERROR(VLOOKUP($N$23,'قوائم شهرية أ'!$B$7:$Q$56,3,0),"") -> 0 | D26: =IFERROR(VLOOKUP($N$23,'قوائم شهرية أ'!$B$7:$Q$56,4,0),"") -> 0 | E26: =IFERROR(VLOOKUP($N$23,'قوائم شهرية أ'!$B$7:$Q$56,5,0),"") -> 0 | F26: =IFERROR(VLOOKUP($N$23,'قوائم شهرية أ'!$B$7:$Q$56,6,0),"") ->  | G26: =IFERROR(VLOOKUP($N$23,'قوائم شهرية أ'!$B$7:$Q$56,7,0),"") -> 0 | H26: =IFERROR(VLOOKUP($N$23,'قوائم شهرية أ'!$B$7:$Q$56,8,0),"") -> 0 | I26: =IFERROR(VLOOKUP($N$23,'قوائم شهرية أ'!$B$7:$Q$56,9,0),"") -> 0 | J26: =IFERROR(VLOOKUP($N$23,'قوائم شهرية أ'!$B$7:$Q$56,10,0),"") -> 0 | K26: =IFERROR(VLOOKUP($N$23,'قوائم شهرية أ'!$B$7:$Q$56,11,0),"") ->  | L26: =IFERROR(VLOOKUP($N$23,'قوائم شهرية أ'!$B$7:$Q$56,12,0),"") -> 0 | M26: =IFERROR(VLOOKUP($N$23,'قوائم شهرية أ'!$B$7:$Q$56,13,0),"") -> 0 | N26: =IFERROR(VLOOKUP($N$23,'قوائم شهرية أ'!$B$7:$Q$56,14,0),"") -> 0 | O26: =IFERROR(VLOOKUP($N$23,'قوائم شهرية أ'!$B$7:$Q$56,15,0),"") -> 0 | P26: =IFERROR(VLOOKUP($N$23,'قوائم شهرية أ'!$B$7:$Q$56,16,0),"") -> 0
B27: اللغة العربية | C27: =IFERROR(VLOOKUP($N$23,'قوائم شهرية أ'!$B$7:$EF$56,20,0),"") -> 0 | D27: =IFERROR(VLOOKUP($N$23,'قوائم شهرية أ'!$B$7:$EF$56,21,0),"") -> 0 | E27: =IFERROR(VLOOKUP($N$23,'قوائم شهرية أ'!$B$7:$EF$56,22,0),"") -> 0 | F27: =IFERROR(VLOOKUP($N$23,'قوائم شهرية أ'!$B$7:$EF$56,23,0),"") ->  | G27: =IFERROR(VLOOKUP($N$23,'قوائم شهرية أ'!$B$7:$EF$56,24,0),"") -> 0 | H27: =IFERROR(VLOOKUP($N$23,'قوائم شهرية أ'!$B$7:$EF$56,25,0),"") -> 0 | I27: =IFERROR(VLOOKUP($N$23,'قوائم شهرية أ'!$B$7:$EF$56,26,0),"") -> 0 | J27: =IFERROR(VLOOKUP($N$23,'قوائم شهرية أ'!$B$7:$EF$56,27,0),"") -> 0 | K27: =IFERROR(VLOOKUP($N$23,'قوائم شهرية أ'!$B$7:$EF$56,28,0),"") ->  | L27: =IFERROR(VLOOKUP($N$23,'قوائم شهرية أ'!$B$7:$EF$56,29,0),"") -> 0 | M27: =IFERROR(VLOOKUP($N$23,'قوائم شهرية أ'!$B$7:$EF$56,30,0),"") -> 0 | N27: =IFERROR(VLOOKUP($N$23,'قوائم شهرية أ'!$B$7:$EF$56,31,0),"") -> 0 | O27: =IFERROR(VLOOKUP($N$23,'قوائم شهرية أ'!$B$7:$EF$56,32,0),"") -> 0 | P27: =IFERROR(VLOOKUP($N$23,'قوائم شهرية أ'!$B$7:$EF$56,33,0),"") -> 0
B28: اللغة الإنكليزية | C28: =IFERROR(VLOOKUP($N$23,'قوائم شهرية أ'!$B$7:$EF$56,37,0),"") -> 0 | D28: =IFERROR(VLOOKUP($N$23,'قوائم شهرية أ'!$B$7:$EF$56,38,0),"") -> 0 | E28: =IFERROR(VLOOKUP($N$23,'قوائم شهرية أ'!$B$7:$EF$56,39,0),"") -> 0 | F28: =IFERROR(VLOOKUP($N$23,'قوائم شهرية أ'!$B$7:$EF$56,40,0),"") ->  | G28: =IFERROR(VLOOKUP($N$23,'قوائم شهرية أ'!$B$7:$EF$56,41,0),"") -> 0 | H28: =IFERROR(VLOOKUP($N$23,'قوائم شهرية أ'!$B$7:$EF$56,42,0),"") -> 0 | I28: =IFERROR(VLOOKUP($N$23,'قوائم شهرية أ'!$B$7:$EF$56,43,0),"") -> 0 | J28: =IFERROR(VLOOKUP($N$23,'قوائم شهرية أ'!$B$7:$EF$56,44,0),"") -> 0 | K28: =IFERROR(VLOOKUP($N$23,'قوائم شهرية أ'!$B$7:$EF$56,45,0),"") ->  | L28: =IFERROR(VLOOKUP($N$23,'قوائم شهرية أ'!$B$7:$EF$56,46,0),"") -> 0 | M28: =IFERROR(VLOOKUP($N$23,'قوائم شهرية أ'!$B$7:$EF$56,47,0),"") -> 0 | N28: =IFERROR(VLOOKUP($N$23,'قوائم شهرية أ'!$B$7:$EF$56,48,0),"") -> 0 | O28: =IFERROR(VLOOKUP($N$23,'قوائم شهرية أ'!$B$7:$EF$56,49,0),"") -> 0 | P28: =IFERROR(VLOOKUP($N$23,'قوائم شهرية أ'!$B$7:$EF$56,50,0),"") -> 0
B29: الرياضيات | C29: =IFERROR(VLOOKUP($N$23,'قوائم شهرية أ'!$B$7:$EF$56,54,0),"") -> 0 | D29: =IFERROR(VLOOKUP($N$23,'قوائم شهرية أ'!$B$7:$EF$56,55,0),"") -> 0 | E29: =IFERROR(VLOOKUP($N$23,'قوائم شهرية أ'!$B$7:$EF$56,56,0),"") -> 0 | F29: =IFERROR(VLOOKUP($N$23,'قوائم شهرية أ'!$B$7:$EF$56,57,0),"") ->  | G29: =IFERROR(VLOOKUP($N$23,'قوائم شهرية أ'!$B$7:$EF$56,58,0),"") -> 0 | H29: =IFERROR(VLOOKUP($N$23,'قوائم شهرية أ'!$B$7:$EF$56,59,0),"") -> 0 | I29: =IFERROR(VLOOKUP($N$23,'قوائم شهرية أ'!$B$7:$EF$56,60,0),"") -> 0 | J29: =IFERROR(VLOOKUP($N$23,'قوائم شهرية أ'!$B$7:$EF$56,61,0),"") -> 0 | K29: =IFERROR(VLOOKUP($N$23,'قوائم شهرية أ'!$B$7:$EF$56,62,0),"") ->  | L29: =IFERROR(VLOOKUP($N$23,'قوائم شهرية أ'!$B$7:$EF$56,63,0),"") -> 0 | M29: =IFERROR(VLOOKUP($N$23,'قوائم شهرية أ'!$B$7:$EF$56,64,0),"") -> 0 | N29: =IFERROR(VLOOKUP($N$23,'قوائم شهرية أ'!$B$7:$EF$56,65,0),"") -> 0 | O29: =IFERROR(VLOOKUP($N$23,'قوائم شهرية أ'!$B$7:$EF$56,66,0),"") -> 0 | P29: =IFERROR(VLOOKUP($N$23,'قوائم شهرية أ'!$B$7:$EF$56,67,0),"") -> 0
B30: العلوم | C30: =IFERROR(VLOOKUP($N$23,'قوائم شهرية أ'!$B$7:$EF$56,71,0),"") -> 0 | D30: =IFERROR(VLOOKUP($N$23,'قوائم شهرية أ'!$B$7:$EF$56,72,0),"") -> 0 | E30: =IFERROR(VLOOKUP($N$23,'قوائم شهرية أ'!$B$7:$EF$56,73,0),"") -> 0 | F30: =IFERROR(VLOOKUP($N$23,'قوائم شهرية أ'!$B$7:$EF$56,74,0),"") ->  | G30: =IFERROR(VLOOKUP($N$23,'قوائم شهرية أ'!$B$7:$EF$56,75,0),"") -> 0 | H30: =IFERROR(VLOOKUP($N$23,'قوائم شهرية أ'!$B$7:$EF$56,76,0),"") -> 0 | I30: =IFERROR(VLOOKUP($N$23,'قوائم شهرية أ'!$B$7:$EF$56,77,0),"") -> 0 | J30: =IFERROR(VLOOKUP($N$23,'قوائم شهرية أ'!$B$7:$EF$56,78,0),"") -> 0 | K30: =IFERROR(VLOOKUP($N$23,'قوائم شهرية أ'!$B$7:$EF$56,79,0),"") ->  | L30: =IFERROR(VLOOKUP($N$23,'قوائم شهرية أ'!$B$7:$EF$56,80,0),"") -> 0 | M30: =IFERROR(VLOOKUP($N$23,'قوائم شهرية أ'!$B$7:$EF$56,81,0),"") -> 0 | N30: =IFERROR(VLOOKUP($N$23,'قوائم شهرية أ'!$B$7:$EF$56,82,0),"") -> 0 | O30: =IFERROR(VLOOKUP($N$23,'قوائم شهرية أ'!$B$7:$EF$56,83,0),"") -> 0 | P30: =IFERROR(VLOOKUP($N$23,'قوائم شهرية أ'!$B$7:$EF$56,84,0),"") -> 0
B31: الاجتماعيات | C31: =IFERROR(VLOOKUP($N$23,'قوائم شهرية أ'!$B$7:$EF$56,88,0),"") -> 0 | D31: =IFERROR(VLOOKUP($N$23,'قوائم شهرية أ'!$B$7:$EF$56,89,0),"") -> 0 | E31: =IFERROR(VLOOKUP($N$23,'قوائم شهرية أ'!$B$7:$EF$56,90,0),"") -> 0 | F31: =IFERROR(VLOOKUP($N$23,'قوائم شهرية أ'!$B$7:$EF$56,91,0),"") ->  | G31: =IFERROR(VLOOKUP($N$23,'قوائم شهرية أ'!$B$7:$EF$56,92,0),"") -> 0 | H31: =IFERROR(VLOOKUP($N$23,'قوائم شهرية أ'!$B$7:$EF$56,93,0),"") -> 0 | I31: =IFERROR(VLOOKUP($N$23,'قوائم شهرية أ'!$B$7:$EF$56,94,0),"") -> 0 | J31: =IFERROR(VLOOKUP($N$23,'قوائم شهرية أ'!$B$7:$EF$56,95,0),"") -> 0 | K31: =IFERROR(VLOOKUP($N$23,'قوائم شهرية أ'!$B$7:$EF$56,96,0),"") ->  | L31: =IFERROR(VLOOKUP($N$23,'قوائم شهرية أ'!$B$7:$EF$56,97,0),"") -> 0 | M31: =IFERROR(VLOOKUP($N$23,'قوائم شهرية أ'!$B$7:$EF$56,98,0),"") -> 0 | N31: =IFERROR(VLOOKUP($N$23,'قوائم شهرية أ'!$B$7:$EF$56,99,0),"") -> 0 | O31: =IFERROR(VLOOKUP($N$23,'قوائم شهرية أ'!$B$7:$EF$56,100,0),"") -> 0 | P31: =IFERROR(VLOOKUP($N$23,'قوائم شهرية أ'!$B$7:$EF$56,101,0),"") -> 0
B32: التربية الفنية | C32: =IFERROR(VLOOKUP($N$23,'قوائم شهرية أ'!$B$7:$EF$56,105,0),"") -> 0 | D32: =IFERROR(VLOOKUP($N$23,'قوائم شهرية أ'!$B$7:$EF$56,106,0),"") -> 0 | E32: =IFERROR(VLOOKUP($N$23,'قوائم شهرية أ'!$B$7:$EF$56,107,0),"") -> 0 | F32: =IFERROR(VLOOKUP($N$23,'قوائم شهرية أ'!$B$7:$EF$56,108,0),"") ->  | G32: =IFERROR(VLOOKUP($N$23,'قوائم شهرية أ'!$B$7:$EF$56,109,0),"") -> 0 | H32: =IFERROR(VLOOKUP($N$23,'قوائم شهرية أ'!$B$7:$EF$56,110,0),"") -> 0 | I32: =IFERROR(VLOOKUP($N$23,'قوائم شهرية أ'!$B$7:$EF$56,111,0),"") -> 0 | J32: =IFERROR(VLOOKUP($N$23,'قوائم شهرية أ'!$B$7:$EF$56,112,0),"") -> 0 | K32: =IFERROR(VLOOKUP($N$23,'قوائم شهرية أ'!$B$7:$EF$56,113,0),"") ->  | L32: =IFERROR(VLOOKUP($N$23,'قوائم شهرية أ'!$B$7:$EF$56,114,0),"") -> 0 | M32: =IFERROR(VLOOKUP($N$23,'قوائم شهرية أ'!$B$7:$EF$56,115,0),"") -> 0 | N32: =IFERROR(VLOOKUP($N$23,'قوائم شهرية أ'!$B$7:$EF$56,116,0),"") -> 0 | O32: =IFERROR(VLOOKUP($N$23,'قوائم شهرية أ'!$B$7:$EF$56,117,0),"") -> 0 | P32: =IFERROR(VLOOKUP($N$23,'قوائم شهرية أ'!$B$7:$EF$56,118,0),"") -> 0
B33: التربية الرياضية | C33: =IFERROR(VLOOKUP($N$23,'قوائم شهرية أ'!$B$7:$EF$56,122,0),"") -> 0 | D33: =IFERROR(VLOOKUP($N$23,'قوائم شهرية أ'!$B$7:$EF$56,123,0),"") -> 0 | E33: =IFERROR(VLOOKUP($N$23,'قوائم شهرية أ'!$B$7:$EF$56,124,0),"") -> 0 | F33: =IFERROR(VLOOKUP($N$23,'قوائم شهرية أ'!$B$7:$EF$56,125,0),"") ->  | G33: =IFERROR(VLOOKUP($N$23,'قوائم شهرية أ'!$B$7:$EF$56,126,0),"") -> 0 | H33: =IFERROR(VLOOKUP($N$23,'قوائم شهرية أ'!$B$7:$EF$56,127,0),"") -> 0 | I33: =IFERROR(VLOOKUP($N$23,'قوائم شهرية أ'!$B$7:$EF$56,128,0),"") -> 0 | J33: =IFERROR(VLOOKUP($N$23,'قوائم شهرية أ'!$B$7:$EF$56,129,0),"") -> 0 | K33: =IFERROR(VLOOKUP($N$23,'قوائم شهرية أ'!$B$7:$EF$56,130,0),"") ->  | L33: =IFERROR(VLOOKUP($N$23,'قوائم شهرية أ'!$B$7:$EF$56,131,0),"") -> 0 | M33: =IFERROR(VLOOKUP($N$23,'قوائم شهرية أ'!$B$7:$EF$56,132,0),"") -> 0 | N33: =IFERROR(VLOOKUP($N$23,'قوائم شهرية أ'!$B$7:$EF$56,133,0),"") -> 0 | O33: =IFERROR(VLOOKUP($N$23,'قوائم شهرية أ'!$B$7:$EF$56,134,0),"") -> 0 | P33: =IFERROR(VLOOKUP($N$23,'قوائم شهرية أ'!$B$7:$EF$56,135,0),"") -> 0
L34: أحلام مشري منصور
L35: مديرة المدرسة

Sheet التلاميذ والقيود
A1: الخامس أ | E1: الخامس ب
A2: ت | B2: رقم القيد | C2: اسم التلميذ | E2: ت | F2: رقم القيد | G2: اسم التلميذ
A3: =IF(C3<>"",1,"") -> 1 | B3: 2787 | C3: آمنه حسين علوان | E3: =IF(G3<>"",1,"") -> 1 | F3: 2438 | G3: الاء سعد محمد
A4: =IF(C4<>"",A3+1,"") -> 2 | B4: 2373 | C4: آمنه قاسم ثجيل | E4: =IF(G4<>"",E3+1,"") -> 2 | F4: 2889 | G4: اسينات علي حسين
A5: =IF(C5<>"",A4+1,"") -> 3 | B5: 2430 | C5: ايمان محمد مجبل | E5: =IF(G5<>"",E4+1,"") -> 3 | F5: 2565 | G5: ايه مصطفى خير الله
A6: 4 | B6: 2348 | C6: آيه احمد جبار | E6: 4 | F6: 2521 | G6: جنات عادل فاضل
A7: 5 | B7: 2539 | C7: آيه حسين حسن | E7: 5 | F7: 2515 | G7: جنه علي خلف
A8: 6 | B8: 2561 | C8: آيه علي كاظم | E8: 6 | F8: 2534 | G8: حوراء ضياء هادي
A9: 7 | B9: 2417 | C9: براء سليم مجيد | E9: 7 | F9: 2538 | G9: دينا حسين علي
A10: 8 | B10: 2445 | C10: بنين احمد أسعد | E10: 8 | F10: 2403 | G10: راويه رعد حميد
A11: 9 | B11: 2501 | C11: بنين خضير عباس | E11: 9 | F11: 2505 | G11: رباب احمد كريم
A12: 10 | B12: 2502 | C12: بنين عامر كاظم | E12: 10 | F12: 2165 | G12: رقيه حيدر عبد الكريم
A13: 11 | B13: 2610 | C13: جمانه حسين جبار | E13: 11 | F13: 2576 | G13: رقيه علي جعفر
A14: 12 | B14: 2517 | C14: جنه زهير قاسم | E14: 12 | F14: 2568 | G14: رقيه علي طاهر
A15: 13 | B15: 2479 | C15: حوراء رزاق درك | E15: 13 | F15: 2544 | G15: رند ناصر محسن
A16: 14 | B16: 2559 | C16: حوراء عادل مطشر | E16: 14 | F16: 2462 | G16: ريتاج حسين علوان
A17: 15 | B17: 2799 | C17: رتاج علي ناصر حيدر | E17: 15 | F17: 2510 | G17: زهراء جواد عبد الكاظم
A18: 16 | B18: 2590 | C18: رحمه عباس زغير | E18: 16 | F18: 2504 | G18: زهراء ستار جبار
A19: 17 | B19: 2421 | C19: رقيه رعد سعد | E19: 17 | F19: 2578 | G19: زهراء عبد الحسين كريم
A20: 18 | B20: 2440 | C20: رقيه علي مزهر | E20: 18 | F20: 2508 | G20: زهراء علي حميد
A21: 19 | B21: 2513 | C21: رقيه محمد كاظم | E21: 19 | F21: 2537 | G21: زينب رعد حميد
A22: 20 | B22: 2580 | C22: روان احمد قاسم | E22: 20 | F22: 2342 | G22: زينب عباس سعيد
A23: 21 | B23: 2585 | C23: روان استبرق جمعه | E23: 21 | F23: 2470 | G23: زينب عبد الله ناصر
A24: 22 | B24: 2583 | C24: ريتا احمد فاخر | E24: 22 | F24: 2332 | G24: زينب علي جعفر
A25: 23 | B25: 2134 | C25: زهراء احمد محمود | E25: 23 | F25: 2898 | G25: زينب محمد جمعه
A26: 24 | B26: 2189 | C26: زهراء حيدر لفته | E26: 24 | F26: 2698 | G26: سبأ محسن عبد الله
A27: 25 | B27: 2427 | C27: زهراء صادق عباس | E27: 25 | F27: 2542 | G27: شهد سيف علي
A28: 26 | B28: 2569 | C28: زهراء عباس جبر | E28: 26 | F28: 2399 | G28: فاطمة عمار جاسم
A29: 27 | B29: 2557 | C29: زهراء علي زامل | E29: 27 | F29: 2543 | G29: فاطمه احمد كريم
A30: 28 | B30: 2275 | C30: زينب رزاق درك | E30: 28 | F30: 2520 | G30: فاطمه امير خلاف
A31: 29 | B31: 2592 | C31: زينب مشتاق ابراهيم | E31: 29 | F31: 2805 | G31: فاطمه رسول حسين كاظم
A32: 30 | B32: 2522 | C32: شهد فراس كاظم | E32: 30 | F32: 2548 | G32: فاطمه علي جاسم
A33: 31 | B33: 2570 | C33: غدير عادل ثجيل | E33: 31 | F33: 2533 | G33: فاطمه مصطفى سالم
A34: 32 | B34: 2567 | C34: غدير عصام حسن | E34: 32 | F34: 2518 | G34: فرح حيدر عيدان
A35: 33 | B35: 2308 | C35: فاطمه خضير دعبول | E35: 33 | F35: 2478 | G35: فرح عقيل مجيد
A36: 34 | B36: 2252 | C36: فاطمه علي خشم | E36: 34 | F36: 2804 | G36: مرام رعد محسن عبيد
A37: 35 | B37: 2687 | C37: فاطمه ماجد عبد الحسين | E37: 35 | F37: 2461 | G37: مريم احمد عبد الرزاق
A38: 36 | B38: 2562 | C38: فاطمه هادي كاظم | E38: 36 | F38: 2572 | G38: مريم علي جاسم
A39: 37 | B39: 2589 | C39: فرح عباس زغير | E39: 37 | F39: 2401 | G39: معصومه حيدر جاسم
A40: 38 | B40: 2523 | C40: لجين حسين علي | E40: 38 | F40: 2693 | G40: ملكوت علي جاسب
A41: 39 | B41: 2545 | C41: ليسينيا ميثم فاضل | E41: 39 | F41: 2525 | G41: منى عباس محسن
A42: 40 | B42: 2549 | C42: مريم عقيل حنون | E42: 40 | F42: 2532 | G42: نادين طه هاشم
A43: 41 | B43: 2554 | C43: مريم ماجد رحمه | E43: 41 | F43: 2434 | G43: نرجس محمد محسن
A44: 42 | B44: 2524 | C44: معصومه جواد كاظم | E44: 42 | F44: 2355 | G44: نور الهدى محمد مجبل
A45: 43 | B45: 2372 | C45: ملاك حبيب شمخي | E45: 43 | F45: 1931 | G45: هند علي ياسين
A46: 44 | B46: 2535 | C46: ميار حمزة مزهر | E46: 44 | F46: 2531 | G46: يقين حسين علي
A47: 45 | B47: 2584 | C47: نبأ احمد عبد الحسين
A48: 46 | B48: 2897 | C48: هديل يوسف

Sheet قوائم شهرية ب
A1: 1 | B1: 2 | C1: 3 | D1: 4 | E1: 5 | F1: 6 | G1: 7 | H1: 8 | I1: 9 | J1: 10 | K1: 11 | L1: 12 | M1: 13 | N1: 14 | O1: 15 | P1: 16 | Q1: 17 | R1: 18 | S1: 19 | T1: 20 | U1: 21 | V1: 22 | W1: 23 | X1: 24 | Y1: 25 | Z1: 26 | AA1: 27 | AB1: 28 | AC1: 29 | AD1: 30 | AE1: 31 | AF1: 32 | AG1: 33 | AH1: 34 | AI1: 35 | AJ1: 36 | AK1: 37 | AL1: 38 | AM1: 39 | AN1: 40 | AO1: 41 | AP1: 42 | AQ1: 43 | AR1: 44 | AS1: 45 | AT1: 46 | AU1: 47 | AV1: 48 | AW1: 49 | AX1: 50 | AY1: 51 | AZ1: 52 | BA1: 53 | BB1: 54 | BC1: 55 | BD1: 56 | BE1: 57 | BF1: 58 | BG1: 59 | BH1: 60 | BI1: 61 | BJ1: 62 | BK1: 63 | BL1: 64 | BM1: 65 | BN1: 66 | BO1: 67 | BP1: 68 | BQ1: 69 | BR1: 70 | BS1: 71 | BT1: 72 | BU1: 73 | BV1: 74 | BW1: 75 | BX1: 76 | BY1: 77 | BZ1: 78 | CA1: 79 | CB1: 80 | CC1: 81 | CD1: 82 | CE1: 83 | CF1: 84 | CG1: 85 | CH1: 86 | CI1: 87 | CJ1: 88 | CK1: 89 | CL1: 90 | CM1: 91 | CN1: 92 | CO1: 93 | CP1: 94 | CQ1: 95 | CR1: 96 | CS1: 97 | CT1: 98 | CU1: 99 | CV1: 100 | CW1: 101 | CX1: 102 | CY1: 103 | CZ1: 104 | DA1: 105 | DB1: 106 | DC1: 107 | DD1: 108 | DE1: 109 | DF1: 110 | DG1: 111 | DH1: 112 | DI1: 113 | DJ1: 114 | DK1: 115 | DL1: 116 | DM1: 117 | DN1: 118 | DO1: 119 | DP1: 120 | DQ1: 121 | DR1: 122 | DS1: 123 | DT1: 124 | DU1: 125 | DV1: 126 | DW1: 127 | DX1: 128 | DY1: 129 | DZ1: 130 | EA1: 131 | EB1: 132 | EC1: 133 | ED1: 134 | EE1: 135 | EF1: 136
A2: أدارة مدرسة المناذرة | F2: قائمة الدرجات الشهرية | M2: الصف / | O2: الخامس أ | R2: أدارة مدرسة المناذرة | W2: قائمة الدرجات الشهرية | AD2: الصف / | AF2: الخامس أ | AI2: أدارة مدرسة المناذرة | AN2: قائمة الدرجات الشهرية | AU2: الصف / | AW2: الخامس أ | AZ2: أدارة مدرسة المناذرة | BE2: قائمة الدرجات الشهرية | BL2: الصف / | BN2: الخامس أ | BQ2: أدارة مدرسة المناذرة | BV2: قائمة الدرجات الشهرية | CC2: الصف / | CE2: الخامس أ | CH2: أدارة مدرسة المناذرة | CM2: قائمة الدرجات الشهرية | CT2: الصف / | CV2: الخامس أ | CY2: أدارة مدرسة المناذرة | DD2: قائمة الدرجات الشهرية | DK2: الصف / | DM2: الخامس أ | DP2: أدارة مدرسة المناذرة | DU2: قائمة الدرجات الشهرية | EB2: الصف / | ED2: الخامس أ
A3: الابتدائية للبنات | F3: للعام الدراسي 2019 - 2020 | M3: المادة / | O3: التربية الإسلامية | R3: الابتدائية للبنات | W3: للعام الدراسي 2019 - 2020 | AD3: المادة / | AF3: اللغة العربية | AI3: الابتدائية للبنات | AN3: للعام الدراسي 2019 - 2020 | AU3: المادة / | AW3: اللغة الإنكليزية | AZ3: الابتدائية للبنات | BE3: للعام الدراسي 2019 - 2020 | BL3: المادة / | BN3: الرياضيات | BQ3: الابتدائية للبنات | BV3: للعام الدراسي 2019 - 2020 | CC3: المادة / | CE3: العلوم | CH3: الابتدائية للبنات | CM3: للعام الدراسي 2019 - 2020 | CT3: المادة / | CV3: الاجتماعيات | CY3: الابتدائية للبنات | DD3: للعام الدراسي 2019 - 2020 | DK3: المادة / | DM3: التربية الفنية | DP3: الابتدائية للبنات | DU3: للعام الدراسي 2019 - 2020 | EB3: المادة / | ED3: التربية الرياضية
M4: المعلم/ | O4: فضيلة | AD4: المعلم/ | AF4: نوسه | AU4: المعلم/ | AW4: جود | BL4: المعلم/ | BN4: ادم | CC4: المعلم/ | CE4: جنى | CT4: المعلم/ | CV4: دينة | DK4: المعلم/ | DM4: نوير | EB4: المعلم/ | ED4: فاطمة
D5: النصف الأول | I5: النصف الثاني | U5: النصف الأول | Z5: النصف الثاني | AL5: النصف الأول | AQ5: النصف الثاني | BC5: النصف الأول | BH5: النصف الثاني | BT5: النصف الأول | BY5: النصف الثاني | CK5: النصف الأول | CP5: النصف الثاني | DB5: النصف الأول | DG5: النصف الثاني | DS5: النصف الأول | DX5: النصف الثاني
A6: ت | B6: رقم القيد | C6: الا ســـــم | D6: تشرين الاول | E6: تشرين الثاني | F6: كانون الاول | G6: معدل النصف الاول | H6: نصف السنة | I6: شباط | J6: آذار | K6: نيسان | L6: معدل النصف الثاني | M6: السعي السنوي | N6: امتحان الدور الأول | O6: الدرجة النهائية | P6: امتحان الدور الثاني | Q6: الدرجة النهائية | R6: ت | S6: رقم القيد | T6: الا ســـــم | U6: تشرين الاول | V6: تشرين الثاني | W6: كانون الاول | X6: معدل النصف الاول | Y6: نصف السنة | Z6: شباط | AA6: آذار | AB6: نيسان | AC6: معدل النصف الثاني | AD6: السعي السنوي | AE6: امتحان الدور الأول | AF6: الدرجة النهائية | AG6: امتحان الدور الثاني | AH6: الدرجة النهائية | AI6: ت | AJ6: رقم القيد | AK6: الا ســـــم | AL6: تشرين الاول | AM6: تشرين الثاني | AN6: كانون الاول | AO6: معدل النصف الاول | AP6: نصف السنة | AQ6: شباط | AR6: آذار | AS6: نيسان | AT6: معدل النصف الثاني | AU6: السعي السنوي | AV6: امتحان الدور الأول | AW6: الدرجة النهائية | AX6: امتحان الدور الثاني | AY6: الدرجة النهائية | AZ6: ت | BA6: رقم القيد | BB6: الا ســـــم | BC6: تشرين الاول | BD6: تشرين الثاني | BE6: كانون الاول | BF6: معدل النصف الاول | BG6: نصف السنة | BH6: شباط | BI6: آذار | BJ6: نيسان | BK6: معدل النصف الثاني | BL6: السعي السنوي | BM6: امتحان الدور الأول | BN6: الدرجة النهائية | BO6: امتحان الدور الثاني | BP6: الدرجة النهائية | BQ6: ت | BR6: رقم القيد | BS6: الا ســـــم | BT6: تشرين الاول | BU6: تشرين الثاني | BV6: كانون الاول | BW6: معدل النصف الاول | BX6: نصف السنة | BY6: شباط | BZ6: آذار | CA6: نيسان | CB6: معدل النصف الثاني | CC6: السعي السنوي | CD6: امتحان الدور الأول | CE6: الدرجة النهائية | CF6: امتحان الدور الثاني | CG6: الدرجة النهائية | CH6: ت | CI6: رقم القيد | CJ6: الا ســـــم | CK6: تشرين الاول | CL6: تشرين الثاني | CM6: كانون الاول | CN6: معدل النصف الاول | CO6: نصف السنة | CP6: شباط | CQ6: آذار | CR6: نيسان | CS6: معدل النصف الثاني | CT6: السعي السنوي | CU6: امتحان الدور الأول | CV6: الدرجة النهائية | CW6: امتحان الدور الثاني | CX6: الدرجة النهائية | CY6: ت | CZ6: رقم القيد | DA6: الا ســـــم | DB6: تشرين الاول | DC6: تشرين الثاني | DD6: كانون الاول | DE6: معدل النصف الاول | DF6: نصف السنة | DG6: شباط | DH6: آذار | DI6: نيسان | DJ6: معدل النصف الثاني | DK6: السعي السنوي | DL6: امتحان الدور الأول | DM6: الدرجة النهائية | DN6: امتحان الدور الثاني | DO6: الدرجة النهائية | DP6: ت | DQ6: رقم القيد | DR6: الا ســـــم | DS6: تشرين الاول | DT6: تشرين الثاني | DU6: كانون الاول | DV6: معدل النصف الاول | DW6: نصف السنة | DX6: شباط | DY6: آذار | DZ6: نيسان | EA6: معدل النصف الثاني | EB6: السعي السنوي | EC6: امتحان الدور الأول | ED6: الدرجة النهائية | EE6: امتحان الدور الثاني | EF6: الدرجة النهائية
A7: =IF(B7="","",SUBTOTAL(3,$B$7:B7)) -> 1 | B7: ='التلاميذ والقيود '!F3 -> 2438 | C7: ='التلاميذ والقيود '!G3 -> الاء سعد محمد | D7: 1 | E7: 1 | F7: 1 | G7: =IFERROR(ROUND(AVERAGE(D7:F7),),"") -> 1 | H7: =IFERROR(INDEX('العامة نصف السنة ب'!D6,1,1),"") -> 1 | I7: 1 | J7: 1 | K7: 1 | L7: =IFERROR(ROUND(AVERAGE(I7:K7),),"") -> 1 | M7: =IFERROR(ROUND(AVERAGE(G7,H7,L7),),"") -> 1 | N7: =IFERROR(INDEX(' العامة نهاية السنة دور اول ب '!D6,1,1),"") -> 88 | O7: =ROUND(AVERAGE(M7:N7),) -> 45 | P7: =IFERROR(INDEX(' العامة نهاية السنة دور ثان ب'!D6,1,1),"") -> 77 | Q7: =IFERROR(IF(AND(O7<50),ROUND(AVERAGE(M7,P7),),""),"") -> 39 | R7: 1 | S7: ='التلاميذ والقيود '!F3 -> 2438 | T7: ='التلاميذ والقيود '!G3 -> الاء سعد محمد | U7: 2 | V7: 2 | W7: 2 | X7: =IFERROR(ROUND(AVERAGE(U7:W7),),"") -> 2 | Y7: =IFERROR(INDEX('العامة نصف السنة ب'!E6,1,1),"") -> 2 | Z7: 2 | AA7: 2 | AB7: 2 | AC7: =IFERROR(ROUND(AVERAGE(Z7:AB7),),"") -> 2 | AD7: =IFERROR(ROUND(AVERAGE(X7,Y7,AC7),),"") -> 2 | AE7: =IFERROR(INDEX(' العامة نهاية السنة دور اول ب '!E6,1,1),"") -> 90 | AF7: =ROUND(AVERAGE(AD7:AE7),) -> 46 | AG7: =IFERROR(INDEX(' العامة نهاية السنة دور ثان ب'!E6,1,1),"") -> 89 | AH7: =IFERROR(IF(AND(AF7<50),ROUND(AVERAGE(AD7,AG7),),""),"") -> 46 | AI7: 1 | AJ7: ='التلاميذ والقيود '!F3 -> 2438 | AK7: ='التلاميذ والقيود '!G3 -> الاء سعد محمد | AL7: 3 | AM7: 3 | AN7: 3 | AO7: =IFERROR(ROUND(AVERAGE(AL7:AN7),),"") -> 3 | AP7: =IFERROR(INDEX('العامة نصف السنة ب'!F6,1,1),"") -> 3 | AQ7: 3 | AR7: 3 | AS7: 3 | AT7: =IFERROR(ROUND(AVERAGE(AQ7:AS7),),"") -> 3 | AU7: =IFERROR(ROUND(AVERAGE(AO7,AP7,AT7),),"") -> 3 | AV7: =IFERROR(INDEX(' العامة نهاية السنة دور اول ب '!F6,1,1),"") -> 70 | AW7: =ROUND(AVERAGE(AU7:AV7),) -> 37 | AX7: =IFERROR(INDEX(' العامة نهاية السنة دور ثان ب'!F6,1,1),"") -> 75 | AY7: =IFERROR(IF(AND(AW7<50),ROUND(AVERAGE(AU7,AX7),),""),"") -> 39 | AZ7: 1 | BA7: ='التلاميذ والقيود '!F3 -> 2438 | BB7: ='التلاميذ والقيود '!G3 -> الاء سعد محمد | BC7: 4 | BD7: 4 | BE7: 4 | BF7: =IFERROR(ROUND(AVERAGE(BC7:BE7),),"") -> 4 | BG7: =IFERROR(INDEX('العامة نصف السنة ب'!G6,1,1),"") -> 4 | BH7: 4 | BI7: 4 | BJ7: 4 | BK7: =IFERROR(ROUND(AVERAGE(BH7:BJ7),),"") -> 4 | BL7: =IFERROR(ROUND(AVERAGE(BF7,BG7,BK7),),"") -> 4 | BM7: =IFERROR(INDEX(' العامة نهاية السنة دور اول ب '!G6,1,1),"") -> 70 | BN7: =ROUND(AVERAGE(BL7:BM7),) -> 37 | BO7: =IFERROR(INDEX(' العامة نهاية السنة دور ثان ب'!G6,1,1),"") -> 75 | BP7: =IFERROR(IF(AND(BN7<50),ROUND(AVERAGE(BL7,BO7),),""),"") -> 40 | BQ7: 1 | BR7: ='التلاميذ والقيود '!F3 -> 2438 | BS7: ='التلاميذ والقيود '!G3 -> الاء سعد محمد | BT7: 5 | BU7: 5 | BV7: 5 | BW7: =IFERROR(ROUND(AVERAGE(BT7:BV7),),"") -> 5 | BX7: =IFERROR(INDEX('العامة نصف السنة ب'!H6,1,1),"") -> 5 | BY7: 5 | BZ7: 5 | CA7: 5 | CB7: =IFERROR(ROUND(AVERAGE(BY7:CA7),),"") -> 5 | CC7: =IFERROR(ROUND(AVERAGE(BW7,BX7,CB7),),"") -> 5 | CD7: =IFERROR(INDEX(' العامة نهاية السنة دور اول ب '!H6,1,1),"") -> 80 | CE7: =ROUND(AVERAGE(CC7:CD7),) -> 43 | CF7: =IFERROR(INDEX(' العامة نهاية السنة دور ثان ب'!H6,1,1),"") -> 2 | CG7: =IFERROR(IF(AND(CE7<50),ROUND(AVERAGE(CC7,CF7),),""),"") -> 4 | CH7: 1 | CI7: ='التلاميذ والقيود '!F3 -> 2438 | CJ7: ='التلاميذ والقيود '!G3 -> الاء سعد محمد | CK7: 6 | CL7: 6 | CM7: 6 | CN7: =IFERROR(ROUND(AVERAGE(CK7:CM7),),"") -> 6 | CO7: =IFERROR(INDEX('العامة نصف السنة ب'!I6,1,1),"") -> 6 | CP7: 6 | CQ7: 6 | CR7: 6 | CS7: =IFERROR(ROUND(AVERAGE(CP7:CR7),),"") -> 6 | CT7: =IFERROR(ROUND(AVERAGE(CN7,CO7,CS7),),"") -> 6 | CU7: =IFERROR(INDEX(' العامة نهاية السنة دور اول ب '!I6,1,1),"") -> 90 | CV7: =ROUND(AVERAGE(CT7:CU7),) -> 48 | CW7: =IFERROR(INDEX(' العامة نهاية السنة دور ثان ب'!I6,1,1),"") -> 50 | CX7: =IFERROR(IF(AND(CV7<50),ROUND(AVERAGE(CT7,CW7),),""),"") -> 28 | CY7: 1 | CZ7: ='التلاميذ والقيود '!F3 -> 2438 | DA7: ='التلاميذ والقيود '!G3 -> الاء سعد محمد | DB7: 7 | DC7: 7 | DD7: 7 | DE7: =IFERROR(ROUND(AVERAGE(DB7:DD7),),"") -> 7 | DF7: =IFERROR(INDEX('العامة نصف السنة ب'!J6,1,1),"") -> 7 | DG7: 7 | DH7: 7 | DI7: 7 | DJ7: =IFERROR(ROUND(AVERAGE(DG7:DI7),),"") -> 7 | DK7: =IFERROR(ROUND(AVERAGE(DE7,DF7,DJ7),),"") -> 7 | DL7: =IFERROR(INDEX(' العامة نهاية السنة دور اول ب '!J6,1,1),"") -> 100 | DM7: =ROUND(AVERAGE(DK7:DL7),) -> 54 | DN7: =IFERROR(INDEX(' العامة نهاية السنة دور ثان ب'!J6,1,1),"") -> 50 | DO7: =IFERROR(IF(AND(DM7<50),ROUND(AVERAGE(DK7,DN7),),""),"") ->  | DP7: 1 | DQ7: ='التلاميذ والقيود '!F3 -> 2438 | DR7: ='التلاميذ والقيود '!G3 -> الاء سعد محمد | DS7: 8 | DT7: 8 | DU7: 8 | DV7: =IFERROR(ROUND(AVERAGE(DS7:DU7),),"") -> 8 | DW7: =IFERROR(INDEX('العامة نصف السنة ب'!K6,1,1),"") -> 8 | DX7: 7 | DY7: 4 | DZ7: 8 | EA7: =IFERROR(ROUND(AVERAGE(DX7:DZ7),),"") -> 6 | EB7: =IFERROR(ROUND(AVERAGE(DV7,DW7,EA7),),"") -> 7 | EC7: =IFERROR(INDEX(' العامة نهاية السنة دور اول ب '!K6,1,1),"") -> 50 | ED7: =ROUND(AVERAGE(EB7:EC7),) -> 29 | EE7: =IFERROR(INDEX(' العامة نهاية السنة دور ثان ب'!K6,1,1),"") -> 50 | EF7: =IFERROR(IF(AND(ED7<50),ROUND(AVERAGE(EB7,EE7),),""),"") -> 29
A8: =IF(B8="","",SUBTOTAL(3,$B$7:B8)) -> 2 | B8: ='التلاميذ والقيود '!F4 -> 2889 | C8: ='التلاميذ والقيود '!G4 -> اسينات علي حسين | D8: 60 | E8: 60 | F8: 62 | G8: =IFERROR(ROUND(AVERAGE(D8:F8),),"") -> 61 | H8: =IFERROR(INDEX('العامة نصف السنة ب'!D7,1,1),"") -> 50 | I8: 100 | J8: 100 | K8: 100 | L8: =IFERROR(ROUND(AVERAGE(I8:K8),),"") -> 100 | M8: =IFERROR(ROUND(AVERAGE(G8,H8,L8),),"") -> 70 | N8: =IFERROR(INDEX(' العامة نهاية السنة دور اول ب '!D7,1,1),"") -> 10 | O8: =IFERROR(ROUND(AVERAGE(M8:N8),),"") -> 40 | P8: =IFERROR(INDEX(' العامة نهاية السنة دور ثان ب'!D7,1,1),"") -> 66 | Q8: =IFERROR(IF(AND(O8<50),ROUND(AVERAGE(M8,P8),),""),"") -> 68 | R8: 2 | S8: ='التلاميذ والقيود '!F4 -> 2889 | T8: ='التلاميذ والقيود '!G4 -> اسينات علي حسين | U8: 60 | V8: 60 | W8: 62 | X8: =IFERROR(ROUND(AVERAGE(U8:W8),),"") -> 61 | Y8: =IFERROR(INDEX('العامة نصف السنة ب'!E7,1,1),"") -> 50 | Z8: 100 | AA8: 100 | AB8: 100 | AC8: =IFERROR(ROUND(AVERAGE(Z8:AB8),),"") -> 100 | AD8: =IFERROR(ROUND(AVERAGE(X8,Y8,AC8),),"") -> 70 | AE8: =IFERROR(INDEX(' العامة نهاية السنة دور اول ب '!E7,1,1),"") -> 3 | AF8: =IFERROR(ROUND(AVERAGE(AD8:AE8),),"") -> 37 | AG8: =IFERROR(INDEX(' العامة نهاية السنة دور ثان ب'!E7,1,1),"") -> 77 | AH8: =IFERROR(IF(AND(AF8<50),ROUND(AVERAGE(AD8,AG8),),""),"") -> 74 | AI8: 2 | AJ8: ='التلاميذ والقيود '!F4 -> 2889 | AK8: ='التلاميذ والقيود '!G4 -> اسينات علي حسين | AL8: 60 | AM8: 60 | AN8: 62 | AO8: =IFERROR(ROUND(AVERAGE(AL8:AN8),),"") -> 61 | AP8: =IFERROR(INDEX('العامة نصف السنة ب'!F7,1,1),"") -> 50 | AQ8: 100 | AR8: 100 | AS8: 100 | AT8: =IFERROR(ROUND(AVERAGE(AQ8:AS8),),"") -> 100 | AU8: =IFERROR(ROUND(AVERAGE(AO8,AP8,AT8),),"") -> 70 | AV8: =IFERROR(INDEX(' العامة نهاية السنة دور اول ب '!F7,1,1),"") -> 3 | AW8: =IFERROR(ROUND(AVERAGE(AU8:AV8),),"") -> 37 | AX8: =IFERROR(INDEX(' العامة نهاية السنة دور ثان ب'!F7,1,1),"") -> 82 | AY8: =IFERROR(IF(AND(AW8<50),ROUND(AVERAGE(AU8,AX8),),""),"") -> 76 | AZ8: 2 | BA8: ='التلاميذ والقيود '!F4 -> 2889 | BB8: ='التلاميذ والقيود '!G4 -> اسينات علي حسين | BC8: 60 | BD8: 60 | BE8: 62 | BF8: =IFERROR(ROUND(AVERAGE(BC8:BE8),),"") -> 61 | BG8: =IFERROR(INDEX('العامة نصف السنة ب'!G7,1,1),"") -> 50 | BH8: 100 | BI8: 100 | BJ8: 100 | BK8: =IFERROR(ROUND(AVERAGE(BH8:BJ8),),"") -> 100 | BL8: =IFERROR(ROUND(AVERAGE(BF8,BG8,BK8),),"") -> 70 | BM8: =IFERROR(INDEX(' العامة نهاية السنة دور اول ب '!G7,1,1),"") -> 4 | BN8: =IFERROR(ROUND(AVERAGE(BL8:BM8),),"") -> 37 | BO8: =IFERROR(INDEX(' العامة نهاية السنة دور ثان ب'!G7,1,1),"") -> 55 | BP8: =IFERROR(IF(AND(BN8<50),ROUND(AVERAGE(BL8,BO8),),""),"") -> 63 | BQ8: 2 | BR8: ='التلاميذ والقيود '!F4 -> 2889 | BS8: ='التلاميذ والقيود '!G4 -> اسينات علي حسين | BT8: 60 | BU8: 60 | BV8: 62 | BW8: =IFERROR(ROUND(AVERAGE(BT8:BV8),),"") -> 61 | BX8: =IFERROR(INDEX('العامة نصف السنة ب'!H7,1,1),"") -> 50 | BY8: 100 | BZ8: 100 | CA8: 100 | CB8: =IFERROR(ROUND(AVERAGE(BY8:CA8),),"") -> 100 | CC8: =IFERROR(ROUND(AVERAGE(BW8,BX8,CB8),),"") -> 70 | CD8: =IFERROR(INDEX(' العامة نهاية السنة دور اول ب '!H7,1,1),"") -> 6 | CE8: =IFERROR(ROUND(AVERAGE(CC8:CD8),),"") -> 38 | CF8: =IFERROR(INDEX(' العامة نهاية السنة دور ثان ب'!H7,1,1),"") -> 55 | CG8: =IFERROR(IF(AND(CE8<50),ROUND(AVERAGE(CC8,CF8),),""),"") -> 63 | CH8: 2 | CI8: ='التلاميذ والقيود '!F4 -> 2889 | CJ8: ='التلاميذ والقيود '!G4 -> اسينات علي حسين | CK8: 30 | CL8: 30 | CM8: 62 | CN8: =IFERROR(ROUND(AVERAGE(CK8:CM8),),"") -> 41 | CO8: =IFERROR(INDEX('العامة نصف السنة ب'!I7,1,1),"") -> 50 | CP8: 100 | CQ8: 100 | CR8: 100 | CS8: =IFERROR(ROUND(AVERAGE(CP8:CR8),),"") -> 100 | CT8: =IFERROR(ROUND(AVERAGE(CN8,CO8,CS8),),"") -> 64 | CU8: =IFERROR(INDEX(' العامة نهاية السنة دور اول ب '!I7,1,1),"") -> 5 | CV8: =IFERROR(ROUND(AVERAGE(CT8:CU8),),"") -> 35 | CW8: =IFERROR(INDEX(' العامة نهاية السنة دور ثان ب'!I7,1,1),"") -> 22 | CX8: =IFERROR(IF(AND(CV8<50),ROUND(AVERAGE(CT8,CW8),),""),"") -> 43 | CY8: 2 | CZ8: ='التلاميذ والقيود '!F4 -> 2889 | DA8: ='التلاميذ والقيود '!G4 -> اسينات علي حسين | DB8: 60 | DC8: 60 | DD8: 62 | DE8: =IFERROR(ROUND(AVERAGE(DB8:DD8),),"") -> 61 | DF8: =IFERROR(INDEX('العامة نصف السنة ب'!J7,1,1),"") -> 50 | DG8: 100 | DH8: 100 | DI8: 100 | DJ8: =IFERROR(ROUND(AVERAGE(DG8:DI8),),"") -> 100 | DK8: =IFERROR(ROUND(AVERAGE(DE8,DF8,DJ8),),"") -> 70 | DL8: =IFERROR(INDEX(' العامة نهاية السنة دور اول ب '!J7,1,1),"") -> 10 | DM8: =IFERROR(ROUND(AVERAGE(DK8:DL8),),"") -> 40 | DN8: =IFERROR(INDEX(' العامة نهاية السنة دور ثان ب'!J7,1,1),"") -> 44 | DO8: =IFERROR(IF(AND(DM8<50),ROUND(AVERAGE(DK8,DN8),),""),"") -> 57 | DP8: 2 | DQ8: ='التلاميذ والقيود '!F4 -> 2889 | DR8: ='التلاميذ والقيود '!G4 -> اسينات علي حسين | DS8: 60 | DT8: 60 | DU8: 62 | DV8: =IFERROR(ROUND(AVERAGE(DS8:DU8),),"") -> 61 | DW8: =IFERROR(INDEX('العامة نصف السنة ب'!K7,1,1),"") -> 50 | DX8: 100 | DY8: 100 | DZ8: 100 | EA8: =IFERROR(ROUND(AVERAGE(DX8:DZ8),),"") -> 100 | EB8: =IFERROR(ROUND(AVERAGE(DV8,DW8,EA8),),"") -> 70 | EC8: =IFERROR(INDEX(' العامة نهاية السنة دور اول ب '!K7,1,1),"") -> 10 | ED8: =IFERROR(ROUND(AVERAGE(EB8:EC8),),"") -> 40 | EE8: =IFERROR(INDEX(' العامة نهاية السنة دور ثان ب'!K7,1,1),"") -> 55 | EF8: =IFERROR(IF(AND(ED8<50),ROUND(AVERAGE(EB8,EE8),),""),"") -> 63
A9: =IF(B9="","",SUBTOTAL(3,$B$7:B9)) -> 3 | B9: ='التلاميذ والقيود '!F5 -> 2565 | C9: ='التلاميذ والقيود '!G5 -> ايه مصطفى خير الله | D9: 60 | E9: 60 | F9: 65 | G9: =IFERROR(ROUND(AVERAGE(D9:F9),),"") -> 62 | H9: =IFERROR(INDEX('العامة نصف السنة ب'!D8,1,1),"") -> 5 | L9: =IFERROR(ROUND(AVERAGE(I9:K9),),"") ->  | M9: =IFERROR(ROUND(AVERAGE(G9,H9,L9),),"") -> 34 | N9: =IFERROR(INDEX(' العامة نهاية السنة دور اول ب '!D8,1,1),"") -> 10 | O9: =IFERROR(ROUND(AVERAGE(M9:N9),),"") -> 22 | P9: =IFERROR(INDEX(' العامة نهاية السنة دور ثان ب'!D8,1,1),"") -> 99 | Q9: =IFERROR(IF(AND(O9<50),ROUND(AVERAGE(M9,P9),),""),"") -> 67 | R9: 3 | S9: ='التلاميذ والقيود '!F5 -> 2565 | T9: ='التلاميذ والقيود '!G5 -> ايه مصطفى خير الله | U9: 60 | V9: 60 | W9: 65 | X9: =IFERROR(ROUND(AVERAGE(U9:W9),),"") -> 62 | Y9: =IFERROR(INDEX('العامة نصف السنة ب'!E8,1,1),"") -> 5 | AC9: =IFERROR(ROUND(AVERAGE(Z9:AB9),),"") ->  | AD9: =IFERROR(ROUND(AVERAGE(X9,Y9,AC9),),"") -> 34 | AE9: =IFERROR(INDEX(' العامة نهاية السنة دور اول ب '!E8,1,1),"") -> 5 | AF9: =IFERROR(ROUND(AVERAGE(AD9:AE9),),"") -> 20 | AG9: =IFERROR(INDEX(' العامة نهاية السنة دور ثان ب'!E8,1,1),"") -> 100 | AH9: =IFERROR(IF(AND(AF9<50),ROUND(AVERAGE(AD9,AG9),),""),"") -> 67 | AI9: 3 | AJ9: ='التلاميذ والقيود '!F5 -> 2565 | AK9: ='التلاميذ والقيود '!G5 -> ايه مصطفى خير الله | AL9: 60 | AM9: 60 | AN9: 65 | AO9: =IFERROR(ROUND(AVERAGE(AL9:AN9),),"") -> 62 | AP9: =IFERROR(INDEX('العامة نصف السنة ب'!F8,1,1),"") -> 5 | AT9: =IFERROR(ROUND(AVERAGE(AQ9:AS9),),"") ->  | AU9: =IFERROR(ROUND(AVERAGE(AO9,AP9,AT9),),"") -> 34 | AV9: =IFERROR(INDEX(' العامة نهاية السنة دور اول ب '!F8,1,1),"") -> 5 | AW9: =IFERROR(ROUND(AVERAGE(AU9:AV9),),"") -> 20 | AX9: =IFERROR(INDEX(' العامة نهاية السنة دور ثان ب'!F8,1,1),"") -> 55 | AY9: =IFERROR(IF(AND(AW9<50),ROUND(AVERAGE(AU9,AX9),),""),"") -> 45 | AZ9: 3 | BA9: ='التلاميذ والقيود '!F5 -> 2565 | BB9: ='التلاميذ والقيود '!G5 -> ايه مصطفى خير الله | BC9: 60 | BD9: 60 | BE9: 65 | BF9: =IFERROR(ROUND(AVERAGE(BC9:BE9),),"") -> 62 | BG9: =IFERROR(INDEX('العامة نصف السنة ب'!G8,1,1),"") -> 2 | BK9: =IFERROR(ROUND(AVERAGE(BH9:BJ9),),"") ->  | BL9: =IFERROR(ROUND(AVERAGE(BF9,BG9,BK9),),"") -> 32 | BM9: =IFERROR(INDEX(' العامة نهاية السنة دور اول ب '!G8,1,1),"") -> 2 | BN9: =IFERROR(ROUND(AVERAGE(BL9:BM9),),"") -> 17 | BO9: =IFERROR(INDEX(' العامة نهاية السنة دور ثان ب'!G8,1,1),"") -> 63 | BP9: =IFERROR(IF(AND(BN9<50),ROUND(AVERAGE(BL9,BO9),),""),"") -> 48 | BQ9: 3 | BR9: ='التلاميذ والقيود '!F5 -> 2565 | BS9: ='التلاميذ والقيود '!G5 -> ايه مصطفى خير الله | BT9: 60 | BU9: 60 | BV9: 65 | BW9: =IFERROR(ROUND(AVERAGE(BT9:BV9),),"") -> 62 | BX9: =IFERROR(INDEX('العامة نصف السنة ب'!H8,1,1),"") -> 5 | CB9: =IFERROR(ROUND(AVERAGE(BY9:CA9),),"") ->  | CC9: =IFERROR(ROUND(AVERAGE(BW9,BX9,CB9),),"") -> 34 | CD9: =IFERROR(INDEX(' العامة نهاية السنة دور اول ب '!H8,1,1),"") -> 5 | CE9: =IFERROR(ROUND(AVERAGE(CC9:CD9),),"") -> 20 | CF9: =IFERROR(INDEX(' العامة نهاية السنة دور ثان ب'!H8,1,1),"") -> 78 | CG9: =IFERROR(IF(AND(CE9<50),ROUND(AVERAGE(CC9,CF9),),""),"") -> 56 | CH9: 3 | CI9: ='التلاميذ والقيود '!F5 -> 2565 | CJ9: ='التلاميذ والقيود '!G5 -> ايه مصطفى خير الله | CK9: 60 | CL9: 60 | CM9: 65 | CN9: =IFERROR(ROUND(AVERAGE(CK9:CM9),),"") -> 62 | CO9: =IFERROR(INDEX('العامة نصف السنة ب'!I8,1,1),"") -> 0 | CS9: =IFERROR(ROUND(AVERAGE(CP9:CR9),),"") ->  | CT9: =IFERROR(ROUND(AVERAGE(CN9,CO9,CS9),),"") -> 31 | CU9: =IFERROR(INDEX(' العامة نهاية السنة دور اول ب '!I8,1,1),"") -> 0 | CV9: =IFERROR(ROUND(AVERAGE(CT9:CU9),),"") -> 16 | CW9: =IFERROR(INDEX(' العامة نهاية السنة دور ثان ب'!I8,1,1),"") -> 54 | CX9: =IFERROR(IF(AND(CV9<50),ROUND(AVERAGE(CT9,CW9),),""),"") -> 43 | CY9: 3 | CZ9: ='التلاميذ والقيود '!F5 -> 2565 | DA9: ='التلاميذ والقيود '!G5 -> ايه مصطفى خير الله | DB9: 60 | DC9: 60 | DD9: 65 | DE9: =IFERROR(ROUND(AVERAGE(DB9:DD9),),"") -> 62 | DF9: =IFERROR(INDEX('العامة نصف السنة ب'!J8,1,1),"") -> 1 | DJ9: =IFERROR(ROUND(AVERAGE(DG9:DI9),),"") ->  | DK9: =IFERROR(ROUND(AVERAGE(DE9,DF9,DJ9),),"") -> 32 | DL9: =IFERROR(INDEX(' العامة نهاية السنة دور اول ب '!J8,1,1),"") -> 1 | DM9: =IFERROR(ROUND(AVERAGE(DK9:DL9),),"") -> 17 | DN9: =IFERROR(INDEX(' العامة نهاية السنة دور ثان ب'!J8,1,1),"") -> 33 | DO9: =IFERROR(IF(AND(DM9<50),ROUND(AVERAGE(DK9,DN9),),""),"") -> 33 | DP9: 3 | DQ9: ='التلاميذ والقيود '!F5 -> 2565 | DR9: ='التلاميذ والقيود '!G5 -> ايه مصطفى خير الله | DS9: 60 | DT9: 60 | DU9: 65 | DV9: =IFERROR(ROUND(AVERAGE(DS9:DU9),),"") -> 62 | DW9: =IFERROR(INDEX('العامة نصف السنة ب'!K8,1,1),"") -> 10 | EA9: =IFERROR(ROUND(AVERAGE(DX9:DZ9),),"") ->  | EB9: =IFERROR(ROUND(AVERAGE(DV9,DW9,EA9),),"") -> 36 | EC9: =IFERROR(INDEX(' العامة نهاية السنة دور اول ب '!K8,1,1),"") -> 10 | ED9: =IFERROR(ROUND(AVERAGE(EB9:EC9),),"") -> 23 | EE9: =IFERROR(INDEX(' العامة نهاية السنة دور ثان ب'!K8,1,1),"") -> 99 | EF9: =IFERROR(IF(AND(ED9<50),ROUND(AVERAGE(EB9,EE9),),""),"") -> 68
A10: =IF(B10="","",SUBTOTAL(3,$B$7:B10)) -> 4 | B10: ='التلاميذ والقيود '!F6 -> 2521 | C10: ='التلاميذ والقيود '!G6 -> جنات عادل فاضل | D10: 50 | E10: 50 | F10: 50 | G10: 50 | H10: =IFERROR(INDEX('العامة نصف السنة ب'!D9,1,1),"") -> 5 | M10: 28 | N10: =IFERROR(INDEX(' العامة نهاية السنة دور اول ب '!D9,1,1),"") -> 50 | O10: =IFERROR(ROUND(AVERAGE(M10:N10),),"") -> 39 | P10: =IFERROR(INDEX(' العامة نهاية السنة دور ثان ب'!D9,1,1),"") -> 88 | Q10: 58 | R10: 4 | S10: ='التلاميذ والقيود '!F6 -> 2521 | T10: ='التلاميذ والقيود '!G6 -> جنات عادل فاضل | U10: 50 | V10: 50 | W10: 50 | X10: 50 | Y10: =IFERROR(INDEX('العامة نصف السنة ب'!E9,1,1),"") -> 0 | AD10: 25 | AE10: =IFERROR(INDEX(' العامة نهاية السنة دور اول ب '!E9,1,1),"") -> 55 | AF10: =IFERROR(ROUND(AVERAGE(AD10:AE10),),"") -> 40 | AG10: =IFERROR(INDEX(' العامة نهاية السنة دور ثان ب'!E9,1,1),"") -> 99 | AH10: 62 | AI10: 4 | AJ10: ='التلاميذ والقيود '!F6 -> 2521 | AK10: ='التلاميذ والقيود '!G6 -> جنات عادل فاضل | AL10: 50 | AM10: 50 | AN10: 50 | AO10: 50 | AP10: =IFERROR(INDEX('العامة نصف السنة ب'!F9,1,1),"") -> 0 | AU10: 25 | AV10: =IFERROR(INDEX(' العامة نهاية السنة دور اول ب '!F9,1,1),"") -> 55 | AW10: =IFERROR(ROUND(AVERAGE(AU10:AV10),),"") -> 40 | AX10: =IFERROR(INDEX(' العامة نهاية السنة دور ثان ب'!F9,1,1),"") -> 57 | AY10: 41 | AZ10: 4 | BA10: ='التلاميذ والقيود '!F6 -> 2521 | BB10: ='التلاميذ والقيود '!G6 -> جنات عادل فاضل | BC10: 50 | BD10: 50 | BE10: 49 | BF10: 50 | BG10: =IFERROR(INDEX('العامة نصف السنة ب'!G9,1,1),"") -> 0 | BL10: 25 | BM10: =IFERROR(INDEX(' العامة نهاية السنة دور اول ب '!G9,1,1),"") -> 50 | BN10: =IFERROR(ROUND(AVERAGE(BL10:BM10),),"") -> 38 | BO10: =IFERROR(INDEX(' العامة نهاية السنة دور ثان ب'!G9,1,1),"") -> 65 | BP10: 45 | BQ10: 4 | BR10: ='التلاميذ والقيود '!F6 -> 2521 | BS10: ='التلاميذ والقيود '!G6 -> جنات عادل فاضل | BT10: 50 | BU10: 50 | BV10: 50 | BW10: 50 | BX10: =IFERROR(INDEX('العامة نصف السنة ب'!H9,1,1),"") -> 10 | CC10: 30 | CD10: =IFERROR(INDEX(' العامة نهاية السنة دور اول ب '!H9,1,1),"") -> 50 | CE10: =IFERROR(ROUND(AVERAGE(CC10:CD10),),"") -> 40 | CF10: =IFERROR(INDEX(' العامة نهاية السنة دور ثان ب'!H9,1,1),"") -> 66 | CG10: 48 | CH10: 4 | CI10: ='التلاميذ والقيود '!F6 -> 2521 | CJ10: ='التلاميذ والقيود '!G6 -> جنات عادل فاضل | CK10: 49 | CL10: 30 | CM10: 40 | CN10: 40 | CO10: =IFERROR(INDEX('العامة نصف السنة ب'!I9,1,1),"") -> 0 | CT10: 20 | CU10: =IFERROR(INDEX(' العامة نهاية السنة دور اول ب '!I9,1,1),"") -> 50 | CV10: =IFERROR(ROUND(AVERAGE(CT10:CU10),),"") -> 35 | CW10: =IFERROR(INDEX(' العامة نهاية السنة دور ثان ب'!I9,1,1),"") -> 51 | CX10: 36 | CY10: 4 | CZ10: ='التلاميذ والقيود '!F6 -> 2521 | DA10: ='التلاميذ والقيود '!G6 -> جنات عادل فاضل | DB10: 50 | DC10: 50 | DD10: 49 | DE10: 50 | DF10: =IFERROR(INDEX('العامة نصف السنة ب'!J9,1,1),"") -> 0 | DK10: 25 | DL10: =IFERROR(INDEX(' العامة نهاية السنة دور اول ب '!J9,1,1),"") -> 50 | DM10: =IFERROR(ROUND(AVERAGE(DK10:DL10),),"") -> 38 | DN10: =IFERROR(INDEX(' العامة نهاية السنة دور ثان ب'!J9,1,1),"") -> 88 | DO10: 57 | DP10: 4 | DQ10: ='التلاميذ والقيود '!F6 -> 2521 | DR10: ='التلاميذ والقيود '!G6 -> جنات عادل فاضل | DS10: 50 | DT10: 50 | DU10: 50 | DV10: 50 | DW10: =IFERROR(INDEX('العامة نصف السنة ب'!K9,1,1),"") -> 4 | EB10: 27 | EC10: =IFERROR(INDEX(' العامة نهاية السنة دور اول ب '!K9,1,1),"") -> 55 | ED10: =IFERROR(ROUND(AVERAGE(EB10:EC10),),"") -> 41 | EE10: =IFERROR(INDEX(' العامة نهاية السنة دور ثان ب'!K9,1,1),"") -> 91 | EF10: 59
A11: =IF(B11="","",SUBTOTAL(3,$B$7:B11)) -> 5 | B11: ='التلاميذ والقيود '!F7 -> 2515 | C11: ='التلاميذ والقيود '!G7 -> جنه علي خلف | H11: =IFERROR(INDEX('العامة نصف السنة ب'!D10,1,1),"") -> 5 | M11: 5 | N11: =IFERROR(INDEX(' العامة نهاية السنة دور اول ب '!D10,1,1),"") -> 10 | O11: 8 | P11: =IFERROR(INDEX(' العامة نهاية السنة دور ثان ب'!D10,1,1),"") -> 77 | Q11: 41 | R11: 5 | S11: ='التلاميذ والقيود '!F7 -> 2515 | T11: ='التلاميذ والقيود '!G7 -> جنه علي خلف | Y11: =IFERROR(INDEX('العامة نصف السنة ب'!E10,1,1),"") -> 0 | AD11: 0 | AE11: =IFERROR(INDEX(' العامة نهاية السنة دور اول ب '!E10,1,1),"") -> 0 | AF11: 0 | AG11: =IFERROR(INDEX(' العامة نهاية السنة دور ثان ب'!E10,1,1),"") -> 98 | AH11: 49 | AI11: 5 | AJ11: ='التلاميذ والقيود '!F7 -> 2515 | AK11: ='التلاميذ والقيود '!G7 -> جنه علي خلف | AP11: =IFERROR(INDEX('العامة نصف السنة ب'!F10,1,1),"") -> 0 | AU11: 0 | AV11: =IFERROR(INDEX(' العامة نهاية السنة دور اول ب '!F10,1,1),"") -> 0 | AW11: 0 | AX11: =IFERROR(INDEX(' العامة نهاية السنة دور ثان ب'!F10,1,1),"") -> غ | AY11: 0 | AZ11: 5 | BA11: ='التلاميذ والقيود '!F7 -> 2515 | BB11: ='التلاميذ والقيود '!G7 -> جنه علي خلف | BG11: =IFERROR(INDEX('العامة نصف السنة ب'!G10,1,1),"") -> 0 | BL11: 0 | BM11: =IFERROR(INDEX(' العامة نهاية السنة دور اول ب '!G10,1,1),"") -> 0 | BN11: 0 | BO11: =IFERROR(INDEX(' العامة نهاية السنة دور ثان ب'!G10,1,1),"") -> غ | BP11: 0 | BQ11: 5 | BR11: ='التلاميذ والقيود '!F7 -> 2515 | BS11: ='التلاميذ والقيود '!G7 -> جنه علي خلف | BX11: =IFERROR(INDEX('العامة نصف السنة ب'!H10,1,1),"") -> 0 | CC11: 0 | CD11: =IFERROR(INDEX(' العامة نهاية السنة دور اول ب '!H10,1,1),"") -> 0 | CE11: 0 | CF11: =IFERROR(INDEX(' العامة نهاية السنة دور ثان ب'!H10,1,1),"") -> 54 | CG11: 27 | CH11: 5 | CI11: ='التلاميذ والقيود '!F7 -> 2515 | CJ11: ='التلاميذ والقيود '!G7 -> جنه علي خلف | CO11: =IFERROR(INDEX('العامة نصف السنة ب'!I10,1,1),"") -> 0 | CT11: 0 | CU11: =IFERROR(INDEX(' العامة نهاية السنة دور اول ب '!I10,1,1),"") -> 0 | CV11: 0 | CW11: =IFERROR(INDEX(' العامة نهاية السنة دور ثان ب'!I10,1,1),"") -> 48 | CX11: 24 | CY11: 5 | CZ11: ='التلاميذ والقيود '!F7 -> 2515 | DA11: ='التلاميذ والقيود '!G7 -> جنه علي خلف | DF11: =IFERROR(INDEX('العامة نصف السنة ب'!J10,1,1),"") -> 0 | DK11: 0 | DL11: =IFERROR(INDEX(' العامة نهاية السنة دور اول ب '!J10,1,1),"") -> 3 | DM11: 2 | DN11: =IFERROR(INDEX(' العامة نهاية السنة دور ثان ب'!J10,1,1),"") -> 77 | DO11: 39 | DP11: 5 | DQ11: ='التلاميذ والقيود '!F7 -> 2515 | DR11: ='التلاميذ والقيود '!G7 -> جنه علي خلف | DW11: =IFERROR(INDEX('العامة نصف السنة ب'!K10,1,1),"") -> 0 | EB11: 0 | EC11: =IFERROR(INDEX(' العامة نهاية السنة دور اول ب '!K10,1,1),"") -> 4 | ED11: 2 | EE11: =IFERROR(INDEX(' العامة نهاية السنة دور ثان ب'!K10,1,1),"") -> 83 | EF11: 42
A12: =IF(B12="","",SUBTOTAL(3,$B$7:B12)) -> 6 | B12: ='التلاميذ والقيود '!F8 -> 2534 | C12: ='التلاميذ والقيود '!G8 -> حوراء ضياء هادي | H12: =IFERROR(INDEX('العامة نصف السنة ب'!D11,1,1),"") -> 5 | M12: 5 | N12: =IFERROR(INDEX(' العامة نهاية السنة دور اول ب '!D11,1,1),"") -> 10 | O12: 8 | P12: =IFERROR(INDEX(' العامة نهاية السنة دور ثان ب'!D11,1,1),"") -> غ | Q12: 5 | R12: 6 | S12: ='التلاميذ والقيود '!F8 -> 2534 | T12: ='التلاميذ والقيود '!G8 -> حوراء ضياء هادي | Y12: =IFERROR(INDEX('العامة نصف السنة ب'!E11,1,1),"") -> 0 | AD12: 0 | AE12: =IFERROR(INDEX(' العامة نهاية السنة دور اول ب '!E11,1,1),"") -> 0 | AF12: 0 | AG12: =IFERROR(INDEX(' العامة نهاية السنة دور ثان ب'!E11,1,1),"") -> 50 | AH12: 25 | AI12: 6 | AJ12: ='التلاميذ والقيود '!F8 -> 2534 | AK12: ='التلاميذ والقيود '!G8 -> حوراء ضياء هادي | AP12: =IFERROR(INDEX('العامة نصف السنة ب'!F11,1,1),"") -> 0 | AU12: 0 | AV12: =IFERROR(INDEX(' العامة نهاية السنة دور اول ب '!F11,1,1),"") -> 0 | AW12: 0 | AX12: =IFERROR(INDEX(' العامة نهاية السنة دور ثان ب'!F11,1,1),"") -> 50 | AY12: 25 | AZ12: 6 | BA12: ='التلاميذ والقيود '!F8 -> 2534 | BB12: ='التلاميذ والقيود '!G8 -> حوراء ضياء هادي | BG12: =IFERROR(INDEX('العامة نصف السنة ب'!G11,1,1),"") -> 0 | BL12: 0 | BM12: =IFERROR(INDEX(' العامة نهاية السنة دور اول ب '!G11,1,1),"") -> 0 | BN12: 0 | BO12: =IFERROR(INDEX(' العامة نهاية السنة دور ثان ب'!G11,1,1),"") -> 69 | BP12: 35 | BQ12: 6 | BR12: ='التلاميذ والقيود '!F8 -> 2534 | BS12: ='التلاميذ والقيود '!G8 -> حوراء ضياء هادي | BX12: =IFERROR(INDEX('العامة نصف السنة ب'!H11,1,1),"") -> 0 | CC12: 0 | CD12: =IFERROR(INDEX(' العامة نهاية السنة دور اول ب '!H11,1,1),"") -> 5 | CE12: 3 | CF12: =IFERROR(INDEX(' العامة نهاية السنة دور ثان ب'!H11,1,1),"") -> 55 | CG12: 28 | CH12: 6 | CI12: ='التلاميذ والقيود '!F8 -> 2534 | CJ12: ='التلاميذ والقيود '!G8 -> حوراء ضياء هادي | CO12: =IFERROR(INDEX('العامة نصف السنة ب'!I11,1,1),"") -> 0 | CT12: 0 | CU12: =IFERROR(INDEX(' العامة نهاية السنة دور اول ب '!I11,1,1),"") -> 0 | CV12: 0 | CW12: =IFERROR(INDEX(' العامة نهاية السنة دور ثان ب'!I11,1,1),"") -> 77 | CX12: 39 | CY12: 6 | CZ12: ='التلاميذ والقيود '!F8 -> 2534 | DA12: ='التلاميذ والقيود '!G8 -> حوراء ضياء هادي | DF12: =IFERROR(INDEX('العامة نصف السنة ب'!J11,1,1),"") -> 0 | DK12: 0 | DL12: =IFERROR(INDEX(' العامة نهاية السنة دور اول ب '!J11,1,1),"") -> 2 | DM12: 1 | DN12: =IFERROR(INDEX(' العامة نهاية السنة دور ثان ب'!J11,1,1),"") -> 66 | DO12: 33 | DP12: 6 | DQ12: ='التلاميذ والقيود '!F8 -> 2534 | DR12: ='التلاميذ والقيود '!G8 -> حوراء ضياء هادي | DW12: =IFERROR(INDEX('العامة نصف السنة ب'!K11,1,1),"") -> 0 | EB12: 0 | EC12: =IFERROR(INDEX(' العامة نهاية السنة دور اول ب '!K11,1,1),"") -> 50 | ED12: 25 | EE12: =IFERROR(INDEX(' العامة نهاية السنة دور ثان ب'!K11,1,1),"") -> 50 | EF12: 25
A13: =IF(B13="","",SUBTOTAL(3,$B$7:B13)) -> 7 | B13: ='التلاميذ والقيود '!F9 -> 2538 | C13: ='التلاميذ والقيود '!G9 -> دينا حسين علي | H13: =IFERROR(INDEX('العامة نصف السنة ب'!D12,1,1),"") -> 5 | M13: 5 | N13: =IFERROR(INDEX(' العامة نهاية السنة دور اول ب '!D12,1,1),"") -> 10 | O13: 8 | P13: =IFERROR(INDEX(' العامة نهاية السنة دور ثان ب'!D12,1,1),"") -> 55 | Q13: 30 | R13: 7 | S13: ='التلاميذ والقيود '!F9 -> 2538 | T13: ='التلاميذ والقيود '!G9 -> دينا حسين علي | Y13: =IFERROR(INDEX('العامة نصف السنة ب'!E12,1,1),"") -> 0 | AD13: 0 | AE13: =IFERROR(INDEX(' العامة نهاية السنة دور اول ب '!E12,1,1),"") -> 0 | AF13: 0 | AG13: =IFERROR(INDEX(' العامة نهاية السنة دور ثان ب'!E12,1,1),"") -> 96 | AH13: 48 | AI13: 7 | AJ13: ='التلاميذ والقيود '!F9 -> 2538 | AK13: ='التلاميذ والقيود '!G9 -> دينا حسين علي | AP13: =IFERROR(INDEX('العامة نصف السنة ب'!F12,1,1),"") -> 0 | AU13: 0 | AV13: =IFERROR(INDEX(' العامة نهاية السنة دور اول ب '!F12,1,1),"") -> 0 | AW13: 0 | AX13: =IFERROR(INDEX(' العامة نهاية السنة دور ثان ب'!F12,1,1),"") -> غ | AY13: 0 | AZ13: 7 | BA13: ='التلاميذ والقيود '!F9 -> 2538 | BB13: ='التلاميذ والقيود '!G9 -> دينا حسين علي | BG13: =IFERROR(INDEX('العامة نصف السنة ب'!G12,1,1),"") -> 0 | BL13: 0 | BM13: =IFERROR(INDEX(' العامة نهاية السنة دور اول ب '!G12,1,1),"") -> 0 | BN13: 0 | BO13: =IFERROR(INDEX(' العامة نهاية السنة دور ثان ب'!G12,1,1),"") -> 71 | BP13: 36 | BQ13: 7 | BR13: ='التلاميذ والقيود '!F9 -> 2538 | BS13: ='التلاميذ والقيود '!G9 -> دينا حسين علي | BX13: =IFERROR(INDEX('العامة نصف السنة ب'!H12,1,1),"") -> 0 | CC13: 0 | CD13: =IFERROR(INDEX(' العامة نهاية السنة دور اول ب '!H12,1,1),"") -> 0 | CE13: 0 | CF13: =IFERROR(INDEX(' العامة نهاية السنة دور ثان ب'!H12,1,1),"") -> 30 | CG13: 15 | CH13: 7 | CI13: ='التلاميذ والقيود '!F9 -> 2538 | CJ13: ='التلاميذ والقيود '!G9 -> دينا حسين علي | CO13: =IFERROR(INDEX('العامة نصف السنة ب'!I12,1,1),"") -> 0 | CT13: 0 | CU13: =IFERROR(INDEX(' العامة نهاية السنة دور اول ب '!I12,1,1),"") -> 0 | CV13: 0 | CW13: =IFERROR(INDEX(' العامة نهاية السنة دور ثان ب'!I12,1,1),"") -> 42 | CX13: 21 | CY13: 7 | CZ13: ='التلاميذ والقيود '!F9 -> 2538 | DA13: ='التلاميذ والقيود '!G9 -> دينا حسين علي | DF13: =IFERROR(INDEX('العامة نصف السنة ب'!J12,1,1),"") -> 0 | DK13: 0 | DL13: =IFERROR(INDEX(' العامة نهاية السنة دور اول ب '!J12,1,1),"") -> 0 | DM13: 0 | DN13: =IFERROR(INDEX(' العامة نهاية السنة دور ثان ب'!J12,1,1),"") -> 55 | DO13: 28 | DP13: 7 | DQ13: ='التلاميذ والقيود '!F9 -> 2538 | DR13: ='التلاميذ والقيود '!G9 -> دينا حسين علي | DW13: =IFERROR(INDEX('العامة نصف السنة ب'!K12,1,1),"") -> 0 | EB13: 0 | EC13: =IFERROR(INDEX(' العامة نهاية السنة دور اول ب '!K12,1,1),"") -> 0 | ED13: 0 | EE13: =IFERROR(INDEX(' العامة نهاية السنة دور ثان ب'!K12,1,1),"") -> 67 | EF13: 34
A14: =IF(B14="","",SUBTOTAL(3,$B$7:B14)) -> 8 | B14: ='التلاميذ والقيود '!F10 -> 2403 | C14: ='التلاميذ والقيود '!G10 -> راويه رعد حميد | H14: =IFERROR(INDEX('العامة نصف السنة ب'!D13,1,1),"") -> 5 | M14: 5 | N14: =IFERROR(INDEX(' العامة نهاية السنة دور اول ب '!D13,1,1),"") -> 10 | O14: 8 | P14: =IFERROR(INDEX(' العامة نهاية السنة دور ثان ب'!D13,1,1),"") -> 44 | Q14: 25 | R14: 8 | S14: ='التلاميذ والقيود '!F10 -> 2403 | T14: ='التلاميذ والقيود '!G10 -> راويه رعد حميد | Y14: =IFERROR(INDEX('العامة نصف السنة ب'!E13,1,1),"") -> 0 | AD14: 0 | AE14: =IFERROR(INDEX(' العامة نهاية السنة دور اول ب '!E13,1,1),"") -> 0 | AF14: 0 | AG14: =IFERROR(INDEX(' العامة نهاية السنة دور ثان ب'!E13,1,1),"") -> 95 | AH14: 48 | AI14: 8 | AJ14: ='التلاميذ والقيود '!F10 -> 2403 | AK14: ='التلاميذ والقيود '!G10 -> راويه رعد حميد | AP14: =IFERROR(INDEX('العامة نصف السنة ب'!F13,1,1),"") -> 0 | AU14: 0 | AV14: =IFERROR(INDEX(' العامة نهاية السنة دور اول ب '!F13,1,1),"") -> 0 | AW14: 0 | AX14: =IFERROR(INDEX(' العامة نهاية السنة دور ثان ب'!F13,1,1),"") -> 65 | AY14: 33 | AZ14: 8 | BA14: ='التلاميذ والقيود '!F10 -> 2403 | BB14: ='التلاميذ والقيود '!G10 -> راويه رعد حميد | BG14: =IFERROR(INDEX('العامة نصف السنة ب'!G13,1,1),"") -> 0 | BL14: 0 | BM14: =IFERROR(INDEX(' العامة نهاية السنة دور اول ب '!G13,1,1),"") -> 0 | BN14: 0 | BO14: =IFERROR(INDEX(' العامة نهاية السنة دور ثان ب'!G13,1,1),"") -> 73 | BP14: 37 | BQ14: 8 | BR14: ='التلاميذ والقيود '!F10 -> 2403 | BS14: ='التلاميذ والقيود '!G10 -> راويه رعد حميد | BX14: =IFERROR(INDEX('العامة نصف السنة ب'!H13,1,1),"") -> 0 | CC14: 0 | CD14: =IFERROR(INDEX(' العامة نهاية السنة دور اول ب '!H13,1,1),"") -> 0 | CE14: 0 | CF14: =IFERROR(INDEX(' العامة نهاية السنة دور ثان ب'!H13,1,1),"") -> 18 | CG14: 9 | CH14: 8 | CI14: ='التلاميذ والقيود '!F10 -> 2403 | CJ14: ='التلاميذ والقيود '!G10 -> راويه رعد حميد | CO14: =IFERROR(INDEX('العامة نصف السنة ب'!I13,1,1),"") -> 0 | CT14: 0 | CU14: =IFERROR(INDEX(' العامة نهاية السنة دور اول ب '!I13,1,1),"") -> 0 | CV14: 0 | CW14: =IFERROR(INDEX(' العامة نهاية السنة دور ثان ب'!I13,1,1),"") -> 39 | CX14: 20 | CY14: 8 | CZ14: ='التلاميذ والقيود '!F10 -> 2403 | DA14: ='التلاميذ والقيود '!G10 -> راويه رعد حميد | DF14: =IFERROR(INDEX('العامة نصف السنة ب'!J13,1,1),"") -> 0 | DK14: 0 | DL14: =IFERROR(INDEX(' العامة نهاية السنة دور اول ب '!J13,1,1),"") -> 0 | DM14: 0 | DN14: =IFERROR(INDEX(' العامة نهاية السنة دور ثان ب'!J13,1,1),"") -> 44 | DO14: 22 | DP14: 8 | DQ14: ='التلاميذ والقيود '!F10 -> 2403 | DR14: ='التلاميذ والقيود '!G10 -> راويه رعد حميد | DW14: =IFERROR(INDEX('العامة نصف السنة ب'!K13,1,1),"") -> 0 | EB14: 0 | EC14: =IFERROR(INDEX(' العامة نهاية السنة دور اول ب '!K13,1,1),"") -> 0 | ED14: 0 | EE14: =IFERROR(INDEX(' العامة نهاية السنة دور ثان ب'!K13,1,1),"") -> 59 | EF14: 30
A15: 9 | B15: ='التلاميذ والقيود '!F11 -> 2505 | C15: ='التلاميذ والقيود '!G11 -> رباب احمد كريم | H15: =IFERROR(INDEX('العامة نصف السنة ب'!D14,1,1),"") -> 0 | M15: 0 | N15: =IFERROR(INDEX(' العامة نهاية السنة دور اول ب '!D14,1,1),"") -> 0 | O15: 0 | P15: =IFERROR(INDEX(' العامة نهاية السنة دور ثان ب'!D14,1,1),"") -> 0 | Q15: 0 | R15: 9 | S15: ='التلاميذ والقيود '!F11 -> 2505 | T15: ='التلاميذ والقيود '!G11 -> رباب احمد كريم | Y15: =IFERROR(INDEX('العامة نصف السنة ب'!E14,1,1),"") -> 0 | AD15: 0 | AE15: =IFERROR(INDEX(' العامة نهاية السنة دور اول ب '!E14,1,1),"") -> 0 | AF15: 0 | AG15: =IFERROR(INDEX(' العامة نهاية السنة دور ثان ب'!E14,1,1),"") -> 0 | AH15: 0 | AI15: 9 | AJ15: ='التلاميذ والقيود '!F11 -> 2505 | AK15: ='التلاميذ والقيود '!G11 -> رباب احمد كريم | AP15: =IFERROR(INDEX('العامة نصف السنة ب'!F14,1,1),"") -> 0 | AU15: 0 | AV15: =IFERROR(INDEX(' العامة نهاية السنة دور اول ب '!F14,1,1),"") -> 0 | AW15: 0 | AX15: =IFERROR(INDEX(' العامة نهاية السنة دور ثان ب'!F14,1,1),"") -> 0 | AY15: 0 | AZ15: 9 | BA15: ='التلاميذ والقيود '!F11 -> 2505 | BB15: ='التلاميذ والقيود '!G11 -> رباب احمد كريم | BG15: =IFERROR(INDEX('العامة نصف السنة ب'!G14,1,1),"") -> 0 | BL15: 0 | BM15: =IFERROR(INDEX(' العامة نهاية السنة دور اول ب '!G14,1,1),"") -> 0 | BN15: 0 | BO15: =IFERROR(INDEX(' العامة نهاية السنة دور ثان ب'!G14,1,1),"") -> 0 | BP15: 0 | BQ15: 9 | BR15: ='التلاميذ والقيود '!F11 -> 2505 | BS15: ='التلاميذ والقيود '!G11 -> رباب احمد كريم | BX15: =IFERROR(INDEX('العامة نصف السنة ب'!H14,1,1),"") -> 0 | CC15: 0 | CD15: =IFERROR(INDEX(' العامة نهاية السنة دور اول ب '!H14,1,1),"") -> 0 | CE15: 0 | CF15: =IFERROR(INDEX(' العامة نهاية السنة دور ثان ب'!H14,1,1),"") -> 0 | CG15: 0 | CH15: 9 | CI15: ='التلاميذ والقيود '!F11 -> 2505 | CJ15: ='التلاميذ والقيود '!G11 -> رباب احمد كريم | CO15: =IFERROR(INDEX('العامة نصف السنة ب'!I14,1,1),"") -> 0 | CT15: 0 | CU15: =IFERROR(INDEX(' العامة نهاية السنة دور اول ب '!I14,1,1),"") -> 0 | CV15: 0 | CW15: =IFERROR(INDEX(' العامة نهاية السنة دور ثان ب'!I14,1,1),"") -> 0 | CX15: 0 | CY15: 9 | CZ15: ='التلاميذ والقيود '!F11 -> 2505 | DA15: ='التلاميذ والقيود '!G11 -> رباب احمد كريم | DF15: =IFERROR(INDEX('العامة نصف السنة ب'!J14,1,1),"") -> 0 | DK15: 0 | DL15: =IFERROR(INDEX(' العامة نهاية السنة دور اول ب '!J14,1,1),"") -> 0 | DM15: 0 | DN15: =IFERROR(INDEX(' العامة نهاية السنة دور ثان ب'!J14,1,1),"") -> 0 | DO15: 0 | DP15: 9 | DQ15: ='التلاميذ والقيود '!F11 -> 2505 | DR15: ='التلاميذ والقيود '!G11 -> رباب احمد كريم | DW15: =IFERROR(INDEX('العامة نصف السنة ب'!K14,1,1),"") -> 0 | EB15: 0 | EC15: =IFERROR(INDEX(' العامة نهاية السنة دور اول ب '!K14,1,1),"") -> 0 | ED15: 0 | EE15: =IFERROR(INDEX(' العامة نهاية السنة دور ثان ب'!K14,1,1),"") -> 0 | EF15: 0
A16: =IF(B16="","",SUBTOTAL(3,$B$7:B16)) -> 10 | B16: ='التلاميذ والقيود '!F12 -> 2165 | C16: ='التلاميذ والقيود '!G12 -> رقيه حيدر عبد الكريم | H16: =IFERROR(INDEX('العامة نصف السنة ب'!D15,1,1),"") -> 0 | M16: 0 | N16: =IFERROR(INDEX(' العامة نهاية السنة دور اول ب '!D15,1,1),"") -> 0 | O16: 0 | P16: =IFERROR(INDEX(' العامة نهاية السنة دور ثان ب'!D15,1,1),"") -> 0 | Q16: 0 | R16: 10 | S16: ='التلاميذ والقيود '!F12 -> 2165 | T16: ='التلاميذ والقيود '!G12 -> رقيه حيدر عبد الكريم | Y16: =IFERROR(INDEX('العامة نصف السنة ب'!E15,1,1),"") -> 0 | AD16: 0 | AE16: =IFERROR(INDEX(' العامة نهاية السنة دور اول ب '!E15,1,1),"") -> 0 | AF16: 0 | AG16: =IFERROR(INDEX(' العامة نهاية السنة دور ثان ب'!E15,1,1),"") -> 0 | AH16: 0 | AI16: 10 | AJ16: ='التلاميذ والقيود '!F12 -> 2165 | AK16: ='التلاميذ والقيود '!G12 -> رقيه حيدر عبد الكريم | AP16: =IFERROR(INDEX('العامة نصف السنة ب'!F15,1,1),"") -> 0 | AU16: 0 | AV16: =IFERROR(INDEX(' العامة نهاية السنة دور اول ب '!F15,1,1),"") -> 0 | AW16: 0 | AX16: =IFERROR(INDEX(' العامة نهاية السنة دور ثان ب'!F15,1,1),"") -> 0 | AY16: 0 | AZ16: 10 | BA16: ='التلاميذ والقيود '!F12 -> 2165 | BB16: ='التلاميذ والقيود '!G12 -> رقيه حيدر عبد الكريم | BG16: =IFERROR(INDEX('العامة نصف السنة ب'!G15,1,1),"") -> 0 | BL16: 0 | BM16: =IFERROR(INDEX(' العامة نهاية السنة دور اول ب '!G15,1,1),"") -> 0 | BN16: 0 | BO16: =IFERROR(INDEX(' العامة نهاية السنة دور ثان ب'!G15,1,1),"") -> 0 | BP16: 0 | BQ16: 10 | BR16: ='التلاميذ والقيود '!F12 -> 2165 | BS16: ='التلاميذ والقيود '!G12 -> رقيه حيدر عبد الكريم | BX16: =IFERROR(INDEX('العامة نصف السنة ب'!H15,1,1),"") -> 0 | CC16: 0 | CD16: =IFERROR(INDEX(' العامة نهاية السنة دور اول ب '!H15,1,1),"") -> 0 | CE16: 0 | CF16: =IFERROR(INDEX(' العامة نهاية السنة دور ثان ب'!H15,1,1),"") -> 0 | CG16: 0 | CH16: 10 | CI16: ='التلاميذ والقيود '!F12 -> 2165 | CJ16: ='التلاميذ والقيود '!G12 -> رقيه حيدر عبد الكريم | CO16: =IFERROR(INDEX('العامة نصف السنة ب'!I15,1,1),"") -> 0 | CT16: 0 | CU16: =IFERROR(INDEX(' العامة نهاية السنة دور اول ب '!I15,1,1),"") -> 0 | CV16: 0 | CW16: =IFERROR(INDEX(' العامة نهاية السنة دور ثان ب'!I15,1,1),"") -> 0 | CX16: 0 | CY16: 10 | CZ16: ='التلاميذ والقيود '!F12 -> 2165 | DA16: ='التلاميذ والقيود '!G12 -> رقيه حيدر عبد الكريم | DF16: =IFERROR(INDEX('العامة نصف السنة ب'!J15,1,1),"") -> 0 | DK16: 0 | DL16: =IFERROR(INDEX(' العامة نهاية السنة دور اول ب '!J15,1,1),"") -> 0 | DM16: 0 | DN16: =IFERROR(INDEX(' العامة نهاية السنة دور ثان ب'!J15,1,1),"") -> 0 | DO16: 0 | DP16: 10 | DQ16: ='التلاميذ والقيود '!F12 -> 2165 | DR16: ='التلاميذ والقيود '!G12 -> رقيه حيدر عبد الكريم | DW16: =IFERROR(INDEX('العامة نصف السنة ب'!K15,1,1),"") -> 0 | EB16: 0 | EC16: =IFERROR(INDEX(' العامة نهاية السنة دور اول ب '!K15,1,1),"") -> 0 | ED16: 0 | EE16: =IFERROR(INDEX(' العامة نهاية السنة دور ثان ب'!K15,1,1),"") -> 0 | EF16: 0
A17: =IF(B17="","",SUBTOTAL(3,$B$7:B17)) -> 11 | B17: ='التلاميذ والقيود '!F13 -> 2576 | C17: ='التلاميذ والقيود '!G13 -> رقيه علي جعفر | H17: =IFERROR(INDEX('العامة نصف السنة ب'!D16,1,1),"") -> 0 | M17: 0 | N17: =IFERROR(INDEX(' العامة نهاية السنة دور اول ب '!D16,1,1),"") -> 0 | O17: 0 | P17: =IFERROR(INDEX(' العامة نهاية السنة دور ثان ب'!D16,1,1),"") -> 0 | Q17: 0 | R17: 11 | S17: ='التلاميذ والقيود '!F13 -> 2576 | T17: ='التلاميذ والقيود '!G13 -> رقيه علي جعفر | Y17: =IFERROR(INDEX('العامة نصف السنة ب'!E16,1,1),"") -> 0 | AD17: 0 | AE17: =IFERROR(INDEX(' العامة نهاية السنة دور اول ب '!E16,1,1),"") -> 0 | AF17: 0 | AG17: =IFERROR(INDEX(' العامة نهاية السنة دور ثان ب'!E16,1,1),"") -> 0 | AH17: 0 | AI17: 11 | AJ17: ='التلاميذ والقيود '!F13 -> 2576 | AK17: ='التلاميذ والقيود '!G13 -> رقيه علي جعفر | AP17: =IFERROR(INDEX('العامة نصف السنة ب'!F16,1,1),"") -> 0 | AU17: 0 | AV17: =IFERROR(INDEX(' العامة نهاية السنة دور اول ب '!F16,1,1),"") -> 0 | AW17: 0 | AX17: =IFERROR(INDEX(' العامة نهاية السنة دور ثان ب'!F16,1,1),"") -> 0 | AY17: 0 | AZ17: 11 | BA17: ='التلاميذ والقيود '!F13 -> 2576 | BB17: ='التلاميذ والقيود '!G13 -> رقيه علي جعفر | BG17: =IFERROR(INDEX('العامة نصف السنة ب'!G16,1,1),"") -> 0 | BL17: 0 | BM17: =IFERROR(INDEX(' العامة نهاية السنة دور اول ب '!G16,1,1),"") -> 0 | BN17: 0 | BO17: =IFERROR(INDEX(' العامة نهاية السنة دور ثان ب'!G16,1,1),"") -> 0 | BP17: 0 | BQ17: 11 | BR17: ='التلاميذ والقيود '!F13 -> 2576 | BS17: ='التلاميذ والقيود '!G13 -> رقيه علي جعفر | BX17: =IFERROR(INDEX('العامة نصف السنة ب'!H16,1,1),"") -> 0 | CC17: 0 | CD17: =IFERROR(INDEX(' العامة نهاية السنة دور اول ب '!H16,1,1),"") -> 0 | CE17: 0 | CF17: =IFERROR(INDEX(' العامة نهاية السنة دور ثان ب'!H16,1,1),"") -> 0 | CG17: 0 | CH17: 11 | CI17: ='التلاميذ والقيود '!F13 -> 2576 | CJ17: ='التلاميذ والقيود '!G13 -> رقيه علي جعفر | CO17: =IFERROR(INDEX('العامة نصف السنة ب'!I16,1,1),"") -> 0 | CT17: 0 | CU17: =IFERROR(INDEX(' العامة نهاية السنة دور اول ب '!I16,1,1),"") -> 0 | CV17: 0 | CW17: =IFERROR(INDEX(' العامة نهاية السنة دور ثان ب'!I16,1,1),"") -> 0 | CX17: 0 | CY17: 11 | CZ17: ='التلاميذ والقيود '!F13 -> 2576 | DA17: ='التلاميذ والقيود '!G13 -> رقيه علي جعفر | DF17: =IFERROR(INDEX('العامة نصف السنة ب'!J16,1,1),"") -> 0 | DK17: 0 | DL17: =IFERROR(INDEX(' العامة نهاية السنة دور اول ب '!J16,1,1),"") -> 0 | DM17: 0 | DN17: =IFERROR(INDEX(' العامة نهاية السنة دور ثان ب'!J16,1,1),"") -> 0 | DO17: 0 | DP17: 11 | DQ17: ='التلاميذ والقيود '!F13 -> 2576 | DR17: ='التلاميذ والقيود '!G13 -> رقيه علي جعفر | DW17: =IFERROR(INDEX('العامة نصف السنة ب'!K16,1,1),"") -> 0 | EB17: 0 | EC17: =IFERROR(INDEX(' العامة نهاية السنة دور اول ب '!K16,1,1),"") -> 0 | ED17: 0 | EE17: =IFERROR(INDEX(' العامة نهاية السنة دور ثان ب'!K16,1,1),"") -> 0 | EF17: 0
A18: =IF(B18="","",SUBTOTAL(3,$B$7:B18)) -> 12 | B18: ='التلاميذ والقيود '!F14 -> 2568 | C18: ='التلاميذ والقيود '!G14 -> رقيه علي طاهر | H18: =IFERROR(INDEX('العامة نصف السنة ب'!D17,1,1),"") -> 0 | M18: 0 | N18: =IFERROR(INDEX(' العامة نهاية السنة دور اول ب '!D17,1,1),"") -> 0 | O18: 0 | P18: =IFERROR(INDEX(' العامة نهاية السنة دور ثان ب'!D17,1,1),"") -> 0 | Q18: 0 | R18: 12 | S18: ='التلاميذ والقيود '!F14 -> 2568 | T18: ='التلاميذ والقيود '!G14 -> رقيه علي طاهر | Y18: =IFERROR(INDEX('العامة نصف السنة ب'!E17,1,1),"") -> 0 | AD18: 0 | AE18: =IFERROR(INDEX(' العامة نهاية السنة دور اول ب '!E17,1,1),"") -> 0 | AF18: 0 | AG18: =IFERROR(INDEX(' العامة نهاية السنة دور ثان ب'!E17,1,1),"") -> 0 | AH18: 0 | AI18: 12 | AJ18: ='التلاميذ والقيود '!F14 -> 2568 | AK18: ='التلاميذ والقيود '!G14 -> رقيه علي طاهر | AP18: =IFERROR(INDEX('العامة نصف السنة ب'!F17,1,1),"") -> 0 | AU18: 0 | AV18: =IFERROR(INDEX(' العامة نهاية السنة دور اول ب '!F17,1,1),"") -> 0 | AW18: 0 | AX18: =IFERROR(INDEX(' العامة نهاية السنة دور ثان ب'!F17,1,1),"") -> 0 | AY18: 0 | AZ18: 12 | BA18: ='التلاميذ والقيود '!F14 -> 2568 | BB18: ='التلاميذ والقيود '!G14 -> رقيه علي طاهر | BG18: =IFERROR(INDEX('العامة نصف السنة ب'!G17,1,1),"") -> 0 | BL18: 0 | BM18: =IFERROR(INDEX(' العامة نهاية السنة دور اول ب '!G17,1,1),"") -> 0 | BN18: 0 | BO18: =IFERROR(INDEX(' العامة نهاية السنة دور ثان ب'!G17,1,1),"") -> 0 | BP18: 0 | BQ18: 12 | BR18: ='التلاميذ والقيود '!F14 -> 2568 | BS18: ='التلاميذ والقيود '!G14 -> رقيه علي طاهر | BX18: =IFERROR(INDEX('العامة نصف السنة ب'!H17,1,1),"") -> 0 | CC18: 0 | CD18: =IFERROR(INDEX(' العامة نهاية السنة دور اول ب '!H17,1,1),"") -> 0 | CE18: 0 | CF18: =IFERROR(INDEX(' العامة نهاية السنة دور ثان ب'!H17,1,1),"") -> 0 | CG18: 0 | CH18: 12 | CI18: ='التلاميذ والقيود '!F14 -> 2568 | CJ18: ='التلاميذ والقيود '!G14 -> رقيه علي طاهر | CO18: =IFERROR(INDEX('العامة نصف السنة ب'!I17,1,1),"") -> 0 | CT18: 0 | CU18: =IFERROR(INDEX(' العامة نهاية السنة دور اول ب '!I17,1,1),"") -> 0 | CV18: 0 | CW18: =IFERROR(INDEX(' العامة نهاية السنة دور ثان ب'!I17,1,1),"") -> 0 | CX18: 0 | CY18: 12 | CZ18: ='التلاميذ والقيود '!F14 -> 2568 | DA18: ='التلاميذ والقيود '!G14 -> رقيه علي طاهر | DF18: =IFERROR(INDEX('العامة نصف السنة ب'!J17,1,1),"") -> 0 | DK18: 0 | DL18: =IFERROR(INDEX(' العامة نهاية السنة دور اول ب '!J17,1,1),"") -> 0 | DM18: 0 | DN18: =IFERROR(INDEX(' العامة نهاية السنة دور ثان ب'!J17,1,1),"") -> 0 | DO18: 0 | DP18: 12 | DQ18: ='التلاميذ والقيود '!F14 -> 2568 | DR18: ='التلاميذ والقيود '!G14 -> رقيه علي طاهر | DW18: =IFERROR(INDEX('العامة نصف السنة ب'!K17,1,1),"") -> 0 | EB18: 0 | EC18: =IFERROR(INDEX(' العامة نهاية السنة دور اول ب '!K17,1,1),"") -> 0 | ED18: 0 | EE18: =IFERROR(INDEX(' العامة نهاية السنة دور ثان ب'!K17,1,1),"") -> 0 | EF18: 0
